Workbook

Sheet Model Overview and Instructions
B1: AWE Sales Forecasting and Rate Model
R52: Go forward to Step 1: Model Setup Worksheet

Sheet Step 1 Model Setup
B1: Step 1: Model Setup
B2: On this worksheet you specify the test year, the units volumes, precipitation, and temperature, seasons, customer classes, and ratio of maximum month to minimum month system production.
B3: The model requires these parameters in order to function properly. Therefore this should be the first thing you do if you are using the model for the first time. There are 5 sections to complete
B4: on this worksheet. Be sure all sections are completed correctly before moving on to the Rate Design Module.
B6: 1. Bill Tabulation Year
B7: The model calculates water sales and sales revenue using the distributions of customer water consumption you enter in Step 2 (Bill Tabulations). These distributions are based on historical
B8: consumption data for a recent year. This is called the Bill Tabulation Year. Use the drop-down list below to specify the year for which you will be providing bill tabulations in Step 2.
B9: Note: The Bill Tabulation Year must be within the last 10 years, and should be a year for which you provide weather data in Step 4, though this is not strictly necessary.
B12: Bill Tabulation Year:
B14: 2. Model Units
B15: The model needs to know what billing units you use with your water rates. In the U.S., municipal and industrial water use is typically priced per hundred cubic feet (CCF) or thousand gallons
B16: (Thou. Gal.). In countries on the metric system, it is typically priced per kilo liter (kL). Use the drop-down list to select the billing units you use with your water rates.
B17: In Step 6 you will enter historical precipitation and temperature data. Use the drop-down lists to specify units these data are in.
B19: Billing Units: | F19: Precipitation Units: | J19: Temperature Units:
B21: 3. Seasons
B22: ="The model divides annual water use between " & season1 & " and " & season2 & " seasons. This allows the model to differentiate the change in water use given a change in rates by season (typically, demand in" -> The model divides annual water use between Off Peak and Peak seasons. This allows the model to differentiate the change in water use given a change in rates by season (typically, demand in
B23: ="the " & season2 & " season is more responsive to rate adjustments than demand in the " & season1 & " season). It also allows you to specify different water rates for each season (seasonal rates)." -> the Peak season is more responsive to rate adjustments than demand in the Off Peak season). It also allows you to specify different water rates for each season (seasonal rates).
B24: ="Use the drop-down lists to specify the first and last months for the " & season1 & " season. The model will then determine the months that are in the " & season2 &" season." -> Use the drop-down lists to specify the first and last months for the Off Peak season. The model will then determine the months that are in the Peak season.
B25: ="Note: you do not need to specify the months for the " & season2 & " season. The model determines this from your specification of the " & season1 & " season." -> Note: you do not need to specify the months for the Peak season. The model determines this from your specification of the Off Peak season.
B27: Season | C27: From | D27: Thru | F27: No. Months | H27: Season | I27: From | J27: Thru | L27: No. Months
B28: =season1 & ":" -> Off Peak: | F28: =COUNTIF(seasons,season1) -> 0 | H28: =season2 & ":" -> Peak: | I28: =INDEX(months,MATCH(D28,months,0)+1) ->  | J28: =IF(C28="Jan","Dec",INDEX(months,MATCH(C28,months,0)-1)) ->  | L28: =12-F28 -> 12
B30: 4. Maximum to Minimum Month Production Ratio
B31: The model uses the ratio of maximum to the minimum monthly system production to infer the relative importance of outdoor water use in your service area. Since outdoor use is more
B32: responsive than indoor use to deviations from normal weather patterns, this is important. Enter the maximum to minimum monthly production ratio in the cell below.
B33: Note: It is best to calculate this ratio for several recent years and then enter the average of your results.
B35: Max to Min Monthly Production Ratio:
B37: 5. Customer Classes
B38: The model can calculate water use and sales revenue for up to six different customer classes. Use the Number of Customer Classes drop-down list to specify the number of customer classes you
B39: want to model. Enter names for each class in the Class Names table below the drop-down list.
B41: Number of Customer Classes: | H41: Class Names Table
G42: Class 1 | H42: Not in use
G43: Class 2 | H43: Not in use
G44: Class 3 | H44: Not in use
G45: Class 4 | H45: Not in use
G46: Class 5 | H46: Not in use
G47: Class 6 | H47: Not in use
B49: 6. Median Household Income
B50: The model calculates the change in affordability between your Current and Proposed rates based on the ratio of water cost to median household income. Enter median household income for
B51: your service area and select the Customer Class number you set to your primary residential customer class (e.g. single family customers).
D53: Median household income: | G53: Select the class number you set to your primary residential customer class:
B55: If you have completed this worksheet, go to the Rate Design Module worksheet.
B57: Go back to Model Overview and Instructions Worksheet | O57: Go forward to Rate Design Model Worksheet

Sheet Rate Design Module
B1: Rate Design Module
B39: Go back to Step 1: Model Setup Worksheet | Q39: Go forward to Step 2: Enter Bill Tabulations Worksheet

Sheet Step 2 Enter Bill Tabulations
B1: Step 2: Enter Customer Class Bill Tabulations
B2: On this worksheet, you enter bill tabulations for your Bill Tabulation Year for the customer classes you set up in Step 1. A bill tabulation shows the number of bills and total usage falling into each usage bin. Separate bill tabulations are required for each season. Because
B3: bills may not fall neatly into the seasons you defined in Step 1,creating a seasonal bill tabulation is more challenging than creating an annual bill tabulation. It requires allocating bills to each season according to the date the meter was read (and thus the period of consumption to
B4: which this read date corresponds). It will always be the case that consumption will span the two seasons for some bills. In these cases, you will need to have rules for assigning the bill to one or the other season (e.g. if more that 50% of the days in the consumption period
B5: are in the first season, then assign it to the first season). The User Guide provides additional guidance and examples for preparing your bill tabulations. In addition, AWWA Manual M1 provides a thorough discussion and detailed example of how to prepare bill tabulations
B6: using your meter read data.
B7: Go back to Rate Design Module Worksheet | T7: Go forward to Step 3: Customer Service Charges
E9: ="Customer Class: " & class1 -> Customer Class: Not in use | J9: ="Customer Class: " & class2 -> Customer Class: Not in use | O9: ="Customer Class: " & class3 -> Customer Class: Not in use | T9: ="Customer Class: " & class4 -> Customer Class: Not in use | Y9: ="Customer Class: " & class5 -> Customer Class: Not in use | AD9: ="Customer Class: " & class6 -> Customer Class: Not in use
E10: =season1 & " Season" -> Off Peak Season | G10: =season2 & " Season" -> Peak Season | J10: =season1 & " Season" -> Off Peak Season | L10: =season2 & " Season" -> Peak Season | O10: =season1 & " Season" -> Off Peak Season | Q10: =season2 & " Season" -> Peak Season | T10: =season1 & " Season" -> Off Peak Season | V10: =season2 & " Season" -> Peak Season | Y10: =season1 & " Season" -> Off Peak Season | AA10: =season2 & " Season" -> Peak Season | AD10: =season1 & " Season" -> Off Peak Season | AF10: =season2 & " Season" -> Peak Season
E11: =season1_month1 & " - " & season1_month2 -> - | G11: =season2_month1 & " - " & season2_month2 ->  | J11: =season1_month1 & " - " & season1_month2 -> - | L11: =season2_month1 & " - " & season2_month2 ->  | O11: =season1_month1 & " - " & season1_month2 -> - | Q11: =season2_month1 & " - " & season2_month2 ->  | T11: =season1_month1 & " - " & season1_month2 -> - | V11: =season2_month1 & " - " & season2_month2 ->  | Y11: =season1_month1 & " - " & season1_month2 -> - | AA11: =season2_month1 & " - " & season2_month2 ->  | AD11: =season1_month1 & " - " & season1_month2 -> - | AF11: =season2_month1 & " - " & season2_month2 -> 
F13: Total | H13: Total | K13: Total | M13: Total | P13: Total | R13: Total | U13: Total | W13: Total | Z13: Total | AB13: Total | AE13: Total | AG13: Total
B14: Usage Bin | F14: Use of Bills | H14: Use of Bills | K14: Use of Bills | M14: Use of Bills | P14: Use of Bills | R14: Use of Bills | U14: Use of Bills | W14: Use of Bills | Z14: Use of Bills | AB14: Use of Bills | AE14: Use of Bills | AG14: Use of Bills
B15: ="(" & units_vol & ")" -> () | E15: Bills in | F15: in Bin | G15: Bills in | H15: in Bin | J15: Bills in | K15: in Bin | L15: Bills in | M15: in Bin | O15: Bills in | P15: in Bin | Q15: Bills in | R15: in Bin | T15: Bills in | U15: in Bin | V15: Bills in | W15: in Bin | Y15: Bills in | Z15: in Bin | AA15: Bills in | AB15: in Bin | AD15: Bills in | AE15: in Bin | AF15: Bills in | AG15: in Bin
B16: From | C16: To | E16: Bin | F16: ="(" & units_vol & ")" -> () | G16: Bin | H16: ="(" & units_vol & ")" -> () | J16: Bin | K16: ="(" & units_vol & ")" -> () | L16: Bin | M16: ="(" & units_vol & ")" -> () | O16: Bin | P16: ="(" & units_vol & ")" -> () | Q16: Bin | R16: ="(" & units_vol & ")" -> () | T16: Bin | U16: ="(" & units_vol & ")" -> () | V16: Bin | W16: ="(" & units_vol & ")" -> () | Y16: Bin | Z16: ="(" & units_vol & ")" -> () | AA16: Bin | AB16: ="(" & units_vol & ")" -> () | AD16: Bin | AE16: ="(" & units_vol & ")" -> () | AF16: Bin | AG16: ="(" & units_vol & ")" -> ()
B17: 0 | C17: 0
B18: 1 | C18: 1
B19: 2 | C19: 2
B20: 3 | C20: 3
B21: 4 | C21: 4
B22: 5 | C22: 5
B23: 6 | C23: 6
B24: 7 | C24: 7
B25: 8 | C25: 8
B26: 9 | C26: 9
B27: 10 | C27: 10
B28: 11 | C28: 11
B29: 12 | C29: 12
B30: 13 | C30: 13
B31: 14 | C31: 14
B32: 15 | C32: 15
B33: 16 | C33: 16
B34: 17 | C34: 17
B35: 18 | C35: 18
B36: 19 | C36: 19
B37: 20 | C37: 20
B38: 21 | C38: 21
B39: 22 | C39: 22
B40: 23 | C40: 23
B41: 24 | C41: 24
B42: 25 | C42: 25
B43: 26 | C43: 26
B44: 27 | C44: 27
B45: 28 | C45: 28
B46: 29 | C46: 29
B47: 30 | C47: 30
B48: 31 | C48: 31
B49: 32 | C49: 32
B50: 33 | C50: 33
B51: 34 | C51: 34
B52: 35 | C52: 35
B53: 36 | C53: 36
B54: 37 | C54: 37
B55: 38 | C55: 38
B56: 39 | C56: 39
B57: 40 | C57: 40
B58: 41 | C58: 41
B59: 42 | C59: 42
B60: 43 | C60: 43
B61: 44 | C61: 44
B62: 45 | C62: 45
B63: 46 | C63: 46
B64: 47 | C64: 47
B65: 48 | C65: 48
B66: 49 | C66: 49
B67: 50 | C67: 50
B68: 51 | C68: 51
B69: 52 | C69: 52
B70: 53 | C70: 53
B71: 54 | C71: 54
B72: 55 | C72: 55
B73: 56 | C73: 56
B74: 57 | C74: 57
B75: 58 | C75: 58
B76: 59 | C76: 59
B77: 60 | C77: 60
B78: 61 | C78: 61
B79: 62 | C79: 62
B80: 63 | C80: 63
B81: 64 | C81: 64
B82: 65 | C82: 65
B83: 66 | C83: 66
B84: 67 | C84: 67
B85: 68 | C85: 68
B86: 69 | C86: 69
B87: 70 | C87: 70
B88: 71 | C88: 71
B89: 72 | C89: 72
B90: 73 | C90: 73
B91: 74 | C91: 74
B92: 75 | C92: 75
B93: 76 | C93: 76
B94: 77 | C94: 77
B95: 78 | C95: 78
B96: 79 | C96: 79
B97: 80 | C97: 80
B98: 81 | C98: 81
B99: 82 | C99: 82
B100: 83 | C100: 83
B101: 84 | C101: 84
B102: 85 | C102: 85
B103: 86 | C103: 86
B104: 87 | C104: 87
B105: 88 | C105: 88
B106: 89 | C106: 89
B107: 90 | C107: 90
B108: 91 | C108: 91
B109: 92 | C109: 92
B110: 93 | C110: 93
B111: 94 | C111: 94
B112: 95 | C112: 95
B113: 96 | C113: 96
B114: 97 | C114: 97
B115: 98 | C115: 98
B116: 99 | C116: 99
B117: 100 | C117: 100
B118: 101 | C118: 101
B119: 102 | C119: 102
B120: 103 | C120: 103
B121: 104 | C121: 104
B122: 105 | C122: 105
B123: 106 | C123: 106
B124: 107 | C124: 107
B125: 108 | C125: 108
B126: 109 | C126: 109
B127: 110 | C127: 110
B128: 111 | C128: 111
B129: 112 | C129: 112
B130: 113 | C130: 113
B131: 114 | C131: 114
B132: 115 | C132: 115
B133: 116 | C133: 116
B134: 117 | C134: 117
B135: 118 | C135: 118
B136: 119 | C136: 119
B137: 120 | C137: 120
B138: 121 | C138: 121
B139: 122 | C139: 122
B140: 123 | C140: 123
B141: 124 | C141: 124
B142: 125 | C142: 125
B143: 126 | C143: 126
B144: 127 | C144: 127
B145: 128 | C145: 128
B146: 129 | C146: 129
B147: 130 | C147: 130
B148: 131 | C148: 131
B149: 132 | C149: 132
B150: 133 | C150: 133
B151: 134 | C151: 134
B152: 135 | C152: 135
B153: 136 | C153: 136
B154: 137 | C154: 137
B155: 138 | C155: 138
B156: 139 | C156: 139
B157: 140 | C157: 140
B158: 141 | C158: 141
B159: 142 | C159: 142
B160: 143 | C160: 143
B161: 144 | C161: 144
B162: 145 | C162: 145
B163: 146 | C163: 146
B164: 147 | C164: 147
B165: 148 | C165: 148
B166: 149 | C166: 149
B167: 150 | C167: 150
B168: 151 | C168: 151
B169: 152 | C169: 152
B170: 153 | C170: 153
B171: 154 | C171: 154
B172: 155 | C172: 155
B173: 156 | C173: 156
B174: 157 | C174: 157
B175: 158 | C175: 158
B176: 159 | C176: 159
B177: 160 | C177: 160
B178: 161 | C178: 161
B179: 162 | C179: 162
B180: 163 | C180: 163
B181: 164 | C181: 164
B182: 165 | C182: 165
B183: 166 | C183: 166
B184: 167 | C184: 167
B185: 168 | C185: 168
B186: 169 | C186: 169
B187: 170 | C187: 170
B188: 171 | C188: 171
B189: 172 | C189: 172
B190: 173 | C190: 173
B191: 174 | C191: 174
B192: 175 | C192: 175
B193: 176 | C193: 176
B194: 177 | C194: 177
B195: 178 | C195: 178
B196: 179 | C196: 179
B197: 180 | C197: 180
B198: 181 | C198: 181
B199: 182 | C199: 182
B200: 183 | C200: 183
B201: 184 | C201: 184
B202: 185 | C202: 185
... 58 more rows

Sheet Step 3 Customer Service Charges
B1: Step 3: Customer Service Charges
B2: On this worksheet, you specify Current and Proposed meter service charges. There are two sections to the worksheet. In Section 1, you enter the number of accounts by Customer Class and
B3: meter size for your Bill Tabulation Year. In Section 2, you specify your Current and Proposed customer service charges, again by Customer Class and meter size. In Section 2, you also select
B4: your billing frequency, so that the model will know the frequency with which these charges are collected.
B6: 1. Enter Number of Accounts by Meter Size in the Bill Tabulation Year
B7: Enter the number of active accounts by meter size and Customer Class for the Bill Tabulation Year in the table below. You should be able to draw this information directly from the bill
B8: tabulations you provided in Step 2.
C10: Number of Accounts by Meter Size in Bill Tabulation Year
B12: Meter Size | C12: =class1 -> Not in use | D12: =class2 -> Not in use | E12: =class3 -> Not in use | F12: =class4 -> Not in use | G12: =class5 -> Not in use | H12: =class6 -> Not in use | I12: Total
B13: 5/8-Inch | I13: =SUM(C13:H13) -> 0
B14: 3/4-Inch | I14: 0
B15: 1-Inch | I15: 0
B16: 1 1/2-Inch | I16: 0
B17: 2-Inch | I17: 0
B18: 3-Inch | I18: 0
B19: 4-Inch | I19: 0
B20: 6-Inch | I20: 0
B21: 8-Inch | I21: 0
B22: 10-Inch | I22: 0
B23: 12-Inch | I23: 0
B24: 16-Inch | I24: 0
B25: Total | C25: =SUM(C13:C24) -> 0 | D25: 0 | E25: 0 | F25: 0 | G25: 0 | H25: 0 | I25: 0
B27: 2. Specify the Customer Service Charges for Current and Proposed Rates
B28: Use the drop-down list to enter the billing frequency for your utility. Next, enter in the table below your Current and Proposed customer service charges by Customer Class and meter size.
B30: Billing Frequency: | F30: Bills Per Year: | G30: =bills_per_yr -> 4
C32: Service Charge Per Billing Period by Customer Class and Meter Size
C34: =class1 -> Not in use | E34: =class2 -> Not in use | G34: =class3 -> Not in use | I34: =class4 -> Not in use | K34: =class5 -> Not in use | M34: =class6 -> Not in use
B35: Meter Size | C35: Current | D35: Proposed | E35: Current | F35: Proposed | G35: Current | H35: Proposed | I35: Current | J35: Proposed | K35: Current | L35: Proposed | M35: Current | N35: Proposed
C36: ($/Bill) | D36: ($/Bill) | E36: ($/Bill) | F36: ($/Bill) | G36: ($/Bill) | H36: ($/Bill) | I36: ($/Bill) | J36: ($/Bill) | K36: ($/Bill) | L36: ($/Bill) | M36: ($/Bill) | N36: ($/Bill)
B37: 5/8-Inch
B38: 3/4-Inch
B39: 1-Inch
B40: 1 1/2-Inch
B41: 2-Inch
B42: 3-Inch
B43: 4-Inch
B44: 6-Inch
B45: 8-Inch
B46: 10-Inch
B47: 12-Inch
B48: 16-Inch
C50: Service Charge Revenue (Thou. $)
B52: Per Bill Period | C52: =SUMPRODUCT(C13:C24,C37:C48)/1000 -> 0 | D52: =SUMPRODUCT(C13:C24,D37:D48)/1000 -> 0 | E52: =SUMPRODUCT(D13:D24,E37:E48)/1000 -> 0 | F52: =SUMPRODUCT(D13:D24,F37:F48)/1000 -> 0 | G52: =SUMPRODUCT(E13:E24,G37:G48)/1000 -> 0 | H52: =SUMPRODUCT(E13:E24,H37:H48)/1000 -> 0 | I52: =SUMPRODUCT(F13:F24,I37:I48)/1000 -> 0 | J52: =SUMPRODUCT(F13:F24,J37:J48)/1000 -> 0 | K52: =SUMPRODUCT(G13:G24,K37:K48)/1000 -> 0 | L52: =SUMPRODUCT(G13:G24,L37:L48)/1000 -> 0 | M52: =SUMPRODUCT(H13:H24,M37:M48)/1000 -> 0 | N52: =SUMPRODUCT(H13:H24,N37:N48)/1000 -> 0
B53: Annual | C53: =C52*bills_per_yr -> 0 | D53: 0 | E53: 0 | F53: 0 | G53: 0 | H53: 0 | I53: 0 | J53: 0 | K53: 0 | L53: 0 | M53: 0 | N53: 0
C55: Annual Service Charge Per Account ($)
B57: Average | C57: =IF(class1_is_active,1000*C53/C25,"") ->  | D57: =IF(class1_is_active,1000*D53/C25,"") ->  | E57: =IF(class2_is_active,1000*class2_fixed_rev_current/D25,"") ->  | F57: =IF(class2_is_active,1000*class2_fixed_rev_proposed/D25,"") ->  | G57: =IF(class3_is_active,1000*class3_fixed_rev_current/E25,"") ->  | H57: =IF(class3_is_active,1000*class3_fixed_rev_proposed/E25,"") ->  | I57: =IF(class4_is_active,1000*class4_fixed_rev_current/F25,"") ->  | J57: =IF(class4_is_active,1000*class4_fixed_rev_proposed/F25,"") ->  | K57: =IF(class5_is_active,1000*class5_fixed_rev_current/G25,"") ->  | L57: =IF(class5_is_active,1000*class5_fixed_rev_proposed/G25,"") ->  | M57: =IF(class6_is_active,1000*class6_fixed_rev_current/H25,"") ->  | N57: =IF(class6_is_active,1000*class6_fixed_rev_proposed/H25,"") -> 
B58: Median | C58: =IF(class1_is_active,IF(C75>1,INDEX(C37:C48,C75+1),C37)*bills_per_yr,"") ->  | D58: =IF(class1_is_active,IF(D75>1,INDEX(D37:D48,D75+1),D37)*bills_per_yr,"") ->  | E58: =IF(class2_is_active,IF(E75>1,INDEX(E37:E48,E75+1),E37)*bills_per_yr,"") ->  | F58: =IF(class2_is_active,IF(F75>1,INDEX(F37:F48,F75+1),F37)*bills_per_yr,"") ->  | G58: =IF(class3_is_active,IF(G75>1,INDEX(G37:G48,G75+1),G37)*bills_per_yr,"") ->  | H58: =IF(class3_is_active,IF(H75>1,INDEX(H37:H48,H75+1),H37)*bills_per_yr,"") ->  | I58: =IF(class4_is_active,IF(I75>1,INDEX(I37:I48,I75+1),I37)*bills_per_yr,"") ->  | J58: =IF(class4_is_active,IF(J75>1,INDEX(J37:J48,J75+1),J37)*bills_per_yr,"") ->  | K58: =IF(class5_is_active,IF(K75>1,INDEX(K37:K48,K75+1),K37)*bills_per_yr,"") ->  | L58: =IF(class5_is_active,IF(L75>1,INDEX(L37:L48,L75+1),L37)*bills_per_yr,"") ->  | M58: =IF(class6_is_active,IF(M75>1,INDEX(M37:M48,M75+1),M37)*bills_per_yr,"") ->  | N58: =IF(class6_is_active,IF(N75>1,INDEX(N37:N48,N75+1),N37)*bills_per_yr,"") -> 
B62: Go back to Step 2: Enter Bill Tabulations | L62: Go forward to Step 4: Design Water Rates
B64: Model Calculations Below. Do Not Modify
H71: DO NOT MODIFY
C72: Median Value Lookup Table
C74: =(C25+1)/2 -> 0.5 | E74: =(D25+1)/2 -> 0.5 | G74: =(E25+1)/2 -> 0.5 | I74: =(F25+1)/2 -> 0.5 | K74: =(G25+1)/2 -> 0.5 | M74: =(H25+1)/2 -> 0.5
C75: =IF(C74<=C77,1,MATCH(C74,C77:C88,1)) -> 12 | D75: =C75 -> 12 | E75: =IF(E74<=E77,1,MATCH(E74,E77:E88,1)) -> 12 | F75: =E75 -> 12 | G75: =IF(G74<=G77,1,MATCH(G74,G77:G88,1)) -> 12 | H75: =G75 -> 12 | I75: =IF(I74<=I77,1,MATCH(I74,I77:I88,1)) -> 12 | J75: =I75 -> 12 | K75: =IF(K74<=K77,1,MATCH(K74,K77:K88,1)) -> 12 | L75: =K75 -> 12 | M75: =IF(M74<=M77,1,MATCH(M74,M77:M88,1)) -> 12 | N75: =M75 -> 12
C77: =SUM(C13:C$13) -> 0 | D77: =C77 -> 0 | E77: =SUM(D13:D$13) -> 0 | F77: 0 | G77: =SUM(E13:E$13) -> 0 | H77: =G77 -> 0 | I77: =SUM(F13:F$13) -> 0 | J77: =I77 -> 0 | K77: =SUM(G13:G$13) -> 0 | L77: =K77 -> 0 | M77: =SUM(H13:H$13) -> 0 | N77: =M77 -> 0
C78: =SUM(C$13:C14) -> 0 | D78: 0 | E78: =SUM(D$13:D14) -> 0 | F78: 0 | G78: =SUM(E$13:E14) -> 0 | H78: =G78 -> 0 | I78: =SUM(F$13:F14) -> 0 | J78: =I78 -> 0 | K78: =SUM(G$13:G14) -> 0 | L78: =K78 -> 0 | M78: =SUM(H$13:H14) -> 0 | N78: =M78 -> 0
C79: =SUM(C$13:C15) -> 0 | D79: 0 | E79: =SUM(D$13:D15) -> 0 | F79: 0 | G79: =SUM(E$13:E15) -> 0 | H79: =G79 -> 0 | I79: =SUM(F$13:F15) -> 0 | J79: =I79 -> 0 | K79: =SUM(G$13:G15) -> 0 | L79: =K79 -> 0 | M79: =SUM(H$13:H15) -> 0 | N79: =M79 -> 0
C80: =SUM(C$13:C16) -> 0 | D80: 0 | E80: =SUM(D$13:D16) -> 0 | F80: 0 | G80: =SUM(E$13:E16) -> 0 | H80: =G80 -> 0 | I80: =SUM(F$13:F16) -> 0 | J80: =I80 -> 0 | K80: =SUM(G$13:G16) -> 0 | L80: =K80 -> 0 | M80: =SUM(H$13:H16) -> 0 | N80: =M80 -> 0
C81: =SUM(C$13:C17) -> 0 | D81: 0 | E81: =SUM(D$13:D17) -> 0 | F81: 0 | G81: =SUM(E$13:E17) -> 0 | H81: =G81 -> 0 | I81: =SUM(F$13:F17) -> 0 | J81: =I81 -> 0 | K81: =SUM(G$13:G17) -> 0 | L81: =K81 -> 0 | M81: =SUM(H$13:H17) -> 0 | N81: =M81 -> 0
C82: =SUM(C$13:C18) -> 0 | D82: 0 | E82: =SUM(D$13:D18) -> 0 | F82: 0 | G82: =SUM(E$13:E18) -> 0 | H82: =G82 -> 0 | I82: =SUM(F$13:F18) -> 0 | J82: =I82 -> 0 | K82: =SUM(G$13:G18) -> 0 | L82: =K82 -> 0 | M82: =SUM(H$13:H18) -> 0 | N82: =M82 -> 0
C83: =SUM(C$13:C19) -> 0 | D83: 0 | E83: =SUM(D$13:D19) -> 0 | F83: 0 | G83: =SUM(E$13:E19) -> 0 | H83: =G83 -> 0 | I83: =SUM(F$13:F19) -> 0 | J83: =I83 -> 0 | K83: =SUM(G$13:G19) -> 0 | L83: =K83 -> 0 | M83: =SUM(H$13:H19) -> 0 | N83: =M83 -> 0
C84: =SUM(C$13:C20) -> 0 | D84: 0 | E84: =SUM(D$13:D20) -> 0 | F84: 0 | G84: =SUM(E$13:E20) -> 0 | H84: =G84 -> 0 | I84: =SUM(F$13:F20) -> 0 | J84: =I84 -> 0 | K84: =SUM(G$13:G20) -> 0 | L84: =K84 -> 0 | M84: =SUM(H$13:H20) -> 0 | N84: =M84 -> 0
C85: =SUM(C$13:C21) -> 0 | D85: 0 | E85: =SUM(D$13:D21) -> 0 | F85: 0 | G85: =SUM(E$13:E21) -> 0 | H85: =G85 -> 0 | I85: =SUM(F$13:F21) -> 0 | J85: =I85 -> 0 | K85: =SUM(G$13:G21) -> 0 | L85: =K85 -> 0 | M85: =SUM(H$13:H21) -> 0 | N85: =M85 -> 0
C86: =SUM(C$13:C22) -> 0 | D86: 0 | E86: =SUM(D$13:D22) -> 0 | F86: 0 | G86: =SUM(E$13:E22) -> 0 | H86: =G86 -> 0 | I86: =SUM(F$13:F22) -> 0 | J86: =I86 -> 0 | K86: =SUM(G$13:G22) -> 0 | L86: =K86 -> 0 | M86: =SUM(H$13:H22) -> 0 | N86: =M86 -> 0
C87: =SUM(C$13:C23) -> 0 | D87: 0 | E87: =SUM(D$13:D23) -> 0 | F87: 0 | G87: =SUM(E$13:E23) -> 0 | H87: =G87 -> 0 | I87: =SUM(F$13:F23) -> 0 | J87: =I87 -> 0 | K87: =SUM(G$13:G23) -> 0 | L87: =K87 -> 0 | M87: =SUM(H$13:H23) -> 0 | N87: =M87 -> 0
C88: =SUM(C$13:C24) -> 0 | D88: 0 | E88: =SUM(D$13:D24) -> 0 | F88: 0 | G88: =SUM(E$13:E24) -> 0 | H88: =G88 -> 0 | I88: =SUM(F$13:F24) -> 0 | J88: =I88 -> 0 | K88: =SUM(G$13:G24) -> 0 | L88: =K88 -> 0 | M88: =SUM(H$13:H24) -> 0 | N88: =M88 -> 0

Sheet Step 4 Design Water Rates
B1: Step 4: Design Water Rates
B2: On this worksheet, you specify Current and Proposed volumetric water rates for each Customer Class you defined in Step 1. The Proposed rates can be any alternative rate structure. The
B3: model uses the bill tabulation data you entered in Step 2 to calculate the sales volume and revenue under each rate design. The model results on this worksheet are conditional on the
B4: number of customers and weather conditions in the Bill Tabulation Year. Under different conditions, both sales volume and revenue can be expected to depart from these estimates. In
B5: the Rate Simulation Module, you can use the model to simulate sales volumes and revenues over a five- year period where number of customers, weather, and possibility of water use
B6: curtailments are variable.
B8: 1. Set demand elasticity parameters
B9: Demand elasticity is a parameter that measures the responsiveness of water demand to changes in the volumetric rate. It measures the percentage change in demand given a 1
B10: percent change in price. Enter the demand elasticity parameters for each Customer Class in the Demand Elasticity Table. For normal goods like water, the elasticity parameter is a negative
B11: number, typically between -0.0 and -0.5. Demand elasticity is typically greater in absolute value in the peak period than the off-peak period. Recommended values are provided for
B12: common Customer Classes in the table to the right. If you do not want to the model to include price effects when it calculates sales revenue for your proposed rates, then set the demand
B13: elasticity parameters to 0.
D15: Demand Elasticity
D16: Table
B17: Customer Class | D17: =season1 -> Off Peak | E17: =season2 -> Peak | G17: Recommended Short-Run Elasticity Values
B18: =class1 -> Not in use | I18: =season1 -> Off Peak | J18: =season2 -> Peak
B19: =class2 -> Not in use | G19: Single Family | I19: -.00 to -.10 | J19: -.10 to -.20
B20: =class3 -> Not in use | G20: Multi Family | I20: -.00 to -.05 | J20: -.05 to -.10
B21: =class4 -> Not in use | G21: Commercial/Industrial | I21: -.15 to -.25 | J21: -.15 to -.25
B22: =class5 -> Not in use | G22: Landscape | I22: -.20 to -.30 | J22: -.20 to -.30
B23: =class6 -> Not in use
B25: 2. Specify rates for each Customer Class in the tables below.
B26: Use the tables below to specify the Current and Proposed rates for each Customer Class. You can specify uniform, block, seasonal, and seasonal block rates.
B27: Uniform and Uniform Seasonal Designs: Enter the same rate for all five blocks. If you want the uniform rate to vary by season, set a different uniform rate for each season.
B28: Block and Seasonal Block Designs: Enter the blocks and rates for each block level. You can specify up to 5 blocks. If you want fewer blocks than 5 -- say 3 -- then enter the same rate and
B29: block information for Block 4 and Block 5 that you did for Block 3. If you want seasonal block rates, you can specify different blocks and/or rates for each season.
B30: Mixed Designs: You can vary the rate design by Customer Class and season. For example, you can specify a block rate for the single family residential class and uniform rates for all
B31: other classes. Or you can specify a uniform rate for one season and a block rate for the other. | P31: Rate Performance by Customer Class
B33: =class1 -> Not in use | D33: =season1 & " Season" -> Off Peak Season | J33: =season2 & " Season" -> Peak Season | P33: Annual Sales Volume
D34: Current Rates | G34: Proposed Rates | J34: Current Rates | M34: Proposed Rates | P34: Current | Q34: Proposed | R34: % Change
D35: Block | E35: Rate | G35: Block | H35: Rate | J35: Block | K35: Rate | M35: Block | N35: Rate | O35: =units_vol -> 0 | P35: =IF(class1_is_active,class1_seas1_vol_current+class1_seas2_vol_current,"") ->  | Q35: =IF(class1_is_active,class1_seas1_vol_proposed+class1_seas2_vol_proposed,"") ->  | R35: =IF(class1_is_active,Q35/P35-1,"") -> 
D36: ="(" & units_vol & ")" -> () | E36: ="($/" & units_vol & ")" -> ($/) | G36: ="(" & units_vol & ")" -> () | H36: ="($/" & units_vol & ")" -> ($/) | J36: ="(" & units_vol & ")" -> () | K36: ="($/" & units_vol & ")" -> ($/) | M36: ="(" & units_vol & ")" -> () | N36: ="($/" & units_vol & ")" -> ($/)
C37: Block 1 | P37: Annual Revenue (Thou. $)
C38: Block 2 | P38: Current | Q38: Proposed | R38: % Change
C39: Block 3 | O39: Service | P39: =IF(class1_is_active,class1_fixed_rev_current,"") ->  | Q39: =IF(class1_is_active,class1_fixed_rev_proposed,"") ->  | R39: =IF(class1_is_active,Q39/P39-1,"") -> 
C40: Block 4 | O40: Volume | P40: =IF(class1_is_active,(class1_seas1_vol_rev_current+class1_seas2_vol_rev_current)/1000,"") ->  | Q40: =IF(class1_is_active,(class1_seas1_vol_rev_proposed+class1_seas2_vol_rev_proposed)/1000,"") ->  | R40: =IF(class1_is_active,Q40/P40-1,"") -> 
C41: Block 5 | O41: Total | P41: =IF(class1_is_active,P39+P40,"") ->  | Q41: =IF(class1_is_active,Q39+Q40,"") ->  | R41: =IF(class1_is_active,Q41/P41-1,"") -> 
B43: =class2 -> Not in use | D43: =season1 & " Season" -> Off Peak Season | J43: =season2 & " Season" -> Peak Season | P43: Annual Sales Volume
D44: Current Rates | G44: Proposed Rates | J44: Current Rates | M44: Proposed Rates | P44: Current | Q44: Proposed | R44: % Change
D45: Block | E45: Rate | G45: Block | H45: Rate | J45: Block | K45: Rate | M45: Block | N45: Rate | O45: =units_vol -> 0 | P45: =IF(class2_is_active,class2_seas1_vol_current+class2_seas2_vol_current,"") ->  | Q45: =IF(class2_is_active,class2_seas1_vol_proposed+class2_seas2_vol_proposed,"") ->  | R45: =IF(class2_is_active,Q45/P45-1,"") -> 
D46: ="(" & units_vol & ")" -> () | E46: ="($/" & units_vol & ")" -> ($/) | G46: ="(" & units_vol & ")" -> () | H46: ="($/" & units_vol & ")" -> ($/) | J46: ="(" & units_vol & ")" -> () | K46: ="($/" & units_vol & ")" -> ($/) | M46: ="(" & units_vol & ")" -> () | N46: ="($/" & units_vol & ")" -> ($/)
C47: Block 1 | P47: Annual Sales Revenue (Thou. $)
C48: Block 2 | P48: Current | Q48: Proposed | R48: % Change
C49: Block 3 | O49: Service | P49: =IF(class2_is_active,class2_fixed_rev_current,"") ->  | Q49: =IF(class2_is_active,class2_fixed_rev_proposed,"") ->  | R49: =IF(class2_is_active,Q49/P49-1,"") -> 
C50: Block 4 | O50: Volume | P50: =IF(class2_is_active,(class2_seas1_vol_rev_current+class2_seas2_vol_rev_current)/1000,"") ->  | Q50: =IF(class2_is_active,(class2_seas1_vol_rev_proposed+class2_seas2_vol_rev_proposed)/1000,"") ->  | R50: =IF(class2_is_active,Q50/P50-1,"") -> 
C51: Block 5 | O51: Total | P51: =IF(class2_is_active,P49+P50,"") ->  | Q51: =IF(class2_is_active,Q49+Q50,"") ->  | R51: =IF(class2_is_active,Q51/P51-1,"") -> 
B53: =class3 -> Not in use | D53: =season1 & " Season" -> Off Peak Season | J53: =season2 & " Season" -> Peak Season | P53: Annual Sales Volume
D54: Current Rates | G54: Proposed Rates | J54: Current Rates | M54: Proposed Rates | P54: Current | Q54: Proposed | R54: % Change
D55: Block | E55: Rate | G55: Block | H55: Rate | J55: Block | K55: Rate | M55: Block | N55: Rate | O55: =units_vol -> 0 | P55: =IF(class3_is_active,class3_seas1_vol_current+class3_seas2_vol_current,"") ->  | Q55: =IF(class3_is_active,class3_seas1_vol_proposed+class3_seas2_vol_proposed,"") ->  | R55: =IF(class3_is_active,Q55/P55-1,"") -> 
D56: ="(" & units_vol & ")" -> () | E56: ="($/" & units_vol & ")" -> ($/) | G56: ="(" & units_vol & ")" -> () | H56: ="($/" & units_vol & ")" -> ($/) | J56: ="(" & units_vol & ")" -> () | K56: ="($/" & units_vol & ")" -> ($/) | M56: ="(" & units_vol & ")" -> () | N56: ="($/" & units_vol & ")" -> ($/)
C57: Block 1 | P57: Annual Sales Revenue (Thou. $)
C58: Block 2 | P58: Current | Q58: Proposed | R58: % Change
C59: Block 3 | O59: Service | P59: =IF(class3_is_active,class3_fixed_rev_current,"") ->  | Q59: =IF(class3_is_active,class3_fixed_rev_proposed,"") ->  | R59: =IF(class3_is_active,Q59/P59-1,"") -> 
C60: Block 4 | O60: Volume | P60: =IF(class3_is_active,(class3_seas1_vol_rev_current+class3_seas2_vol_rev_current)/1000,"") ->  | Q60: =IF(class3_is_active,(class3_seas1_vol_rev_proposed+class3_seas2_vol_rev_proposed)/1000,"") ->  | R60: =IF(class3_is_active,Q60/P60-1,"") -> 
C61: Block 5 | O61: Total | P61: =IF(class3_is_active,P59+P60,"") ->  | Q61: =IF(class3_is_active,Q59+Q60,"") ->  | R61: =IF(class3_is_active,Q61/P61-1,"") -> 
B63: =class4 -> Not in use | D63: =season1 & " Season" -> Off Peak Season | J63: =season2 & " Season" -> Peak Season | P63: Annual Sales Volume
D64: Current Rates | G64: Proposed Rates | J64: Current Rates | M64: Proposed Rates | P64: Current | Q64: Proposed | R64: % Change
D65: Block | E65: Rate | G65: Block | H65: Rate | J65: Block | K65: Rate | M65: Block | N65: Rate | O65: =units_vol -> 0 | P65: =IF(class4_is_active,class4_seas1_vol_current+class4_seas2_vol_current,"") ->  | Q65: =IF(class4_is_active,class4_seas1_vol_proposed+class4_seas2_vol_proposed,"") ->  | R65: =IF(class4_is_active,Q65/P65-1,"") -> 
D66: ="(" & units_vol & ")" -> () | E66: ="($/" & units_vol & ")" -> ($/) | G66: ="(" & units_vol & ")" -> () | H66: ="($/" & units_vol & ")" -> ($/) | J66: ="(" & units_vol & ")" -> () | K66: ="($/" & units_vol & ")" -> ($/) | M66: ="(" & units_vol & ")" -> () | N66: ="($/" & units_vol & ")" -> ($/)
C67: Block 1 | P67: Annual Sales Revenue (Thou. $)
C68: Block 2 | P68: Current | Q68: Proposed | R68: % Change
C69: Block 3 | O69: Service | P69: =IF(class4_is_active,class4_fixed_rev_current,"") ->  | Q69: =IF(class4_is_active,class4_fixed_rev_proposed,"") ->  | R69: =IF(class4_is_active,Q69/P69-1,"") -> 
C70: Block 4 | O70: Volume | P70: =IF(class4_is_active,(class4_seas1_vol_rev_current+class4_seas2_vol_rev_current)/1000,"") ->  | Q70: =IF(class4_is_active,(class4_seas1_vol_rev_proposed+class4_seas2_vol_rev_proposed)/1000,"") ->  | R70: =IF(class4_is_active,Q70/P70-1,"") -> 
C71: Block 5 | O71: Total | P71: =IF(class4_is_active,P69+P70,"") ->  | Q71: =IF(class4_is_active,Q69+Q70,"") ->  | R71: =IF(class4_is_active,Q71/P71-1,"") -> 
B73: =class5 -> Not in use | D73: =season1 & " Season" -> Off Peak Season | J73: =season2 & " Season" -> Peak Season | P73: Annual Sales Volume
D74: Current Rates | G74: Proposed Rates | J74: Current Rates | M74: Proposed Rates | P74: Current | Q74: Proposed | R74: % Change
D75: Block | E75: Rate | G75: Block | H75: Rate | J75: Block | K75: Rate | M75: Block | N75: Rate | O75: =units_vol -> 0 | P75: =IF(class5_is_active,class5_seas1_vol_current+class5_seas2_vol_current,"") ->  | Q75: =IF(class5_is_active,class5_seas1_vol_proposed+class5_seas2_vol_proposed,"") ->  | R75: =IF(class5_is_active,Q75/P75-1,"") -> 
D76: ="(" & units_vol & ")" -> () | E76: ="($/" & units_vol & ")" -> ($/) | G76: ="(" & units_vol & ")" -> () | H76: ="($/" & units_vol & ")" -> ($/) | J76: ="(" & units_vol & ")" -> () | K76: ="($/" & units_vol & ")" -> ($/) | M76: ="(" & units_vol & ")" -> () | N76: ="($/" & units_vol & ")" -> ($/)
C77: Block 1 | P77: Annual Sales Revenue (Thou. $)
C78: Block 2 | P78: Current | Q78: Proposed | R78: % Change
C79: Block 3 | O79: Service | P79: =IF(class5_is_active,class5_fixed_rev_current,"") ->  | Q79: =IF(class5_is_active,class5_fixed_rev_proposed,"") ->  | R79: =IF(class5_is_active,Q79/P79-1,"") -> 
C80: Block 4 | O80: Volume | P80: =IF(class5_is_active,(class5_seas1_vol_rev_current+class5_seas2_vol_rev_current)/1000,"") ->  | Q80: =IF(class5_is_active,(class5_seas1_vol_rev_proposed+class5_seas2_vol_rev_proposed)/1000,"") ->  | R80: =IF(class5_is_active,Q80/P80-1,"") -> 
C81: Block 5 | O81: Total | P81: =IF(class5_is_active,P79+P80,"") ->  | Q81: =IF(class5_is_active,Q79+Q80,"") ->  | R81: =IF(class5_is_active,Q81/P81-1,"") -> 
B83: =class6 -> Not in use | D83: =season1 & " Season" -> Off Peak Season | J83: =season2 & " Season" -> Peak Season | P83: Annual Sales Volume
D84: Current Rates | G84: Proposed Rates | J84: Current Rates | M84: Proposed Rates | P84: Current | Q84: Proposed | R84: % Change
D85: Block | E85: Rate | G85: Block | H85: Rate | J85: Block | K85: Rate | M85: Block | N85: Rate | O85: =units_vol -> 0 | P85: =IF(class6_is_active,class6_seas1_vol_current+class6_seas2_vol_current,"") ->  | Q85: =IF(class6_is_active,class6_seas1_vol_proposed+class6_seas2_vol_proposed,"") ->  | R85: =IF(class6_is_active,Q85/P85-1,"") -> 
D86: ="(" & units_vol & ")" -> () | E86: ="($/" & units_vol & ")" -> ($/) | G86: ="(" & units_vol & ")" -> () | H86: ="($/" & units_vol & ")" -> ($/) | J86: ="(" & units_vol & ")" -> () | K86: ="($/" & units_vol & ")" -> ($/) | M86: ="(" & units_vol & ")" -> () | N86: ="($/" & units_vol & ")" -> ($/)
C87: Block 1 | P87: Annual Sales Revenue (Thou. $)
C88: Block 2 | P88: Current | Q88: Proposed | R88: % Change
C89: Block 3 | O89: Service | P89: =IF(class6_is_active,class6_fixed_rev_current,"") ->  | Q89: =IF(class6_is_active,class6_fixed_rev_proposed,"") ->  | R89: =IF(class6_is_active,Q89/P89-1,"") -> 
C90: Block 4 | O90: Volume | P90: =IF(class6_is_active,(class6_seas1_vol_rev_current+class6_seas2_vol_rev_current)/1000,"") ->  | Q90: =IF(class6_is_active,(class6_seas1_vol_rev_proposed+class6_seas2_vol_rev_proposed)/1000,"") ->  | R90: =IF(class6_is_active,Q90/P90-1,"") -> 
C91: Block 5 | O91: Total | P91: =IF(class6_is_active,P89+P90,"") ->  | Q91: =IF(class6_is_active,Q89+Q90,"") ->  | R91: =IF(class6_is_active,Q91/P91-1,"") -> 
P93: Total All Classes
P94: Annual Sales Volume
P95: Current | Q95: Proposed | R95: % Change
O96: =units_vol -> 0 | P96: =SUM(P35,P45,P55,P65,P75,P85) -> 0 | Q96: =SUM(Q35,Q45,Q55,Q65,Q75,Q85) -> 0 | R96: =Q96/P96-1 -> 
P98: Annual Sales Revenue (Thou. $)
P99: Current | Q99: Proposed | R99: % Change
O100: Service | P100: =SUM(P39,P49,P59,P69,P79,P89) -> 0 | Q100: 0 | R100: =Q100/P100-1 -> 
O101: Volume | P101: 0 | Q101: 0 | R101: =Q101/P101-1 -> 
O102: Total | P102: 0 | Q102: 0 | R102: =Q102/P102-1 -> 
B104: 3. Bill impacts of Proposed rates
B105: Under your Proposed rates, the volume charge may go up for some customers and down or stay the same for others. The Bill Impacts Table shows the percentage of bills that will go
B106: down, stay the same, or go up -- and by how much. Charts showing the distribution of bill impacts for each customer class are provided on the Bill Impacts worksheet.
M108: Affordability Index
D109: % Change in Average and Median Annual Water Service Cost by Customer Class | M109: Current | N109: Proposed
D110: Average Annual Water Service Cost | G110: Median Annual Water Service Cost | K110: Affordability index equals
B111: Customer Class | D111: Current | E111: Proposed | F111: % Change | G111: Current | H111: Proposed | I111: % Change | K111: the median annual water
B112: =class1 -> Not in use | D112: =IF(class1_is_active,(class1_seas1_avgvolcharge_current*(seas1_months_count/12)+class1_seas2_avgvolcharge_current*(seas2_months_count/12))*bills_per_yr+class1_avgfixedcharge_current,"") ->  | E112: =IF(class1_is_active,(class1_seas1_avgvolcharge_proposed*(seas1_months_count/12)+class1_seas2_avgvolcharge_proposed*(seas2_months_count/12))*bills_per_yr+class1_avgfixedcharge_proposed,"") ->  | F112: =IF(class1_is_active,E112/D112-1,"") ->  | G112: =IF(class1_is_active,(class1_seas1_medvolcharge_current*(seas1_months_count/12)+class1_seas2_medvolcharge_current*(seas2_months_count/12))*bills_per_yr+class1_medfixedcharge_current,"") ->  | H112: =IF(class1_is_active,(class1_seas1_medvolcharge_proposed*(seas1_months_count/12)+class1_seas2_medvolcharge_proposed*(seas2_months_count/12))*bills_per_yr+class1_medfixedcharge_proposed,"") ->  | I112: =IF(class1_is_active,H112/G112-1,"") ->  | K112: cost for the primary
B113: =class2 -> Not in use | D113: =IF(class2_is_active,(class2_seas1_avgvolcharge_current*(seas1_months_count/12)+class2_seas2_avgvolcharge_current*(seas2_months_count/12))*bills_per_yr+class2_avgfixedcharge_current,"") ->  | E113: =IF(class2_is_active,(class2_seas1_avgvolcharge_proposed*(seas1_months_count/12)+class2_seas2_avgvolcharge_proposed*(seas2_months_count/12))*bills_per_yr+class2_avgfixedcharge_proposed,"") ->  | F113: =IF(class2_is_active,E113/D113-1,"") ->  | G113: =IF(class2_is_active,(class2_seas1_medvolcharge_current*(seas1_months_count/12)+class2_seas2_medvolcharge_current*(seas2_months_count/12))*bills_per_yr+class2_medfixedcharge_current,"") ->  | H113: =IF(class2_is_active,(class2_seas1_medvolcharge_proposed*(seas1_months_count/12)+class2_seas2_medvolcharge_proposed*(seas2_months_count/12))*bills_per_yr+class2_medfixedcharge_proposed,"") ->  | I113: =IF(class2_is_active,H113/G113-1,"") ->  | K113: residential customer class
B114: =class3 -> Not in use | D114: =IF(class3_is_active,(class3_seas1_avgvolcharge_current*(seas1_months_count/12)+class3_seas2_avgvolcharge_current*(seas2_months_count/12))*bills_per_yr+class3_avgfixedcharge_current,"") ->  | E114: =IF(class3_is_active,(class3_seas1_avgvolcharge_proposed*(seas1_months_count/12)+class3_seas2_avgvolcharge_proposed*(seas2_months_count/12))*bills_per_yr+class3_avgfixedcharge_proposed,"") ->  | F114: =IF(class3_is_active,E114/D114-1,"") ->  | G114: =IF(class3_is_active,(class3_seas1_medvolcharge_current*(seas1_months_count/12)+class3_seas2_medvolcharge_current*(seas2_months_count/12))*bills_per_yr+class3_medfixedcharge_current,"") ->  | H114: =IF(class3_is_active,(class3_seas1_medvolcharge_proposed*(seas1_months_count/12)+class3_seas2_medvolcharge_proposed*(seas2_months_count/12))*bills_per_yr+class3_medfixedcharge_proposed,"") ->  | I114: =IF(class3_is_active,H114/G114-1,"") ->  | K114: divided by median
B115: =class4 -> Not in use | D115: =IF(class4_is_active,(class4_seas1_avgvolcharge_current*(seas1_months_count/12)+class4_seas2_avgvolcharge_current*(seas2_months_count/12))*bills_per_yr+class4_avgfixedcharge_current,"") ->  | E115: =IF(class4_is_active,(class4_seas1_avgvolcharge_proposed*(seas1_months_count/12)+class4_seas2_avgvolcharge_proposed*(seas2_months_count/12))*bills_per_yr+class4_avgfixedcharge_proposed,"") ->  | F115: =IF(class4_is_active,E115/D115-1,"") ->  | G115: =IF(class4_is_active,(class4_seas1_medvolcharge_current*(seas1_months_count/12)+class4_seas2_medvolcharge_current*(seas2_months_count/12))*bills_per_yr+class4_medfixedcharge_current,"") ->  | H115: =IF(class4_is_active,(class4_seas1_medvolcharge_proposed*(seas1_months_count/12)+class4_seas2_medvolcharge_proposed*(seas2_months_count/12))*bills_per_yr+class4_medfixedcharge_proposed,"") ->  | I115: =IF(class4_is_active,H115/G115-1,"") ->  | K115: household income.
B116: =class5 -> Not in use | D116: =IF(class5_is_active,(class5_seas1_avgvolcharge_current*(seas1_months_count/12)+class5_seas2_avgvolcharge_current*(seas2_months_count/12))*bills_per_yr+class5_avgfixedcharge_current,"") ->  | E116: =IF(class5_is_active,(class5_seas1_avgvolcharge_proposed*(seas1_months_count/12)+class5_seas2_avgvolcharge_proposed*(seas2_months_count/12))*bills_per_yr+class5_avgfixedcharge_proposed,"") ->  | F116: =IF(class5_is_active,E116/D116-1,"") ->  | G116: =IF(class5_is_active,(class5_seas1_medvolcharge_current*(seas1_months_count/12)+class5_seas2_medvolcharge_current*(seas2_months_count/12))*bills_per_yr+class5_medfixedcharge_current,"") ->  | H116: =IF(class5_is_active,(class5_seas1_medvolcharge_proposed*(seas1_months_count/12)+class5_seas2_medvolcharge_proposed*(seas2_months_count/12))*bills_per_yr+class5_medfixedcharge_proposed,"") ->  | I116: =IF(class5_is_active,H116/G116-1,"") -> 
B117: =class6 -> Not in use | D117: =IF(class6_is_active,(class6_seas1_avgvolcharge_current*(seas1_months_count/12)+class6_seas2_avgvolcharge_current*(seas2_months_count/12))*bills_per_yr+class6_avgfixedcharge_current,"") ->  | E117: =IF(class6_is_active,(class6_seas1_avgvolcharge_proposed*(seas1_months_count/12)+class6_seas2_avgvolcharge_proposed*(seas2_months_count/12))*bills_per_yr+class6_avgfixedcharge_proposed,"") ->  | F117: =IF(class6_is_active,E117/D117-1,"") ->  | G117: =IF(class6_is_active,(class6_seas1_medvolcharge_current*(seas1_months_count/12)+class6_seas2_medvolcharge_current*(seas2_months_count/12))*bills_per_yr+class6_medfixedcharge_current,"") ->  | H117: =IF(class6_is_active,(class6_seas1_medvolcharge_proposed*(seas1_months_count/12)+class6_seas2_medvolcharge_proposed*(seas2_months_count/12))*bills_per_yr+class6_medfixedcharge_proposed,"") ->  | I117: =IF(class6_is_active,H117/G117-1,"") -> 
D120: Bill Impacts Table
D121: % of bills decreasing by | H121: No More Than | I121: % of bills increasing by
B122: Customer Class | D122: more than 20% | E122: 15 to 20% | F122: 10 to 15% | G122: 5 to 10% | H122: +/- 5% | I122: 5 to 10% | J122: 10 to 15% | K122: 15 to 20% | L122: more than 20%
B123: =class1 -> Not in use | D123: =IF(num_classes>=2,(SUMIFS(bills_class1_seas1,bill_impact_class1_seas1,"<-0.2")+SUMIFS(bills_class1_seas2,bill_impact_class1_seas2,"<-0.2"))/SUM(bills_class1_seas1,bills_class1_seas2),"") ->  | E123: =IF(num_classes>=2,(SUMIFS(bills_class1_seas1,bill_impact_class1_seas1,">=-.2",bill_impact_class1_seas1,"<-0.15")+SUMIFS(bills_class1_seas2,bill_impact_class1_seas2,">=-.2",bill_impact_class1_seas2,"<-0.15"))/SUM(bills_class1_seas1,bills_class1_seas2),"") ->  | F123: =IF(num_classes>=2,(SUMIFS(bills_class1_seas1,bill_impact_class1_seas1,">=-.15",bill_impact_class1_seas1,"<-0.1")+SUMIFS(bills_class1_seas2,bill_impact_class1_seas2,">=-.15",bill_impact_class1_seas2,"<-0.1"))/SUM(bills_class1_seas1,bills_class1_seas2),"") ->  | G123: =IF(num_classes>=2,(SUMIFS(bills_class1_seas1,bill_impact_class1_seas1,">=-.1",bill_impact_class1_seas1,"<-0.05")+SUMIFS(bills_class1_seas2,bill_impact_class1_seas2,">=-.1",bill_impact_class1_seas2,"<-0.05"))/SUM(bills_class1_seas1,bills_class1_seas2),"") ->  | H123: =IF(num_classes>=2,(SUMIFS(bills_class1_seas1,bill_impact_class1_seas1,">=-.05",bill_impact_class1_seas1,"<=0.05")+SUMIFS(bills_class1_seas2,bill_impact_class1_seas2,">=-.05",bill_impact_class1_seas2,"<=0.05"))/SUM(bills_class1_seas1,bills_class1_seas2),"") ->  | I123: =IF(num_classes>=2,(SUMIFS(bills_class1_seas1,bill_impact_class1_seas1,">.05",bill_impact_class1_seas1,"<=0.1")+SUMIFS(bills_class1_seas2,bill_impact_class1_seas2,">.05",bill_impact_class1_seas2,"<=0.1"))/SUM(bills_class1_seas1,bills_class1_seas2),"") ->  | J123: =IF(num_classes>=2,(SUMIFS(bills_class1_seas1,bill_impact_class1_seas1,">.1",bill_impact_class1_seas1,"<=0.15")+SUMIFS(bills_class1_seas2,bill_impact_class1_seas2,">.1",bill_impact_class1_seas2,"<=0.15"))/SUM(bills_class1_seas1,bills_class1_seas2),"") ->  | K123: =IF(num_classes>=2,(SUMIFS(bills_class1_seas1,bill_impact_class1_seas1,">.15",bill_impact_class1_seas1,"<=0.2")+SUMIFS(bills_class1_seas2,bill_impact_class1_seas2,">.15",bill_impact_class1_seas2,"<=0.2"))/SUM(bills_class1_seas1,bills_class1_seas2),"") ->  | L123: =IF(num_classes>=2,(SUMIFS(bills_class1_seas1,bill_impact_class1_seas1,">.2")+SUMIFS(bills_class1_seas2,bill_impact_class1_seas2,">.2"))/SUM(bills_class1_seas1,bills_class1_seas2),"") -> 
B124: =class2 -> Not in use | D124: =IF(num_classes>=2,(SUMIFS(bills_class2_seas1,bill_impact_class2_seas1,"<-0.2")+SUMIFS(bills_class2_seas2,bill_impact_class2_seas2,"<-0.2"))/SUM(bills_class2_seas1,bills_class2_seas2),"") ->  | E124: =IF(num_classes>=2,(SUMIFS(bills_class2_seas1,bill_impact_class2_seas1,">=-.2",bill_impact_class2_seas1,"<-0.15")+SUMIFS(bills_class2_seas2,bill_impact_class2_seas2,">=-.2",bill_impact_class2_seas2,"<-0.15"))/SUM(bills_class2_seas1,bills_class2_seas2),"") ->  | F124: =IF(num_classes>=2,(SUMIFS(bills_class2_seas1,bill_impact_class2_seas1,">=-.15",bill_impact_class2_seas1,"<-0.1")+SUMIFS(bills_class2_seas2,bill_impact_class2_seas2,">=-.15",bill_impact_class2_seas2,"<-0.1"))/SUM(bills_class2_seas1,bills_class2_seas2),"") ->  | G124: =IF(num_classes>=2,(SUMIFS(bills_class2_seas1,bill_impact_class2_seas1,">=-.1",bill_impact_class2_seas1,"<-0.05")+SUMIFS(bills_class2_seas2,bill_impact_class2_seas2,">=-.1",bill_impact_class2_seas2,"<-0.05"))/SUM(bills_class2_seas1,bills_class2_seas2),"") ->  | H124: =IF(num_classes>=2,(SUMIFS(bills_class2_seas1,bill_impact_class2_seas1,">=-.05",bill_impact_class2_seas1,"<=0.05")+SUMIFS(bills_class2_seas2,bill_impact_class2_seas2,">=-.05",bill_impact_class2_seas2,"<=0.05"))/SUM(bills_class2_seas1,bills_class2_seas2),"") ->  | I124: =IF(num_classes>=2,(SUMIFS(bills_class2_seas1,bill_impact_class2_seas1,">.05",bill_impact_class2_seas1,"<=0.1")+SUMIFS(bills_class2_seas2,bill_impact_class2_seas2,">.05",bill_impact_class2_seas2,"<=0.1"))/SUM(bills_class2_seas1,bills_class2_seas2),"") ->  | J124: =IF(num_classes>=2,(SUMIFS(bills_class2_seas1,bill_impact_class2_seas1,">.1",bill_impact_class2_seas1,"<=0.15")+SUMIFS(bills_class2_seas2,bill_impact_class2_seas2,">.1",bill_impact_class2_seas2,"<=0.15"))/SUM(bills_class2_seas1,bills_class2_seas2),"") ->  | K124: =IF(num_classes>=2,(SUMIFS(bills_class2_seas1,bill_impact_class2_seas1,">.15",bill_impact_class2_seas1,"<=0.2")+SUMIFS(bills_class2_seas2,bill_impact_class2_seas2,">.15",bill_impact_class2_seas2,"<=0.2"))/SUM(bills_class2_seas1,bills_class2_seas2),"") ->  | L124: =IF(num_classes>=2,(SUMIFS(bills_class2_seas1,bill_impact_class2_seas1,">.2")+SUMIFS(bills_class2_seas2,bill_impact_class2_seas2,">.2"))/SUM(bills_class2_seas1,bills_class2_seas2),"") -> 
B125: =class3 -> Not in use | D125: =IF(num_classes>=3,(SUMIFS(bills_class3_seas1,bill_impact_class3_seas1,"<-0.2")+SUMIFS(bills_class3_seas2,bill_impact_class3_seas2,"<-0.2"))/SUM(bills_class3_seas1,bills_class3_seas2),"") ->  | E125: =IF(num_classes>=3,(SUMIFS(bills_class3_seas1,bill_impact_class3_seas1,">=-.2",bill_impact_class3_seas1,"<-0.15")+SUMIFS(bills_class3_seas2,bill_impact_class3_seas2,">=-.2",bill_impact_class3_seas2,"<-0.15"))/SUM(bills_class3_seas1,bills_class3_seas2),"") ->  | F125: =IF(num_classes>=3,(SUMIFS(bills_class3_seas1,bill_impact_class3_seas1,">=-.15",bill_impact_class3_seas1,"<-0.1")+SUMIFS(bills_class3_seas2,bill_impact_class3_seas2,">=-.15",bill_impact_class3_seas2,"<-0.1"))/SUM(bills_class3_seas1,bills_class3_seas2),"") ->  | G125: =IF(num_classes>=3,(SUMIFS(bills_class3_seas1,bill_impact_class3_seas1,">=-.1",bill_impact_class3_seas1,"<-0.05")+SUMIFS(bills_class3_seas2,bill_impact_class3_seas2,">=-.1",bill_impact_class3_seas2,"<-0.05"))/SUM(bills_class3_seas1,bills_class3_seas2),"") ->  | H125: =IF(num_classes>=3,(SUMIFS(bills_class3_seas1,bill_impact_class3_seas1,">=-.05",bill_impact_class3_seas1,"<=0.05")+SUMIFS(bills_class3_seas2,bill_impact_class3_seas2,">=-.05",bill_impact_class3_seas2,"<=0.05"))/SUM(bills_class3_seas1,bills_class3_seas2),"") ->  | I125: =IF(num_classes>=3,(SUMIFS(bills_class3_seas1,bill_impact_class3_seas1,">.05",bill_impact_class3_seas1,"<=0.1")+SUMIFS(bills_class3_seas2,bill_impact_class3_seas2,">.05",bill_impact_class3_seas2,"<=0.1"))/SUM(bills_class3_seas1,bills_class3_seas2),"") ->  | J125: =IF(num_classes>=3,(SUMIFS(bills_class3_seas1,bill_impact_class3_seas1,">.1",bill_impact_class3_seas1,"<=0.15")+SUMIFS(bills_class3_seas2,bill_impact_class3_seas2,">.1",bill_impact_class3_seas2,"<=0.15"))/SUM(bills_class3_seas1,bills_class3_seas2),"") ->  | K125: =IF(num_classes>=3,(SUMIFS(bills_class3_seas1,bill_impact_class3_seas1,">.15",bill_impact_class3_seas1,"<=0.2")+SUMIFS(bills_class3_seas2,bill_impact_class3_seas2,">.15",bill_impact_class3_seas2,"<=0.2"))/SUM(bills_class3_seas1,bills_class3_seas2),"") ->  | L125: =IF(num_classes>=3,(SUMIFS(bills_class3_seas1,bill_impact_class3_seas1,">.2")+SUMIFS(bills_class3_seas2,bill_impact_class3_seas2,">.2"))/SUM(bills_class3_seas1,bills_class3_seas2),"") -> 
B126: =class4 -> Not in use | D126: =IF(num_classes>=4,(SUMIFS(bills_class4_seas1,bill_impact_class4_seas1,"<-0.2")+SUMIFS(bills_class4_seas2,bill_impact_class4_seas2,"<-0.2"))/SUM(bills_class4_seas1,bills_class4_seas2),"") ->  | E126: =IF(num_classes>=4,(SUMIFS(bills_class4_seas1,bill_impact_class4_seas1,">=-.2",bill_impact_class4_seas1,"<-0.15")+SUMIFS(bills_class4_seas2,bill_impact_class4_seas2,">=-.2",bill_impact_class4_seas2,"<-0.15"))/SUM(bills_class4_seas1,bills_class4_seas2),"") ->  | F126: =IF(num_classes>=4,(SUMIFS(bills_class4_seas1,bill_impact_class4_seas1,">=-.15",bill_impact_class4_seas1,"<-0.1")+SUMIFS(bills_class4_seas2,bill_impact_class4_seas2,">=-.15",bill_impact_class4_seas2,"<-0.1"))/SUM(bills_class4_seas1,bills_class4_seas2),"") ->  | G126: =IF(num_classes>=4,(SUMIFS(bills_class4_seas1,bill_impact_class4_seas1,">=-.1",bill_impact_class4_seas1,"<-0.05")+SUMIFS(bills_class4_seas2,bill_impact_class4_seas2,">=-.1",bill_impact_class4_seas2,"<-0.05"))/SUM(bills_class4_seas1,bills_class4_seas2),"") ->  | H126: =IF(num_classes>=4,(SUMIFS(bills_class4_seas1,bill_impact_class4_seas1,">=-.05",bill_impact_class4_seas1,"<=0.05")+SUMIFS(bills_class4_seas2,bill_impact_class4_seas2,">=-.05",bill_impact_class4_seas2,"<=0.05"))/SUM(bills_class4_seas1,bills_class4_seas2),"") ->  | I126: =IF(num_classes>=4,(SUMIFS(bills_class4_seas1,bill_impact_class4_seas1,">.05",bill_impact_class4_seas1,"<=0.1")+SUMIFS(bills_class4_seas2,bill_impact_class4_seas2,">.05",bill_impact_class4_seas2,"<=0.1"))/SUM(bills_class4_seas1,bills_class4_seas2),"") ->  | J126: =IF(num_classes>=4,(SUMIFS(bills_class4_seas1,bill_impact_class4_seas1,">.1",bill_impact_class4_seas1,"<=0.15")+SUMIFS(bills_class4_seas2,bill_impact_class4_seas2,">.1",bill_impact_class4_seas2,"<=0.15"))/SUM(bills_class4_seas1,bills_class4_seas2),"") ->  | K126: =IF(num_classes>=4,(SUMIFS(bills_class4_seas1,bill_impact_class4_seas1,">.15",bill_impact_class4_seas1,"<=0.2")+SUMIFS(bills_class4_seas2,bill_impact_class4_seas2,">.15",bill_impact_class4_seas2,"<=0.2"))/SUM(bills_class4_seas1,bills_class4_seas2),"") ->  | L126: =IF(num_classes>=4,(SUMIFS(bills_class4_seas1,bill_impact_class4_seas1,">.2")+SUMIFS(bills_class4_seas2,bill_impact_class4_seas2,">.2"))/SUM(bills_class4_seas1,bills_class4_seas2),"") -> 
B127: =class5 -> Not in use | D127: =IF(num_classes>=5,(SUMIFS(bills_class5_seas1,bill_impact_class5_seas1,"<-0.2")+SUMIFS(bills_class5_seas2,bill_impact_class5_seas2,"<-0.2"))/SUM(bills_class5_seas1,bills_class5_seas2),"") ->  | E127: =IF(num_classes>=5,(SUMIFS(bills_class5_seas1,bill_impact_class5_seas1,">=-.2",bill_impact_class5_seas1,"<-0.15")+SUMIFS(bills_class5_seas2,bill_impact_class5_seas2,">=-.2",bill_impact_class5_seas2,"<-0.15"))/SUM(bills_class5_seas1,bills_class5_seas2),"") ->  | F127: =IF(num_classes>=5,(SUMIFS(bills_class5_seas1,bill_impact_class5_seas1,">=-.15",bill_impact_class5_seas1,"<-0.1")+SUMIFS(bills_class5_seas2,bill_impact_class5_seas2,">=-.15",bill_impact_class5_seas2,"<-0.1"))/SUM(bills_class5_seas1,bills_class5_seas2),"") ->  | G127: =IF(num_classes>=5,(SUMIFS(bills_class5_seas1,bill_impact_class5_seas1,">=-.1",bill_impact_class5_seas1,"<-0.05")+SUMIFS(bills_class5_seas2,bill_impact_class5_seas2,">=-.1",bill_impact_class5_seas2,"<-0.05"))/SUM(bills_class5_seas1,bills_class5_seas2),"") ->  | H127: =IF(num_classes>=5,(SUMIFS(bills_class5_seas1,bill_impact_class5_seas1,">=-.05",bill_impact_class5_seas1,"<=0.05")+SUMIFS(bills_class5_seas2,bill_impact_class5_seas2,">=-.05",bill_impact_class5_seas2,"<=0.05"))/SUM(bills_class5_seas1,bills_class5_seas2),"") ->  | I127: =IF(num_classes>=5,(SUMIFS(bills_class5_seas1,bill_impact_class5_seas1,">.05",bill_impact_class5_seas1,"<=0.1")+SUMIFS(bills_class5_seas2,bill_impact_class5_seas2,">.05",bill_impact_class5_seas2,"<=0.1"))/SUM(bills_class5_seas1,bills_class5_seas2),"") ->  | J127: =IF(num_classes>=5,(SUMIFS(bills_class5_seas1,bill_impact_class5_seas1,">.1",bill_impact_class5_seas1,"<=0.15")+SUMIFS(bills_class5_seas2,bill_impact_class5_seas2,">.1",bill_impact_class5_seas2,"<=0.15"))/SUM(bills_class5_seas1,bills_class5_seas2),"") ->  | K127: =IF(num_classes>=5,(SUMIFS(bills_class5_seas1,bill_impact_class5_seas1,">.15",bill_impact_class5_seas1,"<=0.2")+SUMIFS(bills_class5_seas2,bill_impact_class5_seas2,">.15",bill_impact_class5_seas2,"<=0.2"))/SUM(bills_class5_seas1,bills_class5_seas2),"") ->  | L127: =IF(num_classes>=5,(SUMIFS(bills_class5_seas1,bill_impact_class5_seas1,">.2")+SUMIFS(bills_class5_seas2,bill_impact_class5_seas2,">.2"))/SUM(bills_class5_seas1,bills_class5_seas2),"") -> 
B128: =class6 -> Not in use | D128: =IF(num_classes>=6,(SUMIFS(bills_class6_seas1,bill_impact_class6_seas1,"<-0.2")+SUMIFS(bills_class6_seas2,bill_impact_class6_seas2,"<-0.2"))/SUM(bills_class6_seas1,bills_class6_seas2),"") ->  | E128: =IF(num_classes>=6,(SUMIFS(bills_class6_seas1,bill_impact_class6_seas1,">=-.2",bill_impact_class6_seas1,"<-0.15")+SUMIFS(bills_class6_seas2,bill_impact_class6_seas2,">=-.2",bill_impact_class6_seas2,"<-0.15"))/SUM(bills_class6_seas1,bills_class6_seas2),"") ->  | F128: =IF(num_classes>=6,(SUMIFS(bills_class6_seas1,bill_impact_class6_seas1,">=-.15",bill_impact_class6_seas1,"<-0.1")+SUMIFS(bills_class6_seas2,bill_impact_class6_seas2,">=-.15",bill_impact_class6_seas2,"<-0.1"))/SUM(bills_class6_seas1,bills_class6_seas2),"") ->  | G128: =IF(num_classes>=6,(SUMIFS(bills_class6_seas1,bill_impact_class6_seas1,">=-.1",bill_impact_class6_seas1,"<-0.05")+SUMIFS(bills_class6_seas2,bill_impact_class6_seas2,">=-.1",bill_impact_class6_seas2,"<-0.05"))/SUM(bills_class6_seas1,bills_class6_seas2),"") ->  | H128: =IF(num_classes>=6,(SUMIFS(bills_class6_seas1,bill_impact_class6_seas1,">=-.05",bill_impact_class6_seas1,"<=0.05")+SUMIFS(bills_class6_seas2,bill_impact_class6_seas2,">=-.05",bill_impact_class6_seas2,"<=0.05"))/SUM(bills_class6_seas1,bills_class6_seas2),"") ->  | I128: =IF(num_classes>=6,(SUMIFS(bills_class6_seas1,bill_impact_class6_seas1,">.05",bill_impact_class6_seas1,"<=0.1")+SUMIFS(bills_class6_seas2,bill_impact_class6_seas2,">.05",bill_impact_class6_seas2,"<=0.1"))/SUM(bills_class6_seas1,bills_class6_seas2),"") ->  | J128: =IF(num_classes>=6,(SUMIFS(bills_class6_seas1,bill_impact_class6_seas1,">.1",bill_impact_class6_seas1,"<=0.15")+SUMIFS(bills_class6_seas2,bill_impact_class6_seas2,">.1",bill_impact_class6_seas2,"<=0.15"))/SUM(bills_class6_seas1,bills_class6_seas2),"") ->  | K128: =IF(num_classes>=6,(SUMIFS(bills_class6_seas1,bill_impact_class6_seas1,">.15",bill_impact_class6_seas1,"<=0.2")+SUMIFS(bills_class6_seas2,bill_impact_class6_seas2,">.15",bill_impact_class6_seas2,"<=0.2"))/SUM(bills_class6_seas1,bills_class6_seas2),"") ->  | L128: =IF(num_classes>=6,(SUMIFS(bills_class6_seas1,bill_impact_class6_seas1,">.2")+SUMIFS(bills_class6_seas2,bill_impact_class6_seas2,">.2"))/SUM(bills_class6_seas1,bills_class6_seas2),"") -> 
D142: Choose Customer Class for Bill Impact Histogram:
B147: Go back to Step 3: Customer Service Charges Worksheet | L147: Go forward to Bill Impacts Charts
B149: Model Calculations Below. Do Not Modify
B157: DO NOT MODIFY
B158: x-axis labels | C158: more than 20% | D158: 15 to 20% | E158: 10 to 15% | F158: 5 to 10% | H158: 5 to 10% | I158: 10 to 15% | J158: 15 to 20% | K158: more than 20%
B159: Chart Title | C159: =CHOOSE(B160,class1,class2,class3,class4,class5,class6) & " Customer Class Bill Impact Histogram" -> Not in use Customer Class Bill Impact Histogram
B160: 1

Sheet Bill Impacts
B1: Bill Impacts of Proposed Rates Relative to Current Rates | AK1: =class1 -> Not in use | AR1: =class2 -> Not in use | AY1: =class3 -> Not in use | BF1: =class4 -> Not in use | BM1: =class5 -> Not in use | BT1: =class5 -> Not in use | CA1: Example Chart
B2: The charts below show the cumulative distribution of bill impacts by Customer Class under the Proposed service charges and volumetric rates. The x-axis shows the percentage of bills | AK2: Bills | AL2: % Change | AM2: Cum Bills | AN2: Cum Bills % | AO2: X-Step | AP2: Y-Step | AR2: Bills | AS2: % Change | AT2: Cum Bills | AU2: Cum Bills % | AV2: X-Step | AW2: Y-Step | AY2: Bills | AZ2: % Change | BA2: Cum Bills | BB2: Cum Bills % | BC2: X-Step | BD2: Y-Step | BF2: Bills | BG2: % Change | BH2: Cum Bills | BI2: Cum Bills % | BJ2: X-Step | BK2: Y-Step | BM2: Bills | BN2: % Change | BO2: Cum Bills | BP2: Cum Bills % | BQ2: X-Step | BR2: Y-Step | BT2: Bills | BU2: % Change | BV2: Cum Bills | BW2: Cum Bills % | BX2: X-Step | BY2: Y-Step | CA2: Bills | CB2: % Change | CC2: Cum Bills | CD2: Cum Bills % | CE2: X-Step | CF2: Y-Step
B3: while the y-axis shows the percentage change in the volume charge. The example chart to the right explains how to interpret these graphs. | U3: How to interpret the Bill Impact Charts | AM3: =SUM(AK3:AK$3) -> 0 | AN3: =AM3/AM$486 ->  | AO3: =AN3 ->  | AP3: 0 | AT3: =SUM(AR3:AR$3) -> 0 | AU3: =AT3/AT$486 ->  | AV3: =AU3 ->  | AW3: 0 | BA3: =SUM(AY3:AY$3) -> 0 | BB3: =BA3/BA$486 ->  | BC3: =BB3 ->  | BD3: 0 | BH3: =SUM(BF3:BF$3) -> 0 | BI3: =BH3/BH$486 ->  | BJ3: =BI3 ->  | BK3: 0 | BO3: =SUM(BM3:BM$3) -> 0 | BP3: =BO3/BO$486 ->  | BQ3: =BP3 ->  | BR3: 0 | BV3: =SUM(BT3:BT$3) -> 0 | BW3: =BV3/BV$486 ->  | BX3: =BW3 ->  | BY3: 0 | CA3: 3122 | CB3: -0.1388888889 | CC3: =SUM(CA3:CA$3) -> 3122 | CD3: =CC3/CC$486 -> 0.009838865726 | CE3: =CD3 -> 0.009838865726 | CF3: 0
B4: Go back to Step 4: Design Water Rates Worksheet | O4: Go forward to Step 5: Drought Rate Adjustments | AM4: =SUM(AK$3:AK4) -> 0 | AN4: =AM4/AM$486 ->  | AO4: =AN4-AN3 ->  | AP4: =AL5-AL4 -> 0 | AT4: =SUM(AR$3:AR4) -> 0 | AU4: =AT4/AT$486 ->  | AV4: =AU4-AU3 ->  | AW4: =AS5-AS4 -> 0 | BA4: =SUM(AY$3:AY4) -> 0 | BB4: =BA4/BA$486 ->  | BC4: =BB4-BB3 ->  | BD4: =AZ5-AZ4 -> 0 | BH4: =SUM(BF$3:BF4) -> 0 | BI4: =BH4/BH$486 ->  | BJ4: =BI4-BI3 ->  | BK4: =BG5-BG4 -> 0 | BO4: =SUM(BM$3:BM4) -> 0 | BP4: =BO4/BO$486 ->  | BQ4: =BP4-BP3 ->  | BR4: =BN5-BN4 -> 0 | BV4: =SUM(BT$3:BT4) -> 0 | BW4: =BV4/BV$486 ->  | BX4: =BW4-BW3 ->  | BY4: =BU5-BU4 -> 0 | CA4: 1781 | CB4: -0.1388888889 | CC4: =SUM(CA$3:CA4) -> 4903 | CD4: =CC4/CC$486 -> 0.01545162032 | CE4: =CD4-CD3 -> 0.005612754599 | CF4: =CB5-CB4 -> 0
AM5: =SUM(AK$3:AK5) -> 0 | AP5: 0 | AT5: =SUM(AR$3:AR5) -> 0 | AW5: 0 | BA5: =SUM(AY$3:AY5) -> 0 | BD5: 0 | BH5: =SUM(BF$3:BF5) -> 0 | BK5: 0 | BO5: =SUM(BM$3:BM5) -> 0 | BR5: 0 | BV5: =SUM(BT$3:BT5) -> 0 | BY5: 0 | CA5: 4084 | CB5: -0.1388888889 | CC5: =SUM(CA$3:CA5) -> 8987 | CD5: 0.02832219291 | CE5: 0.01287057259 | CF5: 0
AM6: =SUM(AK$3:AK6) -> 0 | AP6: 0 | AT6: =SUM(AR$3:AR6) -> 0 | AW6: 0 | BA6: =SUM(AY$3:AY6) -> 0 | BD6: 0 | BH6: =SUM(BF$3:BF6) -> 0 | BK6: 0 | BO6: =SUM(BM$3:BM6) -> 0 | BR6: 0 | BV6: =SUM(BT$3:BT6) -> 0 | BY6: 0 | CA6: 2073 | CB6: -0.1388888889 | CC6: =SUM(CA$3:CA6) -> 11060 | CD6: 0.03485517454 | CE6: 0.00653298163 | CF6: 0.005547777778
AM7: =SUM(AK$3:AK7) -> 0 | AP7: 0 | AT7: =SUM(AR$3:AR7) -> 0 | AW7: 0 | BA7: =SUM(AY$3:AY7) -> 0 | BD7: 0 | BH7: =SUM(BF$3:BF7) -> 0 | BK7: 0 | BO7: =SUM(BM$3:BM7) -> 0 | BR7: 0 | BV7: =SUM(BT$3:BT7) -> 0 | BY7: 0 | CA7: 4974 | CB7: -0.1333411111 | CC7: =SUM(CA$3:CA7) -> 16034 | CD7: 0.0505305487 | CE7: 0.01567537416 | CF7: 0.008341111111
AM8: =SUM(AK$3:AK8) -> 0 | AP8: 0 | AT8: =SUM(AR$3:AR8) -> 0 | AW8: 0 | BA8: =SUM(AY$3:AY8) -> 0 | BD8: 0 | BH8: =SUM(BF$3:BF8) -> 0 | BK8: 0 | BO8: =SUM(BM$3:BM8) -> 0 | BR8: 0 | BV8: =SUM(BT$3:BT8) -> 0 | BY8: 0 | CA8: 787 | CB8: -0.125 | CC8: =SUM(CA$3:CA8) -> 16821 | CD8: 0.05301074964 | CE8: 0.002480200937 | CF8: 0
AM9: =SUM(AK$3:AK9) -> 0 | AP9: 0 | AT9: =SUM(AR$3:AR9) -> 0 | AW9: 0 | BA9: =SUM(AY$3:AY9) -> 0 | BD9: 0 | BH9: =SUM(BF$3:BF9) -> 0 | BK9: 0 | BO9: =SUM(BM$3:BM9) -> 0 | BR9: 0 | BV9: =SUM(BT$3:BT9) -> 0 | BY9: 0 | CA9: 917 | CB9: -0.125 | CC9: =SUM(CA$3:CA9) -> 17738 | CD9: 0.05590064069 | CE9: 0.002889891054 | CF9: 1.110223025e-16
AM10: =SUM(AK$3:AK10) -> 0 | AP10: 0 | AT10: =SUM(AR$3:AR10) -> 0 | AW10: 0 | BA10: =SUM(AY$3:AY10) -> 0 | BD10: 0 | BH10: =SUM(BF$3:BF10) -> 0 | BK10: 0 | BO10: =SUM(BM$3:BM10) -> 0 | BR10: 0 | BV10: =SUM(BT$3:BT10) -> 0 | BY10: 0 | CA10: 601 | CB10: -0.125 | CC10: =SUM(CA$3:CA10) -> 18339 | CD10: 0.05779466962 | CE10: 0.001894028924 | CF10: 0
AM11: =SUM(AK$3:AK11) -> 0 | AP11: 0 | AT11: =SUM(AR$3:AR11) -> 0 | AW11: 0 | BA11: =SUM(AY$3:AY11) -> 0 | BD11: 0 | BH11: =SUM(BF$3:BF11) -> 0 | BK11: 0 | BO11: =SUM(BM$3:BM11) -> 0 | BR11: 0 | BV11: =SUM(BT$3:BT11) -> 0 | BY11: 0 | CA11: 631 | CB11: -0.125 | CC11: =SUM(CA$3:CA11) -> 18970 | CD11: 0.05978324241 | CE11: 0.001988572797 | CF11: 0.008321666667
AM12: =SUM(AK$3:AK12) -> 0 | AP12: 0 | AT12: =SUM(AR$3:AR12) -> 0 | AW12: 0 | BA12: =SUM(AY$3:AY12) -> 0 | BD12: 0 | BH12: =SUM(BF$3:BF12) -> 0 | BK12: 0 | BO12: =SUM(BM$3:BM12) -> 0 | BR12: 0 | BV12: =SUM(BT$3:BT12) -> 0 | BY12: 0 | CA12: 1122 | CB12: -0.1166783333 | CC12: =SUM(CA$3:CA12) -> 20092 | CD12: 0.06331918327 | CE12: 0.003535940853 | CF12: 0.005529627815
AM13: =SUM(AK$3:AK13) -> 0 | AP13: 0 | AT13: =SUM(AR$3:AR13) -> 0 | AW13: 0 | BA13: =SUM(AY$3:AY13) -> 0 | BD13: 0 | BH13: =SUM(BF$3:BF13) -> 0 | BK13: 0 | BO13: =SUM(BM$3:BM13) -> 0 | BR13: 0 | BV13: =SUM(BT$3:BT13) -> 0 | BY13: 0 | CA13: 5751 | CB13: -0.1111487055 | CC13: =SUM(CA$3:CA13) -> 25843 | CD13: 0.08144324374 | CE13: 0.01812406047 | CF13: 0.01388953613
AM14: =SUM(AK$3:AK14) -> 0 | AP14: 0 | AT14: =SUM(AR$3:AR14) -> 0 | AW14: 0 | BA14: =SUM(AY$3:AY14) -> 0 | BD14: 0 | BH14: =SUM(BF$3:BF14) -> 0 | BK14: 0 | BO14: =SUM(BM$3:BM14) -> 0 | BR14: 0 | BV14: =SUM(BT$3:BT14) -> 0 | BY14: 0 | CA14: 1150 | CB14: -0.09725916939 | CC14: =SUM(CA$3:CA14) -> 26993 | CD14: 0.08506742554 | CE14: 0.003624181802 | CF14: 0.001962182151
AM15: =SUM(AK$3:AK15) -> 0 | AP15: 0 | AT15: =SUM(AR$3:AR15) -> 0 | AW15: 0 | BA15: =SUM(AY$3:AY15) -> 0 | BD15: 0 | BH15: =SUM(BF$3:BF15) -> 0 | BK15: 0 | BO15: =SUM(BM$3:BM15) -> 0 | BR15: 0 | BV15: =SUM(BT$3:BT15) -> 0 | BY15: 0 | CA15: 6548 | CB15: -0.09529698724 | CC15: =SUM(CA$3:CA15) -> 33541 | CD15: 0.1057032016 | CE15: 0.02063577603 | CF15: 0.01188878871
AM16: =SUM(AK$3:AK16) -> 0 | AP16: 0 | AT16: =SUM(AR$3:AR16) -> 0 | AW16: 0 | BA16: =SUM(AY$3:AY16) -> 0 | BD16: 0 | BH16: =SUM(BF$3:BF16) -> 0 | BK16: 0 | BO16: =SUM(BM$3:BM16) -> 0 | BR16: 0 | BV16: =SUM(BT$3:BT16) -> 0 | BY16: 0 | CA16: 7080 | CB16: -0.08340819853 | CC16: =SUM(CA$3:CA16) -> 40621 | CD16: 0.1280155556 | CE16: 0.02231235405 | CF16: 1.986052778e-05
AM17: =SUM(AK$3:AK17) -> 0 | AP17: 0 | AT17: =SUM(AR$3:AR17) -> 0 | AW17: 0 | BA17: =SUM(AY$3:AY17) -> 0 | BD17: 0 | BH17: =SUM(BF$3:BF17) -> 0 | BK17: 0 | BO17: =SUM(BM$3:BM17) -> 0 | BR17: 0 | BV17: =SUM(BT$3:BT17) -> 0 | BY17: 0 | CA17: 1322 | CB17: -0.083388338 | CC17: =SUM(CA$3:CA17) -> 41943 | CD17: 0.132181789 | CE17: 0.004166233341 | CF17: 0.009226975136
AM18: =SUM(AK$3:AK18) -> 0 | AP18: 0 | AT18: =SUM(AR$3:AR18) -> 0 | AW18: 0 | BA18: =SUM(AY$3:AY18) -> 0 | BD18: 0 | BH18: =SUM(BF$3:BF18) -> 0 | BK18: 0 | BO18: =SUM(BM$3:BM18) -> 0 | BR18: 0 | BV18: =SUM(BT$3:BT18) -> 0 | BY18: 0 | CA18: 7883 | CB18: -0.07416136286 | CC18: =SUM(CA$3:CA18) -> 49826 | CD18: 0.1570247673 | CE18: 0.02484297838 | CF18: 0.001176148406
AM19: =SUM(AK$3:AK19) -> 0 | AP19: 0 | AT19: =SUM(AR$3:AR19) -> 0 | AW19: 0 | BA19: =SUM(AY$3:AY19) -> 0 | BD19: 0 | BH19: =SUM(BF$3:BF19) -> 0 | BK19: 0 | BO19: =SUM(BM$3:BM19) -> 0 | BR19: 0 | BV19: =SUM(BT$3:BT19) -> 0 | BY19: 0 | CA19: 1354 | CB19: -0.07298521446 | CC19: =SUM(CA$3:CA19) -> 51180 | CD19: 0.1612918475 | CE19: 0.004267080139 | CF19: 0.00809131831
AM20: =SUM(AK$3:AK20) -> 0 | AP20: 0 | AT20: =SUM(AR$3:AR20) -> 0 | AW20: 0 | BA20: =SUM(AY$3:AY20) -> 0 | BD20: 0 | BH20: =SUM(BF$3:BF20) -> 0 | BK20: 0 | BO20: =SUM(BM$3:BM20) -> 0 | BR20: 0 | BV20: =SUM(BT$3:BT20) -> 0 | BY20: 0 | CA20: 1385 | CB20: -0.06489389615 | CC20: =SUM(CA$3:CA20) -> 52565 | CD20: 0.165656623 | CE20: 0.004364775474 | CF20: 0.003697229481
AM21: =SUM(AK$3:AK21) -> 0 | AP21: 0 | AT21: =SUM(AR$3:AR21) -> 0 | AW21: 0 | BA21: =SUM(AY$3:AY21) -> 0 | BD21: 0 | BH21: =SUM(BF$3:BF21) -> 0 | BK21: 0 | BO21: =SUM(BM$3:BM21) -> 0 | BR21: 0 | BV21: =SUM(BT$3:BT21) -> 0 | BY21: 0 | CA21: 8173 | CB21: -0.06119666667 | CC21: =SUM(CA$3:CA21) -> 60738 | CD21: 0.1914135254 | CE21: 0.02575690249 | CF21: 0.01112666667
AM22: =SUM(AK$3:AK22) -> 0 | AP22: 0 | AT22: =SUM(AR$3:AR22) -> 0 | AW22: 0 | BA22: =SUM(AY$3:AY22) -> 0 | BD22: 0 | BH22: =SUM(BF$3:BF22) -> 0 | BK22: 0 | BO22: =SUM(BM$3:BM22) -> 0 | BR22: 0 | BV22: =SUM(BT$3:BT22) -> 0 | BY22: 0 | CA22: 1531 | CB22: -0.05007 | CC22: =SUM(CA$3:CA22) -> 62269 | CD22: 0.1962384144 | CE22: 0.00482488899 | CF22: 0.01665888889
AM23: =SUM(AK$3:AK23) -> 0 | AP23: 0 | AT23: =SUM(AR$3:AR23) -> 0 | AW23: 0 | BA23: =SUM(AY$3:AY23) -> 0 | BD23: 0 | BH23: =SUM(BF$3:BF23) -> 0 | BK23: 0 | BO23: =SUM(BM$3:BM23) -> 0 | BR23: 0 | BV23: =SUM(BT$3:BT23) -> 0 | BY23: 0 | CA23: 8333 | CB23: -0.03341111111 | CC23: =SUM(CA$3:CA23) -> 70602 | CD23: 0.2224995509 | CE23: 0.02626113648 | CF23: 0.006074747475
AM24: =SUM(AK$3:AK24) -> 0 | AP24: 0 | AT24: =SUM(AR$3:AR24) -> 0 | AW24: 0 | BA24: =SUM(AY$3:AY24) -> 0 | BD24: 0 | BH24: =SUM(BF$3:BF24) -> 0 | BK24: 0 | BO24: =SUM(BM$3:BM24) -> 0 | BR24: 0 | BV24: =SUM(BT$3:BT24) -> 0 | BY24: 0 | CA24: 1554 | CB24: -0.02733636364 | CC24: =SUM(CA$3:CA24) -> 72156 | CD24: 0.2273969235 | CE24: 0.004897372626 | CF24: 0.01707988215
AM25: =SUM(AK$3:AK25) -> 0 | AP25: 0 | AT25: =SUM(AR$3:AR25) -> 0 | AW25: 0 | BA25: =SUM(AY$3:AY25) -> 0 | BD25: 0 | BH25: =SUM(BF$3:BF25) -> 0 | BK25: 0 | BO25: =SUM(BM$3:BM25) -> 0 | BR25: 0 | BV25: =SUM(BT$3:BT25) -> 0 | BY25: 0 | CA25: 8439 | CB25: -0.01025648148 | CC25: =SUM(CA$3:CA25) -> 80595 | CD25: 0.253992115 | CE25: 0.0265951915 | CF25: 0.001864814815
AM26: =SUM(AK$3:AK26) -> 0 | AP26: 0 | AT26: =SUM(AR$3:AR26) -> 0 | AW26: 0 | BA26: =SUM(AY$3:AY26) -> 0 | BD26: 0 | BH26: =SUM(BF$3:BF26) -> 0 | BK26: 0 | BO26: =SUM(BM$3:BM26) -> 0 | BR26: 0 | BV26: =SUM(BT$3:BT26) -> 0 | BY26: 0 | CA26: 1588 | CB26: -0.008391666667 | CC26: =SUM(CA$3:CA26) -> 82183 | CD26: 0.2589966374 | CE26: 0.005004522349 | CF26: 0.008391666667
AM27: =SUM(AK$3:AK27) -> 0 | AP27: 0 | AT27: =SUM(AR$3:AR27) -> 0 | AW27: 0 | BA27: =SUM(AY$3:AY27) -> 0 | BD27: 0 | BH27: =SUM(BF$3:BF27) -> 0 | BK27: 0 | BO27: =SUM(BM$3:BM27) -> 0 | BR27: 0 | BV27: =SUM(BT$3:BT27) -> 0 | BY27: 0 | CA27: 1854 | CB27: 0 | CC27: =SUM(CA$3:CA27) -> 84037 | CD27: 0.2648394487 | CE27: 0.005842811357 | CF27: 0
AM28: =SUM(AK$3:AK28) -> 0 | AP28: 0 | AT28: =SUM(AR$3:AR28) -> 0 | AW28: 0 | BA28: =SUM(AY$3:AY28) -> 0 | BD28: 0 | BH28: =SUM(BF$3:BF28) -> 0 | BK28: 0 | BO28: =SUM(BM$3:BM28) -> 0 | BR28: 0 | BV28: =SUM(BT$3:BT28) -> 0 | BY28: 0 | CA28: 0 | CB28: 0 | CC28: =SUM(CA$3:CA28) -> 84037 | CD28: 0.2648394487 | CE28: 0 | CF28: 0
AM29: =SUM(AK$3:AK29) -> 0 | AP29: 0 | AT29: =SUM(AR$3:AR29) -> 0 | AW29: 0 | BA29: =SUM(AY$3:AY29) -> 0 | BD29: 0 | BH29: =SUM(BF$3:BF29) -> 0 | BK29: 0 | BO29: =SUM(BM$3:BM29) -> 0 | BR29: 0 | BV29: =SUM(BT$3:BT29) -> 0 | BY29: 0 | CA29: 0 | CB29: 0 | CC29: =SUM(CA$3:CA29) -> 84037 | CD29: 0.2648394487 | CE29: 0 | CF29: 0
AM30: =SUM(AK$3:AK30) -> 0 | AP30: 0 | AT30: =SUM(AR$3:AR30) -> 0 | AW30: 0 | BA30: =SUM(AY$3:AY30) -> 0 | BD30: 0 | BH30: =SUM(BF$3:BF30) -> 0 | BK30: 0 | BO30: =SUM(BM$3:BM30) -> 0 | BR30: 0 | BV30: =SUM(BT$3:BT30) -> 0 | BY30: 0 | CA30: 0 | CB30: 0 | CC30: =SUM(CA$3:CA30) -> 84037 | CD30: 0.2648394487 | CE30: 0 | CF30: 0
AM31: =SUM(AK$3:AK31) -> 0 | AP31: 0 | AT31: =SUM(AR$3:AR31) -> 0 | AW31: 0 | BA31: =SUM(AY$3:AY31) -> 0 | BD31: 0 | BH31: =SUM(BF$3:BF31) -> 0 | BK31: 0 | BO31: =SUM(BM$3:BM31) -> 0 | BR31: 0 | BV31: =SUM(BT$3:BT31) -> 0 | BY31: 0 | CA31: 0 | CB31: 0 | CC31: =SUM(CA$3:CA31) -> 84037 | CD31: 0.2648394487 | CE31: 0 | CF31: 0
AM32: =SUM(AK$3:AK32) -> 0 | AP32: 0 | AT32: =SUM(AR$3:AR32) -> 0 | AW32: 0 | BA32: =SUM(AY$3:AY32) -> 0 | BD32: 0 | BH32: =SUM(BF$3:BF32) -> 0 | BK32: 0 | BO32: =SUM(BM$3:BM32) -> 0 | BR32: 0 | BV32: =SUM(BT$3:BT32) -> 0 | BY32: 0 | CA32: 0 | CB32: 0 | CC32: =SUM(CA$3:CA32) -> 84037 | CD32: 0.2648394487 | CE32: 0 | CF32: 0
AM33: =SUM(AK$3:AK33) -> 0 | AP33: 0 | AT33: =SUM(AR$3:AR33) -> 0 | AW33: 0 | BA33: =SUM(AY$3:AY33) -> 0 | BD33: 0 | BH33: =SUM(BF$3:BF33) -> 0 | BK33: 0 | BO33: =SUM(BM$3:BM33) -> 0 | BR33: 0 | BV33: =SUM(BT$3:BT33) -> 0 | BY33: 0 | CA33: 0 | CB33: 0 | CC33: =SUM(CA$3:CA33) -> 84037 | CD33: 0.2648394487 | CE33: 0 | CF33: 0
AM34: =SUM(AK$3:AK34) -> 0 | AP34: 0 | AT34: =SUM(AR$3:AR34) -> 0 | AW34: 0 | BA34: =SUM(AY$3:AY34) -> 0 | BD34: 0 | BH34: =SUM(BF$3:BF34) -> 0 | BK34: 0 | BO34: =SUM(BM$3:BM34) -> 0 | BR34: 0 | BV34: =SUM(BT$3:BT34) -> 0 | BY34: 0 | CA34: 0 | CB34: 0 | CC34: =SUM(CA$3:CA34) -> 84037 | CD34: 0.2648394487 | CE34: 0 | CF34: 0
AM35: =SUM(AK$3:AK35) -> 0 | AP35: 0 | AT35: =SUM(AR$3:AR35) -> 0 | AW35: 0 | BA35: =SUM(AY$3:AY35) -> 0 | BD35: 0 | BH35: =SUM(BF$3:BF35) -> 0 | BK35: 0 | BO35: =SUM(BM$3:BM35) -> 0 | BR35: 0 | BV35: =SUM(BT$3:BT35) -> 0 | BY35: 0 | CA35: 0 | CB35: 0 | CC35: =SUM(CA$3:CA35) -> 84037 | CD35: 0.2648394487 | CE35: 0 | CF35: 0
AM36: =SUM(AK$3:AK36) -> 0 | AP36: 0 | AT36: =SUM(AR$3:AR36) -> 0 | AW36: 0 | BA36: =SUM(AY$3:AY36) -> 0 | BD36: 0 | BH36: =SUM(BF$3:BF36) -> 0 | BK36: 0 | BO36: =SUM(BM$3:BM36) -> 0 | BR36: 0 | BV36: =SUM(BT$3:BT36) -> 0 | BY36: 0 | CA36: 0 | CB36: 0 | CC36: =SUM(CA$3:CA36) -> 84037 | CD36: 0.2648394487 | CE36: 0 | CF36: 0
AM37: =SUM(AK$3:AK37) -> 0 | AP37: 0 | AT37: =SUM(AR$3:AR37) -> 0 | AW37: 0 | BA37: =SUM(AY$3:AY37) -> 0 | BD37: 0 | BH37: =SUM(BF$3:BF37) -> 0 | BK37: 0 | BO37: =SUM(BM$3:BM37) -> 0 | BR37: 0 | BV37: =SUM(BT$3:BT37) -> 0 | BY37: 0 | CA37: 0 | CB37: 0 | CC37: =SUM(CA$3:CA37) -> 84037 | CD37: 0.2648394487 | CE37: 0 | CF37: 0
AM38: =SUM(AK$3:AK38) -> 0 | AP38: 0 | AT38: =SUM(AR$3:AR38) -> 0 | AW38: 0 | BA38: =SUM(AY$3:AY38) -> 0 | BD38: 0 | BH38: =SUM(BF$3:BF38) -> 0 | BK38: 0 | BO38: =SUM(BM$3:BM38) -> 0 | BR38: 0 | BV38: =SUM(BT$3:BT38) -> 0 | BY38: 0 | CA38: 0 | CB38: 0 | CC38: =SUM(CA$3:CA38) -> 84037 | CD38: 0.2648394487 | CE38: 0 | CF38: 0
AM39: =SUM(AK$3:AK39) -> 0 | AP39: 0 | AT39: =SUM(AR$3:AR39) -> 0 | AW39: 0 | BA39: =SUM(AY$3:AY39) -> 0 | BD39: 0 | BH39: =SUM(BF$3:BF39) -> 0 | BK39: 0 | BO39: =SUM(BM$3:BM39) -> 0 | BR39: 0 | BV39: =SUM(BT$3:BT39) -> 0 | BY39: 0 | CA39: 0 | CB39: 0 | CC39: =SUM(CA$3:CA39) -> 84037 | CD39: 0.2648394487 | CE39: 0 | CF39: 0
AM40: =SUM(AK$3:AK40) -> 0 | AP40: 0 | AT40: =SUM(AR$3:AR40) -> 0 | AW40: 0 | BA40: =SUM(AY$3:AY40) -> 0 | BD40: 0 | BH40: =SUM(BF$3:BF40) -> 0 | BK40: 0 | BO40: =SUM(BM$3:BM40) -> 0 | BR40: 0 | BV40: =SUM(BT$3:BT40) -> 0 | BY40: 0 | CA40: 0 | CB40: 0 | CC40: =SUM(CA$3:CA40) -> 84037 | CD40: 0.2648394487 | CE40: 0 | CF40: 0
AM41: =SUM(AK$3:AK41) -> 0 | AP41: 0 | AT41: =SUM(AR$3:AR41) -> 0 | AW41: 0 | BA41: =SUM(AY$3:AY41) -> 0 | BD41: 0 | BH41: =SUM(BF$3:BF41) -> 0 | BK41: 0 | BO41: =SUM(BM$3:BM41) -> 0 | BR41: 0 | BV41: =SUM(BT$3:BT41) -> 0 | BY41: 0 | CA41: 0 | CB41: 0 | CC41: =SUM(CA$3:CA41) -> 84037 | CD41: 0.2648394487 | CE41: 0 | CF41: 0
AM42: =SUM(AK$3:AK42) -> 0 | AP42: 0 | AT42: =SUM(AR$3:AR42) -> 0 | AW42: 0 | BA42: =SUM(AY$3:AY42) -> 0 | BD42: 0 | BH42: =SUM(BF$3:BF42) -> 0 | BK42: 0 | BO42: =SUM(BM$3:BM42) -> 0 | BR42: 0 | BV42: =SUM(BT$3:BT42) -> 0 | BY42: 0 | CA42: 0 | CB42: 0 | CC42: =SUM(CA$3:CA42) -> 84037 | CD42: 0.2648394487 | CE42: 0 | CF42: 0
AM43: =SUM(AK$3:AK43) -> 0 | AP43: 0 | AT43: =SUM(AR$3:AR43) -> 0 | AW43: 0 | BA43: =SUM(AY$3:AY43) -> 0 | BD43: 0 | BH43: =SUM(BF$3:BF43) -> 0 | BK43: 0 | BO43: =SUM(BM$3:BM43) -> 0 | BR43: 0 | BV43: =SUM(BT$3:BT43) -> 0 | BY43: 0 | CA43: 0 | CB43: 0 | CC43: =SUM(CA$3:CA43) -> 84037 | CD43: 0.2648394487 | CE43: 0 | CF43: 0
AM44: =SUM(AK$3:AK44) -> 0 | AP44: 0 | AT44: =SUM(AR$3:AR44) -> 0 | AW44: 0 | BA44: =SUM(AY$3:AY44) -> 0 | BD44: 0 | BH44: =SUM(BF$3:BF44) -> 0 | BK44: 0 | BO44: =SUM(BM$3:BM44) -> 0 | BR44: 0 | BV44: =SUM(BT$3:BT44) -> 0 | BY44: 0 | CA44: 0 | CB44: 0 | CC44: =SUM(CA$3:CA44) -> 84037 | CD44: 0.2648394487 | CE44: 0 | CF44: 0
AM45: =SUM(AK$3:AK45) -> 0 | AP45: 0 | AT45: =SUM(AR$3:AR45) -> 0 | AW45: 0 | BA45: =SUM(AY$3:AY45) -> 0 | BD45: 0 | BH45: =SUM(BF$3:BF45) -> 0 | BK45: 0 | BO45: =SUM(BM$3:BM45) -> 0 | BR45: 0 | BV45: =SUM(BT$3:BT45) -> 0 | BY45: 0 | CA45: 0 | CB45: 0 | CC45: =SUM(CA$3:CA45) -> 84037 | CD45: 0.2648394487 | CE45: 0 | CF45: 0
AM46: =SUM(AK$3:AK46) -> 0 | AP46: 0 | AT46: =SUM(AR$3:AR46) -> 0 | AW46: 0 | BA46: =SUM(AY$3:AY46) -> 0 | BD46: 0 | BH46: =SUM(BF$3:BF46) -> 0 | BK46: 0 | BO46: =SUM(BM$3:BM46) -> 0 | BR46: 0 | BV46: =SUM(BT$3:BT46) -> 0 | BY46: 0 | CA46: 0 | CB46: 0 | CC46: =SUM(CA$3:CA46) -> 84037 | CD46: 0.2648394487 | CE46: 0 | CF46: 0
AM47: =SUM(AK$3:AK47) -> 0 | AP47: 0 | AT47: =SUM(AR$3:AR47) -> 0 | AW47: 0 | BA47: =SUM(AY$3:AY47) -> 0 | BD47: 0 | BH47: =SUM(BF$3:BF47) -> 0 | BK47: 0 | BO47: =SUM(BM$3:BM47) -> 0 | BR47: 0 | BV47: =SUM(BT$3:BT47) -> 0 | BY47: 0 | CA47: 0 | CB47: 0 | CC47: =SUM(CA$3:CA47) -> 84037 | CD47: 0.2648394487 | CE47: 0 | CF47: 0
AM48: =SUM(AK$3:AK48) -> 0 | AP48: 0 | AT48: =SUM(AR$3:AR48) -> 0 | AW48: 0 | BA48: =SUM(AY$3:AY48) -> 0 | BD48: 0 | BH48: =SUM(BF$3:BF48) -> 0 | BK48: 0 | BO48: =SUM(BM$3:BM48) -> 0 | BR48: 0 | BV48: =SUM(BT$3:BT48) -> 0 | BY48: 0 | CA48: 0 | CB48: 0 | CC48: =SUM(CA$3:CA48) -> 84037 | CD48: 0.2648394487 | CE48: 0 | CF48: 0
AM49: =SUM(AK$3:AK49) -> 0 | AP49: 0 | AT49: =SUM(AR$3:AR49) -> 0 | AW49: 0 | BA49: =SUM(AY$3:AY49) -> 0 | BD49: 0 | BH49: =SUM(BF$3:BF49) -> 0 | BK49: 0 | BO49: =SUM(BM$3:BM49) -> 0 | BR49: 0 | BV49: =SUM(BT$3:BT49) -> 0 | BY49: 0 | CA49: 0 | CB49: 0 | CC49: =SUM(CA$3:CA49) -> 84037 | CD49: 0.2648394487 | CE49: 0 | CF49: 0
AM50: =SUM(AK$3:AK50) -> 0 | AP50: 0 | AT50: =SUM(AR$3:AR50) -> 0 | AW50: 0 | BA50: =SUM(AY$3:AY50) -> 0 | BD50: 0 | BH50: =SUM(BF$3:BF50) -> 0 | BK50: 0 | BO50: =SUM(BM$3:BM50) -> 0 | BR50: 0 | BV50: =SUM(BT$3:BT50) -> 0 | BY50: 0 | CA50: 0 | CB50: 0 | CC50: =SUM(CA$3:CA50) -> 84037 | CD50: 0.2648394487 | CE50: 0 | CF50: 0
AM51: =SUM(AK$3:AK51) -> 0 | AP51: 0 | AT51: =SUM(AR$3:AR51) -> 0 | AW51: 0 | BA51: =SUM(AY$3:AY51) -> 0 | BD51: 0 | BH51: =SUM(BF$3:BF51) -> 0 | BK51: 0 | BO51: =SUM(BM$3:BM51) -> 0 | BR51: 0 | BV51: =SUM(BT$3:BT51) -> 0 | BY51: 0 | CA51: 0 | CB51: 0 | CC51: =SUM(CA$3:CA51) -> 84037 | CD51: 0.2648394487 | CE51: 0 | CF51: 0
AM52: =SUM(AK$3:AK52) -> 0 | AP52: 0 | AT52: =SUM(AR$3:AR52) -> 0 | AW52: 0 | BA52: =SUM(AY$3:AY52) -> 0 | BD52: 0 | BH52: =SUM(BF$3:BF52) -> 0 | BK52: 0 | BO52: =SUM(BM$3:BM52) -> 0 | BR52: 0 | BV52: =SUM(BT$3:BT52) -> 0 | BY52: 0 | CA52: 0 | CB52: 0 | CC52: =SUM(CA$3:CA52) -> 84037 | CD52: 0.2648394487 | CE52: 0 | CF52: 0
AM53: =SUM(AK$3:AK53) -> 0 | AP53: 0 | AT53: =SUM(AR$3:AR53) -> 0 | AW53: 0 | BA53: =SUM(AY$3:AY53) -> 0 | BD53: 0 | BH53: =SUM(BF$3:BF53) -> 0 | BK53: 0 | BO53: =SUM(BM$3:BM53) -> 0 | BR53: 0 | BV53: =SUM(BT$3:BT53) -> 0 | BY53: 0 | CA53: 0 | CB53: 0 | CC53: =SUM(CA$3:CA53) -> 84037 | CD53: 0.2648394487 | CE53: 0 | CF53: 0
AM54: =SUM(AK$3:AK54) -> 0 | AP54: 0 | AT54: =SUM(AR$3:AR54) -> 0 | AW54: 0 | BA54: =SUM(AY$3:AY54) -> 0 | BD54: 0 | BH54: =SUM(BF$3:BF54) -> 0 | BK54: 0 | BO54: =SUM(BM$3:BM54) -> 0 | BR54: 0 | BV54: =SUM(BT$3:BT54) -> 0 | BY54: 0 | CA54: 0 | CB54: 0 | CC54: =SUM(CA$3:CA54) -> 84037 | CD54: 0.2648394487 | CE54: 0 | CF54: 0
AM55: =SUM(AK$3:AK55) -> 0 | AP55: 0 | AT55: =SUM(AR$3:AR55) -> 0 | AW55: 0 | BA55: =SUM(AY$3:AY55) -> 0 | BD55: 0 | BH55: =SUM(BF$3:BF55) -> 0 | BK55: 0 | BO55: =SUM(BM$3:BM55) -> 0 | BR55: 0 | BV55: =SUM(BT$3:BT55) -> 0 | BY55: 0 | CA55: 0 | CB55: 0 | CC55: =SUM(CA$3:CA55) -> 84037 | CD55: 0.2648394487 | CE55: 0 | CF55: 0
AM56: =SUM(AK$3:AK56) -> 0 | AP56: 0 | AT56: =SUM(AR$3:AR56) -> 0 | AW56: 0 | BA56: =SUM(AY$3:AY56) -> 0 | BD56: 0 | BH56: =SUM(BF$3:BF56) -> 0 | BK56: 0 | BO56: =SUM(BM$3:BM56) -> 0 | BR56: 0 | BV56: =SUM(BT$3:BT56) -> 0 | BY56: 0 | CA56: 0 | CB56: 0 | CC56: =SUM(CA$3:CA56) -> 84037 | CD56: 0.2648394487 | CE56: 0 | CF56: 0
AM57: =SUM(AK$3:AK57) -> 0 | AP57: 0 | AT57: =SUM(AR$3:AR57) -> 0 | AW57: 0 | BA57: =SUM(AY$3:AY57) -> 0 | BD57: 0 | BH57: =SUM(BF$3:BF57) -> 0 | BK57: 0 | BO57: =SUM(BM$3:BM57) -> 0 | BR57: 0 | BV57: =SUM(BT$3:BT57) -> 0 | BY57: 0 | CA57: 0 | CB57: 0 | CC57: =SUM(CA$3:CA57) -> 84037 | CD57: 0.2648394487 | CE57: 0 | CF57: 0
AM58: =SUM(AK$3:AK58) -> 0 | AP58: 0 | AT58: =SUM(AR$3:AR58) -> 0 | AW58: 0 | BA58: =SUM(AY$3:AY58) -> 0 | BD58: 0 | BH58: =SUM(BF$3:BF58) -> 0 | BK58: 0 | BO58: =SUM(BM$3:BM58) -> 0 | BR58: 0 | BV58: =SUM(BT$3:BT58) -> 0 | BY58: 0 | CA58: 0 | CB58: 0 | CC58: =SUM(CA$3:CA58) -> 84037 | CD58: 0.2648394487 | CE58: 0 | CF58: 0
B59: If you are done with Bill Impacts, go to the Rate Simulation Module | AM59: =SUM(AK$3:AK59) -> 0 | AP59: 0 | AT59: =SUM(AR$3:AR59) -> 0 | AW59: 0 | BA59: =SUM(AY$3:AY59) -> 0 | BD59: 0 | BH59: =SUM(BF$3:BF59) -> 0 | BK59: 0 | BO59: =SUM(BM$3:BM59) -> 0 | BR59: 0 | BV59: =SUM(BT$3:BT59) -> 0 | BY59: 0 | CA59: 700 | CB59: 0 | CC59: =SUM(CA$3:CA59) -> 84737 | CD59: 0.2670454725 | CE59: 0.002206023705 | CF59: 0
AM60: =SUM(AK$3:AK60) -> 0 | AP60: 0 | AT60: =SUM(AR$3:AR60) -> 0 | AW60: 0 | BA60: =SUM(AY$3:AY60) -> 0 | BD60: 0 | BH60: =SUM(BF$3:BF60) -> 0 | BK60: 0 | BO60: =SUM(BM$3:BM60) -> 0 | BR60: 0 | BV60: =SUM(BT$3:BT60) -> 0 | BY60: 0 | CA60: 0 | CB60: 0 | CC60: =SUM(CA$3:CA60) -> 84737 | CD60: 0.2670454725 | CE60: 0 | CF60: 0
B61: Go back to Step 4: Design Water Rates Worksheet | O61: Go forward to Step 5: Drought Rate Adjustments | AM61: =SUM(AK$3:AK61) -> 0 | AP61: 0 | AT61: =SUM(AR$3:AR61) -> 0 | AW61: 0 | BA61: =SUM(AY$3:AY61) -> 0 | BD61: 0 | BH61: =SUM(BF$3:BF61) -> 0 | BK61: 0 | BO61: =SUM(BM$3:BM61) -> 0 | BR61: 0 | BV61: =SUM(BT$3:BT61) -> 0 | BY61: 0 | CA61: 0 | CB61: 0 | CC61: =SUM(CA$3:CA61) -> 84737 | CD61: 0.2670454725 | CE61: 0 | CF61: 0
AM62: =SUM(AK$3:AK62) -> 0 | AP62: 0 | AT62: =SUM(AR$3:AR62) -> 0 | AW62: 0 | BA62: =SUM(AY$3:AY62) -> 0 | BD62: 0 | BH62: =SUM(BF$3:BF62) -> 0 | BK62: 0 | BO62: =SUM(BM$3:BM62) -> 0 | BR62: 0 | BV62: =SUM(BT$3:BT62) -> 0 | BY62: 0 | CA62: 0 | CB62: 0 | CC62: =SUM(CA$3:CA62) -> 84737 | CD62: 0.2670454725 | CE62: 0 | CF62: 0
AM63: =SUM(AK$3:AK63) -> 0 | AP63: 0 | AT63: =SUM(AR$3:AR63) -> 0 | AW63: 0 | BA63: =SUM(AY$3:AY63) -> 0 | BD63: 0 | BH63: =SUM(BF$3:BF63) -> 0 | BK63: 0 | BO63: =SUM(BM$3:BM63) -> 0 | BR63: 0 | BV63: =SUM(BT$3:BT63) -> 0 | BY63: 0 | CA63: 0 | CB63: 0 | CC63: =SUM(CA$3:CA63) -> 84737 | CD63: 0.2670454725 | CE63: 0 | CF63: 0
AM64: =SUM(AK$3:AK64) -> 0 | AP64: 0 | AT64: =SUM(AR$3:AR64) -> 0 | AW64: 0 | BA64: =SUM(AY$3:AY64) -> 0 | BD64: 0 | BH64: =SUM(BF$3:BF64) -> 0 | BK64: 0 | BO64: =SUM(BM$3:BM64) -> 0 | BR64: 0 | BV64: =SUM(BT$3:BT64) -> 0 | BY64: 0 | CA64: 0 | CB64: 0 | CC64: =SUM(CA$3:CA64) -> 84737 | CD64: 0.2670454725 | CE64: 0 | CF64: 0
AM65: =SUM(AK$3:AK65) -> 0 | AP65: 0 | AT65: =SUM(AR$3:AR65) -> 0 | AW65: 0 | BA65: =SUM(AY$3:AY65) -> 0 | BD65: 0 | BH65: =SUM(BF$3:BF65) -> 0 | BK65: 0 | BO65: =SUM(BM$3:BM65) -> 0 | BR65: 0 | BV65: =SUM(BT$3:BT65) -> 0 | BY65: 0 | CA65: 0 | CB65: 0 | CC65: =SUM(CA$3:CA65) -> 84737 | CD65: 0.2670454725 | CE65: 0 | CF65: 0
AM66: =SUM(AK$3:AK66) -> 0 | AP66: 0 | AT66: =SUM(AR$3:AR66) -> 0 | AW66: 0 | BA66: =SUM(AY$3:AY66) -> 0 | BD66: 0 | BH66: =SUM(BF$3:BF66) -> 0 | BK66: 0 | BO66: =SUM(BM$3:BM66) -> 0 | BR66: 0 | BV66: =SUM(BT$3:BT66) -> 0 | BY66: 0 | CA66: 0 | CB66: 0 | CC66: =SUM(CA$3:CA66) -> 84737 | CD66: 0.2670454725 | CE66: 0 | CF66: 0
AM67: =SUM(AK$3:AK67) -> 0 | AP67: 0 | AT67: =SUM(AR$3:AR67) -> 0 | AW67: 0 | BA67: =SUM(AY$3:AY67) -> 0 | BD67: 0 | BH67: =SUM(BF$3:BF67) -> 0 | BK67: 0 | BO67: =SUM(BM$3:BM67) -> 0 | BR67: 0 | BV67: =SUM(BT$3:BT67) -> 0 | BY67: 0 | CA67: 0 | CB67: 0 | CC67: =SUM(CA$3:CA67) -> 84737 | CD67: 0.2670454725 | CE67: 0 | CF67: 0
AM68: =SUM(AK$3:AK68) -> 0 | AN68: =AM68/AM$486 ->  | AO68: =AN68-AN67 ->  | AP68: =AL69-AL68 -> 0 | AT68: =SUM(AR$3:AR68) -> 0 | AU68: =AT68/AT$486 ->  | AV68: =AU68-AU67 ->  | AW68: =AS69-AS68 -> 0 | BA68: =SUM(AY$3:AY68) -> 0 | BB68: =BA68/BA$486 ->  | BC68: =BB68-BB67 ->  | BD68: =AZ69-AZ68 -> 0 | BH68: =SUM(BF$3:BF68) -> 0 | BI68: =BH68/BH$486 ->  | BJ68: =BI68-BI67 ->  | BK68: =BG69-BG68 -> 0 | BO68: =SUM(BM$3:BM68) -> 0 | BP68: =BO68/BO$486 ->  | BQ68: =BP68-BP67 ->  | BR68: =BN69-BN68 -> 0 | BV68: =SUM(BT$3:BT68) -> 0 | BW68: =BV68/BV$486 ->  | BX68: =BW68-BW67 ->  | BY68: =BU69-BU68 -> 0 | CA68: 0 | CB68: 0 | CC68: =SUM(CA$3:CA68) -> 84737 | CD68: =CC68/CC$486 -> 0.2670454725 | CE68: =CD68-CD67 -> 0 | CF68: =CB69-CB68 -> 0
AM69: =SUM(AK$3:AK69) -> 0 | AP69: 0 | AT69: =SUM(AR$3:AR69) -> 0 | AW69: 0 | BA69: =SUM(AY$3:AY69) -> 0 | BD69: 0 | BH69: =SUM(BF$3:BF69) -> 0 | BK69: 0 | BO69: =SUM(BM$3:BM69) -> 0 | BR69: 0 | BV69: =SUM(BT$3:BT69) -> 0 | BY69: 0 | CA69: 0 | CB69: 0 | CC69: =SUM(CA$3:CA69) -> 84737 | CD69: 0.2670454725 | CE69: 0 | CF69: 0
AM70: =SUM(AK$3:AK70) -> 0 | AP70: 0 | AT70: =SUM(AR$3:AR70) -> 0 | AW70: 0 | BA70: =SUM(AY$3:AY70) -> 0 | BD70: 0 | BH70: =SUM(BF$3:BF70) -> 0 | BK70: 0 | BO70: =SUM(BM$3:BM70) -> 0 | BR70: 0 | BV70: =SUM(BT$3:BT70) -> 0 | BY70: 0 | CA70: 0 | CB70: 0 | CC70: =SUM(CA$3:CA70) -> 84737 | CD70: 0.2670454725 | CE70: 0 | CF70: 0
AM71: =SUM(AK$3:AK71) -> 0 | AP71: 0 | AT71: =SUM(AR$3:AR71) -> 0 | AW71: 0 | BA71: =SUM(AY$3:AY71) -> 0 | BD71: 0 | BH71: =SUM(BF$3:BF71) -> 0 | BK71: 0 | BO71: =SUM(BM$3:BM71) -> 0 | BR71: 0 | BV71: =SUM(BT$3:BT71) -> 0 | BY71: 0 | CA71: 0 | CB71: 0 | CC71: =SUM(CA$3:CA71) -> 84737 | CD71: 0.2670454725 | CE71: 0 | CF71: 0
AM72: =SUM(AK$3:AK72) -> 0 | AP72: 0 | AT72: =SUM(AR$3:AR72) -> 0 | AW72: 0 | BA72: =SUM(AY$3:AY72) -> 0 | BD72: 0 | BH72: =SUM(BF$3:BF72) -> 0 | BK72: 0 | BO72: =SUM(BM$3:BM72) -> 0 | BR72: 0 | BV72: =SUM(BT$3:BT72) -> 0 | BY72: 0 | CA72: 0 | CB72: 0 | CC72: =SUM(CA$3:CA72) -> 84737 | CD72: 0.2670454725 | CE72: 0 | CF72: 0
AM73: =SUM(AK$3:AK73) -> 0 | AP73: 0 | AT73: =SUM(AR$3:AR73) -> 0 | AW73: 0 | BA73: =SUM(AY$3:AY73) -> 0 | BD73: 0 | BH73: =SUM(BF$3:BF73) -> 0 | BK73: 0 | BO73: =SUM(BM$3:BM73) -> 0 | BR73: 0 | BV73: =SUM(BT$3:BT73) -> 0 | BY73: 0 | CA73: 0 | CB73: 0 | CC73: =SUM(CA$3:CA73) -> 84737 | CD73: 0.2670454725 | CE73: 0 | CF73: 0
AM74: =SUM(AK$3:AK74) -> 0 | AP74: 0 | AT74: =SUM(AR$3:AR74) -> 0 | AW74: 0 | BA74: =SUM(AY$3:AY74) -> 0 | BD74: 0 | BH74: =SUM(BF$3:BF74) -> 0 | BK74: 0 | BO74: =SUM(BM$3:BM74) -> 0 | BR74: 0 | BV74: =SUM(BT$3:BT74) -> 0 | BY74: 0 | CA74: 0 | CB74: 0 | CC74: =SUM(CA$3:CA74) -> 84737 | CD74: 0.2670454725 | CE74: 0 | CF74: 0
AM75: =SUM(AK$3:AK75) -> 0 | AP75: 0 | AT75: =SUM(AR$3:AR75) -> 0 | AW75: 0 | BA75: =SUM(AY$3:AY75) -> 0 | BD75: 0 | BH75: =SUM(BF$3:BF75) -> 0 | BK75: 0 | BO75: =SUM(BM$3:BM75) -> 0 | BR75: 0 | BV75: =SUM(BT$3:BT75) -> 0 | BY75: 0 | CA75: 0 | CB75: 0 | CC75: =SUM(CA$3:CA75) -> 84737 | CD75: 0.2670454725 | CE75: 0 | CF75: 0
AM76: =SUM(AK$3:AK76) -> 0 | AP76: 0 | AT76: =SUM(AR$3:AR76) -> 0 | AW76: 0 | BA76: =SUM(AY$3:AY76) -> 0 | BD76: 0 | BH76: =SUM(BF$3:BF76) -> 0 | BK76: 0 | BO76: =SUM(BM$3:BM76) -> 0 | BR76: 0 | BV76: =SUM(BT$3:BT76) -> 0 | BY76: 0 | CA76: 0 | CB76: 0 | CC76: =SUM(CA$3:CA76) -> 84737 | CD76: 0.2670454725 | CE76: 0 | CF76: 0
AM77: =SUM(AK$3:AK77) -> 0 | AP77: 0 | AT77: =SUM(AR$3:AR77) -> 0 | AW77: 0 | BA77: =SUM(AY$3:AY77) -> 0 | BD77: 0 | BH77: =SUM(BF$3:BF77) -> 0 | BK77: 0 | BO77: =SUM(BM$3:BM77) -> 0 | BR77: 0 | BV77: =SUM(BT$3:BT77) -> 0 | BY77: 0 | CA77: 0 | CB77: 0 | CC77: =SUM(CA$3:CA77) -> 84737 | CD77: 0.2670454725 | CE77: 0 | CF77: 0
AM78: =SUM(AK$3:AK78) -> 0 | AP78: 0 | AT78: =SUM(AR$3:AR78) -> 0 | AW78: 0 | BA78: =SUM(AY$3:AY78) -> 0 | BD78: 0 | BH78: =SUM(BF$3:BF78) -> 0 | BK78: 0 | BO78: =SUM(BM$3:BM78) -> 0 | BR78: 0 | BV78: =SUM(BT$3:BT78) -> 0 | BY78: 0 | CA78: 0 | CB78: 0 | CC78: =SUM(CA$3:CA78) -> 84737 | CD78: 0.2670454725 | CE78: 0 | CF78: 0
AM79: =SUM(AK$3:AK79) -> 0 | AP79: 0 | AT79: =SUM(AR$3:AR79) -> 0 | AW79: 0 | BA79: =SUM(AY$3:AY79) -> 0 | BD79: 0 | BH79: =SUM(BF$3:BF79) -> 0 | BK79: 0 | BO79: =SUM(BM$3:BM79) -> 0 | BR79: 0 | BV79: =SUM(BT$3:BT79) -> 0 | BY79: 0 | CA79: 0 | CB79: 0 | CC79: =SUM(CA$3:CA79) -> 84737 | CD79: 0.2670454725 | CE79: 0 | CF79: 0
AM80: =SUM(AK$3:AK80) -> 0 | AP80: 0 | AT80: =SUM(AR$3:AR80) -> 0 | AW80: 0 | BA80: =SUM(AY$3:AY80) -> 0 | BD80: 0 | BH80: =SUM(BF$3:BF80) -> 0 | BK80: 0 | BO80: =SUM(BM$3:BM80) -> 0 | BR80: 0 | BV80: =SUM(BT$3:BT80) -> 0 | BY80: 0 | CA80: 0 | CB80: 0 | CC80: =SUM(CA$3:CA80) -> 84737 | CD80: 0.2670454725 | CE80: 0 | CF80: 0
AM81: =SUM(AK$3:AK81) -> 0 | AP81: 0 | AT81: =SUM(AR$3:AR81) -> 0 | AW81: 0 | BA81: =SUM(AY$3:AY81) -> 0 | BD81: 0 | BH81: =SUM(BF$3:BF81) -> 0 | BK81: 0 | BO81: =SUM(BM$3:BM81) -> 0 | BR81: 0 | BV81: =SUM(BT$3:BT81) -> 0 | BY81: 0 | CA81: 0 | CB81: 0 | CC81: =SUM(CA$3:CA81) -> 84737 | CD81: 0.2670454725 | CE81: 0 | CF81: 0
AM82: =SUM(AK$3:AK82) -> 0 | AP82: 0 | AT82: =SUM(AR$3:AR82) -> 0 | AW82: 0 | BA82: =SUM(AY$3:AY82) -> 0 | BD82: 0 | BH82: =SUM(BF$3:BF82) -> 0 | BK82: 0 | BO82: =SUM(BM$3:BM82) -> 0 | BR82: 0 | BV82: =SUM(BT$3:BT82) -> 0 | BY82: 0 | CA82: 0 | CB82: 0 | CC82: =SUM(CA$3:CA82) -> 84737 | CD82: 0.2670454725 | CE82: 0 | CF82: 0
AM83: =SUM(AK$3:AK83) -> 0 | AP83: 0 | AT83: =SUM(AR$3:AR83) -> 0 | AW83: 0 | BA83: =SUM(AY$3:AY83) -> 0 | BD83: 0 | BH83: =SUM(BF$3:BF83) -> 0 | BK83: 0 | BO83: =SUM(BM$3:BM83) -> 0 | BR83: 0 | BV83: =SUM(BT$3:BT83) -> 0 | BY83: 0 | CA83: 0 | CB83: 0 | CC83: =SUM(CA$3:CA83) -> 84737 | CD83: 0.2670454725 | CE83: 0 | CF83: 0.007638461538
AM84: =SUM(AK$3:AK84) -> 0 | AP84: 0 | AT84: =SUM(AR$3:AR84) -> 0 | AW84: 0 | BA84: =SUM(AY$3:AY84) -> 0 | BD84: 0 | BH84: =SUM(BF$3:BF84) -> 0 | BK84: 0 | BO84: =SUM(BM$3:BM84) -> 0 | BR84: 0 | BV84: =SUM(BT$3:BT84) -> 0 | BY84: 0 | CA84: 1565 | CB84: 0.007638461538 | CC84: =SUM(CA$3:CA84) -> 86302 | CD84: 0.2719775112 | CE84: 0.004932038713 | CF84: 0.001697435897
AM85: =SUM(AK$3:AK85) -> 0 | AP85: 0 | AT85: =SUM(AR$3:AR85) -> 0 | AW85: 0 | BA85: =SUM(AY$3:AY85) -> 0 | BD85: 0 | BH85: =SUM(BF$3:BF85) -> 0 | BK85: 0 | BO85: =SUM(BM$3:BM85) -> 0 | BR85: 0 | BV85: =SUM(BT$3:BT85) -> 0 | BY85: 0 | CA85: 8309 | CB85: 0.009335897436 | CC85: =SUM(CA$3:CA85) -> 94611 | CD85: 0.2981630125 | CE85: 0.02618550138 | CF85: 0.01204267399
AM86: =SUM(AK$3:AK86) -> 0 | AP86: 0 | AT86: =SUM(AR$3:AR86) -> 0 | AW86: 0 | BA86: =SUM(AY$3:AY86) -> 0 | BD86: 0 | BH86: =SUM(BF$3:BF86) -> 0 | BK86: 0 | BO86: =SUM(BM$3:BM86) -> 0 | BR86: 0 | BV86: =SUM(BT$3:BT86) -> 0 | BY86: 0 | CA86: 1552 | CB86: 0.02137857143 | CC86: =SUM(CA$3:CA86) -> 96163 | CD86: 0.3030540822 | CE86: 0.004891069701 | CF86: 0.004750793651
AM87: =SUM(AK$3:AK87) -> 0 | AP87: 0 | AT87: =SUM(AR$3:AR87) -> 0 | AW87: 0 | BA87: =SUM(AY$3:AY87) -> 0 | BD87: 0 | BH87: =SUM(BF$3:BF87) -> 0 | BK87: 0 | BO87: =SUM(BM$3:BM87) -> 0 | BR87: 0 | BV87: =SUM(BT$3:BT87) -> 0 | BY87: 0 | CA87: 8377 | CB87: 0.02612936508 | CC87: =SUM(CA$3:CA87) -> 104540 | CD87: 0.3294538831 | CE87: 0.02639980083 | CF87: 0.007157301587
AM88: =SUM(AK$3:AK88) -> 0 | AP88: 0 | AT88: =SUM(AR$3:AR88) -> 0 | AW88: 0 | BA88: =SUM(AY$3:AY88) -> 0 | BD88: 0 | BH88: =SUM(BF$3:BF88) -> 0 | BK88: 0 | BO88: =SUM(BM$3:BM88) -> 0 | BR88: 0 | BV88: =SUM(BT$3:BT88) -> 0 | BY88: 0 | CA88: 1611 | CB88: 0.03328666667 | CC88: =SUM(CA$3:CA88) -> 106151 | CD88: 0.3345308891 | CE88: 0.005077005985 | CF88: 0.007397037037
AM89: =SUM(AK$3:AK89) -> 0 | AP89: 0 | AT89: =SUM(AR$3:AR89) -> 0 | AW89: 0 | BA89: =SUM(AY$3:AY89) -> 0 | BD89: 0 | BH89: =SUM(BF$3:BF89) -> 0 | BK89: 0 | BO89: =SUM(BM$3:BM89) -> 0 | BR89: 0 | BV89: =SUM(BT$3:BT89) -> 0 | BY89: 0 | CA89: 8082 | CB89: 0.0406837037 | CC89: =SUM(CA$3:CA89) -> 114233 | CD89: 0.3600010085 | CE89: 0.02547011941 | CF89: 0.003022546296
AM90: =SUM(AK$3:AK90) -> 0 | AP90: 0 | AT90: =SUM(AR$3:AR90) -> 0 | AW90: 0 | BA90: =SUM(AY$3:AY90) -> 0 | BD90: 0 | BH90: =SUM(BF$3:BF90) -> 0 | BK90: 0 | BO90: =SUM(BM$3:BM90) -> 0 | BR90: 0 | BV90: =SUM(BT$3:BT90) -> 0 | BY90: 0 | CA90: 1630 | CB90: 0.04370625 | CC90: =SUM(CA$3:CA90) -> 115863 | CD90: 0.3651378922 | CE90: 0.005136883771 | CF90: 0.00919375
AM91: =SUM(AK$3:AK91) -> 0 | AP91: 0 | AT91: =SUM(AR$3:AR91) -> 0 | AW91: 0 | BA91: =SUM(AY$3:AY91) -> 0 | BD91: 0 | BH91: =SUM(BF$3:BF91) -> 0 | BK91: 0 | BO91: =SUM(BM$3:BM91) -> 0 | BR91: 0 | BV91: =SUM(BT$3:BT91) -> 0 | BY91: 0 | CA91: 1537 | CB91: 0.0529 | CC91: =SUM(CA$3:CA91) -> 117400 | CD91: 0.36998169 | CE91: 0.004843797764 | CF91: 0.00051875
AM92: =SUM(AK$3:AK92) -> 0 | AP92: 0 | AT92: =SUM(AR$3:AR92) -> 0 | AW92: 0 | BA92: =SUM(AY$3:AY92) -> 0 | BD92: 0 | BH92: =SUM(BF$3:BF92) -> 0 | BK92: 0 | BO92: =SUM(BM$3:BM92) -> 0 | BR92: 0 | BV92: =SUM(BT$3:BT92) -> 0 | BY92: 0 | CA92: 7782 | CB92: 0.05341875 | CC92: =SUM(CA$3:CA92) -> 125182 | CD92: 0.3945063707 | CE92: 0.02452468068 | CF92: 0.007653472222
AM93: =SUM(AK$3:AK93) -> 0 | AP93: 0 | AT93: =SUM(AR$3:AR93) -> 0 | AW93: 0 | BA93: =SUM(AY$3:AY93) -> 0 | BD93: 0 | BH93: =SUM(BF$3:BF93) -> 0 | BK93: 0 | BO93: =SUM(BM$3:BM93) -> 0 | BR93: 0 | BV93: =SUM(BT$3:BT93) -> 0 | BY93: 0 | CA93: 1603 | CB93: 0.06107222222 | CC93: =SUM(CA$3:CA93) -> 126785 | CD93: 0.399558165 | CE93: 0.005051794285 | CF93: 0.003583333333
AM94: =SUM(AK$3:AK94) -> 0 | AP94: 0 | AT94: =SUM(AR$3:AR94) -> 0 | AW94: 0 | BA94: =SUM(AY$3:AY94) -> 0 | BD94: 0 | BH94: =SUM(BF$3:BF94) -> 0 | BK94: 0 | BO94: =SUM(BM$3:BM94) -> 0 | BR94: 0 | BV94: =SUM(BT$3:BT94) -> 0 | BY94: 0 | CA94: 7235 | CB94: 0.06465555556 | CC94: =SUM(CA$3:CA94) -> 134020 | CD94: 0.4223589957 | CE94: 0.02280083073 | CF94: 0.003728654971
AM95: =SUM(AK$3:AK95) -> 0 | AP95: 0 | AT95: =SUM(AR$3:AR95) -> 0 | AW95: 0 | BA95: =SUM(AY$3:AY95) -> 0 | BD95: 0 | BH95: =SUM(BF$3:BF95) -> 0 | BK95: 0 | BO95: =SUM(BM$3:BM95) -> 0 | BR95: 0 | BV95: =SUM(BT$3:BT95) -> 0 | BY95: 0 | CA95: 1584 | CB95: 0.06838421053 | CC95: =SUM(CA$3:CA95) -> 135604 | CD95: 0.4273509122 | CE95: 0.004991916499 | CF95: 0.006259616634
AM96: =SUM(AK$3:AK96) -> 0 | AP96: 0 | AT96: =SUM(AR$3:AR96) -> 0 | AW96: 0 | BA96: =SUM(AY$3:AY96) -> 0 | BD96: 0 | BH96: =SUM(BF$3:BF96) -> 0 | BK96: 0 | BO96: =SUM(BM$3:BM96) -> 0 | BR96: 0 | BV96: =SUM(BT$3:BT96) -> 0 | BY96: 0 | CA96: 6863 | CB96: 0.07464382716 | CC96: =SUM(CA$3:CA96) -> 142467 | CD96: 0.4489793989 | CE96: 0.0216284867 | CF96: 0.0003211728395
AM97: =SUM(AK$3:AK97) -> 0 | AP97: 0 | AT97: =SUM(AR$3:AR97) -> 0 | AW97: 0 | BA97: =SUM(AY$3:AY97) -> 0 | BD97: 0 | BH97: =SUM(BF$3:BF97) -> 0 | BK97: 0 | BO97: =SUM(BM$3:BM97) -> 0 | BR97: 0 | BV97: =SUM(BT$3:BT97) -> 0 | BY97: 0 | CA97: 1616 | CB97: 0.074965 | CC97: =SUM(CA$3:CA97) -> 144083 | CD97: 0.4540721622 | CE97: 0.005092763297 | CF97: 0.005954047619
AM98: =SUM(AK$3:AK98) -> 0 | AP98: 0 | AT98: =SUM(AR$3:AR98) -> 0 | AW98: 0 | BA98: =SUM(AY$3:AY98) -> 0 | BD98: 0 | BH98: =SUM(BF$3:BF98) -> 0 | BK98: 0 | BO98: =SUM(BM$3:BM98) -> 0 | BR98: 0 | BV98: =SUM(BT$3:BT98) -> 0 | BY98: 0 | CA98: 1656 | CB98: 0.08091904762 | CC98: =SUM(CA$3:CA98) -> 145739 | CD98: 0.459290984 | CE98: 0.005218821794 | CF98: 0.002661654135
AM99: =SUM(AK$3:AK99) -> 0 | AP99: 0 | AT99: =SUM(AR$3:AR99) -> 0 | AW99: 0 | BA99: =SUM(AY$3:AY99) -> 0 | BD99: 0 | BH99: =SUM(BF$3:BF99) -> 0 | BK99: 0 | BO99: =SUM(BM$3:BM99) -> 0 | BR99: 0 | BV99: =SUM(BT$3:BT99) -> 0 | BY99: 0 | CA99: 6423 | CB99: 0.08358070175 | CC99: =SUM(CA$3:CA99) -> 152162 | CD99: 0.4795328272 | CE99: 0.02024184323 | CF99: 0.002751116427
AM100: =SUM(AK$3:AK100) -> 0 | AP100: 0 | AT100: =SUM(AR$3:AR100) -> 0 | AW100: 0 | BA100: =SUM(AY$3:AY100) -> 0 | BD100: 0 | BH100: =SUM(BF$3:BF100) -> 0 | BK100: 0 | BO100: =SUM(BM$3:BM100) -> 0 | BR100: 0 | BV100: =SUM(BT$3:BT100) -> 0 | BY100: 0 | CA100: 1691 | CB100: 0.08633181818 | CC100: =SUM(CA$3:CA100) -> 153853 | CD100: 0.4848619502 | CE100: 0.00532912298 | CF100: 0.004942094862
AM101: =SUM(AK$3:AK101) -> 0 | AP101: 0 | AT101: =SUM(AR$3:AR101) -> 0 | AW101: 0 | BA101: =SUM(AY$3:AY101) -> 0 | BD101: 0 | BH101: =SUM(BF$3:BF101) -> 0 | BK101: 0 | BO101: =SUM(BM$3:BM101) -> 0 | BR101: 0 | BV101: =SUM(BT$3:BT101) -> 0 | BY101: 0 | CA101: 1655 | CB101: 0.09127391304 | CC101: =SUM(CA$3:CA101) -> 155508 | CD101: 0.4900776205 | CE101: 0.005215670332 | CF101: 0.0003499758454
AM102: =SUM(AK$3:AK102) -> 0 | AP102: 0 | AT102: =SUM(AR$3:AR102) -> 0 | AW102: 0 | BA102: =SUM(AY$3:AY102) -> 0 | BD102: 0 | BH102: =SUM(BF$3:BF102) -> 0 | BK102: 0 | BO102: =SUM(BM$3:BM102) -> 0 | BR102: 0 | BV102: =SUM(BT$3:BT102) -> 0 | BY102: 0 | CA102: 5987 | CB102: 0.09162388889 | CC102: =SUM(CA$3:CA102) -> 161495 | CD102: 0.5089454261 | CE102: 0.01886780561 | CF102: 0.004180277778
AM103: =SUM(AK$3:AK103) -> 0 | AP103: 0 | AT103: =SUM(AR$3:AR103) -> 0 | AW103: 0 | BA103: =SUM(AY$3:AY103) -> 0 | BD103: 0 | BH103: =SUM(BF$3:BF103) -> 0 | BK103: 0 | BO103: =SUM(BM$3:BM103) -> 0 | BR103: 0 | BV103: =SUM(BT$3:BT103) -> 0 | BY103: 0 | CA103: 1664 | CB103: 0.09580416667 | CC103: =SUM(CA$3:CA103) -> 163159 | CD103: 0.5141894596 | CE103: 0.005244033494 | CF103: 0.003096891534
AM104: =SUM(AK$3:AK104) -> 0 | AP104: 0 | AT104: =SUM(AR$3:AR104) -> 0 | AW104: 0 | BA104: =SUM(AY$3:AY104) -> 0 | BD104: 0 | BH104: =SUM(BF$3:BF104) -> 0 | BK104: 0 | BO104: =SUM(BM$3:BM104) -> 0 | BR104: 0 | BV104: =SUM(BT$3:BT104) -> 0 | BY104: 0 | CA104: 5429 | CB104: 0.0989010582 | CC104: =SUM(CA$3:CA104) -> 168588 | CD104: 0.5312987492 | CE104: 0.01710928957 | CF104: 0.001070941799
AM105: =SUM(AK$3:AK105) -> 0 | AP105: 0 | AT105: =SUM(AR$3:AR105) -> 0 | AW105: 0 | BA105: =SUM(AY$3:AY105) -> 0 | BD105: 0 | BH105: =SUM(BF$3:BF105) -> 0 | BK105: 0 | BO105: =SUM(BM$3:BM105) -> 0 | BR105: 0 | BV105: =SUM(BT$3:BT105) -> 0 | BY105: 0 | CA105: 1610 | CB105: 0.099972 | CC105: =SUM(CA$3:CA105) -> 170198 | CD105: 0.5363726037 | CE105: 0.005073854522 | CF105: 0.003847230769
AM106: =SUM(AK$3:AK106) -> 0 | AP106: 0 | AT106: =SUM(AR$3:AR106) -> 0 | AW106: 0 | BA106: =SUM(AY$3:AY106) -> 0 | BD106: 0 | BH106: =SUM(BF$3:BF106) -> 0 | BK106: 0 | BO106: =SUM(BM$3:BM106) -> 0 | BR106: 0 | BV106: =SUM(BT$3:BT106) -> 0 | BY106: 0 | CA106: 1663 | CB106: 0.1038192308 | CC106: =SUM(CA$3:CA106) -> 171861 | CD106: 0.5416134857 | CE106: 0.005240882031 | CF106: 0.001697435897
AM107: =SUM(AK$3:AK107) -> 0 | AP107: 0 | AT107: =SUM(AR$3:AR107) -> 0 | AW107: 0 | BA107: =SUM(AY$3:AY107) -> 0 | BD107: 0 | BH107: =SUM(BF$3:BF107) -> 0 | BK107: 0 | BO107: =SUM(BM$3:BM107) -> 0 | BR107: 0 | BV107: =SUM(BT$3:BT107) -> 0 | BY107: 0 | CA107: 5174 | CB107: 0.1055166667 | CC107: =SUM(CA$3:CA107) -> 177035 | CD107: 0.5579191524 | CE107: 0.01630566664 | CF107: 0.001864814815
AM108: =SUM(AK$3:AK108) -> 0 | AP108: 0 | AT108: =SUM(AR$3:AR108) -> 0 | AW108: 0 | BA108: =SUM(AY$3:AY108) -> 0 | BD108: 0 | BH108: =SUM(BF$3:BF108) -> 0 | BK108: 0 | BO108: =SUM(BM$3:BM108) -> 0 | BR108: 0 | BV108: =SUM(BT$3:BT108) -> 0 | BY108: 0 | CA108: 1619 | CB108: 0.1073814815 | CC108: =SUM(CA$3:CA108) -> 178654 | CD108: 0.5630213701 | CE108: 0.005102217684 | CF108: 0.003307804233
AM109: =SUM(AK$3:AK109) -> 0 | AP109: 0 | AT109: =SUM(AR$3:AR109) -> 0 | AW109: 0 | BA109: =SUM(AY$3:AY109) -> 0 | BD109: 0 | BH109: =SUM(BF$3:BF109) -> 0 | BK109: 0 | BO109: =SUM(BM$3:BM109) -> 0 | BR109: 0 | BV109: =SUM(BT$3:BT109) -> 0 | BY109: 0 | CA109: 1655 | CB109: 0.1106892857 | CC109: =SUM(CA$3:CA109) -> 180309 | CD109: 0.5682370404 | CE109: 0.005215670332 | CF109: 0.0008677191166
AM110: =SUM(AK$3:AK110) -> 0 | AP110: 0 | AT110: =SUM(AR$3:AR110) -> 0 | AW110: 0 | BA110: =SUM(AY$3:AY110) -> 0 | BD110: 0 | BH110: =SUM(BF$3:BF110) -> 0 | BK110: 0 | BO110: =SUM(BM$3:BM110) -> 0 | BR110: 0 | BV110: =SUM(BT$3:BT110) -> 0 | BY110: 0 | CA110: 4890 | CB110: 0.1115570048 | CC110: =SUM(CA$3:CA110) -> 185199 | CD110: 0.5836476917 | CE110: 0.01541065131 | CF110: 0.002211960686
AM111: =SUM(AK$3:AK111) -> 0 | AP111: 0 | AT111: =SUM(AR$3:AR111) -> 0 | AW111: 0 | BA111: =SUM(AY$3:AY111) -> 0 | BD111: 0 | BH111: =SUM(BF$3:BF111) -> 0 | BK111: 0 | BO111: =SUM(BM$3:BM111) -> 0 | BR111: 0 | BV111: =SUM(BT$3:BT111) -> 0 | BY111: 0 | CA111: 1657 | CB111: 0.1137689655 | CC111: =SUM(CA$3:CA111) -> 186856 | CD111: 0.588869665 | CE111: 0.005221973257 | CF111: 0.002874367816
AM112: =SUM(AK$3:AK112) -> 0 | AP112: 0 | AT112: =SUM(AR$3:AR112) -> 0 | AW112: 0 | BA112: =SUM(AY$3:AY112) -> 0 | BD112: 0 | BH112: =SUM(BF$3:BF112) -> 0 | BK112: 0 | BO112: =SUM(BM$3:BM112) -> 0 | BR112: 0 | BV112: =SUM(BT$3:BT112) -> 0 | BY112: 0 | CA112: 1532 | CB112: 0.1166433333 | CC112: =SUM(CA$3:CA112) -> 188388 | CD112: 0.5936977054 | CE112: 0.004828040452 | CF112: 0.0004506481481
AM113: =SUM(AK$3:AK113) -> 0 | AP113: 0 | AT113: =SUM(AR$3:AR113) -> 0 | AW113: 0 | BA113: =SUM(AY$3:AY113) -> 0 | BD113: 0 | BH113: =SUM(BF$3:BF113) -> 0 | BK113: 0 | BO113: =SUM(BM$3:BM113) -> 0 | BR113: 0 | BV113: =SUM(BT$3:BT113) -> 0 | BY113: 0 | CA113: 4532 | CB113: 0.1170939815 | CC113: =SUM(CA$3:CA113) -> 192920 | CD113: 0.6079801332 | CE113: 0.01428242776 | CF113: 0.002238276583
AM114: =SUM(AK$3:AK114) -> 0 | AP114: 0 | AT114: =SUM(AR$3:AR114) -> 0 | AW114: 0 | BA114: =SUM(AY$3:AY114) -> 0 | BD114: 0 | BH114: =SUM(BF$3:BF114) -> 0 | BK114: 0 | BO114: =SUM(BM$3:BM114) -> 0 | BR114: 0 | BV114: =SUM(BT$3:BT114) -> 0 | BY114: 0 | CA114: 1634 | CB114: 0.1193322581 | CC114: =SUM(CA$3:CA114) -> 194554 | CD114: 0.6131296228 | CE114: 0.005149489621 | CF114: 0.002520866935
AM115: =SUM(AK$3:AK115) -> 0 | AP115: 0 | AT115: =SUM(AR$3:AR115) -> 0 | AW115: 0 | BA115: =SUM(AY$3:AY115) -> 0 | BD115: 0 | BH115: =SUM(BF$3:BF115) -> 0 | BK115: 0 | BO115: =SUM(BM$3:BM115) -> 0 | BR115: 0 | BV115: =SUM(BT$3:BT115) -> 0 | BY115: 0 | CA115: 1563 | CB115: 0.121853125 | CC115: =SUM(CA$3:CA115) -> 196117 | CD115: 0.6180553586 | CE115: 0.004925735788 | CF115: 0.000334875
AM116: =SUM(AK$3:AK116) -> 0 | AP116: 0 | AT116: =SUM(AR$3:AR116) -> 0 | AW116: 0 | BA116: =SUM(AY$3:AY116) -> 0 | BD116: 0 | BH116: =SUM(BF$3:BF116) -> 0 | BK116: 0 | BO116: =SUM(BM$3:BM116) -> 0 | BR116: 0 | BV116: =SUM(BT$3:BT116) -> 0 | BY116: 0 | CA116: 4107 | CB116: 0.122188 | CC116: =SUM(CA$3:CA116) -> 200224 | CD116: 0.6309984148 | CE116: 0.01294305623 | CF116: 0.002033212121
AM117: =SUM(AK$3:AK117) -> 0 | AP117: 0 | AT117: =SUM(AR$3:AR117) -> 0 | AW117: 0 | BA117: =SUM(AY$3:AY117) -> 0 | BD117: 0 | BH117: =SUM(BF$3:BF117) -> 0 | BK117: 0 | BO117: =SUM(BM$3:BM117) -> 0 | BR117: 0 | BV117: =SUM(BT$3:BT117) -> 0 | BY117: 0 | CA117: 1569 | CB117: 0.1242212121 | CC117: =SUM(CA$3:CA117) -> 201793 | CD117: 0.6359430594 | CE117: 0.004944644562 | CF117: 0.002228787879
AM118: =SUM(AK$3:AK118) -> 0 | AP118: 0 | AT118: =SUM(AR$3:AR118) -> 0 | AW118: 0 | BA118: =SUM(AY$3:AY118) -> 0 | BD118: 0 | BH118: =SUM(BF$3:BF118) -> 0 | BK118: 0 | BO118: =SUM(BM$3:BM118) -> 0 | BR118: 0 | BV118: =SUM(BT$3:BT118) -> 0 | BY118: 0 | CA118: 1542 | CB118: 0.12645 | CC118: =SUM(CA$3:CA118) -> 203335 | CD118: 0.6408026145 | CE118: 0.004859555077 | CF118: 0.0004401709402
AM119: =SUM(AK$3:AK119) -> 0 | AP119: 0 | AT119: =SUM(AR$3:AR119) -> 0 | AW119: 0 | BA119: =SUM(AY$3:AY119) -> 0 | BD119: 0 | BH119: =SUM(BF$3:BF119) -> 0 | BK119: 0 | BO119: =SUM(BM$3:BM119) -> 0 | BR119: 0 | BV119: =SUM(BT$3:BT119) -> 0 | BY119: 0 | CA119: 3936 | CB119: 0.1268901709 | CC119: =SUM(CA$3:CA119) -> 207271 | CD119: 0.6532067706 | CE119: 0.01240415615 | CF119: 0.001661257631
AM120: =SUM(AK$3:AK120) -> 0 | AP120: 0 | AT120: =SUM(AR$3:AR120) -> 0 | AW120: 0 | BA120: =SUM(AY$3:AY120) -> 0 | BD120: 0 | BH120: =SUM(BF$3:BF120) -> 0 | BK120: 0 | BO120: =SUM(BM$3:BM120) -> 0 | BR120: 0 | BV120: =SUM(BT$3:BT120) -> 0 | BY120: 0 | CA120: 1562 | CB120: 0.1285514286 | CC120: =SUM(CA$3:CA120) -> 208833 | CD120: 0.6581293549 | CE120: 0.004922584325 | CF120: 0.00198468254
AM121: =SUM(AK$3:AK121) -> 0 | AP121: 0 | AT121: =SUM(AR$3:AR121) -> 0 | AW121: 0 | BA121: =SUM(AY$3:AY121) -> 0 | BD121: 0 | BH121: =SUM(BF$3:BF121) -> 0 | BK121: 0 | BO121: =SUM(BM$3:BM121) -> 0 | BR121: 0 | BV121: =SUM(BT$3:BT121) -> 0 | BY121: 0 | CA121: 1502 | CB121: 0.1305361111 | CC121: =SUM(CA$3:CA121) -> 210335 | CD121: 0.6628628515 | CE121: 0.004733496579 | CF121: 0.0007079218107
AM122: =SUM(AK$3:AK122) -> 0 | AP122: 0 | AT122: =SUM(AR$3:AR122) -> 0 | AW122: 0 | BA122: =SUM(AY$3:AY122) -> 0 | BD122: 0 | BH122: =SUM(BF$3:BF122) -> 0 | BK122: 0 | BO122: =SUM(BM$3:BM122) -> 0 | BR122: 0 | BV122: =SUM(BT$3:BT122) -> 0 | BY122: 0 | CA122: 3502 | CB122: 0.1312440329 | CC122: =SUM(CA$3:CA122) -> 213837 | CD122: 0.673899273 | CE122: 0.01103642145 | CF122: 0.001169480592
AM123: =SUM(AK$3:AK123) -> 0 | AP123: 0 | AT123: =SUM(AR$3:AR123) -> 0 | AW123: 0 | BA123: =SUM(AY$3:AY123) -> 0 | BD123: 0 | BH123: =SUM(BF$3:BF123) -> 0 | BK123: 0 | BO123: =SUM(BM$3:BM123) -> 0 | BR123: 0 | BV123: =SUM(BT$3:BT123) -> 0 | BY123: 0 | CA123: 1540 | CB123: 0.1324135135 | CC123: =SUM(CA$3:CA123) -> 215377 | CD123: 0.6787525251 | CE123: 0.004853252152 | CF123: 0.00177859175
AM124: =SUM(AK$3:AK124) -> 0 | AP124: 0 | AT124: =SUM(AR$3:AR124) -> 0 | AW124: 0 | BA124: =SUM(AY$3:AY124) -> 0 | BD124: 0 | BH124: =SUM(BF$3:BF124) -> 0 | BK124: 0 | BO124: =SUM(BM$3:BM124) -> 0 | BR124: 0 | BV124: =SUM(BT$3:BT124) -> 0 | BY124: 0 | CA124: 1502 | CB124: 0.1341921053 | CC124: =SUM(CA$3:CA124) -> 216879 | CD124: 0.6834860217 | CE124: 0.004733496579 | CF124: 0.001094799499
AM125: =SUM(AK$3:AK125) -> 0 | AP125: 0 | AT125: =SUM(AR$3:AR125) -> 0 | AW125: 0 | BA125: =SUM(AY$3:AY125) -> 0 | BD125: 0 | BH125: =SUM(BF$3:BF125) -> 0 | BK125: 0 | BO125: =SUM(BM$3:BM125) -> 0 | BR125: 0 | BV125: =SUM(BT$3:BT125) -> 0 | BY125: 0 | CA125: 3281 | CB125: 0.1352869048 | CC125: =SUM(CA$3:CA125) -> 220160 | CD125: 0.6938259699 | CE125: 0.01033994825 | CF125: 0.0005925824176
AM126: =SUM(AK$3:AK126) -> 0 | AP126: 0 | AT126: =SUM(AR$3:AR126) -> 0 | AW126: 0 | BA126: =SUM(AY$3:AY126) -> 0 | BD126: 0 | BH126: =SUM(BF$3:BF126) -> 0 | BK126: 0 | BO126: =SUM(BM$3:BM126) -> 0 | BR126: 0 | BV126: =SUM(BT$3:BT126) -> 0 | BY126: 0 | CA126: 1489 | CB126: 0.1358794872 | CC126: =SUM(CA$3:CA126) -> 221649 | CD126: 0.6985184975 | CE126: 0.004692527567 | CF126: 0.001603012821
AM127: =SUM(AK$3:AK127) -> 0 | AP127: 0 | AT127: =SUM(AR$3:AR127) -> 0 | AW127: 0 | BA127: =SUM(AY$3:AY127) -> 0 | BD127: 0 | BH127: =SUM(BF$3:BF127) -> 0 | BK127: 0 | BO127: =SUM(BM$3:BM127) -> 0 | BR127: 0 | BV127: =SUM(BT$3:BT127) -> 0 | BY127: 0 | CA127: 1487 | CB127: 0.1374825 | CC127: =SUM(CA$3:CA127) -> 223136 | CD127: 0.7032047222 | CE127: 0.004686224643 | CF127: 0.001524817073
AM128: =SUM(AK$3:AK128) -> 0 | AP128: 0 | AT128: =SUM(AR$3:AR128) -> 0 | AW128: 0 | BA128: =SUM(AY$3:AY128) -> 0 | BD128: 0 | BH128: =SUM(BF$3:BF128) -> 0 | BK128: 0 | BO128: =SUM(BM$3:BM128) -> 0 | BR128: 0 | BV128: =SUM(BT$3:BT128) -> 0 | BY128: 0 | CA128: 1395 | CB128: 0.1390073171 | CC128: =SUM(CA$3:CA128) -> 224531 | CD128: 0.7076010122 | CE128: 0.004396290098 | CF128: 4.364078124e-05
AM129: =SUM(AK$3:AK129) -> 0 | AP129: 0 | AT129: =SUM(AR$3:AR129) -> 0 | AW129: 0 | BA129: =SUM(AY$3:AY129) -> 0 | BD129: 0 | BH129: =SUM(BF$3:BF129) -> 0 | BK129: 0 | BO129: =SUM(BM$3:BM129) -> 0 | BR129: 0 | BV129: =SUM(BT$3:BT129) -> 0 | BY129: 0 | CA129: 3055 | CB129: 0.1390509579 | CC129: =SUM(CA$3:CA129) -> 227586 | CD129: 0.71722873 | CE129: 0.009627717742 | CF129: 0.001408565955
AM130: =SUM(AK$3:AK130) -> 0 | AP130: 0 | AT130: =SUM(AR$3:AR130) -> 0 | AW130: 0 | BA130: =SUM(AY$3:AY130) -> 0 | BD130: 0 | BH130: =SUM(BF$3:BF130) -> 0 | BK130: 0 | BO130: =SUM(BM$3:BM130) -> 0 | BR130: 0 | BV130: =SUM(BT$3:BT130) -> 0 | BY130: 0 | CA130: 1418 | CB130: 0.1404595238 | CC130: =SUM(CA$3:CA130) -> 229004 | CD130: 0.7216975037 | CE130: 0.004468773734 | CF130: 0.001384662237
AM131: =SUM(AK$3:AK131) -> 0 | AP131: 0 | AT131: =SUM(AR$3:AR131) -> 0 | AW131: 0 | BA131: =SUM(AY$3:AY131) -> 0 | BD131: 0 | BH131: =SUM(BF$3:BF131) -> 0 | BK131: 0 | BO131: =SUM(BM$3:BM131) -> 0 | BR131: 0 | BV131: =SUM(BT$3:BT131) -> 0 | BY131: 0 | CA131: 1408 | CB131: 0.141844186 | CC131: =SUM(CA$3:CA131) -> 230412 | CD131: 0.7261347628 | CE131: 0.00443725911 | CF131: 0.0007198880276
AM132: =SUM(AK$3:AK132) -> 0 | AN132: =AM132/AM$486 ->  | AO132: =AN132-AN131 ->  | AP132: =AL133-AL132 -> 0 | AT132: =SUM(AR$3:AR132) -> 0 | AU132: =AT132/AT$486 ->  | AV132: =AU132-AU131 ->  | AW132: =AS133-AS132 -> 0 | BA132: =SUM(AY$3:AY132) -> 0 | BB132: =BA132/BA$486 ->  | BC132: =BB132-BB131 ->  | BD132: =AZ133-AZ132 -> 0 | BH132: =SUM(BF$3:BF132) -> 0 | BI132: =BH132/BH$486 ->  | BJ132: =BI132-BI131 ->  | BK132: =BG133-BG132 -> 0 | BO132: =SUM(BM$3:BM132) -> 0 | BP132: =BO132/BO$486 ->  | BQ132: =BP132-BP131 ->  | BR132: =BN133-BN132 -> 0 | BV132: =SUM(BT$3:BT132) -> 0 | BW132: =BV132/BV$486 ->  | BX132: =BW132-BW131 ->  | BY132: =BU133-BU132 -> 0 | CA132: 2830 | CB132: 0.1425640741 | CC132: =SUM(CA$3:CA132) -> 233242 | CD132: =CC132/CC$486 -> 0.7350534015 | CE132: =CD132-CD131 -> 0.008918638694 | CF132: =CB133-CB132 -> 0.0006018350168
AM133: =SUM(AK$3:AK133) -> 0 | AP133: 0 | AT133: =SUM(AR$3:AR133) -> 0 | AW133: 0 | BA133: =SUM(AY$3:AY133) -> 0 | BD133: 0 | BH133: =SUM(BF$3:BF133) -> 0 | BK133: 0 | BO133: =SUM(BM$3:BM133) -> 0 | BR133: 0 | BV133: =SUM(BT$3:BT133) -> 0 | BY133: 0 | CA133: 1420 | CB133: 0.1431659091 | CC133: =SUM(CA$3:CA133) -> 234662 | CD133: 0.7395284782 | CE133: 0.004475076659 | CF133: 0.001262979798
AM134: =SUM(AK$3:AK134) -> 0 | AP134: 0 | AT134: =SUM(AR$3:AR134) -> 0 | AW134: 0 | BA134: =SUM(AY$3:AY134) -> 0 | BD134: 0 | BH134: =SUM(BF$3:BF134) -> 0 | BK134: 0 | BO134: =SUM(BM$3:BM134) -> 0 | BR134: 0 | BV134: =SUM(BT$3:BT134) -> 0 | BY134: 0 | CA134: 1335 | CB134: 0.1444288889 | CC134: =SUM(CA$3:CA134) -> 235997 | CD134: 0.7437356805 | CE134: 0.004207202352 | CF134: 0.001208067633
AM135: =SUM(AK$3:AK135) -> 0 | AP135: 0 | AT135: =SUM(AR$3:AR135) -> 0 | AW135: 0 | BA135: =SUM(AY$3:AY135) -> 0 | BD135: 0 | BH135: =SUM(BF$3:BF135) -> 0 | BK135: 0 | BO135: =SUM(BM$3:BM135) -> 0 | BR135: 0 | BV135: =SUM(BT$3:BT135) -> 0 | BY135: 0 | CA135: 1334 | CB135: 0.1456369565 | CC135: =SUM(CA$3:CA135) -> 237331 | CD135: 0.7479397314 | CE135: 0.00420405089 | CF135: 0.0002135811127
AM136: =SUM(AK$3:AK136) -> 0 | AP136: 0 | AT136: =SUM(AR$3:AR136) -> 0 | AW136: 0 | BA136: =SUM(AY$3:AY136) -> 0 | BD136: 0 | BH136: =SUM(BF$3:BF136) -> 0 | BK136: 0 | BO136: =SUM(BM$3:BM136) -> 0 | BR136: 0 | BV136: =SUM(BT$3:BT136) -> 0 | BY136: 0 | CA136: 2625 | CB136: 0.1458505376 | CC136: =SUM(CA$3:CA136) -> 239956 | CD136: 0.7562123203 | CE136: 0.008272588895 | CF136: 0.0009430793869
AM137: =SUM(AK$3:AK137) -> 0 | AP137: 0 | AT137: =SUM(AR$3:AR137) -> 0 | AW137: 0 | BA137: =SUM(AY$3:AY137) -> 0 | BD137: 0 | BH137: =SUM(BF$3:BF137) -> 0 | BK137: 0 | BO137: =SUM(BM$3:BM137) -> 0 | BR137: 0 | BV137: =SUM(BT$3:BT137) -> 0 | BY137: 0 | CA137: 1319 | CB137: 0.146793617 | CC137: =SUM(CA$3:CA137) -> 241275 | CD137: 0.7603690993 | CE137: 0.004156778953 | CF137: 0.001108466312
AM138: =SUM(AK$3:AK138) -> 0 | AP138: 0 | AT138: =SUM(AR$3:AR138) -> 0 | AW138: 0 | BA138: =SUM(AY$3:AY138) -> 0 | BD138: 0 | BH138: =SUM(BF$3:BF138) -> 0 | BK138: 0 | BO138: =SUM(BM$3:BM138) -> 0 | BR138: 0 | BV138: =SUM(BT$3:BT138) -> 0 | BY138: 0 | CA138: 1258 | CB138: 0.1479020833 | CC138: =SUM(CA$3:CA138) -> 242533 | CD138: 0.764333639 | CE138: 0.003964539745 | CF138: 0.001029513889
AM139: =SUM(AK$3:AK139) -> 0 | AP139: 0 | AT139: =SUM(AR$3:AR139) -> 0 | AW139: 0 | BA139: =SUM(AY$3:AY139) -> 0 | BD139: 0 | BH139: =SUM(BF$3:BF139) -> 0 | BK139: 0 | BO139: =SUM(BM$3:BM139) -> 0 | BR139: 0 | BV139: =SUM(BT$3:BT139) -> 0 | BY139: 0 | CA139: 2420 | CB139: 0.1489315972 | CC139: =SUM(CA$3:CA139) -> 244953 | CD139: 0.7719601781 | CE139: 0.007626539095 | CF139: 3.370890023e-05
AM140: =SUM(AK$3:AK140) -> 0 | AP140: 0 | AT140: =SUM(AR$3:AR140) -> 0 | AW140: 0 | BA140: =SUM(AY$3:AY140) -> 0 | BD140: 0 | BH140: =SUM(BF$3:BF140) -> 0 | BK140: 0 | BO140: =SUM(BM$3:BM140) -> 0 | BR140: 0 | BV140: =SUM(BT$3:BT140) -> 0 | BY140: 0 | CA140: 1257 | CB140: 0.1489653061 | CC140: =SUM(CA$3:CA140) -> 246210 | CD140: 0.7759215664 | CE140: 0.003961388282 | CF140: 0.001020693878
AM141: =SUM(AK$3:AK141) -> 0 | AP141: 0 | AT141: =SUM(AR$3:AR141) -> 0 | AW141: 0 | BA141: =SUM(AY$3:AY141) -> 0 | BD141: 0 | BH141: =SUM(BF$3:BF141) -> 0 | BK141: 0 | BO141: =SUM(BM$3:BM141) -> 0 | BR141: 0 | BV141: =SUM(BT$3:BT141) -> 0 | BY141: 0 | CA141: 1218 | CB141: 0.149986 | CC141: =SUM(CA$3:CA141) -> 247428 | CD141: 0.7797600477 | CE141: 0.003838481247 | CF141: 0.0009806666667
AM142: =SUM(AK$3:AK142) -> 0 | AP142: 0 | AT142: =SUM(AR$3:AR142) -> 0 | AW142: 0 | BA142: =SUM(AY$3:AY142) -> 0 | BD142: 0 | BH142: =SUM(BF$3:BF142) -> 0 | BK142: 0 | BO142: =SUM(BM$3:BM142) -> 0 | BR142: 0 | BV142: =SUM(BT$3:BT142) -> 0 | BY142: 0 | CA142: 1154 | CB142: 0.1509666667 | CC142: =SUM(CA$3:CA142) -> 248582 | CD142: 0.7833968353 | CE142: 0.003636787651 | CF142: 0.0008592592593
AM143: =SUM(AK$3:AK143) -> 0 | AP143: 0 | AT143: =SUM(AR$3:AR143) -> 0 | AW143: 0 | BA143: =SUM(AY$3:AY143) -> 0 | BD143: 0 | BH143: =SUM(BF$3:BF143) -> 0 | BK143: 0 | BO143: =SUM(BM$3:BM143) -> 0 | BR143: 0 | BV143: =SUM(BT$3:BT143) -> 0 | BY143: 0 | CA143: 2241 | CB143: 0.1518259259 | CC143: =SUM(CA$3:CA143) -> 250823 | CD143: 0.7904592626 | CE143: 0.007062427319 | CF143: 8.368945869e-05
AM144: =SUM(AK$3:AK144) -> 0 | AP144: 0 | AT144: =SUM(AR$3:AR144) -> 0 | AW144: 0 | BA144: =SUM(AY$3:AY144) -> 0 | BD144: 0 | BH144: =SUM(BF$3:BF144) -> 0 | BK144: 0 | BO144: =SUM(BM$3:BM144) -> 0 | BR144: 0 | BV144: =SUM(BT$3:BT144) -> 0 | BY144: 0 | CA144: 1160 | CB144: 0.1519096154 | CC144: =SUM(CA$3:CA144) -> 251983 | CD144: 0.794114959 | CE144: 0.003655696426 | CF144: 0.0009073657475
AM145: =SUM(AK$3:AK145) -> 0 | AP145: 0 | AT145: =SUM(AR$3:AR145) -> 0 | AW145: 0 | BA145: =SUM(AY$3:AY145) -> 0 | BD145: 0 | BH145: =SUM(BF$3:BF145) -> 0 | BK145: 0 | BO145: =SUM(BM$3:BM145) -> 0 | BR145: 0 | BV145: =SUM(BT$3:BT145) -> 0 | BY145: 0 | CA145: 1086 | CB145: 0.1528169811 | CC145: =SUM(CA$3:CA145) -> 253069 | CD145: 0.7975374473 | CE145: 0.003422488206 | CF145: 0.0008737596087
AM146: =SUM(AK$3:AK146) -> 0 | AP146: 0 | AT146: =SUM(AR$3:AR146) -> 0 | AW146: 0 | BA146: =SUM(AY$3:AY146) -> 0 | BD146: 0 | BH146: =SUM(BF$3:BF146) -> 0 | BK146: 0 | BO146: =SUM(BM$3:BM146) -> 0 | BR146: 0 | BV146: =SUM(BT$3:BT146) -> 0 | BY146: 0 | CA146: 1032 | CB146: 0.1536907407 | CC146: =SUM(CA$3:CA146) -> 254101 | CD146: 0.8007897565 | CE146: 0.003252309234 | CF146: 0.000841986532
AM147: =SUM(AK$3:AK147) -> 0 | AP147: 0 | AT147: =SUM(AR$3:AR147) -> 0 | AW147: 0 | BA147: =SUM(AY$3:AY147) -> 0 | BD147: 0 | BH147: =SUM(BF$3:BF147) -> 0 | BK147: 0 | BO147: =SUM(BM$3:BM147) -> 0 | BR147: 0 | BV147: =SUM(BT$3:BT147) -> 0 | BY147: 0 | CA147: 1009 | CB147: 0.1545327273 | CC147: =SUM(CA$3:CA147) -> 255110 | CD147: 0.8039695821 | CE147: 0.003179825598 | CF147: 1.727272727e-05
AM148: =SUM(AK$3:AK148) -> 0 | AP148: 0 | AT148: =SUM(AR$3:AR148) -> 0 | AW148: 0 | BA148: =SUM(AY$3:AY148) -> 0 | BD148: 0 | BH148: =SUM(BF$3:BF148) -> 0 | BK148: 0 | BO148: =SUM(BM$3:BM148) -> 0 | BR148: 0 | BV148: =SUM(BT$3:BT148) -> 0 | BY148: 0 | CA148: 2064 | CB148: 0.15455 | CC148: =SUM(CA$3:CA148) -> 257174 | CD148: 0.8104742006 | CE148: 0.006504618468 | CF148: 0.0007946428571
AM149: =SUM(AK$3:AK149) -> 0 | AP149: 0 | AT149: =SUM(AR$3:AR149) -> 0 | AW149: 0 | BA149: =SUM(AY$3:AY149) -> 0 | BD149: 0 | BH149: =SUM(BF$3:BF149) -> 0 | BK149: 0 | BO149: =SUM(BM$3:BM149) -> 0 | BR149: 0 | BV149: =SUM(BT$3:BT149) -> 0 | BY149: 0 | CA149: 1062 | CB149: 0.1553446429 | CC149: =SUM(CA$3:CA149) -> 258236 | CD149: 0.8138210537 | CE149: 0.003346853107 | CF149: 0.0007834273183
AM150: =SUM(AK$3:AK150) -> 0 | AP150: 0 | AT150: =SUM(AR$3:AR150) -> 0 | AW150: 0 | BA150: =SUM(AY$3:AY150) -> 0 | BD150: 0 | BH150: =SUM(BF$3:BF150) -> 0 | BK150: 0 | BO150: =SUM(BM$3:BM150) -> 0 | BR150: 0 | BV150: =SUM(BT$3:BT150) -> 0 | BY150: 0 | CA150: 971 | CB150: 0.1561280702 | CC150: =SUM(CA$3:CA150) -> 259207 | CD150: 0.8168811237 | CE150: 0.003060070025 | CF150: 0.0007564125832
AM151: =SUM(AK$3:AK151) -> 0 | AP151: 0 | AT151: =SUM(AR$3:AR151) -> 0 | AW151: 0 | BA151: =SUM(AY$3:AY151) -> 0 | BD151: 0 | BH151: =SUM(BF$3:BF151) -> 0 | BK151: 0 | BO151: =SUM(BM$3:BM151) -> 0 | BR151: 0 | BV151: =SUM(BT$3:BT151) -> 0 | BY151: 0 | CA151: 918 | CB151: 0.1568844828 | CC151: =SUM(CA$3:CA151) -> 260125 | CD151: 0.8197741662 | CE151: 0.002893042516 | CF151: 0.0002339299398
AM152: =SUM(AK$3:AK152) -> 0 | AP152: 0 | AT152: =SUM(AR$3:AR152) -> 0 | AW152: 0 | BA152: =SUM(AY$3:AY152) -> 0 | BD152: 0 | BH152: =SUM(BF$3:BF152) -> 0 | BK152: 0 | BO152: =SUM(BM$3:BM152) -> 0 | BR152: 0 | BV152: =SUM(BT$3:BT152) -> 0 | BY152: 0 | CA152: 1909 | CB152: 0.1571184127 | CC152: =SUM(CA$3:CA152) -> 262034 | CD152: 0.825790308 | CE152: 0.006016141791 | CF152: 0.0004968415389
AM153: =SUM(AK$3:AK153) -> 0 | AP153: 0 | AT153: =SUM(AR$3:AR153) -> 0 | AW153: 0 | BA153: =SUM(AY$3:AY153) -> 0 | BD153: 0 | BH153: =SUM(BF$3:BF153) -> 0 | BK153: 0 | BO153: =SUM(BM$3:BM153) -> 0 | BR153: 0 | BV153: =SUM(BT$3:BT153) -> 0 | BY153: 0 | CA153: 867 | CB153: 0.1576152542 | CC153: =SUM(CA$3:CA153) -> 262901 | CD153: 0.8285226259 | CE153: 0.002732317932 | CF153: 0.0007064124294
AM154: =SUM(AK$3:AK154) -> 0 | AP154: 0 | AT154: =SUM(AR$3:AR154) -> 0 | AW154: 0 | BA154: =SUM(AY$3:AY154) -> 0 | BD154: 0 | BH154: =SUM(BF$3:BF154) -> 0 | BK154: 0 | BO154: =SUM(BM$3:BM154) -> 0 | BR154: 0 | BV154: =SUM(BT$3:BT154) -> 0 | BY154: 0 | CA154: 904 | CB154: 0.1583216667 | CC154: =SUM(CA$3:CA154) -> 263805 | CD154: 0.831371548 | CE154: 0.002848922042 | CF154: 0.0006832513661
AM155: =SUM(AK$3:AK155) -> 0 | AP155: 0 | AT155: =SUM(AR$3:AR155) -> 0 | AW155: 0 | BA155: =SUM(AY$3:AY155) -> 0 | BD155: 0 | BH155: =SUM(BF$3:BF155) -> 0 | BK155: 0 | BO155: =SUM(BM$3:BM155) -> 0 | BR155: 0 | BV155: =SUM(BT$3:BT155) -> 0 | BY155: 0 | CA155: 888 | CB155: 0.159004918 | CC155: =SUM(CA$3:CA155) -> 264693 | CD155: 0.8341700466 | CE155: 0.002798498643 | CF155: 0.0005392177697
AM156: =SUM(AK$3:AK156) -> 0 | AP156: 0 | AT156: =SUM(AR$3:AR156) -> 0 | AW156: 0 | BA156: =SUM(AY$3:AY156) -> 0 | BD156: 0 | BH156: =SUM(BF$3:BF156) -> 0 | BK156: 0 | BO156: =SUM(BM$3:BM156) -> 0 | BR156: 0 | BV156: =SUM(BT$3:BT156) -> 0 | BY156: 0 | CA156: 1854 | CB156: 0.1595441358 | CC156: =SUM(CA$3:CA156) -> 266547 | CD156: 0.840012858 | CE156: 0.005842811357 | CF156: 0.0001219932298
AM157: =SUM(AK$3:AK157) -> 0 | AP157: 0 | AT157: =SUM(AR$3:AR157) -> 0 | AW157: 0 | BA157: =SUM(AY$3:AY157) -> 0 | BD157: 0 | BH157: =SUM(BF$3:BF157) -> 0 | BK157: 0 | BO157: =SUM(BM$3:BM157) -> 0 | BR157: 0 | BV157: =SUM(BT$3:BT157) -> 0 | BY157: 0 | CA157: 829 | CB157: 0.159666129 | CC157: =SUM(CA$3:CA157) -> 267376 | CD157: 0.8426254203 | CE157: 0.00261256236 | CF157: 0.0006402201741
AM158: =SUM(AK$3:AK158) -> 0 | AP158: 0 | AT158: =SUM(AR$3:AR158) -> 0 | AW158: 0 | BA158: =SUM(AY$3:AY158) -> 0 | BD158: 0 | BH158: =SUM(BF$3:BF158) -> 0 | BK158: 0 | BO158: =SUM(BM$3:BM158) -> 0 | BR158: 0 | BV158: =SUM(BT$3:BT158) -> 0 | BY158: 0 | CA158: 792 | CB158: 0.1603063492 | CC158: =SUM(CA$3:CA158) -> 268168 | CD158: 0.8451213786 | CE158: 0.002495958249 | CF158: 0.0006202132937
AM159: =SUM(AK$3:AK159) -> 0 | AP159: 0 | AT159: =SUM(AR$3:AR159) -> 0 | AW159: 0 | BA159: =SUM(AY$3:AY159) -> 0 | BD159: 0 | BH159: =SUM(BF$3:BF159) -> 0 | BK159: 0 | BO159: =SUM(BM$3:BM159) -> 0 | BR159: 0 | BV159: =SUM(BT$3:BT159) -> 0 | BY159: 0 | CA159: 782 | CB159: 0.1609265625 | CC159: =SUM(CA$3:CA159) -> 268950 | CD159: 0.8475858222 | CE159: 0.002464443625 | CF159: 0.0006011298077
AM160: =SUM(AK$3:AK160) -> 0 | AP160: 0 | AT160: =SUM(AR$3:AR160) -> 0 | AW160: 0 | BA160: =SUM(AY$3:AY160) -> 0 | BD160: 0 | BH160: =SUM(BF$3:BF160) -> 0 | BK160: 0 | BO160: =SUM(BM$3:BM160) -> 0 | BR160: 0 | BV160: =SUM(BT$3:BT160) -> 0 | BY160: 0 | CA160: 781 | CB160: 0.1615276923 | CC160: =SUM(CA$3:CA160) -> 269731 | CD160: 0.8500471144 | CE160: 0.002461292163 | CF160: 0.000311046431
AM161: =SUM(AK$3:AK161) -> 0 | AP161: 0 | AT161: =SUM(AR$3:AR161) -> 0 | AW161: 0 | BA161: =SUM(AY$3:AY161) -> 0 | BD161: 0 | BH161: =SUM(BF$3:BF161) -> 0 | BK161: 0 | BO161: =SUM(BM$3:BM161) -> 0 | BR161: 0 | BV161: =SUM(BT$3:BT161) -> 0 | BY161: 0 | CA161: 1707 | CB161: 0.1618387387 | CC161: =SUM(CA$3:CA161) -> 271438 | CD161: 0.8554266607 | CE161: 0.005379546378 | CF161: 0.0002718673219
AM162: =SUM(AK$3:AK162) -> 0 | AP162: 0 | AT162: =SUM(AR$3:AR162) -> 0 | AW162: 0 | BA162: =SUM(AY$3:AY162) -> 0 | BD162: 0 | BH162: =SUM(BF$3:BF162) -> 0 | BK162: 0 | BO162: =SUM(BM$3:BM162) -> 0 | BR162: 0 | BV162: =SUM(BT$3:BT162) -> 0 | BY162: 0 | CA162: 738 | CB162: 0.1621106061 | CC162: =SUM(CA$3:CA162) -> 272176 | CD162: 0.85775244 | CE162: 0.002325779278 | CF162: 0.0005655133424
AM163: =SUM(AK$3:AK163) -> 0 | AP163: 0 | AT163: =SUM(AR$3:AR163) -> 0 | AW163: 0 | BA163: =SUM(AY$3:AY163) -> 0 | BD163: 0 | BH163: =SUM(BF$3:BF163) -> 0 | BK163: 0 | BO163: =SUM(BM$3:BM163) -> 0 | BR163: 0 | BV163: =SUM(BT$3:BT163) -> 0 | BY163: 0 | CA163: 704 | CB163: 0.1626761194 | CC163: =SUM(CA$3:CA163) -> 272880 | CD163: 0.8599710696 | CE163: 0.002218629555 | CF163: 0.000548880597
AM164: =SUM(AK$3:AK164) -> 0 | AP164: 0 | AT164: =SUM(AR$3:AR164) -> 0 | AW164: 0 | BA164: =SUM(AY$3:AY164) -> 0 | BD164: 0 | BH164: =SUM(BF$3:BF164) -> 0 | BK164: 0 | BO164: =SUM(BM$3:BM164) -> 0 | BR164: 0 | BV164: =SUM(BT$3:BT164) -> 0 | BY164: 0 | CA164: 640 | CB164: 0.163225 | CC164: =SUM(CA$3:CA164) -> 273520 | CD164: 0.8619880055 | CE164: 0.002016935959 | CF164: 0.0005329710145
AM165: =SUM(AK$3:AK165) -> 0 | AP165: 0 | AT165: =SUM(AR$3:AR165) -> 0 | AW165: 0 | BA165: =SUM(AY$3:AY165) -> 0 | BD165: 0 | BH165: =SUM(BF$3:BF165) -> 0 | BK165: 0 | BO165: =SUM(BM$3:BM165) -> 0 | BR165: 0 | BV165: =SUM(BT$3:BT165) -> 0 | BY165: 0 | CA165: 629 | CB165: 0.163757971 | CC165: =SUM(CA$3:CA165) -> 274149 | CD165: 0.8639702754 | CE165: 0.001982269872 | CF165: 0.0002546020849
AM166: =SUM(AK$3:AK166) -> 0 | AP166: 0 | AT166: =SUM(AR$3:AR166) -> 0 | AW166: 0 | BA166: =SUM(AY$3:AY166) -> 0 | BD166: 0 | BH166: =SUM(BF$3:BF166) -> 0 | BK166: 0 | BO166: =SUM(BM$3:BM166) -> 0 | BR166: 0 | BV166: =SUM(BT$3:BT166) -> 0 | BY166: 0 | CA166: 1560 | CB166: 0.1640125731 | CC166: =SUM(CA$3:CA166) -> 275709 | CD166: 0.8688865568 | CE166: 0.0049162814 | CF166: 0.0002631411863
AM167: =SUM(AK$3:AK167) -> 0 | AP167: 0 | AT167: =SUM(AR$3:AR167) -> 0 | AW167: 0 | BA167: =SUM(AY$3:AY167) -> 0 | BD167: 0 | BH167: =SUM(BF$3:BF167) -> 0 | BK167: 0 | BO167: =SUM(BM$3:BM167) -> 0 | BR167: 0 | BV167: =SUM(BT$3:BT167) -> 0 | BY167: 0 | CA167: 632 | CB167: 0.1642757143 | CC167: =SUM(CA$3:CA167) -> 276341 | CD167: 0.8708782811 | CE167: 0.00199172426 | CF167: 0.0005031589537
AM168: =SUM(AK$3:AK168) -> 0 | AP168: 0 | AT168: =SUM(AR$3:AR168) -> 0 | AW168: 0 | BA168: =SUM(AY$3:AY168) -> 0 | BD168: 0 | BH168: =SUM(BF$3:BF168) -> 0 | BK168: 0 | BO168: =SUM(BM$3:BM168) -> 0 | BR168: 0 | BV168: =SUM(BT$3:BT168) -> 0 | BY168: 0 | CA168: 605 | CB168: 0.1647788732 | CC168: =SUM(CA$3:CA168) -> 276946 | CD168: 0.8727849158 | CE168: 0.001906634774 | CF168: 0.0004891823161
AM169: =SUM(AK$3:AK169) -> 0 | AP169: 0 | AT169: =SUM(AR$3:AR169) -> 0 | AW169: 0 | BA169: =SUM(AY$3:AY169) -> 0 | BD169: 0 | BH169: =SUM(BF$3:BF169) -> 0 | BK169: 0 | BO169: =SUM(BM$3:BM169) -> 0 | BR169: 0 | BV169: =SUM(BT$3:BT169) -> 0 | BY169: 0 | CA169: 581 | CB169: 0.1652680556 | CC169: =SUM(CA$3:CA169) -> 277527 | CD169: 0.8746159155 | CE169: 0.001830999675 | CF169: 0.0004757800609
AM170: =SUM(AK$3:AK170) -> 0 | AP170: 0 | AT170: =SUM(AR$3:AR170) -> 0 | AW170: 0 | BA170: =SUM(AY$3:AY170) -> 0 | BD170: 0 | BH170: =SUM(BF$3:BF170) -> 0 | BK170: 0 | BO170: =SUM(BM$3:BM170) -> 0 | BR170: 0 | BV170: =SUM(BT$3:BT170) -> 0 | BY170: 0 | CA170: 531 | CB170: 0.1657438356 | CC170: =SUM(CA$3:CA170) -> 278058 | CD170: 0.8762893421 | CE170: 0.001673426554 | CF170: 0.0003310931585
AM171: =SUM(AK$3:AK171) -> 0 | AP171: 0 | AT171: =SUM(AR$3:AR171) -> 0 | AW171: 0 | BA171: =SUM(AY$3:AY171) -> 0 | BD171: 0 | BH171: =SUM(BF$3:BF171) -> 0 | BK171: 0 | BO171: =SUM(BM$3:BM171) -> 0 | BR171: 0 | BV171: =SUM(BT$3:BT171) -> 0 | BY171: 0 | CA171: 1506 | CB171: 0.1660749288 | CC171: =SUM(CA$3:CA171) -> 279564 | CD171: 0.8810354445 | CE171: 0.004746102429 | CF171: 0.0001318279818
AM172: =SUM(AK$3:AK172) -> 0 | AP172: 0 | AT172: =SUM(AR$3:AR172) -> 0 | AW172: 0 | BA172: =SUM(AY$3:AY172) -> 0 | BD172: 0 | BH172: =SUM(BF$3:BF172) -> 0 | BK172: 0 | BO172: =SUM(BM$3:BM172) -> 0 | BR172: 0 | BV172: =SUM(BT$3:BT172) -> 0 | BY172: 0 | CA172: 527 | CB172: 0.1662067568 | CC172: =SUM(CA$3:CA172) -> 280091 | CD172: 0.8826962652 | CE172: 0.001660820704 | CF172: 0.0004505765766
AM173: =SUM(AK$3:AK173) -> 0 | AP173: 0 | AT173: =SUM(AR$3:AR173) -> 0 | AW173: 0 | BA173: =SUM(AY$3:AY173) -> 0 | BD173: 0 | BH173: =SUM(BF$3:BF173) -> 0 | BK173: 0 | BO173: =SUM(BM$3:BM173) -> 0 | BR173: 0 | BV173: =SUM(BT$3:BT173) -> 0 | BY173: 0 | CA173: 508 | CB173: 0.1666573333 | CC173: =SUM(CA$3:CA173) -> 280599 | CD173: 0.8842972081 | CE173: 0.001600942918 | CF173: 0.0004387192982
AM174: =SUM(AK$3:AK174) -> 0 | AP174: 0 | AT174: =SUM(AR$3:AR174) -> 0 | AW174: 0 | BA174: =SUM(AY$3:AY174) -> 0 | BD174: 0 | BH174: =SUM(BF$3:BF174) -> 0 | BK174: 0 | BO174: =SUM(BM$3:BM174) -> 0 | BR174: 0 | BV174: =SUM(BT$3:BT174) -> 0 | BY174: 0 | CA174: 506 | CB174: 0.1670960526 | CC174: =SUM(CA$3:CA174) -> 281105 | CD174: 0.8858918481 | CE174: 0.001594639993 | CF174: 0.0004273239918
AM175: =SUM(AK$3:AK175) -> 0 | AP175: 0 | AT175: =SUM(AR$3:AR175) -> 0 | AW175: 0 | BA175: =SUM(AY$3:AY175) -> 0 | BD175: 0 | BH175: =SUM(BF$3:BF175) -> 0 | BK175: 0 | BO175: =SUM(BM$3:BM175) -> 0 | BR175: 0 | BV175: =SUM(BT$3:BT175) -> 0 | BY175: 0 | CA175: 493 | CB175: 0.1675233766 | CC175: =SUM(CA$3:CA175) -> 281598 | CD175: 0.8874455191 | CE175: 0.001553670981 | CF175: 0.0004163669664
AM176: =SUM(AK$3:AK176) -> 0 | AP176: 0 | AT176: =SUM(AR$3:AR176) -> 0 | AW176: 0 | BA176: =SUM(AY$3:AY176) -> 0 | BD176: 0 | BH176: =SUM(BF$3:BF176) -> 0 | BK176: 0 | BO176: =SUM(BM$3:BM176) -> 0 | BR176: 0 | BV176: =SUM(BT$3:BT176) -> 0 | BY176: 0 | CA176: 463 | CB176: 0.1679397436 | CC176: =SUM(CA$3:CA176) -> 282061 | CD176: 0.8889046462 | CE176: 0.001459127108 | CF176: 9.442307692e-05
AM177: =SUM(AK$3:AK177) -> 0 | AP177: 0 | AT177: =SUM(AR$3:AR177) -> 0 | AW177: 0 | BA177: =SUM(AY$3:AY177) -> 0 | BD177: 0 | BH177: =SUM(BF$3:BF177) -> 0 | BK177: 0 | BO177: =SUM(BM$3:BM177) -> 0 | BR177: 0 | BV177: =SUM(BT$3:BT177) -> 0 | BY177: 0 | CA177: 1364 | CB177: 0.1680341667 | CC177: =SUM(CA$3:CA177) -> 283425 | CD177: 0.893203241 | CE177: 0.004298594763 | CF177: 0.0003114029536
AM178: =SUM(AK$3:AK178) -> 0 | AP178: 0 | AT178: =SUM(AR$3:AR178) -> 0 | AW178: 0 | BA178: =SUM(AY$3:AY178) -> 0 | BD178: 0 | BH178: =SUM(BF$3:BF178) -> 0 | BK178: 0 | BO178: =SUM(BM$3:BM178) -> 0 | BR178: 0 | BV178: =SUM(BT$3:BT178) -> 0 | BY178: 0 | CA178: 461 | CB178: 0.1683455696 | CC178: =SUM(CA$3:CA178) -> 283886 | CD178: 0.8946560651 | CE178: 0.001452824183 | CF178: 0.0003956803797
AM179: =SUM(AK$3:AK179) -> 0 | AP179: 0 | AT179: =SUM(AR$3:AR179) -> 0 | AW179: 0 | BA179: =SUM(AY$3:AY179) -> 0 | BD179: 0 | BH179: =SUM(BF$3:BF179) -> 0 | BK179: 0 | BO179: =SUM(BM$3:BM179) -> 0 | BR179: 0 | BV179: =SUM(BT$3:BT179) -> 0 | BY179: 0 | CA179: 385 | CB179: 0.16874125 | CC179: =SUM(CA$3:CA179) -> 284271 | CD179: 0.8958693782 | CE179: 0.001213313038 | CF179: 0.0003859104938
AM180: =SUM(AK$3:AK180) -> 0 | AP180: 0 | AT180: =SUM(AR$3:AR180) -> 0 | AW180: 0 | BA180: =SUM(AY$3:AY180) -> 0 | BD180: 0 | BH180: =SUM(BF$3:BF180) -> 0 | BK180: 0 | BO180: =SUM(BM$3:BM180) -> 0 | BR180: 0 | BV180: =SUM(BT$3:BT180) -> 0 | BY180: 0 | CA180: 424 | CB180: 0.1691271605 | CC180: =SUM(CA$3:CA180) -> 284695 | CD180: 0.8972055983 | CE180: 0.001336220073 | CF180: 0.0003764980428
AM181: =SUM(AK$3:AK181) -> 0 | AP181: 0 | AT181: =SUM(AR$3:AR181) -> 0 | AW181: 0 | BA181: =SUM(AY$3:AY181) -> 0 | BD181: 0 | BH181: =SUM(BF$3:BF181) -> 0 | BK181: 0 | BO181: =SUM(BM$3:BM181) -> 0 | BR181: 0 | BV181: =SUM(BT$3:BT181) -> 0 | BY181: 0 | CA181: 388 | CB181: 0.1695036585 | CC181: =SUM(CA$3:CA181) -> 285083 | CD181: 0.8984283657 | CE181: 0.001222767425 | CF181: 0.0003674258008
AM182: =SUM(AK$3:AK182) -> 0 | AP182: 0 | AT182: =SUM(AR$3:AR182) -> 0 | AW182: 0 | BA182: =SUM(AY$3:AY182) -> 0 | BD182: 0 | BH182: =SUM(BF$3:BF182) -> 0 | BK182: 0 | BO182: =SUM(BM$3:BM182) -> 0 | BR182: 0 | BV182: =SUM(BT$3:BT182) -> 0 | BY182: 0 | CA182: 374 | CB182: 0.1698710843 | CC182: =SUM(CA$3:CA182) -> 285457 | CD182: 0.8996070126 | CE182: 0.001178646951 | CF182: 2.674764097e-05
AM183: =SUM(AK$3:AK183) -> 0 | AP183: 0 | AT183: =SUM(AR$3:AR183) -> 0 | AW183: 0 | BA183: =SUM(AY$3:AY183) -> 0 | BD183: 0 | BH183: =SUM(BF$3:BF183) -> 0 | BK183: 0 | BO183: =SUM(BM$3:BM183) -> 0 | BR183: 0 | BV183: =SUM(BT$3:BT183) -> 0 | BY183: 0 | CA183: 1338 | CB183: 0.169897832 | CC183: =SUM(CA$3:CA183) -> 286795 | CD183: 0.9038236694 | CE183: 0.00421665674 | CF183: 0.0003319299264
AM184: =SUM(AK$3:AK184) -> 0 | AP184: 0 | AT184: =SUM(AR$3:AR184) -> 0 | AW184: 0 | BA184: =SUM(AY$3:AY184) -> 0 | BD184: 0 | BH184: =SUM(BF$3:BF184) -> 0 | BK184: 0 | BO184: =SUM(BM$3:BM184) -> 0 | BR184: 0 | BV184: =SUM(BT$3:BT184) -> 0 | BY184: 0 | CA184: 359 | CB184: 0.1702297619 | CC184: =SUM(CA$3:CA184) -> 287154 | CD184: 0.9049550444 | CE184: 0.001131375015 | CF184: 0.0003502380952
AM185: =SUM(AK$3:AK185) -> 0 | AP185: 0 | AT185: =SUM(AR$3:AR185) -> 0 | AW185: 0 | BA185: =SUM(AY$3:AY185) -> 0 | BD185: 0 | BH185: =SUM(BF$3:BF185) -> 0 | BK185: 0 | BO185: =SUM(BM$3:BM185) -> 0 | BR185: 0 | BV185: =SUM(BT$3:BT185) -> 0 | BY185: 0 | CA185: 342 | CB185: 0.17058 | CC185: =SUM(CA$3:CA185) -> 287496 | CD185: 0.9060328445 | CE185: 0.001077800153 | CF185: 0.0003420930233
AM186: =SUM(AK$3:AK186) -> 0 | AP186: 0 | AT186: =SUM(AR$3:AR186) -> 0 | AW186: 0 | BA186: =SUM(AY$3:AY186) -> 0 | BD186: 0 | BH186: =SUM(BF$3:BF186) -> 0 | BK186: 0 | BO186: =SUM(BM$3:BM186) -> 0 | BR186: 0 | BV186: =SUM(BT$3:BT186) -> 0 | BY186: 0 | CA186: 381 | CB186: 0.170922093 | CC186: =SUM(CA$3:CA186) -> 287877 | CD186: 0.9072335517 | CE186: 0.001200707188 | CF186: 0.0003342288158
AM187: =SUM(AK$3:AK187) -> 0 | AP187: 0 | AT187: =SUM(AR$3:AR187) -> 0 | AW187: 0 | BA187: =SUM(AY$3:AY187) -> 0 | BD187: 0 | BH187: =SUM(BF$3:BF187) -> 0 | BK187: 0 | BO187: =SUM(BM$3:BM187) -> 0 | BR187: 0 | BV187: =SUM(BT$3:BT187) -> 0 | BY187: 0 | CA187: 336 | CB187: 0.1712563218 | CC187: =SUM(CA$3:CA187) -> 288213 | CD187: 0.9082924431 | CE187: 0.001058891379 | CF187: 0.0003266327064
AM188: =SUM(AK$3:AK188) -> 0 | AP188: 0 | AT188: =SUM(AR$3:AR188) -> 0 | AW188: 0 | BA188: =SUM(AY$3:AY188) -> 0 | BD188: 0 | BH188: =SUM(BF$3:BF188) -> 0 | BK188: 0 | BO188: =SUM(BM$3:BM188) -> 0 | BR188: 0 | BV188: =SUM(BT$3:BT188) -> 0 | BY188: 0 | CA188: 287 | CB188: 0.1715829545 | CC188: =SUM(CA$3:CA188) -> 288500 | CD188: 0.9091969128 | CE188: 0.0009044697192 | CF188: 8.97967773e-05
AM189: =SUM(AK$3:AK189) -> 0 | AP189: 0 | AT189: =SUM(AR$3:AR189) -> 0 | AW189: 0 | BA189: =SUM(AY$3:AY189) -> 0 | BD189: 0 | BH189: =SUM(BF$3:BF189) -> 0 | BK189: 0 | BO189: =SUM(BM$3:BM189) -> 0 | BR189: 0 | BV189: =SUM(BT$3:BT189) -> 0 | BY189: 0 | CA189: 1267 | CB189: 0.1716727513 | CC189: =SUM(CA$3:CA189) -> 289767 | CD189: 0.9131898157 | CE189: 0.003992902907 | CF189: 0.0002294958683
AM190: =SUM(AK$3:AK190) -> 0 | AP190: 0 | AT190: =SUM(AR$3:AR190) -> 0 | AW190: 0 | BA190: =SUM(AY$3:AY190) -> 0 | BD190: 0 | BH190: =SUM(BF$3:BF190) -> 0 | BK190: 0 | BO190: =SUM(BM$3:BM190) -> 0 | BR190: 0 | BV190: =SUM(BT$3:BT190) -> 0 | BY190: 0 | CA190: 305 | CB190: 0.1719022472 | CC190: =SUM(CA$3:CA190) -> 290072 | CD190: 0.9141510118 | CE190: 0.000961196043 | CF190: 0.0003121972534
AM191: =SUM(AK$3:AK191) -> 0 | AP191: 0 | AT191: =SUM(AR$3:AR191) -> 0 | AW191: 0 | BA191: =SUM(AY$3:AY191) -> 0 | BD191: 0 | BH191: =SUM(BF$3:BF191) -> 0 | BK191: 0 | BO191: =SUM(BM$3:BM191) -> 0 | BR191: 0 | BV191: =SUM(BT$3:BT191) -> 0 | BY191: 0 | CA191: 313 | CB191: 0.1722144444 | CC191: =SUM(CA$3:CA191) -> 290385 | CD191: 0.9151374195 | CE191: 0.0009864077425 | CF191: 0.0003053357753
AM192: =SUM(AK$3:AK192) -> 0 | AP192: 0 | AT192: =SUM(AR$3:AR192) -> 0 | AW192: 0 | BA192: =SUM(AY$3:AY192) -> 0 | BD192: 0 | BH192: =SUM(BF$3:BF192) -> 0 | BK192: 0 | BO192: =SUM(BM$3:BM192) -> 0 | BR192: 0 | BV192: =SUM(BT$3:BT192) -> 0 | BY192: 0 | CA192: 284 | CB192: 0.1725197802 | CC192: =SUM(CA$3:CA192) -> 290669 | CD192: 0.9160324349 | CE192: 0.0008950153319 | CF192: 0.0002986980411
AM193: =SUM(AK$3:AK193) -> 0 | AP193: 0 | AT193: =SUM(AR$3:AR193) -> 0 | AW193: 0 | BA193: =SUM(AY$3:AY193) -> 0 | BD193: 0 | BH193: =SUM(BF$3:BF193) -> 0 | BK193: 0 | BO193: =SUM(BM$3:BM193) -> 0 | BR193: 0 | BV193: =SUM(BT$3:BT193) -> 0 | BY193: 0 | CA193: 263 | CB193: 0.1728184783 | CC193: =SUM(CA$3:CA193) -> 290932 | CD193: 0.9168612695 | CE193: 0.0008288346207 | CF193: 0.0002922744273
AM194: =SUM(AK$3:AK194) -> 0 | AP194: 0 | AT194: =SUM(AR$3:AR194) -> 0 | AW194: 0 | BA194: =SUM(AY$3:AY194) -> 0 | BD194: 0 | BH194: =SUM(BF$3:BF194) -> 0 | BK194: 0 | BO194: =SUM(BM$3:BM194) -> 0 | BR194: 0 | BV194: =SUM(BT$3:BT194) -> 0 | BY194: 0 | CA194: 256 | CB194: 0.1731107527 | CC194: =SUM(CA$3:CA194) -> 291188 | CD194: 0.9176680439 | CE194: 0.0008067743837 | CF194: 0.0002543635909
AM195: =SUM(AK$3:AK195) -> 0 | AP195: 0 | AT195: =SUM(AR$3:AR195) -> 0 | AW195: 0 | BA195: =SUM(AY$3:AY195) -> 0 | BD195: 0 | BH195: =SUM(BF$3:BF195) -> 0 | BK195: 0 | BO195: =SUM(BM$3:BM195) -> 0 | BR195: 0 | BV195: =SUM(BT$3:BT195) -> 0 | BY195: 0 | CA195: 1139 | CB195: 0.1733651163 | CC195: =SUM(CA$3:CA195) -> 292327 | CD195: 0.9212575596 | CE195: 0.003589515715 | CF195: 3.169223157e-05
AM196: =SUM(AK$3:AK196) -> 0 | AN196: =AM196/AM$486 ->  | AO196: =AN196-AN195 ->  | AP196: =AL197-AL196 -> 0 | AT196: =SUM(AR$3:AR196) -> 0 | AU196: =AT196/AT$486 ->  | AV196: =AU196-AU195 ->  | AW196: =AS197-AS196 -> 0 | BA196: =SUM(AY$3:AY196) -> 0 | BB196: =BA196/BA$486 ->  | BC196: =BB196-BB195 ->  | BD196: =AZ197-AZ196 -> 0 | BH196: =SUM(BF$3:BF196) -> 0 | BI196: =BH196/BH$486 ->  | BJ196: =BI196-BI195 ->  | BK196: =BG197-BG196 -> 0 | BO196: =SUM(BM$3:BM196) -> 0 | BP196: =BO196/BO$486 ->  | BQ196: =BP196-BP195 ->  | BR196: =BN197-BN196 -> 0 | BV196: =SUM(BT$3:BT196) -> 0 | BW196: =BV196/BV$486 ->  | BX196: =BW196-BW195 ->  | BY196: =BU197-BU196 -> 0 | CA196: 281 | CB196: 0.1733968085 | CC196: =SUM(CA$3:CA196) -> 292608 | CD196: =CC196/CC$486 -> 0.9221431205 | CE196: =CD196-CD195 -> 0.0008855609446 | CF196: =CB197-CB196 -> 0.0002800335946
AM197: =SUM(AK$3:AK197) -> 0 | AP197: 0 | AT197: =SUM(AR$3:AR197) -> 0 | AW197: 0 | BA197: =SUM(AY$3:AY197) -> 0 | BD197: 0 | BH197: =SUM(BF$3:BF197) -> 0 | BK197: 0 | BO197: =SUM(BM$3:BM197) -> 0 | BR197: 0 | BV197: =SUM(BT$3:BT197) -> 0 | BY197: 0 | CA197: 249 | CB197: 0.1736768421 | CC197: =SUM(CA$3:CA197) -> 292857 | CD197: 0.9229278347 | CE197: 0.0007847141466 | CF197: 0.0002741995614
AM198: =SUM(AK$3:AK198) -> 0 | AP198: 0 | AT198: =SUM(AR$3:AR198) -> 0 | AW198: 0 | BA198: =SUM(AY$3:AY198) -> 0 | BD198: 0 | BH198: =SUM(BF$3:BF198) -> 0 | BK198: 0 | BO198: =SUM(BM$3:BM198) -> 0 | BR198: 0 | BV198: =SUM(BT$3:BT198) -> 0 | BY198: 0 | CA198: 256 | CB198: 0.1739510417 | CC198: =SUM(CA$3:CA198) -> 293113 | CD198: 0.923734609 | CE198: 0.0008067743837 | CF198: 0.0002685459622
AM199: =SUM(AK$3:AK199) -> 0 | AP199: 0 | AT199: =SUM(AR$3:AR199) -> 0 | AW199: 0 | BA199: =SUM(AY$3:AY199) -> 0 | BD199: 0 | BH199: =SUM(BF$3:BF199) -> 0 | BK199: 0 | BO199: =SUM(BM$3:BM199) -> 0 | BR199: 0 | BV199: =SUM(BT$3:BT199) -> 0 | BY199: 0 | CA199: 192 | CB199: 0.1742195876 | CC199: =SUM(CA$3:CA199) -> 293305 | CD199: 0.9243396898 | CE199: 0.0006050807877 | CF199: 0.0002630654324
AM200: =SUM(AK$3:AK200) -> 0 | AP200: 0 | AT200: =SUM(AR$3:AR200) -> 0 | AW200: 0 | BA200: =SUM(AY$3:AY200) -> 0 | BD200: 0 | BH200: =SUM(BF$3:BF200) -> 0 | BK200: 0 | BO200: =SUM(BM$3:BM200) -> 0 | BR200: 0 | BV200: =SUM(BT$3:BT200) -> 0 | BY200: 0 | CA200: 204 | CB200: 0.1744826531 | CC200: =SUM(CA$3:CA200) -> 293509 | CD200: 0.9249825882 | CE200: 0.000642898337 | CF200: 0.0002577509792
... 288 more rows

Sheet Step 5 Drought Rate Adjustments
B1: Step 5: Drought Rate Adjustments
B2: It is common for water utilities to adopt drought/shortage response plans that specify actions the utility will take for different stages of shortage. Typically these plans specify voluntary
B3: and/or mandatory curtailment levels by shortage stage. In some plans, curtailment levels vary by Customer Class. In others they are the same across all classes. Water use curtailment can
B4: have a significant impact on utility revenues and financial stability. This worksheet allows you to evaluate these impacts for your Proposed rates. You can also use the worksheet to
B5: determine how your Proposed rates would need to be adjusted in each drought/shortage stage in order to preserve your sales revenue. This worksheet has three sections. In Section 1,
B6: you enter your Customer Class water use curtailment levels by drought/shortage stage. In Section 2, you can examine how sales revenue under your Proposed rates would be impacted by
B7: each drought/shortage stage. You can also use the tables in Section 2 to adjust your Proposed rates under each stage. For example, you can use the tables to develop revenue neutral rates
B8: for each drought stage. Section 3 provides a calculator you can use to quickly adjust your Proposed rates so they are revenue neutral for a given drought/shortage stage.
B10: 1. Specify Curtailment Levels for Drought/Shortage Stages
B11: 1 | C11: Enter the Customer Class curtailment levels for each stage. If you have fewer than 4 stages, enter the last curtailment level in the unused stages. Stage 0 is the default No
C12: Shortage condition. Do not modify the settings for this stage.
B13: 2 | C13: For each stage, enter the expected compliance rate. The compliance rate can vary by stage. For example, stages with voluntary curtailment may have lower compliance than
C14: stages where curtailment is mandatory and enforced. The expected curtailment level for a stage is the product of the stage's curtailment level and the expected compliance
C15: rate.
E17: Drought/Shortage Stage Customer Class Curtailment Levels Table | J17: Expected Curtailment
C18: Customer Class | E18: =TRANSPOSE(drought_stage_labels) -> Stage 0 | F18: Stage 1 | G18: Stage 2 | H18: Stage 3 | I18: Stage 4 | J18: =TRANSPOSE(drought_stage_labels) -> Stage 0 | K18: Stage 1 | L18: Stage 2 | M18: Stage 3 | N18: Stage 4
C19: =class1 -> Not in use | E19: 0 | J19: =E19*E$26 -> 0 | K19: =F19*F$26 -> 0 | L19: 0 | M19: 0 | N19: 0
C20: =class2 -> Not in use | E20: 0 | J20: =E20*E$26 -> 0 | K20: 0 | L20: 0 | M20: 0 | N20: 0
C21: =class3 -> Not in use | E21: 0 | J21: 0 | K21: 0 | L21: 0 | M21: 0 | N21: 0
C22: =class4 -> Not in use | E22: 0 | J22: 0 | K22: 0 | L22: 0 | M22: 0 | N22: 0
C23: =class5 -> Not in use | E23: 0 | J23: 0 | K23: 0 | L23: 0 | M23: 0 | N23: 0
C24: =class6 -> Not in use | E24: 0 | J24: 0 | K24: 0 | L24: 0 | M24: 0 | N24: 0
D26: Enter Expected Compliance % | E26: 1
B28: 2. Rate Performance by Drought/Shortage Stage
B29: The tables in this section hold two sets of rates. Your proposed rates are carried over from Step 3. These cannot be modified on this worksheet. They provide the point of reference
B30: for calculating the revenue impacts of drought stages. The Stage rates are the rates that would apply for a given drought/shortage stage. To see how your Proposed rates would perform in
B31: a drought stage, click the Reset Drought Stage Rates to Proposed Rates. This will copy your Proposed rates into the tables for the Stage Rates. You can then use the Select Drought Stage
B32: drop-down list to cycle through the drought stages and see how your sales revenue would be impacted by each stage. Impacts to annual sales volume and revenue for each Customer Class
B33: are summarized to the right of the rate tables. You can adjust the Stage Rates to see how your annual sales volume and revenue would respond. You can adjust the size or number of blocks
B34: as well as the rates for each block. You can use trial and error to find rates appropriate to each drought/shortage stage, or you can use Excel's goal-seek or solver functionality to do this.
B35: Section 3 provides a calculator that can quickly identify rates for a given drought/shortage stage that are revenue neutral. | P35: Rate Performance by Customer Class
B36: Select Drought Stage
B37: =class1 -> Not in use | D37: =season1 & " Season" -> Off Peak Season | J37: =season2 & " Season" -> Peak Season | P37: Annual Sales Volume
D38: Proposed Rates | G38: ="Stage " & drought_stage_selected-1 & " Rates" -> Stage 0 Rates | J38: Proposed Rates | M38: ="Stage " & drought_stage_selected-1 & " Rates" -> Stage 0 Rates | P38: Proposed | Q38: ="Stage " & drought_stage_selected-1 -> Stage 0 | R38: % Change
D39: Block | E39: Rate | G39: Block | H39: Rate | J39: Block | K39: Rate | M39: Block | N39: Rate | O39: =units_vol -> 0 | P39: ='Step 4 Design Water Rates'!Q35 ->  | Q39: =IF(class1_is_active,class1_seas1_vol_drought+class1_seas2_vol_drought,"") ->  | R39: =IF(class1_is_active,Q39/P39-1,"") -> 
D40: ="(" & units_vol & ")" -> () | E40: ="($/" & units_vol & ")" -> ($/) | G40: ="(" & units_vol & ")" -> () | H40: ="($/" & units_vol & ")" -> ($/) | J40: ="(" & units_vol & ")" -> () | K40: ="($/" & units_vol & ")" -> ($/) | M40: ="(" & units_vol & ")" -> () | N40: ="($/" & units_vol & ")" -> ($/)
C41: Block 1 | D41: ='Step 4 Design Water Rates'!G37 -> 0 | E41: ='Step 4 Design Water Rates'!H37 -> 0 | J41: ='Step 4 Design Water Rates'!M37 -> 0 | K41: ='Step 4 Design Water Rates'!N37 -> 0 | P41: Annual Sales Revenue (Thou. $)
C42: Block 2 | D42: ='Step 4 Design Water Rates'!G38 -> 0 | E42: ='Step 4 Design Water Rates'!H38 -> 0 | J42: ='Step 4 Design Water Rates'!M38 -> 0 | K42: ='Step 4 Design Water Rates'!N38 -> 0 | P42: Proposed | Q42: ="Stage " & drought_stage_selected-1 -> Stage 0 | R42: % Change
C43: Block 3 | D43: ='Step 4 Design Water Rates'!G39 -> 0 | E43: ='Step 4 Design Water Rates'!H39 -> 0 | J43: ='Step 4 Design Water Rates'!M39 -> 0 | K43: ='Step 4 Design Water Rates'!N39 -> 0 | O43: Service | P43: ='Step 4 Design Water Rates'!Q39 ->  | Q43: =P43 ->  | R43: =IF(class1_is_active,Q43/P43-1,"") -> 
C44: Block 4 | D44: ='Step 4 Design Water Rates'!G40 -> 0 | E44: ='Step 4 Design Water Rates'!H40 -> 0 | J44: ='Step 4 Design Water Rates'!M40 -> 0 | K44: ='Step 4 Design Water Rates'!N40 -> 0 | O44: Volume | P44: ='Step 4 Design Water Rates'!Q40 ->  | Q44: =IF(class1_is_active,(class1_seas1_vol_rev_drought+class1_seas2_vol_rev_drought)/1000,"") ->  | R44: =IF(class1_is_active,Q44/P44-1,"") -> 
C45: Block 5 | D45: ='Step 4 Design Water Rates'!G41 -> 0 | E45: ='Step 4 Design Water Rates'!H41 -> 0 | J45: ='Step 4 Design Water Rates'!M41 -> 0 | K45: ='Step 4 Design Water Rates'!N41 -> 0 | O45: Total | P45: ='Step 4 Design Water Rates'!Q41 ->  | Q45: =IF(class1_is_active,Q43+Q44,"") ->  | R45: =IF(class1_is_active,Q45/P45-1,"") -> 
B47: =class2 -> Not in use | D47: =season1 & " Season" -> Off Peak Season | J47: =season2 & " Season" -> Peak Season | P47: Annual Sales Volume
D48: Proposed Rates | G48: ="Stage " & drought_stage_selected-1 & " Rates" -> Stage 0 Rates | J48: Proposed Rates | M48: ="Stage " & drought_stage_selected-1 & " Rates" -> Stage 0 Rates | P48: Proposed | Q48: ="Stage " & drought_stage_selected-1 -> Stage 0 | R48: % Change
D49: Block | E49: Rate | G49: Block | H49: Rate | J49: Block | K49: Rate | M49: Block | N49: Rate | O49: =units_vol -> 0 | P49: ='Step 4 Design Water Rates'!Q45 ->  | Q49: =IF(class2_is_active,class2_seas1_vol_drought+class2_seas2_vol_drought,"") ->  | R49: =IF(class2_is_active,Q49/P49-1,"") -> 
D50: ="(" & units_vol & ")" -> () | E50: ="($/" & units_vol & ")" -> ($/) | G50: ="(" & units_vol & ")" -> () | H50: ="($/" & units_vol & ")" -> ($/) | J50: ="(" & units_vol & ")" -> () | K50: ="($/" & units_vol & ")" -> ($/) | M50: ="(" & units_vol & ")" -> () | N50: ="($/" & units_vol & ")" -> ($/)
C51: Block 1 | D51: ='Step 4 Design Water Rates'!G47 -> 0 | E51: ='Step 4 Design Water Rates'!H47 -> 0 | J51: ='Step 4 Design Water Rates'!M47 -> 0 | K51: ='Step 4 Design Water Rates'!N47 -> 0 | P51: Annual Sales Revenue (Thou. $)
C52: Block 2 | D52: ='Step 4 Design Water Rates'!G48 -> 0 | E52: ='Step 4 Design Water Rates'!H48 -> 0 | J52: ='Step 4 Design Water Rates'!M48 -> 0 | K52: ='Step 4 Design Water Rates'!N48 -> 0 | P52: Proposed | Q52: ="Stage " & drought_stage_selected-1 -> Stage 0 | R52: % Change
C53: Block 3 | D53: ='Step 4 Design Water Rates'!G49 -> 0 | E53: ='Step 4 Design Water Rates'!H49 -> 0 | J53: ='Step 4 Design Water Rates'!M49 -> 0 | K53: ='Step 4 Design Water Rates'!N49 -> 0 | O53: Service | P53: ='Step 4 Design Water Rates'!Q49 ->  | Q53: =P53 ->  | R53: =IF(class2_is_active,Q53/P53-1,"") -> 
C54: Block 4 | D54: ='Step 4 Design Water Rates'!G50 -> 0 | E54: ='Step 4 Design Water Rates'!H50 -> 0 | J54: ='Step 4 Design Water Rates'!M50 -> 0 | K54: ='Step 4 Design Water Rates'!N50 -> 0 | O54: Volume | P54: ='Step 4 Design Water Rates'!Q50 ->  | Q54: =IF(class2_is_active,(class2_seas1_vol_rev_drought+class2_seas2_vol_rev_drought)/1000,"") ->  | R54: =IF(class2_is_active,Q54/P54-1,"") -> 
C55: Block 5 | D55: ='Step 4 Design Water Rates'!G51 -> 0 | E55: ='Step 4 Design Water Rates'!H51 -> 0 | J55: ='Step 4 Design Water Rates'!M51 -> 0 | K55: ='Step 4 Design Water Rates'!N51 -> 0 | O55: Total | P55: ='Step 4 Design Water Rates'!Q51 ->  | Q55: =IF(class2_is_active,Q53+Q54,"") ->  | R55: =IF(class2_is_active,Q55/P55-1,"") -> 
B57: =class3 -> Not in use | D57: =season1 & " Season" -> Off Peak Season | J57: =season2 & " Season" -> Peak Season | P57: Annual Sales Volume
D58: Proposed Rates | G58: ="Stage " & drought_stage_selected-1 & " Rates" -> Stage 0 Rates | J58: Proposed Rates | M58: ="Stage " & drought_stage_selected-1 & " Rates" -> Stage 0 Rates | P58: Proposed | Q58: ="Stage " & drought_stage_selected-1 -> Stage 0 | R58: % Change
D59: Block | E59: Rate | G59: Block | H59: Rate | J59: Block | K59: Rate | M59: Block | N59: Rate | O59: =units_vol -> 0 | P59: ='Step 4 Design Water Rates'!Q55 ->  | Q59: =IF(class3_is_active,class3_seas1_vol_drought+class3_seas2_vol_drought,"") ->  | R59: =IF(class3_is_active,Q59/P59-1,"") -> 
D60: ="(" & units_vol & ")" -> () | E60: ="($/" & units_vol & ")" -> ($/) | G60: ="(" & units_vol & ")" -> () | H60: ="($/" & units_vol & ")" -> ($/) | J60: ="(" & units_vol & ")" -> () | K60: ="($/" & units_vol & ")" -> ($/) | M60: ="(" & units_vol & ")" -> () | N60: ="($/" & units_vol & ")" -> ($/)
C61: Block 1 | D61: ='Step 4 Design Water Rates'!G57 -> 0 | E61: ='Step 4 Design Water Rates'!H57 -> 0 | J61: ='Step 4 Design Water Rates'!M57 -> 0 | K61: ='Step 4 Design Water Rates'!N57 -> 0 | P61: Annual Sales Revenue (Thou. $)
C62: Block 2 | D62: ='Step 4 Design Water Rates'!G58 -> 0 | E62: ='Step 4 Design Water Rates'!H58 -> 0 | J62: ='Step 4 Design Water Rates'!M58 -> 0 | K62: ='Step 4 Design Water Rates'!N58 -> 0 | P62: Proposed | Q62: ="Stage " & drought_stage_selected-1 -> Stage 0 | R62: % Change
C63: Block 3 | D63: ='Step 4 Design Water Rates'!G59 -> 0 | E63: ='Step 4 Design Water Rates'!H59 -> 0 | J63: ='Step 4 Design Water Rates'!M59 -> 0 | K63: ='Step 4 Design Water Rates'!N59 -> 0 | O63: Service | P63: ='Step 4 Design Water Rates'!Q59 ->  | Q63: =P63 ->  | R63: =IF(class3_is_active,Q63/P63-1,"") -> 
C64: Block 4 | D64: ='Step 4 Design Water Rates'!G60 -> 0 | E64: ='Step 4 Design Water Rates'!H60 -> 0 | J64: ='Step 4 Design Water Rates'!M60 -> 0 | K64: ='Step 4 Design Water Rates'!N60 -> 0 | O64: Volume | P64: ='Step 4 Design Water Rates'!Q60 ->  | Q64: =IF(class3_is_active,(class3_seas1_vol_rev_drought+class3_seas2_vol_rev_drought)/1000,"") ->  | R64: =IF(class3_is_active,Q64/P64-1,"") -> 
C65: Block 5 | D65: ='Step 4 Design Water Rates'!G61 -> 0 | E65: ='Step 4 Design Water Rates'!H61 -> 0 | J65: ='Step 4 Design Water Rates'!M61 -> 0 | K65: ='Step 4 Design Water Rates'!N61 -> 0 | O65: Total | P65: ='Step 4 Design Water Rates'!Q61 ->  | Q65: =IF(class3_is_active,Q63+Q64,"") ->  | R65: =IF(class3_is_active,Q65/P65-1,"") -> 
B67: =class4 -> Not in use | D67: =season1 & " Season" -> Off Peak Season | J67: =season2 & " Season" -> Peak Season | P67: Annual Sales Volume
D68: Proposed Rates | G68: ="Stage " & drought_stage_selected-1 & " Rates" -> Stage 0 Rates | J68: Proposed Rates | M68: ="Stage " & drought_stage_selected-1 & " Rates" -> Stage 0 Rates | P68: Proposed | Q68: ="Stage " & drought_stage_selected-1 -> Stage 0 | R68: % Change
D69: Block | E69: Rate | G69: Block | H69: Rate | J69: Block | K69: Rate | M69: Block | N69: Rate | O69: =units_vol -> 0 | P69: ='Step 4 Design Water Rates'!Q65 ->  | Q69: =IF(class4_is_active,class4_seas1_vol_drought+class4_seas2_vol_drought,"") ->  | R69: =IF(class4_is_active,Q69/P69-1,"") -> 
D70: ="(" & units_vol & ")" -> () | E70: ="($/" & units_vol & ")" -> ($/) | G70: ="(" & units_vol & ")" -> () | H70: ="($/" & units_vol & ")" -> ($/) | J70: ="(" & units_vol & ")" -> () | K70: ="($/" & units_vol & ")" -> ($/) | M70: ="(" & units_vol & ")" -> () | N70: ="($/" & units_vol & ")" -> ($/)
C71: Block 1 | D71: ='Step 4 Design Water Rates'!G67 -> 0 | E71: ='Step 4 Design Water Rates'!H67 -> 0 | J71: ='Step 4 Design Water Rates'!M67 -> 0 | K71: ='Step 4 Design Water Rates'!N67 -> 0 | P71: Annual Sales Revenue (Thou. $)
C72: Block 2 | D72: ='Step 4 Design Water Rates'!G68 -> 0 | E72: ='Step 4 Design Water Rates'!H68 -> 0 | J72: ='Step 4 Design Water Rates'!M68 -> 0 | K72: ='Step 4 Design Water Rates'!N68 -> 0 | P72: Proposed | Q72: ="Stage " & drought_stage_selected-1 -> Stage 0 | R72: % Change
C73: Block 3 | D73: ='Step 4 Design Water Rates'!G69 -> 0 | E73: ='Step 4 Design Water Rates'!H69 -> 0 | J73: ='Step 4 Design Water Rates'!M69 -> 0 | K73: ='Step 4 Design Water Rates'!N69 -> 0 | O73: Service | P73: ='Step 4 Design Water Rates'!Q69 ->  | Q73: =P73 ->  | R73: =IF(class4_is_active,Q73/P73-1,"") -> 
C74: Block 4 | D74: ='Step 4 Design Water Rates'!G70 -> 0 | E74: ='Step 4 Design Water Rates'!H70 -> 0 | J74: ='Step 4 Design Water Rates'!M70 -> 0 | K74: ='Step 4 Design Water Rates'!N70 -> 0 | O74: Volume | P74: ='Step 4 Design Water Rates'!Q70 ->  | Q74: =IF(class4_is_active,(class4_seas1_vol_rev_drought+class4_seas2_vol_rev_drought)/1000,"") ->  | R74: =IF(class4_is_active,Q74/P74-1,"") -> 
C75: Block 5 | D75: ='Step 4 Design Water Rates'!G71 -> 0 | E75: ='Step 4 Design Water Rates'!H71 -> 0 | J75: ='Step 4 Design Water Rates'!M71 -> 0 | K75: ='Step 4 Design Water Rates'!N71 -> 0 | O75: Total | P75: ='Step 4 Design Water Rates'!Q71 ->  | Q75: =IF(class4_is_active,Q73+Q74,"") ->  | R75: =IF(class4_is_active,Q75/P75-1,"") -> 
B77: =class5 -> Not in use | D77: =season1 & " Season" -> Off Peak Season | J77: =season2 & " Season" -> Peak Season | P77: Annual Sales Volume
D78: Proposed Rates | G78: ="Stage " & drought_stage_selected-1 & " Rates" -> Stage 0 Rates | J78: Proposed Rates | M78: ="Stage " & drought_stage_selected-1 & " Rates" -> Stage 0 Rates | P78: Proposed | Q78: ="Stage " & drought_stage_selected-1 -> Stage 0 | R78: % Change
D79: Block | E79: Rate | G79: Block | H79: Rate | J79: Block | K79: Rate | M79: Block | N79: Rate | O79: =units_vol -> 0 | P79: ='Step 4 Design Water Rates'!Q75 ->  | Q79: =IF(class5_is_active,class5_seas1_vol_drought+class5_seas2_vol_drought,"") ->  | R79: =IF(class5_is_active,Q79/P79-1,"") -> 
D80: ="(" & units_vol & ")" -> () | E80: ="($/" & units_vol & ")" -> ($/) | G80: ="(" & units_vol & ")" -> () | H80: ="($/" & units_vol & ")" -> ($/) | J80: ="(" & units_vol & ")" -> () | K80: ="($/" & units_vol & ")" -> ($/) | M80: ="(" & units_vol & ")" -> () | N80: ="($/" & units_vol & ")" -> ($/)
C81: Block 1 | D81: ='Step 4 Design Water Rates'!G77 -> 0 | E81: ='Step 4 Design Water Rates'!H77 -> 0 | J81: ='Step 4 Design Water Rates'!M77 -> 0 | K81: ='Step 4 Design Water Rates'!N77 -> 0 | P81: Annual Sales Revenue (Thou. $)
C82: Block 2 | D82: ='Step 4 Design Water Rates'!G78 -> 0 | E82: ='Step 4 Design Water Rates'!H78 -> 0 | J82: ='Step 4 Design Water Rates'!M78 -> 0 | K82: ='Step 4 Design Water Rates'!N78 -> 0 | P82: Proposed | Q82: ="Stage " & drought_stage_selected-1 -> Stage 0 | R82: % Change
C83: Block 3 | D83: ='Step 4 Design Water Rates'!G79 -> 0 | E83: ='Step 4 Design Water Rates'!H79 -> 0 | J83: ='Step 4 Design Water Rates'!M79 -> 0 | K83: ='Step 4 Design Water Rates'!N79 -> 0 | O83: Service | P83: ='Step 4 Design Water Rates'!Q79 ->  | Q83: =P83 ->  | R83: =IF(class5_is_active,Q83/P83-1,"") -> 
C84: Block 4 | D84: ='Step 4 Design Water Rates'!G80 -> 0 | E84: ='Step 4 Design Water Rates'!H80 -> 0 | J84: ='Step 4 Design Water Rates'!M80 -> 0 | K84: ='Step 4 Design Water Rates'!N80 -> 0 | O84: Volume | P84: ='Step 4 Design Water Rates'!Q80 ->  | Q84: =IF(class5_is_active,(class5_seas1_vol_rev_drought+class5_seas2_vol_rev_drought)/1000,"") ->  | R84: =IF(class5_is_active,Q84/P84-1,"") -> 
C85: Block 5 | D85: ='Step 4 Design Water Rates'!G81 -> 0 | E85: ='Step 4 Design Water Rates'!H81 -> 0 | J85: ='Step 4 Design Water Rates'!M81 -> 0 | K85: ='Step 4 Design Water Rates'!N81 -> 0 | O85: Total | P85: ='Step 4 Design Water Rates'!Q81 ->  | Q85: =IF(class5_is_active,Q83+Q84,"") ->  | R85: =IF(class5_is_active,Q85/P85-1,"") -> 
B87: =class6 -> Not in use | D87: =season1 & " Season" -> Off Peak Season | J87: =season2 & " Season" -> Peak Season | P87: Annual Sales Volume
D88: Proposed Rates | G88: ="Stage " & drought_stage_selected-1 & " Rates" -> Stage 0 Rates | J88: Proposed Rates | M88: ="Stage " & drought_stage_selected-1 & " Rates" -> Stage 0 Rates | P88: Proposed | Q88: ="Stage " & drought_stage_selected-1 -> Stage 0 | R88: % Change
D89: Block | E89: Rate | G89: Block | H89: Rate | J89: Block | K89: Rate | M89: Block | N89: Rate | O89: =units_vol -> 0 | P89: ='Step 4 Design Water Rates'!Q85 ->  | Q89: =IF(class6_is_active,class6_seas1_vol_drought+class6_seas2_vol_drought,"") ->  | R89: =IF(class6_is_active,Q89/P89-1,"") -> 
D90: ="(" & units_vol & ")" -> () | E90: ="($/" & units_vol & ")" -> ($/) | G90: ="(" & units_vol & ")" -> () | H90: ="($/" & units_vol & ")" -> ($/) | J90: ="(" & units_vol & ")" -> () | K90: ="($/" & units_vol & ")" -> ($/) | M90: ="(" & units_vol & ")" -> () | N90: ="($/" & units_vol & ")" -> ($/)
C91: Block 1 | D91: ='Step 4 Design Water Rates'!G87 -> 0 | E91: ='Step 4 Design Water Rates'!H87 -> 0 | J91: ='Step 4 Design Water Rates'!M87 -> 0 | K91: ='Step 4 Design Water Rates'!N87 -> 0 | P91: Annual Sales Revenue (Thou. $)
C92: Block 2 | D92: ='Step 4 Design Water Rates'!G88 -> 0 | E92: ='Step 4 Design Water Rates'!H88 -> 0 | J92: ='Step 4 Design Water Rates'!M88 -> 0 | K92: ='Step 4 Design Water Rates'!N88 -> 0 | P92: Proposed | Q92: ="Stage " & drought_stage_selected-1 -> Stage 0 | R92: % Change
C93: Block 3 | D93: ='Step 4 Design Water Rates'!G89 -> 0 | E93: ='Step 4 Design Water Rates'!H89 -> 0 | J93: ='Step 4 Design Water Rates'!M89 -> 0 | K93: ='Step 4 Design Water Rates'!N89 -> 0 | O93: Service | P93: ='Step 4 Design Water Rates'!Q89 ->  | Q93: =P93 ->  | R93: =IF(class6_is_active,Q93/P93-1,"") -> 
C94: Block 4 | D94: ='Step 4 Design Water Rates'!G90 -> 0 | E94: ='Step 4 Design Water Rates'!H90 -> 0 | J94: ='Step 4 Design Water Rates'!M90 -> 0 | K94: ='Step 4 Design Water Rates'!N90 -> 0 | O94: Volume | P94: ='Step 4 Design Water Rates'!Q90 ->  | Q94: =IF(class6_is_active,(class6_seas1_vol_rev_drought+class6_seas2_vol_rev_drought)/1000,"") ->  | R94: =IF(class6_is_active,Q94/P94-1,"") -> 
C95: Block 5 | D95: ='Step 4 Design Water Rates'!G91 -> 0 | E95: ='Step 4 Design Water Rates'!H91 -> 0 | J95: ='Step 4 Design Water Rates'!M91 -> 0 | K95: ='Step 4 Design Water Rates'!N91 -> 0 | O95: Total | P95: ='Step 4 Design Water Rates'!Q91 ->  | Q95: =IF(class6_is_active,Q93+Q94,"") ->  | R95: =IF(class6_is_active,Q95/P95-1,"") -> 
P97: Total All Classes
P98: Annual Sales Volume
P99: Proposed | Q99: ="Stage " & drought_stage_selected-1 -> Stage 0 | R99: % Change
O100: =units_vol -> 0 | P100: ='Step 4 Design Water Rates'!Q96 -> 0 | Q100: =SUM(Q39,Q49,Q59,Q69,Q79,Q89) -> 0 | R100: =Q100/P100-1 -> 
P102: Annual Sales Revenue (Thou. $)
P103: Proposed | Q103: ="Stage " & drought_stage_selected-1 -> Stage 0 | R103: % Change
O104: Service | P104: ='Step 4 Design Water Rates'!Q100 -> 0 | Q104: =P104 -> 0 | R104: =Q104/P104-1 -> 
O105: Volume | P105: ='Step 4 Design Water Rates'!Q101 -> 0 | Q105: =SUM(Q44,Q54,Q64,Q74,Q84,Q94) -> 0 | R105: =Q105/P105-1 -> 
O106: Total | P106: ='Step 4 Design Water Rates'!Q102 -> 0 | Q106: =SUM(Q45,Q55,Q65,Q75,Q85,Q95) -> 0 | R106: =Q106/P106-1 -> 
B108: 3. Calculate Revenue Neutral Rates by Drought Stage
B109: The revenue neutral rates calculator will quickly find a set of rates for a given drought/shortage stage that will generate the same revenue as your Proposed rates under a no shortage
B110: condition. There are four steps to using the calculator:
B111: 1 | C111: Choose the drought/shortage stage you want to calculate rates for.
B112: 2 | C112: Choose the method for calculating the rates. There are two choices. The first choice is to adjust your Proposed rates so that each customer class generates the same revenue
C113: it would have generated under your Proposed rates assuming no use curtailment. This may result in significant differences across classes in the amount by which rates are
C114: adjusted. The second choice is to adjust your Proposed rates so that all classes when grouped together are revenue neutral. Rates across classes will be adjusted by the same
C115: proportionate amount. Revenue neutrality may not hold for individual classes, but overall revenue will be neutral to the Proposed rates assuming no use curtailment.
B116: 3 | C116: Complete the Leave or Adjust Rate in Block table below. Choose Leave if you want the rate in the block to be the same as it is for your Proposed rates. Choose Adjust if you
C117: want the calculator to adjust this rate. For example, if you only want to adjust the upper block rates, choose Leave for lower blocks and Adjust for upper blocks. If you have
C118: fewer than 5 blocks, set the unused blocks to the same setting used for your last block.
B119: 4 | C119: Make desired adjustments to the block widths for the Stage Rates in the Stage Rates tables above.
B120: 5 | C120: Click the Find Revenue Neutral Rates button.
B122: Note: The calculator will overwrite the rates that are in the Stage Rates tables above. If you want to preserve these rates, save them as a rate scenario by clicking the Save/Load Rates
B123: button before using the calculator.
B125: Choose Drought Stage to Evaluate:
B127: Choose Method for Calculating Revenue Neutral Rates:
C129: Leave or Adjust Rate in Block?
B131: Class | C131: Block 1 | D131: Block 2 | E131: Block 3 | F131: Block 4 | G131: Block 5
B132: =class1 -> Not in use | C132: Leave | D132: Adjust | E132: Adjust | F132: Adjust | G132: Adjust
B133: =class2 -> Not in use | C133: Adjust | D133: Adjust | E133: Adjust | F133: Adjust | G133: Adjust
B134: =class3 -> Not in use | C134: Adjust | D134: Adjust | E134: Adjust | F134: Adjust | G134: Adjust
B135: =class4 -> Not in use | C135: Adjust | D135: Adjust | E135: Adjust | F135: Adjust | G135: Adjust
B136: =class5 -> Not in use | C136: Leave | D136: Leave | E136: Leave | F136: Leave | G136: Leave
B137: =class6 -> Not in use | C137: Leave | D137: Leave | E137: Leave | F137: Leave | G137: Leave
B141: Go back to Bill Impacts Charts | L141: Go forward to Revenue Simulation Module
B143: Model Calculations Below. Do Not Modify
B144: DO NOT MODIFY
B145: Leave or Adjust Rate Table
C147: Class1 | D147: Class2 | E147: Class3 | F147: Class4 | G147: Class5 | H147: Class6
B148: Block 1 | C148: =TRANSPOSE(IF(C132:G137="Adjust",1,0)) -> 0 | D148: 1 | E148: 1 | F148: 1 | G148: 0 | H148: 0
B149: Block 2 | C149: 1 | D149: 1 | E149: 1 | F149: 1 | G149: 0 | H149: 0
B150: Block 3 | C150: 1 | D150: 1 | E150: 1 | F150: 1 | G150: 0 | H150: 0
B151: Block 4 | C151: 1 | D151: 1 | E151: 1 | F151: 1 | G151: 0 | H151: 0
B152: Block 5 | C152: 1 | D152: 1 | E152: 1 | F152: 1 | G152: 0 | H152: 0
B154: Goal Seek Target Table
B155: Class | C155: Goal Cell
B156: =class1 -> Not in use | C156: =R44 -> 
B157: =class2 -> Not in use | C157: =R54 -> 
B158: =class3 -> Not in use | C158: =R64 -> 
B159: =class4 -> Not in use | C159: =R74 -> 
B160: =class5 -> Not in use | C160: =R84 -> 
B161: =class6 -> Not in use | C161: =R94 -> 
B162: Total | C162: =R105 -> 

Sheet Revenue Simulation Module
B1: Revenue Simulation Module
B102: Go back to Step 5: Drought Rate Adjustments | R102: Go forward to Step 5: Enter Weather Data Worksheet

Sheet Step 6 Enter Weather Data
B1: Step 6: Enter Weather Data to be Used by Revenue Simulation Module
B2: On this worksheet you enter historical monthly precipitation and temperature data for your service area. The model will use this data to simulate how your demands may vary in response to deviations from normal weather patterns.
B3: ="You can enter up to a maximum of 90 years of historical data -- " & YEAR(NOW())-90 & "-" & YEAR(NOW())-1 & ". Your historical data must be contiguous -- there cannot be gaps between years. It also must be complete across months. The model will ignore years where these conditions are not met." -> You can enter up to a maximum of 90 years of historical data -- 1924-2013. Your historical data must be contiguous -- there cannot be gaps between years. It also must be complete across months. The model will ignore years where these conditions are not met.
B4: ="It is not required that you provide data for all 90 years. For example, if you only have data for the period "&YEAR(NOW())-32&"-"&YEAR(NOW())-2&" you can enter that in the appropriate rows of the tables. To get reliable results, however, it is strongly recommended you enter at least 15 years of data." -> It is not required that you provide data for all 90 years. For example, if you only have data for the period 1982-2012 you can enter that in the appropriate rows of the tables. To get reliable results, however, it is strongly recommended you enter at least 15 years of data.
B5: Consult the user guide for information on weather data sources.
B6: Go back to Revenue Simulation Module Worksheet | X6: Go forward to Step 7: Setup Simulation Worksheet
B8: 1. Set most recent year in your weather data
B9: Enter the most recent year for which you are providing weather data.
B11: Most recent year:
B13: ="2. Enter Monthly Precipitation Totals (" & units_precip & ")" -> 2. Enter Monthly Precipitation Totals () | P13: ="3. Enter Monthly Average Maximum Air Temperature (degrees " & units_temp & ")" -> 3. Enter Monthly Average Maximum Air Temperature (degrees ) | AD13: 4. Enter Drought Shortage Stage
B14: ="Enter total monthly precipitation in "& IF(units_precip="in","inches","centimeters") & " for each year of weather data you have for your service area." -> Enter total monthly precipitation in centimeters for each year of weather data you have for your service area. | P14: ="Enter the monthly average daily maximum air temperature in degrees "& IF(units_temp="F","Fahrenheit","Celsius") & " for each year of weather data you have for your" -> Enter the monthly average daily maximum air temperature in degrees Celsius for each year of weather data you have for your | AD14: (Optional) For each hydrologic year you can select what drought/shortage stage
P15: service area. Be sure you are entering average daily maximum air temperature and not average daily air temperature. | AD15: would have applied given your current system supplies and customer demands.
AD16: You can then have the model use this information when it simulates water sales. | AM16: Complete
AD17: This is explained further in Step 5 Setup Simulation. | AM17: Data For
B18: Year | C18: Jan | D18: Feb | E18: Mar | F18: Apr | G18: May | H18: Jun | I18: Jul | J18: Aug | K18: Sep | L18: Oct | M18: Nov | N18: Dec | P18: Year | Q18: Jan | R18: Feb | S18: Mar | T18: Apr | U18: May | V18: Jun | W18: Jul | X18: Aug | Y18: Sep | Z18: Oct | AA18: Nov | AB18: Dec | AD18: Stage | AE18: Index | AM18: Year
B19: =D11 -> 0 | P19: =B19 -> 0 | AD19: Stage 0 | AE19: =VALUE(RIGHT(AD19,1)) -> 0 | AM19: =COUNTBLANK(C19:N19)+COUNTBLANK(Q19:AB19)=0 -> FALSE
B20: =B19-1 -> -1 | P20: =B20 -> -1 | AD20: Stage 0 | AE20: =VALUE(RIGHT(AD20,1)) -> 0 | AM20: FALSE
B21: =B20-1 -> -2 | P21: -2 | AD21: Stage 0 | AE21: 0 | AM21: FALSE
B22: -3 | P22: -3 | AD22: Stage 2 | AE22: 2 | AM22: FALSE
B23: -4 | P23: -4 | AD23: Stage 0 | AE23: 0 | AM23: FALSE
B24: -5 | P24: -5 | AD24: Stage 0 | AE24: 0 | AM24: FALSE
B25: -6 | P25: -6 | AD25: Stage 0 | AE25: 0 | AM25: FALSE
B26: -7 | P26: -7 | AD26: Stage 0 | AE26: 0 | AM26: FALSE
B27: -8 | P27: -8 | AD27: Stage 0 | AE27: 0 | AM27: FALSE
B28: -9 | P28: -9 | AD28: Stage 0 | AE28: 0 | AM28: FALSE
B29: -10 | P29: -10 | AD29: Stage 0 | AE29: 0 | AM29: FALSE
B30: -11 | P30: -11 | AD30: Stage 1 | AE30: 1 | AM30: FALSE
B31: -12 | P31: -12 | AD31: Stage 0 | AE31: 0 | AM31: FALSE
B32: -13 | P32: -13 | AD32: Stage 0 | AE32: 0 | AM32: FALSE
B33: -14 | P33: -14 | AD33: Stage 0 | AE33: 0 | AM33: FALSE
B34: -15 | P34: -15 | AD34: Stage 0 | AE34: 0 | AM34: FALSE
B35: -16 | P35: -16 | AD35: Stage 0 | AE35: 0 | AM35: FALSE
B36: -17 | P36: -17 | AD36: Stage 0 | AE36: 0 | AM36: FALSE
B37: -18 | P37: -18 | AD37: Stage 0 | AE37: 0 | AM37: FALSE
B38: -19 | P38: -19 | AD38: Stage 0 | AE38: 0 | AM38: FALSE
B39: -20 | P39: -20 | AD39: Stage 0 | AE39: 0 | AM39: FALSE
B40: -21 | P40: -21 | AD40: Stage 4 | AE40: 4 | AM40: FALSE
B41: -22 | P41: -22 | AD41: Stage 3 | AE41: 3 | AM41: FALSE
B42: -23 | P42: -23 | AD42: Stage 2 | AE42: 2 | AM42: FALSE
B43: -24 | P43: -24 | AD43: Stage 1 | AE43: 1 | AM43: FALSE
B44: -25 | P44: -25 | AD44: Stage 0 | AE44: 0 | AM44: FALSE
B45: -26 | P45: -26 | AD45: Stage 0 | AE45: 0 | AM45: FALSE
B46: -27 | P46: -27 | AD46: Stage 0 | AE46: 0 | AM46: FALSE
B47: -28 | P47: -28 | AD47: Stage 0 | AE47: 0 | AM47: FALSE
B48: -29 | P48: -29 | AD48: Stage 0 | AE48: 0 | AM48: FALSE
B49: -30 | P49: -30 | AD49: Stage 0 | AE49: 0 | AM49: FALSE
B50: -31 | P50: -31 | AD50: Stage 0 | AE50: 0 | AM50: FALSE
B51: -32 | P51: -32 | AD51: Stage 0 | AE51: 0 | AM51: =COUNTBLANK(C51:N51)+COUNTBLANK(Q51:AB51)=0 -> FALSE
B52: -33 | P52: -33 | AD52: Stage 0 | AE52: 0 | AM52: FALSE
B53: -34 | P53: -34 | AD53: Stage 0 | AE53: 0 | AM53: FALSE
B54: -35 | P54: -35 | AD54: Stage 0 | AE54: 0 | AM54: FALSE
B55: -36 | P55: -36 | AD55: Stage 0 | AE55: 0 | AM55: FALSE
B56: -37 | P56: -37 | AD56: Stage 0 | AE56: 0 | AM56: FALSE
B57: -38 | P57: -38 | AD57: Stage 0 | AE57: 0 | AM57: FALSE
B58: -39 | P58: -39 | AD58: Stage 0 | AE58: 0 | AM58: FALSE
B59: -40 | P59: -40 | AD59: Stage 0 | AE59: 0 | AM59: FALSE
B60: -41 | P60: -41 | AD60: Stage 0 | AE60: 0 | AM60: FALSE
B61: -42 | P61: -42 | AD61: Stage 0 | AE61: 0 | AM61: FALSE
B62: -43 | P62: -43 | AD62: Stage 0 | AE62: 0 | AM62: FALSE
B63: -44 | P63: -44 | AD63: Stage 0 | AE63: 0 | AM63: FALSE
B64: -45 | P64: -45 | AD64: Stage 0 | AE64: 0 | AM64: FALSE
B65: -46 | P65: -46 | AD65: Stage 0 | AE65: 0 | AM65: FALSE
B66: -47 | P66: -47 | AD66: Stage 0 | AE66: 0 | AM66: FALSE
B67: -48 | P67: -48 | AD67: Stage 0 | AE67: 0 | AM67: FALSE
B68: -49 | P68: -49 | AD68: Stage 0 | AE68: 0 | AM68: FALSE
B69: -50 | P69: -50 | AD69: Stage 0 | AE69: 0 | AM69: FALSE
B70: -51 | P70: -51 | AD70: Stage 0 | AE70: 0 | AM70: FALSE
B71: -52 | P71: -52 | AD71: Stage 0 | AE71: 0 | AM71: FALSE
B72: -53 | P72: -53 | AD72: Stage 0 | AE72: 0 | AM72: FALSE
B73: -54 | P73: -54 | AD73: Stage 0 | AE73: 0 | AM73: FALSE
B74: -55 | P74: -55 | AD74: Stage 0 | AE74: 0 | AM74: FALSE
B75: -56 | P75: -56 | AD75: Stage 0 | AE75: 0 | AM75: FALSE
B76: -57 | P76: -57 | AD76: Stage 0 | AE76: 0 | AM76: FALSE
B77: -58 | P77: -58 | AD77: Stage 0 | AE77: 0 | AM77: FALSE
B78: -59 | P78: -59 | AD78: Stage 0 | AE78: 0 | AM78: FALSE
B79: -60 | P79: -60 | AD79: Stage 0 | AE79: 0 | AM79: FALSE
B80: -61 | P80: -61 | AD80: Stage 0 | AE80: 0 | AM80: FALSE
B81: -62 | P81: -62 | AD81: Stage 0 | AE81: 0 | AM81: FALSE
B82: -63 | P82: -63 | AD82: Stage 0 | AE82: 0 | AM82: FALSE
B83: -64 | P83: -64 | AD83: Stage 0 | AE83: 0 | AM83: =COUNTBLANK(C83:N83)+COUNTBLANK(Q83:AB83)=0 -> FALSE
B84: -65 | P84: =B84 -> -65 | AD84: Stage 0 | AE84: =VALUE(RIGHT(AD84,1)) -> 0 | AM84: FALSE
B85: =B84-1 -> -66 | P85: -66 | AD85: Stage 0 | AE85: 0 | AM85: FALSE
B86: -67 | P86: -67 | AD86: Stage 0 | AE86: 0 | AM86: FALSE
B87: -68 | P87: -68 | AD87: Stage 0 | AE87: 0 | AM87: FALSE
B88: -69 | P88: -69 | AD88: Stage 0 | AE88: 0 | AM88: FALSE
B89: -70 | P89: -70 | AD89: Stage 0 | AE89: 0 | AM89: FALSE
B90: -71 | P90: -71 | AD90: Stage 0 | AE90: 0 | AM90: FALSE
B91: -72 | P91: -72 | AD91: Stage 0 | AE91: 0 | AM91: FALSE
B92: -73 | P92: -73 | AD92: Stage 0 | AE92: 0 | AM92: FALSE
B93: -74 | P93: -74 | AD93: Stage 0 | AE93: 0 | AM93: FALSE
B94: -75 | P94: -75 | AD94: Stage 0 | AE94: 0 | AM94: FALSE
B95: -76 | P95: -76 | AD95: Stage 0 | AE95: 0 | AM95: FALSE
B96: -77 | P96: -77 | AD96: Stage 0 | AE96: 0 | AM96: FALSE
B97: -78 | P97: -78 | AD97: Stage 0 | AE97: 0 | AM97: FALSE
B98: -79 | P98: -79 | AD98: Stage 0 | AE98: 0 | AM98: FALSE
B99: -80 | P99: -80 | AD99: Stage 0 | AE99: 0 | AM99: FALSE
B100: -81 | P100: -81 | AD100: Stage 0 | AE100: 0 | AM100: FALSE
B101: -82 | P101: -82 | AD101: Stage 0 | AE101: 0 | AM101: FALSE
B102: -83 | P102: -83 | AD102: Stage 0 | AE102: 0 | AM102: FALSE
B103: -84 | P103: -84 | AD103: Stage 0 | AE103: 0 | AM103: FALSE
B104: -85 | P104: -85 | AD104: Stage 0 | AE104: 0 | AM104: FALSE
B105: -86 | P105: -86 | AD105: Stage 0 | AE105: 0 | AM105: FALSE
B106: -87 | P106: -87 | AD106: Stage 0 | AE106: 0 | AM106: FALSE
B107: -88 | P107: -88 | AD107: Stage 0 | AE107: 0 | AM107: FALSE
B108: -89 | P108: -89 | AD108: Stage 0 | AE108: 0 | AM108: FALSE
B109: Average | C109: =AVERAGE(C19:C108) ->  | D109: =AVERAGE(D19:D108) ->  | P109: Average | Q109: =AVERAGE(Q19:Q108) ->  | R109: =AVERAGE(R19:R108) -> 
B110: No. Obs. | C110: =COUNT(C19:C108) -> 0 | D110: =COUNT(D19:D108) -> 0 | E110: 0 | F110: 0 | G110: 0 | H110: 0 | I110: 0 | J110: 0 | K110: 0 | L110: 0 | M110: 0 | N110: 0 | P110: No. Obs. | Q110: =COUNT(Q19:Q108) -> 0 | R110: =COUNT(R19:R108) -> 0 | S110: 0 | T110: 0 | U110: 0 | V110: 0 | W110: 0 | X110: 0 | Y110: 0 | Z110: 0 | AA110: 0 | AB110: 0 | AM110: =COUNTIF(sim_yr_yn,TRUE) -> 0
B113: If you have entered all your weather data, go to Step 5
B115: Go back to Revenue Simulation Module Worksheet | X115: Go forward to Step 7: Setup Simulation Worksheet
M117: Model Calculations Below. Do Not Modify
B118: Monthly Precipitation Deviations (inches) | F118: DO NOT MODIFY | P118: Monthly Average Maximum Daily Air Temperature Deviations (degrees F) | W118: DO NOT MODIFY
B120: Year | C120: Jan | D120: Feb | E120: Mar | F120: Apr | G120: May | H120: Jun | I120: Jul | J120: Aug | K120: Sep | L120: Oct | M120: Nov | N120: Dec | P120: Year | Q120: Jan | R120: Feb | S120: Mar | T120: Apr | U120: May | V120: Jun | W120: Jul | X120: Aug | Y120: Sep | Z120: Oct | AA120: Nov | AB120: Dec
B121: =B19 -> 0 | C121: =IF($AM19,(C19-C$109)*IF(units_precip="cm",0.393701,1),"NA") -> NA | D121: NA | E121: NA | F121: NA | G121: NA | H121: NA | I121: NA | J121: NA | K121: NA | L121: NA | M121: NA | N121: NA | P121: =B121 -> 0 | Q121: =IF($AM19,(Q19-Q$109)*IF(units_temp="C",1.8,1),"NA") -> NA | R121: NA | S121: NA | T121: NA | U121: NA | V121: NA | W121: NA | X121: NA | Y121: NA | Z121: NA | AA121: NA | AB121: NA
B122: =B20 -> -1 | C122: =IF($AM20,(C20-C$109)*IF(units_precip="cm",0.393701,1),"NA") -> NA | D122: NA | E122: NA | F122: NA | G122: NA | H122: NA | I122: NA | J122: NA | K122: NA | L122: NA | M122: NA | N122: NA | P122: =B122 -> -1 | Q122: =IF($AM20,(Q20-Q$109)*IF(units_temp="C",1.8,1),"NA") -> NA | R122: NA | S122: NA | T122: NA | U122: NA | V122: NA | W122: NA | X122: NA | Y122: NA | Z122: NA | AA122: NA | AB122: NA
B123: -2 | C123: =IF($AM21,(C21-C$109)*IF(units_precip="cm",0.393701,1),"NA") -> NA | D123: NA | E123: NA | F123: NA | G123: NA | H123: NA | I123: NA | J123: NA | K123: NA | L123: NA | M123: NA | N123: NA | P123: -2 | Q123: =IF($AM21,(Q21-Q$109)*IF(units_temp="C",1.8,1),"NA") -> NA | R123: NA | S123: NA | T123: NA | U123: NA | V123: NA | W123: NA | X123: NA | Y123: NA | Z123: NA | AA123: NA | AB123: NA
B124: -3 | C124: =IF($AM22,(C22-C$109)*IF(units_precip="cm",0.393701,1),"NA") -> NA | D124: NA | E124: NA | F124: NA | G124: NA | H124: NA | I124: NA | J124: NA | K124: NA | L124: NA | M124: NA | N124: NA | P124: -3 | Q124: =IF($AM22,(Q22-Q$109)*IF(units_temp="C",1.8,1),"NA") -> NA | R124: NA | S124: NA | T124: NA | U124: NA | V124: NA | W124: NA | X124: NA | Y124: NA | Z124: NA | AA124: NA | AB124: NA
B125: -4 | C125: =IF($AM23,(C23-C$109)*IF(units_precip="cm",0.393701,1),"NA") -> NA | D125: NA | E125: NA | F125: NA | G125: NA | H125: NA | I125: NA | J125: NA | K125: NA | L125: NA | M125: NA | N125: NA | P125: -4 | Q125: =IF($AM23,(Q23-Q$109)*IF(units_temp="C",1.8,1),"NA") -> NA | R125: NA | S125: NA | T125: NA | U125: NA | V125: NA | W125: NA | X125: NA | Y125: NA | Z125: NA | AA125: NA | AB125: NA
B126: -5 | C126: =IF($AM24,(C24-C$109)*IF(units_precip="cm",0.393701,1),"NA") -> NA | D126: NA | E126: NA | F126: NA | G126: NA | H126: NA | I126: NA | J126: NA | K126: NA | L126: NA | M126: NA | N126: NA | P126: -5 | Q126: =IF($AM24,(Q24-Q$109)*IF(units_temp="C",1.8,1),"NA") -> NA | R126: NA | S126: NA | T126: NA | U126: NA | V126: NA | W126: NA | X126: NA | Y126: NA | Z126: NA | AA126: NA | AB126: NA
B127: -6 | C127: =IF($AM25,(C25-C$109)*IF(units_precip="cm",0.393701,1),"NA") -> NA | D127: NA | E127: NA | F127: NA | G127: NA | H127: NA | I127: NA | J127: NA | K127: NA | L127: NA | M127: NA | N127: NA | P127: -6 | Q127: =IF($AM25,(Q25-Q$109)*IF(units_temp="C",1.8,1),"NA") -> NA | R127: NA | S127: NA | T127: NA | U127: NA | V127: NA | W127: NA | X127: NA | Y127: NA | Z127: NA | AA127: NA | AB127: NA
B128: -7 | C128: =IF($AM26,(C26-C$109)*IF(units_precip="cm",0.393701,1),"NA") -> NA | D128: NA | E128: NA | F128: NA | G128: NA | H128: NA | I128: NA | J128: NA | K128: NA | L128: NA | M128: NA | N128: NA | P128: -7 | Q128: =IF($AM26,(Q26-Q$109)*IF(units_temp="C",1.8,1),"NA") -> NA | R128: NA | S128: NA | T128: NA | U128: NA | V128: NA | W128: NA | X128: NA | Y128: NA | Z128: NA | AA128: NA | AB128: NA
B129: -8 | C129: =IF($AM27,(C27-C$109)*IF(units_precip="cm",0.393701,1),"NA") -> NA | D129: NA | E129: NA | F129: NA | G129: NA | H129: NA | I129: NA | J129: NA | K129: NA | L129: NA | M129: NA | N129: NA | P129: -8 | Q129: =IF($AM27,(Q27-Q$109)*IF(units_temp="C",1.8,1),"NA") -> NA | R129: NA | S129: NA | T129: NA | U129: NA | V129: NA | W129: NA | X129: NA | Y129: NA | Z129: NA | AA129: NA | AB129: NA
B130: -9 | C130: =IF($AM28,(C28-C$109)*IF(units_precip="cm",0.393701,1),"NA") -> NA | D130: NA | E130: NA | F130: NA | G130: NA | H130: NA | I130: NA | J130: NA | K130: NA | L130: NA | M130: NA | N130: NA | P130: -9 | Q130: =IF($AM28,(Q28-Q$109)*IF(units_temp="C",1.8,1),"NA") -> NA | R130: NA | S130: NA | T130: NA | U130: NA | V130: NA | W130: NA | X130: NA | Y130: NA | Z130: NA | AA130: NA | AB130: NA
B131: -10 | C131: =IF($AM29,(C29-C$109)*IF(units_precip="cm",0.393701,1),"NA") -> NA | D131: NA | E131: NA | F131: NA | G131: NA | H131: NA | I131: NA | J131: NA | K131: NA | L131: NA | M131: NA | N131: NA | P131: -10 | Q131: =IF($AM29,(Q29-Q$109)*IF(units_temp="C",1.8,1),"NA") -> NA | R131: NA | S131: NA | T131: NA | U131: NA | V131: NA | W131: NA | X131: NA | Y131: NA | Z131: NA | AA131: NA | AB131: NA
B132: -11 | C132: =IF($AM30,(C30-C$109)*IF(units_precip="cm",0.393701,1),"NA") -> NA | D132: NA | E132: NA | F132: NA | G132: NA | H132: NA | I132: NA | J132: NA | K132: NA | L132: NA | M132: NA | N132: NA | P132: -11 | Q132: =IF($AM30,(Q30-Q$109)*IF(units_temp="C",1.8,1),"NA") -> NA | R132: NA | S132: NA | T132: NA | U132: NA | V132: NA | W132: NA | X132: NA | Y132: NA | Z132: NA | AA132: NA | AB132: NA
B133: -12 | C133: =IF($AM31,(C31-C$109)*IF(units_precip="cm",0.393701,1),"NA") -> NA | D133: NA | E133: NA | F133: NA | G133: NA | H133: NA | I133: NA | J133: NA | K133: NA | L133: NA | M133: NA | N133: NA | P133: -12 | Q133: =IF($AM31,(Q31-Q$109)*IF(units_temp="C",1.8,1),"NA") -> NA | R133: NA | S133: NA | T133: NA | U133: NA | V133: NA | W133: NA | X133: NA | Y133: NA | Z133: NA | AA133: NA | AB133: NA
B134: -13 | C134: =IF($AM32,(C32-C$109)*IF(units_precip="cm",0.393701,1),"NA") -> NA | D134: NA | E134: NA | F134: NA | G134: NA | H134: NA | I134: NA | J134: NA | K134: NA | L134: NA | M134: NA | N134: NA | P134: -13 | Q134: =IF($AM32,(Q32-Q$109)*IF(units_temp="C",1.8,1),"NA") -> NA | R134: NA | S134: NA | T134: NA | U134: NA | V134: NA | W134: NA | X134: NA | Y134: NA | Z134: NA | AA134: NA | AB134: NA
B135: -14 | C135: =IF($AM33,(C33-C$109)*IF(units_precip="cm",0.393701,1),"NA") -> NA | D135: NA | E135: NA | F135: NA | G135: NA | H135: NA | I135: NA | J135: NA | K135: NA | L135: NA | M135: NA | N135: NA | P135: -14 | Q135: =IF($AM33,(Q33-Q$109)*IF(units_temp="C",1.8,1),"NA") -> NA | R135: NA | S135: NA | T135: NA | U135: NA | V135: NA | W135: NA | X135: NA | Y135: NA | Z135: NA | AA135: NA | AB135: NA
B136: -15 | C136: =IF($AM34,(C34-C$109)*IF(units_precip="cm",0.393701,1),"NA") -> NA | D136: NA | E136: NA | F136: NA | G136: NA | H136: NA | I136: NA | J136: NA | K136: NA | L136: NA | M136: NA | N136: NA | P136: -15 | Q136: =IF($AM34,(Q34-Q$109)*IF(units_temp="C",1.8,1),"NA") -> NA | R136: NA | S136: NA | T136: NA | U136: NA | V136: NA | W136: NA | X136: NA | Y136: NA | Z136: NA | AA136: NA | AB136: NA
B137: -16 | C137: =IF($AM35,(C35-C$109)*IF(units_precip="cm",0.393701,1),"NA") -> NA | D137: NA | E137: NA | F137: NA | G137: NA | H137: NA | I137: NA | J137: NA | K137: NA | L137: NA | M137: NA | N137: NA | P137: -16 | Q137: =IF($AM35,(Q35-Q$109)*IF(units_temp="C",1.8,1),"NA") -> NA | R137: NA | S137: NA | T137: NA | U137: NA | V137: NA | W137: NA | X137: NA | Y137: NA | Z137: NA | AA137: NA | AB137: NA
B138: -17 | C138: =IF($AM36,(C36-C$109)*IF(units_precip="cm",0.393701,1),"NA") -> NA | D138: NA | E138: NA | F138: NA | G138: NA | H138: NA | I138: NA | J138: NA | K138: NA | L138: NA | M138: NA | N138: NA | P138: -17 | Q138: =IF($AM36,(Q36-Q$109)*IF(units_temp="C",1.8,1),"NA") -> NA | R138: NA | S138: NA | T138: NA | U138: NA | V138: NA | W138: NA | X138: NA | Y138: NA | Z138: NA | AA138: NA | AB138: NA
B139: -18 | C139: =IF($AM37,(C37-C$109)*IF(units_precip="cm",0.393701,1),"NA") -> NA | D139: NA | E139: NA | F139: NA | G139: NA | H139: NA | I139: NA | J139: NA | K139: NA | L139: NA | M139: NA | N139: NA | P139: -18 | Q139: =IF($AM37,(Q37-Q$109)*IF(units_temp="C",1.8,1),"NA") -> NA | R139: NA | S139: NA | T139: NA | U139: NA | V139: NA | W139: NA | X139: NA | Y139: NA | Z139: NA | AA139: NA | AB139: NA
B140: -19 | C140: =IF($AM38,(C38-C$109)*IF(units_precip="cm",0.393701,1),"NA") -> NA | D140: NA | E140: NA | F140: NA | G140: NA | H140: NA | I140: NA | J140: NA | K140: NA | L140: NA | M140: NA | N140: NA | P140: -19 | Q140: =IF($AM38,(Q38-Q$109)*IF(units_temp="C",1.8,1),"NA") -> NA | R140: NA | S140: NA | T140: NA | U140: NA | V140: NA | W140: NA | X140: NA | Y140: NA | Z140: NA | AA140: NA | AB140: NA
B141: -20 | C141: =IF($AM39,(C39-C$109)*IF(units_precip="cm",0.393701,1),"NA") -> NA | D141: NA | E141: NA | F141: NA | G141: NA | H141: NA | I141: NA | J141: NA | K141: NA | L141: NA | M141: NA | N141: NA | P141: -20 | Q141: =IF($AM39,(Q39-Q$109)*IF(units_temp="C",1.8,1),"NA") -> NA | R141: NA | S141: NA | T141: NA | U141: NA | V141: NA | W141: NA | X141: NA | Y141: NA | Z141: NA | AA141: NA | AB141: NA
B142: -21 | C142: =IF($AM40,(C40-C$109)*IF(units_precip="cm",0.393701,1),"NA") -> NA | D142: NA | E142: NA | F142: NA | G142: NA | H142: NA | I142: NA | J142: NA | K142: NA | L142: NA | M142: NA | N142: NA | P142: -21 | Q142: =IF($AM40,(Q40-Q$109)*IF(units_temp="C",1.8,1),"NA") -> NA | R142: NA | S142: NA | T142: NA | U142: NA | V142: NA | W142: NA | X142: NA | Y142: NA | Z142: NA | AA142: NA | AB142: NA
B143: -22 | C143: =IF($AM41,(C41-C$109)*IF(units_precip="cm",0.393701,1),"NA") -> NA | D143: NA | E143: NA | F143: NA | G143: NA | H143: NA | I143: NA | J143: NA | K143: NA | L143: NA | M143: NA | N143: NA | P143: -22 | Q143: =IF($AM41,(Q41-Q$109)*IF(units_temp="C",1.8,1),"NA") -> NA | R143: NA | S143: NA | T143: NA | U143: NA | V143: NA | W143: NA | X143: NA | Y143: NA | Z143: NA | AA143: NA | AB143: NA
B144: -23 | C144: =IF($AM42,(C42-C$109)*IF(units_precip="cm",0.393701,1),"NA") -> NA | D144: NA | E144: NA | F144: NA | G144: NA | H144: NA | I144: NA | J144: NA | K144: NA | L144: NA | M144: NA | N144: NA | P144: -23 | Q144: =IF($AM42,(Q42-Q$109)*IF(units_temp="C",1.8,1),"NA") -> NA | R144: NA | S144: NA | T144: NA | U144: NA | V144: NA | W144: NA | X144: NA | Y144: NA | Z144: NA | AA144: NA | AB144: NA
B145: -24 | C145: =IF($AM43,(C43-C$109)*IF(units_precip="cm",0.393701,1),"NA") -> NA | D145: NA | E145: NA | F145: NA | G145: NA | H145: NA | I145: NA | J145: NA | K145: NA | L145: NA | M145: NA | N145: NA | P145: -24 | Q145: =IF($AM43,(Q43-Q$109)*IF(units_temp="C",1.8,1),"NA") -> NA | R145: NA | S145: NA | T145: NA | U145: NA | V145: NA | W145: NA | X145: NA | Y145: NA | Z145: NA | AA145: NA | AB145: NA
B146: -25 | C146: =IF($AM44,(C44-C$109)*IF(units_precip="cm",0.393701,1),"NA") -> NA | D146: NA | E146: NA | F146: NA | G146: NA | H146: NA | I146: NA | J146: NA | K146: NA | L146: NA | M146: NA | N146: NA | P146: -25 | Q146: =IF($AM44,(Q44-Q$109)*IF(units_temp="C",1.8,1),"NA") -> NA | R146: NA | S146: NA | T146: NA | U146: NA | V146: NA | W146: NA | X146: NA | Y146: NA | Z146: NA | AA146: NA | AB146: NA
B147: -26 | C147: =IF($AM45,(C45-C$109)*IF(units_precip="cm",0.393701,1),"NA") -> NA | D147: NA | E147: NA | F147: NA | G147: NA | H147: NA | I147: NA | J147: NA | K147: NA | L147: NA | M147: NA | N147: NA | P147: -26 | Q147: =IF($AM45,(Q45-Q$109)*IF(units_temp="C",1.8,1),"NA") -> NA | R147: NA | S147: NA | T147: NA | U147: NA | V147: NA | W147: NA | X147: NA | Y147: NA | Z147: NA | AA147: NA | AB147: NA
B148: -27 | C148: =IF($AM46,(C46-C$109)*IF(units_precip="cm",0.393701,1),"NA") -> NA | D148: NA | E148: NA | F148: NA | G148: NA | H148: NA | I148: NA | J148: NA | K148: NA | L148: NA | M148: NA | N148: NA | P148: -27 | Q148: =IF($AM46,(Q46-Q$109)*IF(units_temp="C",1.8,1),"NA") -> NA | R148: NA | S148: NA | T148: NA | U148: NA | V148: NA | W148: NA | X148: NA | Y148: NA | Z148: NA | AA148: NA | AB148: NA
B149: -28 | C149: =IF($AM47,(C47-C$109)*IF(units_precip="cm",0.393701,1),"NA") -> NA | D149: NA | E149: NA | F149: NA | G149: NA | H149: NA | I149: NA | J149: NA | K149: NA | L149: NA | M149: NA | N149: NA | P149: -28 | Q149: =IF($AM47,(Q47-Q$109)*IF(units_temp="C",1.8,1),"NA") -> NA | R149: NA | S149: NA | T149: NA | U149: NA | V149: NA | W149: NA | X149: NA | Y149: NA | Z149: NA | AA149: NA | AB149: NA
B150: -29 | C150: =IF($AM48,(C48-C$109)*IF(units_precip="cm",0.393701,1),"NA") -> NA | D150: NA | E150: NA | F150: NA | G150: NA | H150: NA | I150: NA | J150: NA | K150: NA | L150: NA | M150: NA | N150: NA | P150: -29 | Q150: =IF($AM48,(Q48-Q$109)*IF(units_temp="C",1.8,1),"NA") -> NA | R150: NA | S150: NA | T150: NA | U150: NA | V150: NA | W150: NA | X150: NA | Y150: NA | Z150: NA | AA150: NA | AB150: NA
B151: -30 | C151: =IF($AM49,(C49-C$109)*IF(units_precip="cm",0.393701,1),"NA") -> NA | D151: NA | E151: NA | F151: NA | G151: NA | H151: NA | I151: NA | J151: NA | K151: NA | L151: NA | M151: NA | N151: NA | P151: -30 | Q151: =IF($AM49,(Q49-Q$109)*IF(units_temp="C",1.8,1),"NA") -> NA | R151: NA | S151: NA | T151: NA | U151: NA | V151: NA | W151: NA | X151: NA | Y151: NA | Z151: NA | AA151: NA | AB151: NA
B152: -31 | C152: =IF($AM50,(C50-C$109)*IF(units_precip="cm",0.393701,1),"NA") -> NA | D152: NA | E152: NA | F152: NA | G152: NA | H152: NA | I152: NA | J152: NA | K152: NA | L152: NA | M152: NA | N152: NA | P152: -31 | Q152: =IF($AM50,(Q50-Q$109)*IF(units_temp="C",1.8,1),"NA") -> NA | R152: NA | S152: NA | T152: NA | U152: NA | V152: NA | W152: NA | X152: NA | Y152: NA | Z152: NA | AA152: NA | AB152: NA
B153: -32 | C153: =IF($AM51,(C51-C$109)*IF(units_precip="cm",0.393701,1),"NA") -> NA | D153: NA | E153: NA | F153: NA | G153: NA | H153: NA | I153: NA | J153: NA | K153: NA | L153: NA | M153: NA | N153: NA | P153: -32 | Q153: =IF($AM51,(Q51-Q$109)*IF(units_temp="C",1.8,1),"NA") -> NA | R153: NA | S153: NA | T153: NA | U153: NA | V153: NA | W153: NA | X153: NA | Y153: NA | Z153: NA | AA153: NA | AB153: NA
B154: -33 | C154: =IF($AM52,(C52-C$109)*IF(units_precip="cm",0.393701,1),"NA") -> NA | D154: NA | E154: NA | F154: NA | G154: NA | H154: NA | I154: NA | J154: NA | K154: NA | L154: NA | M154: NA | N154: NA | P154: -33 | Q154: =IF($AM52,(Q52-Q$109)*IF(units_temp="C",1.8,1),"NA") -> NA | R154: NA | S154: NA | T154: NA | U154: NA | V154: NA | W154: NA | X154: NA | Y154: NA | Z154: NA | AA154: NA | AB154: NA
B155: -34 | C155: =IF($AM53,(C53-C$109)*IF(units_precip="cm",0.393701,1),"NA") -> NA | D155: NA | E155: NA | F155: NA | G155: NA | H155: NA | I155: NA | J155: NA | K155: NA | L155: NA | M155: NA | N155: NA | P155: -34 | Q155: =IF($AM53,(Q53-Q$109)*IF(units_temp="C",1.8,1),"NA") -> NA | R155: NA | S155: NA | T155: NA | U155: NA | V155: NA | W155: NA | X155: NA | Y155: NA | Z155: NA | AA155: NA | AB155: NA
B156: -35 | C156: =IF($AM54,(C54-C$109)*IF(units_precip="cm",0.393701,1),"NA") -> NA | D156: NA | E156: NA | F156: NA | G156: NA | H156: NA | I156: NA | J156: NA | K156: NA | L156: NA | M156: NA | N156: NA | P156: -35 | Q156: =IF($AM54,(Q54-Q$109)*IF(units_temp="C",1.8,1),"NA") -> NA | R156: NA | S156: NA | T156: NA | U156: NA | V156: NA | W156: NA | X156: NA | Y156: NA | Z156: NA | AA156: NA | AB156: NA
B157: -36 | C157: =IF($AM55,(C55-C$109)*IF(units_precip="cm",0.393701,1),"NA") -> NA | D157: NA | E157: NA | F157: NA | G157: NA | H157: NA | I157: NA | J157: NA | K157: NA | L157: NA | M157: NA | N157: NA | P157: -36 | Q157: =IF($AM55,(Q55-Q$109)*IF(units_temp="C",1.8,1),"NA") -> NA | R157: NA | S157: NA | T157: NA | U157: NA | V157: NA | W157: NA | X157: NA | Y157: NA | Z157: NA | AA157: NA | AB157: NA
B158: -37 | C158: =IF($AM56,(C56-C$109)*IF(units_precip="cm",0.393701,1),"NA") -> NA | D158: NA | E158: NA | F158: NA | G158: NA | H158: NA | I158: NA | J158: NA | K158: NA | L158: NA | M158: NA | N158: NA | P158: -37 | Q158: =IF($AM56,(Q56-Q$109)*IF(units_temp="C",1.8,1),"NA") -> NA | R158: NA | S158: NA | T158: NA | U158: NA | V158: NA | W158: NA | X158: NA | Y158: NA | Z158: NA | AA158: NA | AB158: NA
B159: -38 | C159: =IF($AM57,(C57-C$109)*IF(units_precip="cm",0.393701,1),"NA") -> NA | D159: NA | E159: NA | F159: NA | G159: NA | H159: NA | I159: NA | J159: NA | K159: NA | L159: NA | M159: NA | N159: NA | P159: -38 | Q159: =IF($AM57,(Q57-Q$109)*IF(units_temp="C",1.8,1),"NA") -> NA | R159: NA | S159: NA | T159: NA | U159: NA | V159: NA | W159: NA | X159: NA | Y159: NA | Z159: NA | AA159: NA | AB159: NA
B160: -39 | C160: =IF($AM58,(C58-C$109)*IF(units_precip="cm",0.393701,1),"NA") -> NA | D160: NA | E160: NA | F160: NA | G160: NA | H160: NA | I160: NA | J160: NA | K160: NA | L160: NA | M160: NA | N160: NA | P160: -39 | Q160: =IF($AM58,(Q58-Q$109)*IF(units_temp="C",1.8,1),"NA") -> NA | R160: NA | S160: NA | T160: NA | U160: NA | V160: NA | W160: NA | X160: NA | Y160: NA | Z160: NA | AA160: NA | AB160: NA
B161: -40 | C161: =IF($AM59,(C59-C$109)*IF(units_precip="cm",0.393701,1),"NA") -> NA | D161: NA | E161: NA | F161: NA | G161: NA | H161: NA | I161: NA | J161: NA | K161: NA | L161: NA | M161: NA | N161: NA | P161: -40 | Q161: =IF($AM59,(Q59-Q$109)*IF(units_temp="C",1.8,1),"NA") -> NA | R161: NA | S161: NA | T161: NA | U161: NA | V161: NA | W161: NA | X161: NA | Y161: NA | Z161: NA | AA161: NA | AB161: NA
B162: -41 | C162: =IF($AM60,(C60-C$109)*IF(units_precip="cm",0.393701,1),"NA") -> NA | D162: NA | E162: NA | F162: NA | G162: NA | H162: NA | I162: NA | J162: NA | K162: NA | L162: NA | M162: NA | N162: NA | P162: -41 | Q162: =IF($AM60,(Q60-Q$109)*IF(units_temp="C",1.8,1),"NA") -> NA | R162: NA | S162: NA | T162: NA | U162: NA | V162: NA | W162: NA | X162: NA | Y162: NA | Z162: NA | AA162: NA | AB162: NA
B163: -42 | C163: =IF($AM61,(C61-C$109)*IF(units_precip="cm",0.393701,1),"NA") -> NA | D163: NA | E163: NA | F163: NA | G163: NA | H163: NA | I163: NA | J163: NA | K163: NA | L163: NA | M163: NA | N163: NA | P163: -42 | Q163: =IF($AM61,(Q61-Q$109)*IF(units_temp="C",1.8,1),"NA") -> NA | R163: NA | S163: NA | T163: NA | U163: NA | V163: NA | W163: NA | X163: NA | Y163: NA | Z163: NA | AA163: NA | AB163: NA
B164: -43 | C164: =IF($AM62,(C62-C$109)*IF(units_precip="cm",0.393701,1),"NA") -> NA | D164: NA | E164: NA | F164: NA | G164: NA | H164: NA | I164: NA | J164: NA | K164: NA | L164: NA | M164: NA | N164: NA | P164: -43 | Q164: =IF($AM62,(Q62-Q$109)*IF(units_temp="C",1.8,1),"NA") -> NA | R164: NA | S164: NA | T164: NA | U164: NA | V164: NA | W164: NA | X164: NA | Y164: NA | Z164: NA | AA164: NA | AB164: NA
B165: -44 | C165: =IF($AM63,(C63-C$109)*IF(units_precip="cm",0.393701,1),"NA") -> NA | D165: NA | E165: NA | F165: NA | G165: NA | H165: NA | I165: NA | J165: NA | K165: NA | L165: NA | M165: NA | N165: NA | P165: -44 | Q165: =IF($AM63,(Q63-Q$109)*IF(units_temp="C",1.8,1),"NA") -> NA | R165: NA | S165: NA | T165: NA | U165: NA | V165: NA | W165: NA | X165: NA | Y165: NA | Z165: NA | AA165: NA | AB165: NA
B166: -45 | C166: =IF($AM64,(C64-C$109)*IF(units_precip="cm",0.393701,1),"NA") -> NA | D166: NA | E166: NA | F166: NA | G166: NA | H166: NA | I166: NA | J166: NA | K166: NA | L166: NA | M166: NA | N166: NA | P166: -45 | Q166: =IF($AM64,(Q64-Q$109)*IF(units_temp="C",1.8,1),"NA") -> NA | R166: NA | S166: NA | T166: NA | U166: NA | V166: NA | W166: NA | X166: NA | Y166: NA | Z166: NA | AA166: NA | AB166: NA
B167: -46 | C167: =IF($AM65,(C65-C$109)*IF(units_precip="cm",0.393701,1),"NA") -> NA | D167: NA | E167: NA | F167: NA | G167: NA | H167: NA | I167: NA | J167: NA | K167: NA | L167: NA | M167: NA | N167: NA | P167: -46 | Q167: =IF($AM65,(Q65-Q$109)*IF(units_temp="C",1.8,1),"NA") -> NA | R167: NA | S167: NA | T167: NA | U167: NA | V167: NA | W167: NA | X167: NA | Y167: NA | Z167: NA | AA167: NA | AB167: NA
B168: -47 | C168: =IF($AM66,(C66-C$109)*IF(units_precip="cm",0.393701,1),"NA") -> NA | D168: NA | E168: NA | F168: NA | G168: NA | H168: NA | I168: NA | J168: NA | K168: NA | L168: NA | M168: NA | N168: NA | P168: -47 | Q168: =IF($AM66,(Q66-Q$109)*IF(units_temp="C",1.8,1),"NA") -> NA | R168: NA | S168: NA | T168: NA | U168: NA | V168: NA | W168: NA | X168: NA | Y168: NA | Z168: NA | AA168: NA | AB168: NA
B169: -48 | C169: =IF($AM67,(C67-C$109)*IF(units_precip="cm",0.393701,1),"NA") -> NA | D169: NA | E169: NA | F169: NA | G169: NA | H169: NA | I169: NA | J169: NA | K169: NA | L169: NA | M169: NA | N169: NA | P169: -48 | Q169: =IF($AM67,(Q67-Q$109)*IF(units_temp="C",1.8,1),"NA") -> NA | R169: NA | S169: NA | T169: NA | U169: NA | V169: NA | W169: NA | X169: NA | Y169: NA | Z169: NA | AA169: NA | AB169: NA
B170: -49 | C170: =IF($AM68,(C68-C$109)*IF(units_precip="cm",0.393701,1),"NA") -> NA | D170: NA | E170: NA | F170: NA | G170: NA | H170: NA | I170: NA | J170: NA | K170: NA | L170: NA | M170: NA | N170: NA | P170: -49 | Q170: =IF($AM68,(Q68-Q$109)*IF(units_temp="C",1.8,1),"NA") -> NA | R170: NA | S170: NA | T170: NA | U170: NA | V170: NA | W170: NA | X170: NA | Y170: NA | Z170: NA | AA170: NA | AB170: NA
B171: -50 | C171: =IF($AM69,(C69-C$109)*IF(units_precip="cm",0.393701,1),"NA") -> NA | D171: NA | E171: NA | F171: NA | G171: NA | H171: NA | I171: NA | J171: NA | K171: NA | L171: NA | M171: NA | N171: NA | P171: -50 | Q171: =IF($AM69,(Q69-Q$109)*IF(units_temp="C",1.8,1),"NA") -> NA | R171: NA | S171: NA | T171: NA | U171: NA | V171: NA | W171: NA | X171: NA | Y171: NA | Z171: NA | AA171: NA | AB171: NA
B172: -51 | C172: =IF($AM70,(C70-C$109)*IF(units_precip="cm",0.393701,1),"NA") -> NA | D172: NA | E172: NA | F172: NA | G172: NA | H172: NA | I172: NA | J172: NA | K172: NA | L172: NA | M172: NA | N172: NA | P172: -51 | Q172: =IF($AM70,(Q70-Q$109)*IF(units_temp="C",1.8,1),"NA") -> NA | R172: NA | S172: NA | T172: NA | U172: NA | V172: NA | W172: NA | X172: NA | Y172: NA | Z172: NA | AA172: NA | AB172: NA
B173: -52 | C173: =IF($AM71,(C71-C$109)*IF(units_precip="cm",0.393701,1),"NA") -> NA | D173: NA | E173: NA | F173: NA | G173: NA | H173: NA | I173: NA | J173: NA | K173: NA | L173: NA | M173: NA | N173: NA | P173: -52 | Q173: =IF($AM71,(Q71-Q$109)*IF(units_temp="C",1.8,1),"NA") -> NA | R173: NA | S173: NA | T173: NA | U173: NA | V173: NA | W173: NA | X173: NA | Y173: NA | Z173: NA | AA173: NA | AB173: NA
B174: -53 | C174: =IF($AM72,(C72-C$109)*IF(units_precip="cm",0.393701,1),"NA") -> NA | D174: NA | E174: NA | F174: NA | G174: NA | H174: NA | I174: NA | J174: NA | K174: NA | L174: NA | M174: NA | N174: NA | P174: -53 | Q174: =IF($AM72,(Q72-Q$109)*IF(units_temp="C",1.8,1),"NA") -> NA | R174: NA | S174: NA | T174: NA | U174: NA | V174: NA | W174: NA | X174: NA | Y174: NA | Z174: NA | AA174: NA | AB174: NA
B175: -54 | C175: =IF($AM73,(C73-C$109)*IF(units_precip="cm",0.393701,1),"NA") -> NA | D175: NA | E175: NA | F175: NA | G175: NA | H175: NA | I175: NA | J175: NA | K175: NA | L175: NA | M175: NA | N175: NA | P175: -54 | Q175: =IF($AM73,(Q73-Q$109)*IF(units_temp="C",1.8,1),"NA") -> NA | R175: NA | S175: NA | T175: NA | U175: NA | V175: NA | W175: NA | X175: NA | Y175: NA | Z175: NA | AA175: NA | AB175: NA
B176: -55 | C176: =IF($AM74,(C74-C$109)*IF(units_precip="cm",0.393701,1),"NA") -> NA | D176: NA | E176: NA | F176: NA | G176: NA | H176: NA | I176: NA | J176: NA | K176: NA | L176: NA | M176: NA | N176: NA | P176: -55 | Q176: =IF($AM74,(Q74-Q$109)*IF(units_temp="C",1.8,1),"NA") -> NA | R176: NA | S176: NA | T176: NA | U176: NA | V176: NA | W176: NA | X176: NA | Y176: NA | Z176: NA | AA176: NA | AB176: NA
B177: -56 | C177: =IF($AM75,(C75-C$109)*IF(units_precip="cm",0.393701,1),"NA") -> NA | D177: NA | E177: NA | F177: NA | G177: NA | H177: NA | I177: NA | J177: NA | K177: NA | L177: NA | M177: NA | N177: NA | P177: -56 | Q177: =IF($AM75,(Q75-Q$109)*IF(units_temp="C",1.8,1),"NA") -> NA | R177: NA | S177: NA | T177: NA | U177: NA | V177: NA | W177: NA | X177: NA | Y177: NA | Z177: NA | AA177: NA | AB177: NA
B178: -57 | C178: =IF($AM76,(C76-C$109)*IF(units_precip="cm",0.393701,1),"NA") -> NA | D178: NA | E178: NA | F178: NA | G178: NA | H178: NA | I178: NA | J178: NA | K178: NA | L178: NA | M178: NA | N178: NA | P178: -57 | Q178: =IF($AM76,(Q76-Q$109)*IF(units_temp="C",1.8,1),"NA") -> NA | R178: NA | S178: NA | T178: NA | U178: NA | V178: NA | W178: NA | X178: NA | Y178: NA | Z178: NA | AA178: NA | AB178: NA
B179: -58 | C179: =IF($AM77,(C77-C$109)*IF(units_precip="cm",0.393701,1),"NA") -> NA | D179: NA | E179: NA | F179: NA | G179: NA | H179: NA | I179: NA | J179: NA | K179: NA | L179: NA | M179: NA | N179: NA | P179: -58 | Q179: =IF($AM77,(Q77-Q$109)*IF(units_temp="C",1.8,1),"NA") -> NA | R179: NA | S179: NA | T179: NA | U179: NA | V179: NA | W179: NA | X179: NA | Y179: NA | Z179: NA | AA179: NA | AB179: NA
B180: -59 | C180: =IF($AM78,(C78-C$109)*IF(units_precip="cm",0.393701,1),"NA") -> NA | D180: NA | E180: NA | F180: NA | G180: NA | H180: NA | I180: NA | J180: NA | K180: NA | L180: NA | M180: NA | N180: NA | P180: -59 | Q180: =IF($AM78,(Q78-Q$109)*IF(units_temp="C",1.8,1),"NA") -> NA | R180: NA | S180: NA | T180: NA | U180: NA | V180: NA | W180: NA | X180: NA | Y180: NA | Z180: NA | AA180: NA | AB180: NA
B181: -60 | C181: =IF($AM79,(C79-C$109)*IF(units_precip="cm",0.393701,1),"NA") -> NA | D181: NA | E181: NA | F181: NA | G181: NA | H181: NA | I181: NA | J181: NA | K181: NA | L181: NA | M181: NA | N181: NA | P181: -60 | Q181: =IF($AM79,(Q79-Q$109)*IF(units_temp="C",1.8,1),"NA") -> NA | R181: NA | S181: NA | T181: NA | U181: NA | V181: NA | W181: NA | X181: NA | Y181: NA | Z181: NA | AA181: NA | AB181: NA
B182: -61 | C182: =IF($AM80,(C80-C$109)*IF(units_precip="cm",0.393701,1),"NA") -> NA | D182: NA | E182: NA | F182: NA | G182: NA | H182: NA | I182: NA | J182: NA | K182: NA | L182: NA | M182: NA | N182: NA | P182: -61 | Q182: =IF($AM80,(Q80-Q$109)*IF(units_temp="C",1.8,1),"NA") -> NA | R182: NA | S182: NA | T182: NA | U182: NA | V182: NA | W182: NA | X182: NA | Y182: NA | Z182: NA | AA182: NA | AB182: NA
B183: -62 | C183: =IF($AM81,(C81-C$109)*IF(units_precip="cm",0.393701,1),"NA") -> NA | D183: NA | E183: NA | F183: NA | G183: NA | H183: NA | I183: NA | J183: NA | K183: NA | L183: NA | M183: NA | N183: NA | P183: -62 | Q183: =IF($AM81,(Q81-Q$109)*IF(units_temp="C",1.8,1),"NA") -> NA | R183: NA | S183: NA | T183: NA | U183: NA | V183: NA | W183: NA | X183: NA | Y183: NA | Z183: NA | AA183: NA | AB183: NA
B184: -63 | C184: =IF($AM82,(C82-C$109)*IF(units_precip="cm",0.393701,1),"NA") -> NA | D184: NA | E184: NA | F184: NA | G184: NA | H184: NA | I184: NA | J184: NA | K184: NA | L184: NA | M184: NA | N184: NA | P184: -63 | Q184: =IF($AM82,(Q82-Q$109)*IF(units_temp="C",1.8,1),"NA") -> NA | R184: NA | S184: NA | T184: NA | U184: NA | V184: NA | W184: NA | X184: NA | Y184: NA | Z184: NA | AA184: NA | AB184: NA
B185: -64 | C185: =IF($AM83,(C83-C$109)*IF(units_precip="cm",0.393701,1),"NA") -> NA | D185: NA | E185: NA | F185: NA | G185: NA | H185: NA | I185: NA | J185: NA | K185: NA | L185: NA | M185: NA | N185: NA | P185: -64 | Q185: =IF($AM83,(Q83-Q$109)*IF(units_temp="C",1.8,1),"NA") -> NA | R185: NA | S185: NA | T185: NA | U185: NA | V185: NA | W185: NA | X185: NA | Y185: NA | Z185: NA | AA185: NA | AB185: NA
B186: =B84 -> -65 | C186: =IF($AM84,(C84-C$109)*IF(units_precip="cm",0.393701,1),"NA") -> NA | D186: NA | E186: NA | F186: NA | G186: NA | H186: NA | I186: NA | J186: NA | K186: NA | L186: NA | M186: NA | N186: NA | P186: =B186 -> -65 | Q186: =IF($AM84,(Q84-Q$109)*IF(units_temp="C",1.8,1),"NA") -> NA | R186: NA | S186: NA | T186: NA | U186: NA | V186: NA | W186: NA | X186: NA | Y186: NA | Z186: NA | AA186: NA | AB186: NA
B187: -66 | C187: =IF($AM85,(C85-C$109)*IF(units_precip="cm",0.393701,1),"NA") -> NA | D187: NA | E187: NA | F187: NA | G187: NA | H187: NA | I187: NA | J187: NA | K187: NA | L187: NA | M187: NA | N187: NA | P187: -66 | Q187: =IF($AM85,(Q85-Q$109)*IF(units_temp="C",1.8,1),"NA") -> NA | R187: NA | S187: NA | T187: NA | U187: NA | V187: NA | W187: NA | X187: NA | Y187: NA | Z187: NA | AA187: NA | AB187: NA
B188: -67 | C188: =IF($AM86,(C86-C$109)*IF(units_precip="cm",0.393701,1),"NA") -> NA | D188: NA | E188: NA | F188: NA | G188: NA | H188: NA | I188: NA | J188: NA | K188: NA | L188: NA | M188: NA | N188: NA | P188: -67 | Q188: =IF($AM86,(Q86-Q$109)*IF(units_temp="C",1.8,1),"NA") -> NA | R188: NA | S188: NA | T188: NA | U188: NA | V188: NA | W188: NA | X188: NA | Y188: NA | Z188: NA | AA188: NA | AB188: NA
B189: -68 | C189: =IF($AM87,(C87-C$109)*IF(units_precip="cm",0.393701,1),"NA") -> NA | D189: NA | E189: NA | F189: NA | G189: NA | H189: NA | I189: NA | J189: NA | K189: NA | L189: NA | M189: NA | N189: NA | P189: -68 | Q189: =IF($AM87,(Q87-Q$109)*IF(units_temp="C",1.8,1),"NA") -> NA | R189: NA | S189: NA | T189: NA | U189: NA | V189: NA | W189: NA | X189: NA | Y189: NA | Z189: NA | AA189: NA | AB189: NA
B190: -69 | C190: =IF($AM88,(C88-C$109)*IF(units_precip="cm",0.393701,1),"NA") -> NA | D190: NA | E190: NA | F190: NA | G190: NA | H190: NA | I190: NA | J190: NA | K190: NA | L190: NA | M190: NA | N190: NA | P190: -69 | Q190: =IF($AM88,(Q88-Q$109)*IF(units_temp="C",1.8,1),"NA") -> NA | R190: NA | S190: NA | T190: NA | U190: NA | V190: NA | W190: NA | X190: NA | Y190: NA | Z190: NA | AA190: NA | AB190: NA
B191: -70 | C191: =IF($AM89,(C89-C$109)*IF(units_precip="cm",0.393701,1),"NA") -> NA | D191: NA | E191: NA | F191: NA | G191: NA | H191: NA | I191: NA | J191: NA | K191: NA | L191: NA | M191: NA | N191: NA | P191: -70 | Q191: =IF($AM89,(Q89-Q$109)*IF(units_temp="C",1.8,1),"NA") -> NA | R191: NA | S191: NA | T191: NA | U191: NA | V191: NA | W191: NA | X191: NA | Y191: NA | Z191: NA | AA191: NA | AB191: NA
B192: -71 | C192: =IF($AM90,(C90-C$109)*IF(units_precip="cm",0.393701,1),"NA") -> NA | D192: NA | E192: NA | F192: NA | G192: NA | H192: NA | I192: NA | J192: NA | K192: NA | L192: NA | M192: NA | N192: NA | P192: -71 | Q192: =IF($AM90,(Q90-Q$109)*IF(units_temp="C",1.8,1),"NA") -> NA | R192: NA | S192: NA | T192: NA | U192: NA | V192: NA | W192: NA | X192: NA | Y192: NA | Z192: NA | AA192: NA | AB192: NA
B193: -72 | C193: =IF($AM91,(C91-C$109)*IF(units_precip="cm",0.393701,1),"NA") -> NA | D193: NA | E193: NA | F193: NA | G193: NA | H193: NA | I193: NA | J193: NA | K193: NA | L193: NA | M193: NA | N193: NA | P193: -72 | Q193: =IF($AM91,(Q91-Q$109)*IF(units_temp="C",1.8,1),"NA") -> NA | R193: NA | S193: NA | T193: NA | U193: NA | V193: NA | W193: NA | X193: NA | Y193: NA | Z193: NA | AA193: NA | AB193: NA
B194: -73 | C194: =IF($AM92,(C92-C$109)*IF(units_precip="cm",0.393701,1),"NA") -> NA | D194: NA | E194: NA | F194: NA | G194: NA | H194: NA | I194: NA | J194: NA | K194: NA | L194: NA | M194: NA | N194: NA | P194: -73 | Q194: =IF($AM92,(Q92-Q$109)*IF(units_temp="C",1.8,1),"NA") -> NA | R194: NA | S194: NA | T194: NA | U194: NA | V194: NA | W194: NA | X194: NA | Y194: NA | Z194: NA | AA194: NA | AB194: NA
B195: -74 | C195: =IF($AM93,(C93-C$109)*IF(units_precip="cm",0.393701,1),"NA") -> NA | D195: NA | E195: NA | F195: NA | G195: NA | H195: NA | I195: NA | J195: NA | K195: NA | L195: NA | M195: NA | N195: NA | P195: -74 | Q195: =IF($AM93,(Q93-Q$109)*IF(units_temp="C",1.8,1),"NA") -> NA | R195: NA | S195: NA | T195: NA | U195: NA | V195: NA | W195: NA | X195: NA | Y195: NA | Z195: NA | AA195: NA | AB195: NA
B196: -75 | C196: =IF($AM94,(C94-C$109)*IF(units_precip="cm",0.393701,1),"NA") -> NA | D196: NA | E196: NA | F196: NA | G196: NA | H196: NA | I196: NA | J196: NA | K196: NA | L196: NA | M196: NA | N196: NA | P196: -75 | Q196: =IF($AM94,(Q94-Q$109)*IF(units_temp="C",1.8,1),"NA") -> NA | R196: NA | S196: NA | T196: NA | U196: NA | V196: NA | W196: NA | X196: NA | Y196: NA | Z196: NA | AA196: NA | AB196: NA
B197: -76 | C197: =IF($AM95,(C95-C$109)*IF(units_precip="cm",0.393701,1),"NA") -> NA | D197: NA | E197: NA | F197: NA | G197: NA | H197: NA | I197: NA | J197: NA | K197: NA | L197: NA | M197: NA | N197: NA | P197: -76 | Q197: =IF($AM95,(Q95-Q$109)*IF(units_temp="C",1.8,1),"NA") -> NA | R197: NA | S197: NA | T197: NA | U197: NA | V197: NA | W197: NA | X197: NA | Y197: NA | Z197: NA | AA197: NA | AB197: NA
B198: -77 | C198: =IF($AM96,(C96-C$109)*IF(units_precip="cm",0.393701,1),"NA") -> NA | D198: NA | E198: NA | F198: NA | G198: NA | H198: NA | I198: NA | J198: NA | K198: NA | L198: NA | M198: NA | N198: NA | P198: -77 | Q198: =IF($AM96,(Q96-Q$109)*IF(units_temp="C",1.8,1),"NA") -> NA | R198: NA | S198: NA | T198: NA | U198: NA | V198: NA | W198: NA | X198: NA | Y198: NA | Z198: NA | AA198: NA | AB198: NA
B199: -78 | C199: =IF($AM97,(C97-C$109)*IF(units_precip="cm",0.393701,1),"NA") -> NA | D199: NA | E199: NA | F199: NA | G199: NA | H199: NA | I199: NA | J199: NA | K199: NA | L199: NA | M199: NA | N199: NA | P199: -78 | Q199: =IF($AM97,(Q97-Q$109)*IF(units_temp="C",1.8,1),"NA") -> NA | R199: NA | S199: NA | T199: NA | U199: NA | V199: NA | W199: NA | X199: NA | Y199: NA | Z199: NA | AA199: NA | AB199: NA
B200: -79 | C200: =IF($AM98,(C98-C$109)*IF(units_precip="cm",0.393701,1),"NA") -> NA | D200: NA | E200: NA | F200: NA | G200: NA | H200: NA | I200: NA | J200: NA | K200: NA | L200: NA | M200: NA | N200: NA | P200: -79 | Q200: =IF($AM98,(Q98-Q$109)*IF(units_temp="C",1.8,1),"NA") -> NA | R200: NA | S200: NA | T200: NA | U200: NA | V200: NA | W200: NA | X200: NA | Y200: NA | Z200: NA | AA200: NA | AB200: NA
B201: -80 | C201: =IF($AM99,(C99-C$109)*IF(units_precip="cm",0.393701,1),"NA") -> NA | D201: NA | E201: NA | F201: NA | G201: NA | H201: NA | I201: NA | J201: NA | K201: NA | L201: NA | M201: NA | N201: NA | P201: -80 | Q201: =IF($AM99,(Q99-Q$109)*IF(units_temp="C",1.8,1),"NA") -> NA | R201: NA | S201: NA | T201: NA | U201: NA | V201: NA | W201: NA | X201: NA | Y201: NA | Z201: NA | AA201: NA | AB201: NA
B202: -81 | C202: =IF($AM100,(C100-C$109)*IF(units_precip="cm",0.393701,1),"NA") -> NA | D202: NA | E202: NA | F202: NA | G202: NA | H202: NA | I202: NA | J202: NA | K202: NA | L202: NA | M202: NA | N202: NA | P202: -81 | Q202: =IF($AM100,(Q100-Q$109)*IF(units_temp="C",1.8,1),"NA") -> NA | R202: NA | S202: NA | T202: NA | U202: NA | V202: NA | W202: NA | X202: NA | Y202: NA | Z202: NA | AA202: NA | AB202: NA
B203: -82 | C203: =IF($AM101,(C101-C$109)*IF(units_precip="cm",0.393701,1),"NA") -> NA | D203: NA | E203: NA | F203: NA | G203: NA | H203: NA | I203: NA | J203: NA | K203: NA | L203: NA | M203: NA | N203: NA | P203: -82 | Q203: =IF($AM101,(Q101-Q$109)*IF(units_temp="C",1.8,1),"NA") -> NA | R203: NA | S203: NA | T203: NA | U203: NA | V203: NA | W203: NA | X203: NA | Y203: NA | Z203: NA | AA203: NA | AB203: NA
B204: -83 | C204: =IF($AM102,(C102-C$109)*IF(units_precip="cm",0.393701,1),"NA") -> NA | D204: NA | E204: NA | F204: NA | G204: NA | H204: NA | I204: NA | J204: NA | K204: NA | L204: NA | M204: NA | N204: NA | P204: -83 | Q204: =IF($AM102,(Q102-Q$109)*IF(units_temp="C",1.8,1),"NA") -> NA | R204: NA | S204: NA | T204: NA | U204: NA | V204: NA | W204: NA | X204: NA | Y204: NA | Z204: NA | AA204: NA | AB204: NA
B205: -84 | C205: =IF($AM103,(C103-C$109)*IF(units_precip="cm",0.393701,1),"NA") -> NA | D205: NA | E205: NA | F205: NA | G205: NA | H205: NA | I205: NA | J205: NA | K205: NA | L205: NA | M205: NA | N205: NA | P205: -84 | Q205: =IF($AM103,(Q103-Q$109)*IF(units_temp="C",1.8,1),"NA") -> NA | R205: NA | S205: NA | T205: NA | U205: NA | V205: NA | W205: NA | X205: NA | Y205: NA | Z205: NA | AA205: NA | AB205: NA
B206: -85 | C206: =IF($AM104,(C104-C$109)*IF(units_precip="cm",0.393701,1),"NA") -> NA | D206: NA | E206: NA | F206: NA | G206: NA | H206: NA | I206: NA | J206: NA | K206: NA | L206: NA | M206: NA | N206: NA | P206: -85 | Q206: =IF($AM104,(Q104-Q$109)*IF(units_temp="C",1.8,1),"NA") -> NA | R206: NA | S206: NA | T206: NA | U206: NA | V206: NA | W206: NA | X206: NA | Y206: NA | Z206: NA | AA206: NA | AB206: NA
B207: -86 | C207: =IF($AM105,(C105-C$109)*IF(units_precip="cm",0.393701,1),"NA") -> NA | D207: NA | E207: NA | F207: NA | G207: NA | H207: NA | I207: NA | J207: NA | K207: NA | L207: NA | M207: NA | N207: NA | P207: -86 | Q207: =IF($AM105,(Q105-Q$109)*IF(units_temp="C",1.8,1),"NA") -> NA | R207: NA | S207: NA | T207: NA | U207: NA | V207: NA | W207: NA | X207: NA | Y207: NA | Z207: NA | AA207: NA | AB207: NA
B208: -87 | C208: =IF($AM106,(C106-C$109)*IF(units_precip="cm",0.393701,1),"NA") -> NA | D208: NA | E208: NA | F208: NA | G208: NA | H208: NA | I208: NA | J208: NA | K208: NA | L208: NA | M208: NA | N208: NA | P208: -87 | Q208: =IF($AM106,(Q106-Q$109)*IF(units_temp="C",1.8,1),"NA") -> NA | R208: NA | S208: NA | T208: NA | U208: NA | V208: NA | W208: NA | X208: NA | Y208: NA | Z208: NA | AA208: NA | AB208: NA
... 107 more rows

Sheet Step 7 Setup Simulation
B1: Step 7: Setup Sales Volume and Revenue Simulation
B2: On this worksheet you specify the assumptions for the sales volume and revenue simulation and set the number of simulation trials the model
B3: will calculate. For each simulation trial, the model will calculate sales volume and revenue under your Current and Proposed rate designs for a
B4: new 5-year sequence of account growth, weather, and drought stage occurrence. This will generate sample distributions of possible sales
B5: volumes and revenues for each rate design. These distributions are summarized in Step 6 Review Sim Results. The raw output from the
B6: simulation is stored in the Simulation Output worksheet.
B8: 1. Choose rates to simulate
B9: The model will simulate the rates that are in the Step 3: Design Water Rates worksheet. If you would like to run the simulation for rates you
B10: have previously saved but are not currently loaded on the Step 3 worksheet, click the Save/Load Rates button and load the rates you want to run
B11: the simulation for.
B17: 2. Set the account growth rates
B18: The rate your customer base is growing will impact your future sales volumes and revenues. If growth is lower or higher than expected you
B19: may find your revenues are significantly diverging from your projections. Usually there is some degree of uncertainty about future account
B20: growth. The simulation model will capture this uncertainty based on the values you enter in the table below. Enter your best estimate of future
B21: growth rates in the Expected column. Bracket these estimates with lower and upper values in the Lower and Upper columns. The model will
B22: use these values to generate a stochastic 5-year forecast of account growth for each simulation trial based on the probability distribution you
B23: select from the drop-down list to the right of the table.
B25: Note: to simulate sales volume and revenues with fixed account growth rates, set the Lower and Upper values equal to the
B26: Expected value. To simulate assuming no account growth, set all values in the table to zero.
D28: Forecasted Account Growth Rates | H28: Distribution:
D29: For Next 5 Years
B30: Customer Class | D30: Lower | E30: Expected | F30: Upper
B31: =class1 -> Not in use
B32: =class2 -> Not in use
B33: =class3 -> Not in use
B34: =class4 -> Not in use
B35: =class5 -> Not in use
B36: =class6 -> Not in use
B38: 3. Specify Likelihood of Water Use Restrictions
B39: Calling on customers to reduce their water use is often required during droughts. As discussed in Step 3, many utilities have in place Drought
B40: Response Plans that specify voluntary and/or mandatory rationing levels by shortage stage. In Step 3 you used the model to estimate how your
B41: sales volumes and revenues would be impacted if these plans were implemented. Now you can use the model to see how the chance of
B42: drought (and need to call on customers to curb their water use) can be expected to impact your sales revenue over the 5-year forecast period.
B43: You have three options:
B44: 1. If you associated your Drought/Shortage Plan stages with your Step 6 weather data , then select "Use Step 6 Data" from the drop-down list.
B45: 2. If you did not associate your Drought/Shortage Plan stages with your weather data in Step 6, then select "Use Stage Probabilities Table."
B46: 3. If you want to exclude impacts of rationing from the simulation, then select "None."
B48: Choose Method for Simulating Impact of Droughts/Shortages on Sales Volumes and Revenues:
B51: Drought Stage Probabilities Table | G51: Table Instructions: For each stage, enter the likelihood of occurrence.
D52: Likelihood of | E52: Cumulative | G52: For example, if historically your system has had no water use
B53: Drought Stage | D53: Occurrence | E53: Probability | G53: curtailments in 90% of years, you would enter 90% for Stage 0. The
B54: =drought_stage_labels -> Stage 0 | E54: =D54 -> 0 | G54: remaining 10% would then be distributed across the other stages
B55: Stage 1 | E55: =D55+E54 -> 0 | G55: according to the likelihood of each stage's occurrence. The sum of the
B56: Stage 2 | E56: =D56+E55 -> 0 | G56: occurrence likelihoods must sum to 100%.
B57: Stage 3 | E57: =D57+E56 -> 0
B58: Stage 4 | E58: =D58+E57 -> 0
D59: =SUM(D54:D58) -> 0
D60: =IF(AND(drought_stage_simulation_selected=3,D59<>1),"Warning: Occurance likelihoods do not sum to 100%","") -> 
B63: 4. Choose number of simulation trials to run
B64: Use the drop-down list to select the number of simulation trials. For each trial, the model will calculate sales volume and revenue under your
B65: Current and Proposed rates for a new 5-year sequence of account growth, weather, and drought stage occurrence. The greater the number of
B66: trials the longer the simulation will take. On most computers a 10 trial simulation will take under a second to run, a 100 trial simulation will take
B67: under 10 seconds, a 500 trial simulation will take about 40 seconds, and a 1000 trial simulation will take about a minute and a half. When setting
B68: up and testing the model, set the number of trials to 10 or 100. You can view the raw simulation output on the Simulation Output worksheet and
B69: the processed results on the Step 8 Review Sim Results worksheet. When you are satisfied with your model setup, set the number of trials to
B70: 500 or 1000 and run the final simulation.
B72: Choose Number of Simulation Trials: | E72: 100
B77: If you have run your simulation, go to Step 6
B79: Go back to Step 6: Enter Weather Data Worksheet | I79: Go forward to Step 8: Review Sim Results

Sheet Step 8 Review Sim Results
B1: Step 8: Review Simulation Results
B2: This worksheet summarizes the simulation results. There are five sections to the worksheet. Section 1 provides summary statistics for sales volume and revenue under your Current and
B3: Proposed rates. Section 2 shows the distributions of sales volume and revenue by forecast year. Section 3 shows confidence intervals for sales volume and revenue by forecast year for
B4: confidence levels you specify. Section 4 calculates exceedence probabilities for annual and cumulative revenue targets you specify. Section 5 lets you graphically step through each
B5: simulation trial.
B7: 1. Simulation Summary Statistics
B8: Summary statistics for the simulation are provided in the following tables. The average value shows the central tendency while the standard deviation indicates the degree of variability.
B9: The minimum and maximum values define the range of outcomes.
C11: ="----- Results based on " & num_trials & " simulation trials -----" -> ----- Results based on 100 simulation trials -----
C13: Under Current Rates | J13: Under Proposed Rates
C15: ="Sales Volume (" & units_vol & ")" -> Sales Volume () | J15: ="Sales Volume (" & units_vol & ")" -> Sales Volume ()
C16: Year 1 | D16: Year 2 | E16: Year 3 | F16: Year 4 | G16: Year 5 | J16: Year 1 | K16: Year 2 | L16: Year 3 | M16: Year 4 | N16: Year 5
B17: Avg | C17: =AVERAGE('Simulation Output'!CT$4:CT$1003) ->  | D17: =AVERAGE('Simulation Output'!CU$4:CU$1003) ->  | E17: =AVERAGE('Simulation Output'!CV$4:CV$1003) ->  | F17: =AVERAGE('Simulation Output'!CW$4:CW$1003) ->  | G17: =AVERAGE('Simulation Output'!CX$4:CX$1003) ->  | I17: Avg | J17: =AVERAGE('Simulation Output'!CZ$4:CZ$1003) ->  | K17: =AVERAGE('Simulation Output'!DA$4:DA$1003) ->  | L17: =AVERAGE('Simulation Output'!DB$4:DB$1003) ->  | M17: =AVERAGE('Simulation Output'!DC$4:DC$1003) ->  | N17: =AVERAGE('Simulation Output'!DD$4:DD$1003) -> 
B18: St Dev | C18: =STDEV('Simulation Output'!CT$4:CT$1003) ->  | D18: =STDEV('Simulation Output'!CU$4:CU$1003) ->  | E18: =STDEV('Simulation Output'!CV$4:CV$1003) ->  | F18: =STDEV('Simulation Output'!CW$4:CW$1003) ->  | G18: =STDEV('Simulation Output'!CX$4:CX$1003) ->  | I18: St Dev | J18: =STDEV('Simulation Output'!CZ$4:CZ$1003) ->  | K18: =STDEV('Simulation Output'!DA$4:DA$1003) ->  | L18: =STDEV('Simulation Output'!DB$4:DB$1003) ->  | M18: =STDEV('Simulation Output'!DC$4:DC$1003) ->  | N18: =STDEV('Simulation Output'!DD$4:DD$1003) -> 
B19: Min | C19: =MIN('Simulation Output'!CT$4:CT$1003) -> 0 | D19: =MIN('Simulation Output'!CU$4:CU$1003) -> 0 | E19: =MIN('Simulation Output'!CV$4:CV$1003) -> 0 | F19: =MIN('Simulation Output'!CW$4:CW$1003) -> 0 | G19: =MIN('Simulation Output'!CX$4:CX$1003) -> 0 | I19: Min | J19: =MIN('Simulation Output'!CZ$4:CZ$1003) -> 0 | K19: =MIN('Simulation Output'!DA$4:DA$1003) -> 0 | L19: =MIN('Simulation Output'!DB$4:DB$1003) -> 0 | M19: =MIN('Simulation Output'!DC$4:DC$1003) -> 0 | N19: =MIN('Simulation Output'!DD$4:DD$1003) -> 0
B20: Max | C20: =MAX('Simulation Output'!CT$4:CT$1003) -> 0 | D20: =MAX('Simulation Output'!CU$4:CU$1003) -> 0 | E20: =MAX('Simulation Output'!CV$4:CV$1003) -> 0 | F20: =MAX('Simulation Output'!CW$4:CW$1003) -> 0 | G20: =MAX('Simulation Output'!CX$4:CX$1003) -> 0 | I20: Max | J20: =MAX('Simulation Output'!CZ$4:CZ$1003) -> 0 | K20: =MAX('Simulation Output'!DA$4:DA$1003) -> 0 | L20: =MAX('Simulation Output'!DB$4:DB$1003) -> 0 | M20: =MAX('Simulation Output'!DC$4:DC$1003) -> 0 | N20: =MAX('Simulation Output'!DD$4:DD$1003) -> 0
C22: Sales Revenue (Thou. $) | J22: Sales Revenue (Thou. $)
C23: Year 1 | D23: Year 2 | E23: Year 3 | F23: Year 4 | G23: Year 5 | J23: Year 1 | K23: Year 2 | L23: Year 3 | M23: Year 4 | N23: Year 5
B24: Avg | C24: =AVERAGE('Simulation Output'!DF$4:DF$1003) ->  | D24: =AVERAGE('Simulation Output'!DG$4:DG$1003) ->  | E24: =AVERAGE('Simulation Output'!DH$4:DH$1003) ->  | F24: =AVERAGE('Simulation Output'!DI$4:DI$1003) ->  | G24: =AVERAGE('Simulation Output'!DJ$4:DJ$1003) ->  | I24: Avg | J24: =AVERAGE('Simulation Output'!DL$4:DL$1003) ->  | K24: =AVERAGE('Simulation Output'!DM$4:DM$1003) ->  | L24: =AVERAGE('Simulation Output'!DN$4:DN$1003) ->  | M24: =AVERAGE('Simulation Output'!DO$4:DO$1003) ->  | N24: =AVERAGE('Simulation Output'!DP$4:DP$1003) -> 
B25: St Dev | C25: =STDEV('Simulation Output'!DF$4:DF$1003) ->  | D25: =STDEV('Simulation Output'!DG$4:DG$1003) ->  | E25: =STDEV('Simulation Output'!DH$4:DH$1003) ->  | F25: =STDEV('Simulation Output'!DI$4:DI$1003) ->  | G25: =STDEV('Simulation Output'!DJ$4:DJ$1003) ->  | I25: St Dev | J25: =STDEV('Simulation Output'!DL$4:DL$1003) ->  | K25: =STDEV('Simulation Output'!DM$4:DM$1003) ->  | L25: =STDEV('Simulation Output'!DN$4:DN$1003) ->  | M25: =STDEV('Simulation Output'!DO$4:DO$1003) ->  | N25: =STDEV('Simulation Output'!DP$4:DP$1003) -> 
B26: Min | C26: =MIN('Simulation Output'!DF$4:DF$1003) -> 0 | D26: =MIN('Simulation Output'!DG$4:DG$1003) -> 0 | E26: =MIN('Simulation Output'!DH$4:DH$1003) -> 0 | F26: =MIN('Simulation Output'!DI$4:DI$1003) -> 0 | G26: =MIN('Simulation Output'!DJ$4:DJ$1003) -> 0 | I26: Min | J26: =MIN('Simulation Output'!DL$4:DL$1003) -> 0 | K26: =MIN('Simulation Output'!DM$4:DM$1003) -> 0 | L26: =MIN('Simulation Output'!DN$4:DN$1003) -> 0 | M26: =MIN('Simulation Output'!DO$4:DO$1003) -> 0 | N26: =MIN('Simulation Output'!DP$4:DP$1003) -> 0
B27: Max | C27: =MAX('Simulation Output'!DF$4:DF$1003) -> 0 | D27: =MAX('Simulation Output'!DG$4:DG$1003) -> 0 | E27: =MAX('Simulation Output'!DH$4:DH$1003) -> 0 | F27: =MAX('Simulation Output'!DI$4:DI$1003) -> 0 | G27: =MAX('Simulation Output'!DJ$4:DJ$1003) -> 0 | I27: Max | J27: =MAX('Simulation Output'!DL$4:DL$1003) -> 0 | K27: =MAX('Simulation Output'!DM$4:DM$1003) -> 0 | L27: =MAX('Simulation Output'!DN$4:DN$1003) -> 0 | M27: =MAX('Simulation Output'!DO$4:DO$1003) -> 0 | N27: =MAX('Simulation Output'!DP$4:DP$1003) -> 0
B29: 2. Sales Volume and Revenue Distributions
B30: The charts below show the frequency and cumulative distributions for simulated sales volume and revenue. The cumulative distributions (the dashed lines in the charts) show the
B31: likelihood of sales volume or revenue being above or below the corresponding value on the x-axis. The frequency distributions (the bars) show the likelihood that sales volume or
B32: revenue will fall between the value indicated on the x-axis and the value to its left.
E34: Use the drop-down to choose the forecast year to display: | F34: 5
B56: 3. Sales Volume and Revenue Confidence Intervals
B57: A 95% confidence interval indicates the range of values such that 95% of all simulation outcomes fall within this interval. Similarly, for a 90% confidence interval, 90% of all simulation out-
B58: comes would fall within the interval. More generally, for an x% interval, x% of all simulation outcomes would fall within the interval. This means the probability that the outcome variable
B59: will take on a value in the indicated range is x%. The charts below show confidence intervals (by year) for sales volume and revenue under your Current and Proposed rates. You can use
B60: the drop-down list to select the desired confidence level for the intervals. As you select higher levels of confidence you will note the intervals widen to accommodate the broader range
B61: of potential outcomes.
H63: Use drop-down to select confidence level for sales volume and revenue confidence intervals: | I63: 0.9
B96: 4. Determine Sales Revenue Exceedence Probability
B97: The sales revenue exceedence probability gives the probability that sales revenue will equal or exceed a target revenue. Use the Target Cells below to see the likelihood of meeting a sales
B98: revenue target under your Current and Proposed rates.
H100: Under Current Rates | K100: Under Proposed Rates
E103: Target Amount
E104: (Thou. $)
B106: First Year Revenue
B115: 3-Year Cumulative Revenue
B124: 5-Year Cumulative Revenue | E124: 360000
B131: 5. Step Through the Simulation Trials
B132: You can use the slider bar below the charts to step through each trial of the simulation. The charts display the simulated sales volume and revenue for each forecast year along with the
B133: averages across all the trials. The x-axis labels will show the weather year sequence used in the trial. Click the Animate Simulation button to cycle through all the simulations dynamically.
B134: If you want to see even more detail, you can access all the simulation output on the Simulation Output worksheet.
B136: ="Simulation Trial #: " & cht_trial_num -> Simulation Trial #: 1
B160: Click the Animate Simulation Button to cycle | L160: You can type a trial # in the box below
B161: through all the simulation trials dynamically | L161: to see the results for a specific trial
M163: Simulation Trial Number: | N163: 1
B167: Go back to Step 7: Setup Simulation Worksheet | L167: Go forward to Simulation Output Worksheet
B169: Model Data Below. Do No Modify
B172: Chart Parameters | D172: DO NOT MODIFY
B174: Y-Axis Scale Values | D174: Minimum | E174: Maximum
B175: Volume | D175: =ROUNDDOWN(MIN(sim_out_salesvol_current,sim_out_salesvol_proposed),-6) -> 0 | E175: =ROUNDUP(MAX(sim_out_salesvol_current,sim_out_salesvol_proposed),-6) -> 0
B176: Revenue | D176: =ROUNDDOWN(MIN(sim_out_salesrev_current,sim_out_salesrev_proposed),-3) -> 0 | E176: =ROUNDUP(MAX(sim_out_salesrev_current,sim_out_salesrev_proposed),-3) -> 0
B178: Y-Axis Labels
B179: Volume | D179: ="Thou. " & units_vol -> Thou.
B180: Revenue | D180: Thou. Dollars
B182: Exceedence Probability Chart data
D183: First Year | F183: 3yr Cumulative | H183: 5yr Cumulative
B184: Pie Chart Series | D184: Current | E184: Proposed | F184: Current | G184: Proposed | H184: Current | I184: Proposed
B185: Value 1 | D185: =MIN(D188,100%)/2 ->  | H185: 0 | I185: 0
B186: Value 2 | D186: =50%-D185 ->  | H186: 0.5 | I186: 0.5
B187: Value 3 | D187: 0.5 | E187: 0.5 | F187: 0.5 | G187: 0.5 | H187: 0.5 | I187: 0.5
B188: Exceedence Prob. | D188: =IF($E106<MIN(sim_out_cumrev_1yr_current),1,IF($E106>MAX(sim_out_cumrev_1yr_current),0,1-PERCENTRANK(sim_out_cumrev_1yr_current,$E106))) ->  | E188: =IF($E106<MIN(sim_out_cumrev_1yr_proposed),1,IF($E106>MAX(sim_out_cumrev_1yr_proposed),0,1-PERCENTRANK(sim_out_cumrev_1yr_proposed,$E106))) ->  | F188: =IF($E115<MIN(sim_out_cumrev_3yr_current),1,IF($E115>MAX(sim_out_cumrev_3yr_current),0,1-PERCENTRANK(sim_out_cumrev_3yr_current,$E115))) ->  | G188: =IF($E115<MIN(sim_out_cumrev_3yr_proposed),1,IF($E115>MAX(sim_out_cumrev_3yr_proposed),0,1-PERCENTRANK(sim_out_cumrev_3yr_proposed,$E115))) ->  | H188: =IF($E124<MIN(sim_out_cumrev_5yr_current),1,IF($E124>MAX(sim_out_cumrev_5yr_current),0,1-PERCENTRANK(sim_out_cumrev_5yr_current,$E124))) -> 0 | I188: =IF($E124<MIN(sim_out_cumrev_5yr_proposed),1,IF($E124>MAX(sim_out_cumrev_5yr_proposed),0,1-PERCENTRANK(sim_out_cumrev_5yr_proposed,$E124))) -> 0
B190: Pie Chart Labels | D190: Current | G190: Proposed
B191: First Year | D191: ="Target Exceedence Probability: " & TEXT(D188,"0%") ->  | G191: ="Target Exceedence Probability: " & TEXT(E188,"0%") -> 
B192: 3yr Cumulative | D192: ="Target Exceedence Probability: " & TEXT(F188,"0%") ->  | G192: ="Target Exceedence Probability: " & TEXT(G188,"0%") -> 
B193: 5yr Cumulative | D193: ="Target Exceedence Probability: " & TEXT(H188,"0%") -> Target Exceedence Probability: 0% | G193: ="Target Exceedence Probability: " & TEXT(I188,"0%") -> Target Exceedence Probability: 0%
B195: Data for Frequency and Cumulative Distribution Charts
B197: Sales Volume Distribution Chart Data | L197: Sales Revenue Distribution Chart Data
E198: Current | H198: Proposed | N198: Current | Q198: Proposed
B199: Bin # | C199: Bin Value | D199: Cht X Labels | E199: Frequency | F199: Cum. Freq. | G199: Cum. Pct | H199: Frequency | I199: Cum. Freq. | J199: Cum. Pct | L199: Bin # | M199: Bin Value | N199: Frequency | O199: Cum. Freq. | P199: Cum. Pct | Q199: Frequency | R199: Cum. Freq. | S199: Cum. Pct
B200: 1 | C200: =MIN('Simulation Output'!CT$4:DD$1003)+(ROW(INDIRECT("1:20"))*(MAX('Simulation Output'!CT$4:DD$1003)-MIN('Simulation Output'!CT$4:DD$1003))/20) -> 0 | D200: =C200/1000 -> 0 | E200: =FREQUENCY(OFFSET('Simulation Output'!CT$4:CT$1003,0,Lists!A64),C200:C219) -> 0 | F200: =SUM(E200:E$200) -> 0 | G200: =F200/F$219 ->  | H200: =FREQUENCY(OFFSET('Simulation Output'!CZ$4:CZ$1003,0,Lists!A64),C200:C219) -> 0 | I200: =SUM(H200:H$200) -> 0 | J200: =I200/I$219 ->  | L200: 1 | M200: =MIN('Simulation Output'!DF4:DP1003)+(ROW(INDIRECT("1:20"))*(MAX('Simulation Output'!DF4:DP1003)-MIN('Simulation Output'!DF4:DP1003))/20) -> 0 | N200: =FREQUENCY(OFFSET('Simulation Output'!DF4:DF1003,0,Lists!A64),M200:M219) -> 0 | O200: =SUM(N200:N$200) -> 0 | P200: =O200/O$219 ->  | Q200: =FREQUENCY(OFFSET('Simulation Output'!DL4:DL1003,0,Lists!A64),M200:M219) -> 0 | R200: =SUM(Q200:Q$200) -> 0 | S200: =R200/R$219 -> 
B201: 2 | C201: 0 | D201: 0 | E201: 0 | F201: =SUM(E$200:E201) -> 0 | H201: 0 | I201: =SUM(H$200:H201) -> 0 | L201: 2 | M201: 0 | N201: 0 | O201: =SUM(N$200:N201) -> 0 | Q201: 0 | R201: =SUM(Q$200:Q201) -> 0
B202: 3 | C202: 0 | D202: 0 | E202: 0 | F202: =SUM(E$200:E202) -> 0 | H202: 0 | I202: =SUM(H$200:H202) -> 0 | L202: 3 | M202: 0 | N202: 0 | O202: =SUM(N$200:N202) -> 0 | Q202: 0 | R202: =SUM(Q$200:Q202) -> 0
B203: 4 | C203: 0 | D203: 0 | E203: 0 | F203: =SUM(E$200:E203) -> 0 | H203: 0 | I203: =SUM(H$200:H203) -> 0 | L203: 4 | M203: 0 | N203: 0 | O203: =SUM(N$200:N203) -> 0 | Q203: 0 | R203: =SUM(Q$200:Q203) -> 0
B204: 5 | C204: 0 | D204: 0 | E204: 0 | F204: =SUM(E$200:E204) -> 0 | H204: 0 | I204: =SUM(H$200:H204) -> 0 | L204: 5 | M204: 0 | N204: 0 | O204: =SUM(N$200:N204) -> 0 | Q204: 0 | R204: =SUM(Q$200:Q204) -> 0
B205: 6 | C205: 0 | D205: 0 | E205: 0 | F205: =SUM(E$200:E205) -> 0 | H205: 0 | I205: =SUM(H$200:H205) -> 0 | L205: 6 | M205: 0 | N205: 0 | O205: =SUM(N$200:N205) -> 0 | Q205: 0 | R205: =SUM(Q$200:Q205) -> 0
B206: 7 | C206: 0 | D206: 0 | E206: 0 | F206: =SUM(E$200:E206) -> 0 | H206: 0 | I206: =SUM(H$200:H206) -> 0 | L206: 7 | M206: 0 | N206: 0 | O206: =SUM(N$200:N206) -> 0 | Q206: 0 | R206: =SUM(Q$200:Q206) -> 0
B207: 8 | C207: 0 | D207: 0 | E207: 0 | F207: =SUM(E$200:E207) -> 0 | H207: 0 | I207: =SUM(H$200:H207) -> 0 | L207: 8 | M207: 0 | N207: 0 | O207: =SUM(N$200:N207) -> 0 | Q207: 0 | R207: =SUM(Q$200:Q207) -> 0
B208: 9 | C208: 0 | D208: 0 | E208: 0 | F208: =SUM(E$200:E208) -> 0 | H208: 0 | I208: =SUM(H$200:H208) -> 0 | L208: 9 | M208: 0 | N208: 0 | O208: =SUM(N$200:N208) -> 0 | Q208: 0 | R208: =SUM(Q$200:Q208) -> 0
B209: 10 | C209: 0 | D209: 0 | E209: 0 | F209: =SUM(E$200:E209) -> 0 | H209: 0 | I209: =SUM(H$200:H209) -> 0 | L209: 10 | M209: 0 | N209: 0 | O209: =SUM(N$200:N209) -> 0 | Q209: 0 | R209: =SUM(Q$200:Q209) -> 0
B210: 11 | C210: 0 | D210: 0 | E210: 0 | F210: =SUM(E$200:E210) -> 0 | H210: 0 | I210: =SUM(H$200:H210) -> 0 | L210: 11 | M210: 0 | N210: 0 | O210: =SUM(N$200:N210) -> 0 | Q210: 0 | R210: =SUM(Q$200:Q210) -> 0
B211: 12 | C211: 0 | D211: 0 | E211: 0 | F211: =SUM(E$200:E211) -> 0 | H211: 0 | I211: =SUM(H$200:H211) -> 0 | L211: 12 | M211: 0 | N211: 0 | O211: =SUM(N$200:N211) -> 0 | Q211: 0 | R211: =SUM(Q$200:Q211) -> 0
B212: 13 | C212: 0 | D212: 0 | E212: 0 | F212: =SUM(E$200:E212) -> 0 | H212: 0 | I212: =SUM(H$200:H212) -> 0 | L212: 13 | M212: 0 | N212: 0 | O212: =SUM(N$200:N212) -> 0 | Q212: 0 | R212: =SUM(Q$200:Q212) -> 0
B213: 14 | C213: 0 | D213: 0 | E213: 0 | F213: =SUM(E$200:E213) -> 0 | H213: 0 | I213: =SUM(H$200:H213) -> 0 | L213: 14 | M213: 0 | N213: 0 | O213: =SUM(N$200:N213) -> 0 | Q213: 0 | R213: =SUM(Q$200:Q213) -> 0
B214: 15 | C214: 0 | D214: 0 | E214: 0 | F214: =SUM(E$200:E214) -> 0 | H214: 0 | I214: =SUM(H$200:H214) -> 0 | L214: 15 | M214: 0 | N214: 0 | O214: =SUM(N$200:N214) -> 0 | Q214: 0 | R214: =SUM(Q$200:Q214) -> 0
B215: 16 | C215: 0 | D215: 0 | E215: 0 | F215: =SUM(E$200:E215) -> 0 | H215: 0 | I215: =SUM(H$200:H215) -> 0 | L215: 16 | M215: 0 | N215: 0 | O215: =SUM(N$200:N215) -> 0 | Q215: 0 | R215: =SUM(Q$200:Q215) -> 0
B216: 17 | C216: 0 | D216: 0 | E216: 0 | F216: =SUM(E$200:E216) -> 0 | H216: 0 | I216: =SUM(H$200:H216) -> 0 | L216: 17 | M216: 0 | N216: 0 | O216: =SUM(N$200:N216) -> 0 | Q216: 0 | R216: =SUM(Q$200:Q216) -> 0
B217: 18 | C217: 0 | D217: 0 | E217: 0 | F217: =SUM(E$200:E217) -> 0 | H217: 0 | I217: =SUM(H$200:H217) -> 0 | L217: 18 | M217: 0 | N217: 0 | O217: =SUM(N$200:N217) -> 0 | Q217: 0 | R217: =SUM(Q$200:Q217) -> 0
B218: 19 | C218: 0 | D218: 0 | E218: 0 | F218: =SUM(E$200:E218) -> 0 | H218: 0 | I218: =SUM(H$200:H218) -> 0 | L218: 19 | M218: 0 | N218: 0 | O218: =SUM(N$200:N218) -> 0 | Q218: 0 | R218: =SUM(Q$200:Q218) -> 0
B219: 20 | C219: 0 | D219: 0 | E219: 0 | F219: =SUM(E$200:E219) -> 0 | H219: 0 | I219: =SUM(H$200:H219) -> 0 | L219: 20 | M219: 0 | N219: 0 | O219: =SUM(N$200:N219) -> 0 | Q219: 0 | R219: =SUM(Q$200:Q219) -> 0
C221: cht x-axis title: | E221: ="Water Sales (Thou. " & units_vol & ")" -> Water Sales (Thou. )
B224: Data for confidence interval charts
B226: Volume | C226: Current | H226: Volume | I226: Proposed
B227: Lower | C227: =PERCENTILE('Simulation Output'!CT$4:CT$1003,confidence_percentile_lower) ->  | D227: =PERCENTILE('Simulation Output'!CU$4:CU$1003,confidence_percentile_lower) ->  | E227: =PERCENTILE('Simulation Output'!CV$4:CV$1003,confidence_percentile_lower) ->  | F227: =PERCENTILE('Simulation Output'!CW$4:CW$1003,confidence_percentile_lower) ->  | G227: =PERCENTILE('Simulation Output'!CX$4:CX$1003,confidence_percentile_lower) ->  | H227: Lower | I227: =PERCENTILE('Simulation Output'!CZ$4:CZ$1003,confidence_percentile_lower) ->  | J227: =PERCENTILE('Simulation Output'!DA$4:DA$1003,confidence_percentile_lower) ->  | K227: =PERCENTILE('Simulation Output'!DB$4:DB$1003,confidence_percentile_lower) ->  | L227: =PERCENTILE('Simulation Output'!DC$4:DC$1003,confidence_percentile_lower) ->  | M227: =PERCENTILE('Simulation Output'!DD$4:DD$1003,confidence_percentile_lower) -> 
B228: Upper | C228: =PERCENTILE('Simulation Output'!CT$4:CT$1003,confidence_percentile_upper) ->  | D228: =PERCENTILE('Simulation Output'!CU$4:CU$1003,confidence_percentile_upper) ->  | E228: =PERCENTILE('Simulation Output'!CV$4:CV$1003,confidence_percentile_upper) ->  | F228: =PERCENTILE('Simulation Output'!CW$4:CW$1003,confidence_percentile_upper) ->  | G228: =PERCENTILE('Simulation Output'!CX$4:CX$1003,confidence_percentile_upper) ->  | H228: Upper | I228: =PERCENTILE('Simulation Output'!CZ$4:CZ$1003,confidence_percentile_upper) ->  | J228: =PERCENTILE('Simulation Output'!DA$4:DA$1003,confidence_percentile_upper) ->  | K228: =PERCENTILE('Simulation Output'!DB$4:DB$1003,confidence_percentile_upper) ->  | L228: =PERCENTILE('Simulation Output'!DC$4:DC$1003,confidence_percentile_upper) ->  | M228: =PERCENTILE('Simulation Output'!DD$4:DD$1003,confidence_percentile_upper) -> 
B229: Diff | C229: =C228-C227 ->  | D229: =D228-D227 ->  | E229: =E228-E227 ->  | F229: =F228-F227 ->  | G229: =G228-G227 ->  | H229: Diff | I229: =I228-I227 ->  | J229: =J228-J227 ->  | K229: =K228-K227 ->  | L229: =L228-L227 ->  | M229: =M228-M227 -> 
B230: Revenue | C230: Current | H230: Revenue | I230: Proposed
B231: Lower | C231: =PERCENTILE('Simulation Output'!DF$4:DF$1003,confidence_percentile_lower) ->  | D231: =PERCENTILE('Simulation Output'!DG$4:DG$1003,confidence_percentile_lower) ->  | E231: =PERCENTILE('Simulation Output'!DH$4:DH$1003,confidence_percentile_lower) ->  | F231: =PERCENTILE('Simulation Output'!DI$4:DI$1003,confidence_percentile_lower) ->  | G231: =PERCENTILE('Simulation Output'!DJ$4:DJ$1003,confidence_percentile_lower) ->  | H231: Lower | I231: =PERCENTILE('Simulation Output'!DL$4:DL$1003,confidence_percentile_lower) ->  | J231: =PERCENTILE('Simulation Output'!DM$4:DM$1003,confidence_percentile_lower) ->  | K231: =PERCENTILE('Simulation Output'!DN$4:DN$1003,confidence_percentile_lower) ->  | L231: =PERCENTILE('Simulation Output'!DO$4:DO$1003,confidence_percentile_lower) ->  | M231: =PERCENTILE('Simulation Output'!DP$4:DP$1003,confidence_percentile_lower) -> 
B232: Upper | C232: =PERCENTILE('Simulation Output'!DF$4:DF$1003,confidence_percentile_upper) ->  | D232: =PERCENTILE('Simulation Output'!DG$4:DG$1003,confidence_percentile_upper) ->  | E232: =PERCENTILE('Simulation Output'!DH$4:DH$1003,confidence_percentile_upper) ->  | F232: =PERCENTILE('Simulation Output'!DI$4:DI$1003,confidence_percentile_upper) ->  | G232: =PERCENTILE('Simulation Output'!DJ$4:DJ$1003,confidence_percentile_upper) ->  | H232: Upper | I232: =PERCENTILE('Simulation Output'!DL$4:DL$1003,confidence_percentile_upper) ->  | J232: =PERCENTILE('Simulation Output'!DM$4:DM$1003,confidence_percentile_upper) ->  | K232: =PERCENTILE('Simulation Output'!DN$4:DN$1003,confidence_percentile_upper) ->  | L232: =PERCENTILE('Simulation Output'!DO$4:DO$1003,confidence_percentile_upper) ->  | M232: =PERCENTILE('Simulation Output'!DP$4:DP$1003,confidence_percentile_upper) -> 
B233: Diff | C233: =C232-C231 ->  | D233: =D232-D231 ->  | E233: =E232-E231 ->  | F233: =F232-F231 ->  | G233: =G232-G231 ->  | H233: Diff | I233: =I232-I231 ->  | J233: =J232-J231 ->  | K233: =K232-K231 ->  | L233: =L232-L231 ->  | M233: =M232-M231 -> 
B235: Cht title | C235: ="Current Rates"&CHAR(10)&"Water Sales Volume: " & TEXT(confidence_level,"0%") & " Confidence Interval" -> Current Rates Water Sales Volume: 90% Confidence Interval
B236: Cht title | C236: ="Proposed Rates"&CHAR(10)&"Water Sales Volume: " & TEXT(confidence_level,"0%") & " Confidence Interval" -> Proposed Rates Water Sales Volume: 90% Confidence Interval
B237: Cht title | C237: ="Current Rates"&CHAR(10)&"Annual Revenue: " & TEXT(confidence_level,"0%") & " Confidence Interval" -> Current Rates Annual Revenue: 90% Confidence Interval
B238: Cht title | C238: ="Proposed Rates"&CHAR(10)&"Annual Revenue: " & TEXT(confidence_level,"0%") & " Confidence Interval" -> Proposed Rates Annual Revenue: 90% Confidence Interval
B239: Vol y-axis title | C239: ="Water Sales Volume (Thou. " & units_vol & ")" -> Water Sales Volume (Thou. )

Sheet Simulation Output
B2: Weather Year Sequence | H2: Seas1 Demand Adjustment | N2: Seas2 Demand Adjustment | T2: Drought Stage | Z2: Class1 Shortage Pct | AF2: Class2 Shortage Pct | AL2: Class3 Shortage Pct | AR2: Class4 Shortage Pct | AX2: Class5 Shortage Pct | BD2: Class6 Shortage Pct | BJ2: Class1 Bill Growth Factors | BP2: Class2 Bill Growth Factors | BV2: Class3 Bill Growth Factors | CB2: Class4 Bill Growth Factors | CH2: Class5 Bill Growth Factors | CN2: Class6 Bill Growth Factors | CT2: Sales Volume Under Current Rates | CZ2: Sales Volume Under Proposed Rates | DF2: Sales Revenue Under Current Rates (thou. $) | DL2: Sales Revenue Under Proposed Rates (thou. $) | DR2: 3-Yr Cumulative Rev (thou. $) | DU2: 5-Yr Cumulative Rev (thou. $)
A3: Trial # | B3: Year1 | C3: Year2 | D3: Year3 | E3: Year4 | F3: Year5 | H3: Year1 | I3: Year2 | J3: Year3 | K3: Year4 | L3: Year5 | N3: Year1 | O3: Year2 | P3: Year3 | Q3: Year4 | R3: Year5 | T3: Year1 | U3: Year2 | V3: Year3 | W3: Year4 | X3: Year5 | Z3: Year1 | AA3: Year2 | AB3: Year3 | AC3: Year4 | AD3: Year5 | AF3: Year1 | AG3: Year2 | AH3: Year3 | AI3: Year4 | AJ3: Year5 | AL3: Year1 | AM3: Year2 | AN3: Year3 | AO3: Year4 | AP3: Year5 | AR3: Year1 | AS3: Year2 | AT3: Year3 | AU3: Year4 | AV3: Year5 | AX3: Year1 | AY3: Year2 | AZ3: Year3 | BA3: Year4 | BB3: Year5 | BD3: Year1 | BE3: Year2 | BF3: Year3 | BG3: Year4 | BH3: Year5 | BJ3: Year1 | BK3: Year2 | BL3: Year3 | BM3: Year4 | BN3: Year5 | BP3: Year1 | BQ3: Year2 | BR3: Year3 | BS3: Year4 | BT3: Year5 | BV3: Year1 | BW3: Year2 | BX3: Year3 | BY3: Year4 | BZ3: Year5 | CB3: Year1 | CC3: Year2 | CD3: Year3 | CE3: Year4 | CF3: Year5 | CH3: Year1 | CI3: Year2 | CJ3: Year3 | CK3: Year4 | CL3: Year5 | CN3: Year1 | CO3: Year2 | CP3: Year3 | CQ3: Year4 | CR3: Year5 | CT3: Year1 | CU3: Year2 | CV3: Year3 | CW3: Year4 | CX3: Year5 | CZ3: Year1 | DA3: Year2 | DB3: Year3 | DC3: Year4 | DD3: Year5 | DF3: Year1 | DG3: Year2 | DH3: Year3 | DI3: Year4 | DJ3: Year5 | DL3: Year1 | DM3: Year2 | DN3: Year3 | DO3: Year4 | DP3: Year5 | DR3: Current | DS3: Proposed | DU3: Current | DV3: Proposed
A504: 501
A505: 502
A506: 503
A507: 504
A508: 505
A509: 506
A510: 507
A511: 508
A512: 509
A513: 510
A514: 511
A515: 512
A516: 513
A517: 514
A518: 515
A519: 516
A520: 517
A521: 518
A522: 519
A523: 520
A524: 521
A525: 522
A526: 523
A527: 524
A528: 525
A529: 526
A530: 527
A531: 528
A532: 529
A533: 530
A534: 531
A535: 532
A536: 533
A537: 534
A538: 535
A539: 536
A540: 537
A541: 538
A542: 539
A543: 540
A544: 541
A545: 542
A546: 543
A547: 544
A548: 545
A549: 546
A550: 547
A551: 548
A552: 549
A553: 550
A554: 551
A555: 552
A556: 553
A557: 554
A558: 555
A559: 556
A560: 557
A561: 558
A562: 559
A563: 560
A564: 561
A565: 562
A566: 563
A567: 564
A568: 565
A569: 566
A570: 567
A571: 568
A572: 569
A573: 570
A574: 571
A575: 572
A576: 573
A577: 574
A578: 575
A579: 576
A580: 577
A581: 578
A582: 579
A583: 580
A584: 581
A585: 582
A586: 583
A587: 584
A588: 585
A589: 586
A590: 587
A591: 588
A592: 589
A593: 590
A594: 591
A595: 592
A596: 593
A597: 594
A598: 595
A599: 596
A600: 597
A601: 598
A602: 599
A603: 600
A604: 601
A605: 602
A606: 603
A607: 604
A608: 605
A609: 606
A610: 607
A611: 608
A612: 609
A613: 610
A614: 611
A615: 612
A616: 613
A617: 614
A618: 615
A619: 616
A620: 617
A621: 618
A622: 619
A623: 620
A624: 621
A625: 622
A626: 623
A627: 624
A628: 625
A629: 626
A630: 627
A631: 628
A632: 629
A633: 630
A634: 631
A635: 632
A636: 633
A637: 634
A638: 635
A639: 636
A640: 637
A641: 638
A642: 639
A643: 640
A644: 641
A645: 642
A646: 643
A647: 644
A648: 645
A649: 646
A650: 647
A651: 648
A652: 649
A653: 650
A654: 651
A655: 652
A656: 653
A657: 654
A658: 655
A659: 656
A660: 657
A661: 658
A662: 659
A663: 660
A664: 661
A665: 662
A666: 663
A667: 664
A668: 665
A669: 666
A670: 667
A671: 668
A672: 669
A673: 670
A674: 671
A675: 672
A676: 673
A677: 674
A678: 675
A679: 676
A680: 677
A681: 678
A682: 679
A683: 680
A684: 681
A685: 682
A686: 683
A687: 684
A688: 685
A689: 686
A690: 687
A691: 688
A692: 689
A693: 690
A694: 691
A695: 692
A696: 693
A697: 694
A698: 695
A699: 696
A700: 697
A701: 698
... 302 more rows

Sheet Simulation Sequence
C2: Year1 | D2: Year2 | E2: Year3 | F2: Year4 | G2: Year5
B3: Weather Simulation Year | C3: =RANDBETWEEN(weather_data_first_yr,weather_data_last_yr) ->  | D3: =IF(C3+1<=weather_data_last_yr,C3+1,weather_data_first_yr) ->  | E3: =IF(D3+1<=weather_data_last_yr,D3+1,weather_data_first_yr) ->  | F3: =IF(E3+1<=weather_data_last_yr,E3+1,weather_data_first_yr) ->  | G3: =IF(F3+1<=weather_data_last_yr,F3+1,weather_data_first_yr) -> 
B4: =season1 & " % Use Adjustment" -> Off Peak % Use Adjustment | C4: =INDEX(seq_season1_adj_factor,MATCH(C$3,seq_yrs,0)) ->  | D4: =INDEX(seq_season1_adj_factor,MATCH(D$3,seq_yrs,0)) ->  | E4: =INDEX(seq_season1_adj_factor,MATCH(E$3,seq_yrs,0)) ->  | F4: =INDEX(seq_season1_adj_factor,MATCH(F$3,seq_yrs,0)) ->  | G4: =INDEX(seq_season1_adj_factor,MATCH(G$3,seq_yrs,0)) -> 
B5: =season2 & " % Use Adjustment" -> Peak % Use Adjustment | C5: =INDEX(seq_season2_adj_factor,MATCH(C$3,seq_yrs,0)) ->  | D5: =INDEX(seq_season2_adj_factor,MATCH(D$3,seq_yrs,0)) ->  | E5: =INDEX(seq_season2_adj_factor,MATCH(E$3,seq_yrs,0)) ->  | F5: =INDEX(seq_season2_adj_factor,MATCH(F$3,seq_yrs,0)) ->  | G5: =INDEX(seq_season2_adj_factor,MATCH(G$3,seq_yrs,0)) -> 
B6: Curtailment % | H6: Lookup Row
B7: =class1 -> Not in use | C7: =INDEX(expected_curtailment_pct,$H7,C$16) ->  | D7: =INDEX(expected_curtailment_pct,$H7,D$16) ->  | H7: 1
B8: =class2 -> Not in use | H8: 2
B9: =class3 -> Not in use | H9: 3
B10: =class4 -> Not in use | H10: 4
B11: =class5 -> Not in use | H11: 5
B12: =class6 -> Not in use | H12: 6
B14: Randon Draw | C14: =RAND() -> 0.4746504682 | D14: =RAND() -> 0.2384610631 | E14: 0.7229086299 | F14: 0.4217566061 | G14: 0.3223186524
B15: Drought Stage | C15: =CHOOSE(drought_stage_simulation_selected,0,INDEX(stage_index,MATCH(C3,seq_yrs,0)),IF(C14<drought_stage0_prob,0,IF(C14<drought_stage1_prob,1,IF(C14<drought_stage2_prob,2,IF(C14<drought_stage3_prob,3,4))))) ->  | D15: =CHOOSE(drought_stage_simulation_selected,0,INDEX(stage_index,MATCH(D3,seq_yrs,0)),IF(D14<drought_stage0_prob,0,IF(D14<drought_stage1_prob,1,IF(D14<drought_stage2_prob,2,IF(D14<drought_stage3_prob,3,4))))) ->  | E15: =CHOOSE(drought_stage_simulation_selected,0,INDEX(stage_index,MATCH(E3,seq_yrs,0)),IF(E14<drought_stage0_prob,0,IF(E14<drought_stage1_prob,1,IF(E14<drought_stage2_prob,2,IF(E14<drought_stage3_prob,3,4))))) ->  | F15: =CHOOSE(drought_stage_simulation_selected,0,INDEX(stage_index,MATCH(F3,seq_yrs,0)),IF(F14<drought_stage0_prob,0,IF(F14<drought_stage1_prob,1,IF(F14<drought_stage2_prob,2,IF(F14<drought_stage3_prob,3,4))))) ->  | G15: =CHOOSE(drought_stage_simulation_selected,0,INDEX(stage_index,MATCH(G3,seq_yrs,0)),IF(G14<drought_stage0_prob,0,IF(G14<drought_stage1_prob,1,IF(G14<drought_stage2_prob,2,IF(G14<drought_stage3_prob,3,4))))) -> 
B16: Lookup Column | C16: =C15+1 ->  | D16: =D15+1 ->  | I16: From Forecasted Account | M16: Normal Distribution | S16: Triangle Distribution | U16: Uniform Distribution
I17: Growth Rates Table | M17: Extended Pearson-Tukey Approximation Method
B18: Acct Growth Rates | I18: Low | J18: Medium | K18: High | M18: ˆμ | N18: ˆσ2 | O18: ˆσ | P18: Draw | S18: Draw | U18: Draw
B19: =class1 -> Not in use | C19: =CHOOSE(account_growth_distributions_selected,P19,S19,U19) ->  | I19: ='Step 7 Setup Simulation'!D31 -> 0 | J19: ='Step 7 Setup Simulation'!E31 -> 0 | K19: ='Step 7 Setup Simulation'!F31 -> 0 | M19: =0.63*J19+0.185*(I19+K19) -> 0 | N19: =0.63*(J19-M19)^2+0.185*((I19-M19)^2+(K19-M19)^2) -> 0 | O19: =SQRT(N19) -> 0 | P19: =NORMINV($C$25,M19,O19) ->  | S19: =IF(C$25<=(J19-I19)/(K19-I19),I19+SQRT(C$25*(J19-I19)*(K19-I19)),K19-SQRT((1-C$25)*(K19-J19)*(K19-I19))) ->  | U19: =I19+(K19-I19)*$C$25 -> 0
B20: =class2 -> Not in use | I20: ='Step 7 Setup Simulation'!D32 -> 0 | J20: ='Step 7 Setup Simulation'!E32 -> 0 | K20: ='Step 7 Setup Simulation'!F32 -> 0 | M20: =0.63*J20+0.185*(I20+K20) -> 0 | N20: =0.63*(J20-M20)^2+0.185*((I20-M20)^2+(K20-M20)^2) -> 0 | O20: =SQRT(N20) -> 0 | U20: 0
B21: =class3 -> Not in use | I21: ='Step 7 Setup Simulation'!D33 -> 0 | J21: ='Step 7 Setup Simulation'!E33 -> 0 | K21: ='Step 7 Setup Simulation'!F33 -> 0 | M21: 0 | N21: 0 | O21: 0 | U21: 0
B22: =class4 -> Not in use | I22: ='Step 7 Setup Simulation'!D34 -> 0 | J22: ='Step 7 Setup Simulation'!E34 -> 0 | K22: ='Step 7 Setup Simulation'!F34 -> 0 | M22: 0 | N22: 0 | O22: 0 | U22: 0
B23: =class5 -> Not in use | I23: ='Step 7 Setup Simulation'!D35 -> 0 | J23: ='Step 7 Setup Simulation'!E35 -> 0 | K23: ='Step 7 Setup Simulation'!F35 -> 0 | M23: 0 | N23: 0 | O23: 0 | U23: 0
B24: =class6 -> Not in use | I24: ='Step 7 Setup Simulation'!D36 -> 0 | J24: ='Step 7 Setup Simulation'!E36 -> 0 | K24: ='Step 7 Setup Simulation'!F36 -> 0 | M24: 0 | N24: 0 | O24: 0 | U24: 0
B25: Rand() | C25: =RAND() -> 0.5726313343 | M25: ˆμ = 0.630p0.5 + 0.185(p0.05 + p0.95)
M26: ˆσ2 = 0.630(p0.5 − ˆμ)^2 + 0.185[(p0.05 − ˆμ)^2 + (p0.95 − ˆμ)^2]
B27: Acct Growth Factors
B28: =class1 -> Not in use | C28: 1 | D28: =IFERROR(C28*(1+$C19),1) -> 1 | E28: =IFERROR(D28*(1+$C19),1) -> 1 | F28: 1 | G28: 1
B29: =class2 -> Not in use | C29: 1 | D29: =IFERROR(C29*(1+$C20),1) -> 1 | E29: 1 | F29: 1 | G29: 1
B30: =class3 -> Not in use | C30: 1 | D30: =IFERROR(C30*(1+$C21),1) -> 1 | E30: 1 | F30: 1 | G30: 1
B31: =class4 -> Not in use | C31: 1 | D31: =IFERROR(C31*(1+$C22),1) -> 1 | E31: 1 | F31: 1 | G31: 1
B32: =class5 -> Not in use | C32: 1 | D32: =IFERROR(C32*(1+$C23),1) -> 1 | E32: 1 | F32: 1 | G32: 1
B33: =class6 -> Not in use | C33: 1 | D33: =IFERROR(C33*(1+$C24),1) -> 1 | E33: 1 | F33: 1 | G33: =IFERROR(F33*(1+$C24),1) -> 1

Sheet Class1_Model
B1: Step 3 and 4 Design Water Rates Model
B3: Rationing | D3: ="Season: " & season1 -> Season: Off Peak | V3: ="Season: " & season2 -> Season: Peak
B4: Multiplier | Q4: Current | S4: Proposed | AJ4: Current | AL4: Proposed
B5: 1 | Q5: Switch to next | R5: Rate | S5: Switch to next | T5: Rate | AJ5: Switch to next | AK5: Rate | AL5: Switch to next | AM5: Rate
P6: Block 1 | Q6: ='Step 4 Design Water Rates'!D37 -> 0 | R6: ='Step 4 Design Water Rates'!E37 -> 0 | S6: ='Step 4 Design Water Rates'!G37 -> 0 | T6: ='Step 4 Design Water Rates'!H37 -> 0 | AI6: Block 1 | AJ6: ='Step 4 Design Water Rates'!J37 -> 0 | AK6: ='Step 4 Design Water Rates'!K37 -> 0 | AL6: ='Step 4 Design Water Rates'!M37 -> 0 | AM6: ='Step 4 Design Water Rates'!N37 -> 0
P7: Block 2 | Q7: ='Step 4 Design Water Rates'!D38 -> 0 | R7: ='Step 4 Design Water Rates'!E38 -> 0 | S7: ='Step 4 Design Water Rates'!G38 -> 0 | T7: ='Step 4 Design Water Rates'!H38 -> 0 | AI7: Block 2 | AJ7: ='Step 4 Design Water Rates'!J38 -> 0 | AK7: ='Step 4 Design Water Rates'!K38 -> 0 | AL7: ='Step 4 Design Water Rates'!M38 -> 0 | AM7: ='Step 4 Design Water Rates'!N38 -> 0
P8: Block 3 | Q8: ='Step 4 Design Water Rates'!D39 -> 0 | R8: ='Step 4 Design Water Rates'!E39 -> 0 | S8: ='Step 4 Design Water Rates'!G39 -> 0 | T8: ='Step 4 Design Water Rates'!H39 -> 0 | AI8: Block 3 | AJ8: ='Step 4 Design Water Rates'!J39 -> 0 | AK8: ='Step 4 Design Water Rates'!K39 -> 0 | AL8: ='Step 4 Design Water Rates'!M39 -> 0 | AM8: ='Step 4 Design Water Rates'!N39 -> 0
P9: Block 4 | Q9: ='Step 4 Design Water Rates'!D40 -> 0 | R9: ='Step 4 Design Water Rates'!E40 -> 0 | S9: ='Step 4 Design Water Rates'!G40 -> 0 | T9: ='Step 4 Design Water Rates'!H40 -> 0 | AI9: Block 4 | AJ9: ='Step 4 Design Water Rates'!J40 -> 0 | AK9: ='Step 4 Design Water Rates'!K40 -> 0 | AL9: ='Step 4 Design Water Rates'!M40 -> 0 | AM9: ='Step 4 Design Water Rates'!N40 -> 0
P10: Block 5 | Q10: ='Step 4 Design Water Rates'!D41 -> 0 | R10: ='Step 4 Design Water Rates'!E41 -> 0 | S10: ='Step 4 Design Water Rates'!G41 -> 0 | T10: ='Step 4 Design Water Rates'!H41 -> 0 | AI10: Block 5 | AJ10: ='Step 4 Design Water Rates'!J41 -> 0 | AK10: ='Step 4 Design Water Rates'!K41 -> 0 | AL10: ='Step 4 Design Water Rates'!M41 -> 0 | AM10: ='Step 4 Design Water Rates'!N41 -> 0
D12: Bill Tabulaton Data | G12: Current Rates | M12: Proposed Rates | V12: Bill Tabulaton Data | Z12: Current Rates | AF12: Proposed Rates
A13: Bill Tabulation | E13: Total Use of | J13: Median | K13: Water Sales | M13: Relative | N13: Adjusted | R13: Median | S13: Water Sales | X13: Total Use of | AC13: Median | AD13: Water Sales | AF13: Relative | AG13: Adjusted | AK13: Median | AL13: Water Sales
A14: Usage Bin | D14: Bills in | E14: Bills Stopping | G14: Avg Use/ | H14: Avg Rate/ | I14: Avg Vol | J14: Service | K14: Revenue from | M14: Rate | N14: Avg Use/ | O14: Total | P14: Avg Rate/ | Q14: Avg Vol | R14: Service | S14: Revenue from | T14: Bill | V14: Bills in | W14: Cumulative | X14: Bills Stopping | Z14: Avg Use/ | AA14: Avg Rate/ | AB14: Avg Vol | AC14: Service | AD14: Revenue from | AF14: Rate | AG14: Avg Use/ | AH14: Total | AI14: Avg Rate/ | AJ14: Avg Vol | AK14: Service | AL14: Revenue from | AM14: Bill
A15: ="(" & units_vol & ")" -> () | D15: Bin | E15: in Bin | G15: Bill | H15: Bill | I15: Charge/Bin | J15: Charge | K15: Bills in Bin | M15: Change | N15: Bill | O15: Use | P15: Bill | Q15: Charge/Bin | R15: Charge | S15: Bills in Bin | T15: Impact | V15: Bin | W15: Bills | X15: in Bin | Z15: Bill | AA15: Bill | AB15: Charge/Bin | AC15: Charge | AD15: Bills in Bin | AF15: Change | AG15: Bill | AH15: Use | AI15: Bill | AJ15: Charge/Bin | AK15: Charge | AL15: Bills in Bin | AM15: Impact
A16: From | B16: To | E16: ="(" & units_vol & ")" -> () | G16: ="(" & units_vol & ")" -> () | H16: ="($/" & units_vol & ")" -> ($/) | I16: ($/Bill) | J16: ($/Bill) | K16: ($) | M16: (%) | N16: ="(" & units_vol & ")" -> () | O16: ="(" & units_vol & ")" -> () | P16: ="($/" & units_vol & ")" -> ($/) | Q16: ($) | R16: ($/Bill) | S16: ($) | T16: (%) | X16: ="(" & units_vol & ")" -> () | Z16: ="(" & units_vol & ")" -> () | AA16: ="($/" & units_vol & ")" -> ($/) | AB16: ($) | AC16: ($/Bill) | AD16: ($) | AF16: (%) | AG16: ="(" & units_vol & ")" -> () | AH16: ="(" & units_vol & ")" -> () | AI16: ="($/" & units_vol & ")" -> ($/) | AJ16: ($) | AK16: ($/Bill) | AL16: ($) | AM16: (%)
A17: 0 | B17: 0 | D17: ='Step 2 Enter Bill Tabulations'!E17 -> 0 | E17: ='Step 2 Enter Bill Tabulations'!F17 -> 0 | G17: =IF(D17>0,E17/D17,0) -> 0 | H17: =IFERROR(IF($G17<=Q$6,R$6*$G17,IF($G17<=Q$7,($G17-Q$6)*R$7+Q$6*R$6,IF($G17<=Q$8,($G17-Q$7)*R$8+(Q$7-Q$6)*R$7+Q$6*R$6,IF($G17<=Q$9,($G17-Q$8)*R$9+(Q$8-Q$7)*R$8+(Q$7-Q$6)*R$7+Q$6*R$6,($G17-Q$9)*R$10+(Q$9-Q$8)*R$9+(Q$8-Q$7)*R$8+(Q$7-Q$6)*R$7+Q$6*R$6))))/G17,0) -> 0 | I17: =G17*H17 -> 0 | J17: =class1_medfixedcharge_current/bills_per_yr ->  | K17: =$D17*G17*H17 -> 0 | M17: =IFERROR(IF($G17<=$S$6,$T$6*$G17,IF($G17<=$S$7,($G17-$S$6)*$T$7+$S$6*$T$6,IF($G17<=$S$8,($G17-$S$7)*$T$8+($S$7-$S$6)*$T$7+$S$6*$T$6,IF($G17<=$S$9,($G17-$S$8)*$T$9+($S$8-$S$7)*$T$8+($S$7-$S$6)*$T$7+$S$6*$T$6,($G17-$S$9)*$T$10+($S$9-$S$8)*$T$9+($S$8-$S$7)*$T$8+($S$7-$S$6)*$T$7+$S$6*$T$6))))/$G17/H17-1,0) -> 0 | N17: =G17*$B$5*(1+M17*elast_season1_class1) -> 0 | O17: =N17*D17 -> 0 | P17: =IFERROR(IF($N17<=$S$6,$T$6*$N17,IF($N17<=$S$7,($N17-$S$6)*$T$7+$S$6*$T$6,IF($N17<=$S$8,($N17-$S$7)*$T$8+($S$7-$S$6)*$T$7+$S$6*$T$6,IF($N17<=$S$9,($N17-$S$8)*$T$9+($S$8-$S$7)*$T$8+($S$7-$S$6)*$T$7+$S$6*$T$6,($N17-$S$9)*$T$10+($S$9-$S$8)*$T$9+($S$8-$S$7)*$T$8+($S$7-$S$6)*$T$7+$S$6*$T$6))))/$N17,0) -> 0 | Q17: =N17*P17 -> 0 | R17: =class1_medfixedcharge_proposed/bills_per_yr ->  | S17: =$D17*N17*P17 -> 0 | T17: =IFERROR((Q17+R17)/(I17+J17)-1,0) -> 0 | V17: ='Step 2 Enter Bill Tabulations'!G17 -> 0 | W17: =SUM(V17:V$17) -> 0 | X17: ='Step 2 Enter Bill Tabulations'!H17 -> 0 | Z17: =IF(V17>0,X17/V17,0) -> 0 | AA17: =IFERROR(IF($Z17<=AJ$6,AK$6*$Z17,IF($Z17<=AJ$7,($Z17-AJ$6)*AK$7+AJ$6*AK$6,IF($Z17<=AJ$8,($Z17-AJ$7)*AK$8+(AJ$7-AJ$6)*AK$7+AJ$6*AK$6,IF($Z17<=AJ$9,($Z17-AJ$8)*AK$9+(AJ$8-AJ$7)*AK$8+(AJ$7-AJ$6)*AK$7+AJ$6*AK$6,($Z17-AJ$9)*AK$10+(AJ$9-AJ$8)*AK$9+(AJ$8-AJ$7)*AK$8+(AJ$7-AJ$6)*AK$7+AJ$6*AK$6))))/Z17,0) -> 0 | AB17: =Z17*AA17 -> 0 | AC17: =J17 ->  | AD17: =$V17*Z17*AA17 -> 0 | AF17: =IFERROR(IF($Z17<=$AL$6,$AM$6*$Z17,IF($Z17<=$AL$7,($Z17-$AL$6)*$AM$7+$AL$6*$AM$6,IF($Z17<=$AL$8,($Z17-$AL$7)*$AM$8+($AL$7-$AL$6)*$AM$7+$AL$6*$AM$6,IF($Z17<=$AL$9,($Z17-$AL$8)*$AM$9+($AL$8-$AL$7)*$AM$8+($AL$7-$AL$6)*$AM$7+$AL$6*$AM$6,($Z17-$AL$9)*$AM$10+($AL$9-$AL$8)*$AM$9+($AL$8-$AL$7)*$AM$8+($AL$7-$AL$6)*$AM$7+$AL$6*$AM$6))))/$Z17/AA17-1,0) -> 0 | AG17: =Z17*$B$5*(1+AF17*elast_season2_class1) -> 0 | AH17: =AG17*V17 -> 0 | AI17: =IFERROR(IF($AG17<=$AL$6,$AM$6*$AG17,IF($AG17<=$AL$7,($AG17-$AL$6)*$AM$7+$AL$6*$AM$6,IF($AG17<=$AL$8,($AG17-$AL$7)*$AM$8+($AL$7-$AL$6)*$AM$7+$AL$6*$AM$6,IF($AG17<=$AL$9,($AG17-$AL$8)*$AM$9+($AL$8-$AL$7)*$AM$8+($AL$7-$AL$6)*$AM$7+$AL$6*$AM$6,($AG17-$AL$9)*$AM$10+($AL$9-$AL$8)*$AM$9+($AL$8-$AL$7)*$AM$8+($AL$7-$AL$6)*$AM$7+$AL$6*$AM$6))))/$AG17,0) -> 0 | AJ17: =AG17*AI17 -> 0 | AK17: =R17 ->  | AL17: =$V17*AG17*AI17 -> 0 | AM17: =IFERROR((AJ17+AK17)/(AB17+AC17)-1,0) -> 0
A18: 1 | B18: 1 | D18: ='Step 2 Enter Bill Tabulations'!E18 -> 0 | E18: ='Step 2 Enter Bill Tabulations'!F18 -> 0 | G18: =IF(D18>0,E18/D18,0) -> 0 | H18: =IFERROR(IF($G18<=Q$6,R$6*$G18,IF($G18<=Q$7,($G18-Q$6)*R$7+Q$6*R$6,IF($G18<=Q$8,($G18-Q$7)*R$8+(Q$7-Q$6)*R$7+Q$6*R$6,IF($G18<=Q$9,($G18-Q$8)*R$9+(Q$8-Q$7)*R$8+(Q$7-Q$6)*R$7+Q$6*R$6,($G18-Q$9)*R$10+(Q$9-Q$8)*R$9+(Q$8-Q$7)*R$8+(Q$7-Q$6)*R$7+Q$6*R$6))))/G18,0) -> 0 | I18: =G18*H18 -> 0 | J18: =J17 ->  | K18: =$D18*G18*H18 -> 0 | M18: 0 | N18: 0 | O18: =N18*D18 -> 0 | P18: 0 | Q18: =N18*P18 -> 0 | R18: =R17 ->  | S18: =$D18*N18*P18 -> 0 | T18: =IFERROR((Q18+R18)/(I18+J18)-1,0) -> 0 | V18: ='Step 2 Enter Bill Tabulations'!G18 -> 0 | W18: =SUM(V$17:V18) -> 0 | X18: ='Step 2 Enter Bill Tabulations'!H18 -> 0 | Z18: 0 | AA18: 0 | AB18: 0 | AC18: =J18 ->  | AD18: 0 | AF18: 0 | AG18: 0 | AH18: 0 | AI18: =IFERROR(IF($AG18<=$AL$6,$AM$6*$AG18,IF($AG18<=$AL$7,($AG18-$AL$6)*$AM$7+$AL$6*$AM$6,IF($AG18<=$AL$8,($AG18-$AL$7)*$AM$8+($AL$7-$AL$6)*$AM$7+$AL$6*$AM$6,IF($AG18<=$AL$9,($AG18-$AL$8)*$AM$9+($AL$8-$AL$7)*$AM$8+($AL$7-$AL$6)*$AM$7+$AL$6*$AM$6,($AG18-$AL$9)*$AM$10+($AL$9-$AL$8)*$AM$9+($AL$8-$AL$7)*$AM$8+($AL$7-$AL$6)*$AM$7+$AL$6*$AM$6))))/$AG18,0) -> 0 | AJ18: =AG18*AI18 -> 0 | AK18: =R18 ->  | AL18: 0 | AM18: =IFERROR((AJ18+AK18)/(AB18+AC18)-1,0) -> 0
A19: 2 | B19: 2 | D19: ='Step 2 Enter Bill Tabulations'!E19 -> 0 | E19: ='Step 2 Enter Bill Tabulations'!F19 -> 0 | G19: 0 | H19: 0 | I19: 0 | J19: =J18 ->  | K19: 0 | M19: 0 | N19: 0 | O19: 0 | P19: 0 | Q19: =N19*P19 -> 0 | R19: =R18 ->  | S19: =$D19*N19*P19 -> 0 | T19: =IFERROR((Q19+R19)/(I19+J19)-1,0) -> 0 | V19: ='Step 2 Enter Bill Tabulations'!G19 -> 0 | W19: =SUM(V$17:V19) -> 0 | X19: ='Step 2 Enter Bill Tabulations'!H19 -> 0 | Z19: 0 | AA19: 0 | AB19: 0 | AD19: 0 | AF19: 0 | AG19: 0 | AH19: 0 | AI19: 0 | AJ19: 0 | AL19: 0 | AM19: =IFERROR((AJ19+AK19)/(AB19+AC19)-1,0) -> 0
A20: 3 | B20: 3 | D20: ='Step 2 Enter Bill Tabulations'!E20 -> 0 | E20: ='Step 2 Enter Bill Tabulations'!F20 -> 0 | G20: 0 | H20: 0 | I20: 0 | K20: 0 | M20: 0 | N20: 0 | O20: 0 | P20: 0 | Q20: 0 | S20: 0 | T20: 0 | V20: ='Step 2 Enter Bill Tabulations'!G20 -> 0 | W20: =SUM(V$17:V20) -> 0 | X20: ='Step 2 Enter Bill Tabulations'!H20 -> 0 | Z20: 0 | AA20: 0 | AB20: 0 | AD20: 0 | AF20: 0 | AG20: 0 | AH20: 0 | AI20: 0 | AJ20: 0 | AL20: 0 | AM20: 0
A21: 4 | B21: 4 | D21: ='Step 2 Enter Bill Tabulations'!E21 -> 0 | E21: ='Step 2 Enter Bill Tabulations'!F21 -> 0 | G21: 0 | H21: =IFERROR(IF($G21<=Q$6,R$6*$G21,IF($G21<=Q$7,($G21-Q$6)*R$7+Q$6*R$6,IF($G21<=Q$8,($G21-Q$7)*R$8+(Q$7-Q$6)*R$7+Q$6*R$6,IF($G21<=Q$9,($G21-Q$8)*R$9+(Q$8-Q$7)*R$8+(Q$7-Q$6)*R$7+Q$6*R$6,($G21-Q$9)*R$10+(Q$9-Q$8)*R$9+(Q$8-Q$7)*R$8+(Q$7-Q$6)*R$7+Q$6*R$6))))/G21,0) -> 0 | I21: 0 | K21: 0 | M21: 0 | N21: 0 | O21: 0 | P21: 0 | Q21: 0 | S21: 0 | T21: 0 | V21: ='Step 2 Enter Bill Tabulations'!G21 -> 0 | W21: =SUM(V$17:V21) -> 0 | X21: ='Step 2 Enter Bill Tabulations'!H21 -> 0 | Z21: 0 | AA21: 0 | AB21: 0 | AD21: 0 | AF21: 0 | AG21: 0 | AH21: 0 | AI21: 0 | AJ21: 0 | AL21: 0 | AM21: 0
A22: 5 | B22: 5 | D22: ='Step 2 Enter Bill Tabulations'!E22 -> 0 | E22: ='Step 2 Enter Bill Tabulations'!F22 -> 0 | G22: 0 | H22: 0 | I22: 0 | K22: 0 | M22: 0 | N22: 0 | O22: 0 | P22: 0 | Q22: 0 | S22: 0 | T22: 0 | V22: ='Step 2 Enter Bill Tabulations'!G22 -> 0 | W22: =SUM(V$17:V22) -> 0 | X22: ='Step 2 Enter Bill Tabulations'!H22 -> 0 | Z22: 0 | AA22: 0 | AB22: 0 | AD22: 0 | AF22: 0 | AG22: 0 | AH22: 0 | AI22: 0 | AJ22: 0 | AL22: 0 | AM22: 0
A23: 6 | B23: 6 | D23: ='Step 2 Enter Bill Tabulations'!E23 -> 0 | E23: ='Step 2 Enter Bill Tabulations'!F23 -> 0 | G23: 0 | H23: 0 | I23: 0 | K23: 0 | M23: 0 | N23: 0 | O23: 0 | P23: 0 | Q23: 0 | S23: 0 | T23: 0 | V23: ='Step 2 Enter Bill Tabulations'!G23 -> 0 | W23: =SUM(V$17:V23) -> 0 | X23: ='Step 2 Enter Bill Tabulations'!H23 -> 0 | Z23: 0 | AA23: 0 | AB23: 0 | AD23: 0 | AF23: 0 | AG23: 0 | AH23: 0 | AI23: 0 | AJ23: 0 | AL23: 0 | AM23: 0
A24: 7 | B24: 7 | D24: ='Step 2 Enter Bill Tabulations'!E24 -> 0 | E24: ='Step 2 Enter Bill Tabulations'!F24 -> 0 | G24: 0 | H24: 0 | I24: 0 | K24: 0 | M24: 0 | N24: 0 | O24: 0 | P24: 0 | Q24: 0 | S24: 0 | T24: 0 | V24: ='Step 2 Enter Bill Tabulations'!G24 -> 0 | W24: =SUM(V$17:V24) -> 0 | X24: ='Step 2 Enter Bill Tabulations'!H24 -> 0 | Z24: 0 | AA24: 0 | AB24: 0 | AD24: 0 | AF24: 0 | AG24: 0 | AH24: 0 | AI24: 0 | AJ24: 0 | AL24: 0 | AM24: 0
A25: 8 | B25: 8 | D25: ='Step 2 Enter Bill Tabulations'!E25 -> 0 | E25: ='Step 2 Enter Bill Tabulations'!F25 -> 0 | G25: 0 | H25: 0 | I25: 0 | K25: 0 | M25: 0 | N25: 0 | O25: 0 | P25: 0 | Q25: 0 | S25: 0 | T25: 0 | V25: ='Step 2 Enter Bill Tabulations'!G25 -> 0 | W25: =SUM(V$17:V25) -> 0 | X25: ='Step 2 Enter Bill Tabulations'!H25 -> 0 | Z25: 0 | AA25: 0 | AB25: 0 | AD25: 0 | AF25: 0 | AG25: 0 | AH25: 0 | AI25: 0 | AJ25: 0 | AL25: 0 | AM25: 0
A26: 9 | B26: 9 | D26: ='Step 2 Enter Bill Tabulations'!E26 -> 0 | E26: ='Step 2 Enter Bill Tabulations'!F26 -> 0 | G26: 0 | H26: 0 | I26: 0 | K26: 0 | M26: 0 | N26: 0 | O26: 0 | P26: 0 | Q26: 0 | S26: 0 | T26: 0 | V26: ='Step 2 Enter Bill Tabulations'!G26 -> 0 | W26: =SUM(V$17:V26) -> 0 | X26: ='Step 2 Enter Bill Tabulations'!H26 -> 0 | Z26: 0 | AA26: 0 | AB26: 0 | AD26: 0 | AF26: 0 | AG26: 0 | AH26: 0 | AI26: 0 | AJ26: 0 | AL26: 0 | AM26: 0
A27: 10 | B27: 10 | D27: ='Step 2 Enter Bill Tabulations'!E27 -> 0 | E27: ='Step 2 Enter Bill Tabulations'!F27 -> 0 | G27: 0 | H27: 0 | I27: 0 | K27: 0 | M27: 0 | N27: 0 | O27: 0 | P27: 0 | Q27: 0 | S27: 0 | T27: 0 | V27: ='Step 2 Enter Bill Tabulations'!G27 -> 0 | W27: =SUM(V$17:V27) -> 0 | X27: ='Step 2 Enter Bill Tabulations'!H27 -> 0 | Z27: 0 | AA27: 0 | AB27: 0 | AD27: 0 | AF27: 0 | AG27: 0 | AH27: 0 | AI27: 0 | AJ27: 0 | AL27: 0 | AM27: 0
A28: 11 | B28: 11 | D28: ='Step 2 Enter Bill Tabulations'!E28 -> 0 | E28: ='Step 2 Enter Bill Tabulations'!F28 -> 0 | G28: 0 | H28: 0 | I28: 0 | K28: 0 | M28: 0 | N28: 0 | O28: 0 | P28: 0 | Q28: 0 | S28: 0 | T28: 0 | V28: ='Step 2 Enter Bill Tabulations'!G28 -> 0 | W28: =SUM(V$17:V28) -> 0 | X28: ='Step 2 Enter Bill Tabulations'!H28 -> 0 | Z28: 0 | AA28: 0 | AB28: 0 | AD28: 0 | AF28: 0 | AG28: 0 | AH28: 0 | AI28: 0 | AJ28: 0 | AL28: 0 | AM28: 0
A29: 12 | B29: 12 | D29: ='Step 2 Enter Bill Tabulations'!E29 -> 0 | E29: ='Step 2 Enter Bill Tabulations'!F29 -> 0 | G29: 0 | H29: 0 | I29: 0 | K29: 0 | M29: 0 | N29: 0 | O29: 0 | P29: 0 | Q29: 0 | S29: 0 | T29: 0 | V29: ='Step 2 Enter Bill Tabulations'!G29 -> 0 | W29: =SUM(V$17:V29) -> 0 | X29: ='Step 2 Enter Bill Tabulations'!H29 -> 0 | Z29: 0 | AA29: 0 | AB29: 0 | AD29: 0 | AF29: 0 | AG29: 0 | AH29: 0 | AI29: 0 | AJ29: 0 | AL29: 0 | AM29: 0
A30: 13 | B30: 13 | D30: ='Step 2 Enter Bill Tabulations'!E30 -> 0 | E30: ='Step 2 Enter Bill Tabulations'!F30 -> 0 | G30: 0 | H30: 0 | I30: 0 | K30: 0 | M30: 0 | N30: 0 | O30: 0 | P30: 0 | Q30: 0 | S30: 0 | T30: 0 | V30: ='Step 2 Enter Bill Tabulations'!G30 -> 0 | W30: =SUM(V$17:V30) -> 0 | X30: ='Step 2 Enter Bill Tabulations'!H30 -> 0 | Z30: 0 | AA30: 0 | AB30: 0 | AD30: 0 | AF30: 0 | AG30: 0 | AH30: 0 | AI30: 0 | AJ30: 0 | AL30: 0 | AM30: 0
A31: 14 | B31: 14 | D31: ='Step 2 Enter Bill Tabulations'!E31 -> 0 | E31: ='Step 2 Enter Bill Tabulations'!F31 -> 0 | G31: 0 | H31: 0 | I31: 0 | K31: 0 | M31: 0 | N31: 0 | O31: 0 | P31: 0 | Q31: 0 | S31: 0 | T31: 0 | V31: ='Step 2 Enter Bill Tabulations'!G31 -> 0 | W31: =SUM(V$17:V31) -> 0 | X31: ='Step 2 Enter Bill Tabulations'!H31 -> 0 | Z31: 0 | AA31: 0 | AB31: 0 | AD31: 0 | AF31: 0 | AG31: 0 | AH31: 0 | AI31: 0 | AJ31: 0 | AL31: 0 | AM31: 0
A32: 15 | B32: 15 | D32: ='Step 2 Enter Bill Tabulations'!E32 -> 0 | E32: ='Step 2 Enter Bill Tabulations'!F32 -> 0 | G32: 0 | H32: 0 | I32: 0 | K32: 0 | M32: 0 | N32: 0 | O32: 0 | P32: 0 | Q32: 0 | S32: 0 | T32: 0 | V32: ='Step 2 Enter Bill Tabulations'!G32 -> 0 | W32: =SUM(V$17:V32) -> 0 | X32: ='Step 2 Enter Bill Tabulations'!H32 -> 0 | Z32: 0 | AA32: 0 | AB32: 0 | AD32: 0 | AF32: 0 | AG32: 0 | AH32: 0 | AI32: 0 | AJ32: 0 | AL32: 0 | AM32: 0
A33: 16 | B33: 16 | D33: ='Step 2 Enter Bill Tabulations'!E33 -> 0 | E33: ='Step 2 Enter Bill Tabulations'!F33 -> 0 | G33: 0 | H33: 0 | I33: 0 | K33: 0 | M33: 0 | N33: 0 | O33: 0 | P33: 0 | Q33: 0 | S33: 0 | T33: 0 | V33: ='Step 2 Enter Bill Tabulations'!G33 -> 0 | W33: =SUM(V$17:V33) -> 0 | X33: ='Step 2 Enter Bill Tabulations'!H33 -> 0 | Z33: 0 | AA33: 0 | AB33: 0 | AD33: 0 | AF33: 0 | AG33: 0 | AH33: 0 | AI33: 0 | AJ33: 0 | AL33: 0 | AM33: 0
A34: 17 | B34: 17 | D34: ='Step 2 Enter Bill Tabulations'!E34 -> 0 | E34: ='Step 2 Enter Bill Tabulations'!F34 -> 0 | G34: 0 | H34: 0 | I34: 0 | K34: 0 | M34: 0 | N34: 0 | O34: 0 | P34: 0 | Q34: 0 | S34: 0 | T34: 0 | V34: ='Step 2 Enter Bill Tabulations'!G34 -> 0 | W34: =SUM(V$17:V34) -> 0 | X34: ='Step 2 Enter Bill Tabulations'!H34 -> 0 | Z34: 0 | AA34: 0 | AB34: 0 | AD34: 0 | AF34: 0 | AG34: 0 | AH34: 0 | AI34: 0 | AJ34: 0 | AL34: 0 | AM34: 0
A35: 18 | B35: 18 | D35: ='Step 2 Enter Bill Tabulations'!E35 -> 0 | E35: ='Step 2 Enter Bill Tabulations'!F35 -> 0 | G35: 0 | H35: 0 | I35: 0 | K35: 0 | M35: 0 | N35: 0 | O35: 0 | P35: 0 | Q35: 0 | S35: 0 | T35: 0 | V35: ='Step 2 Enter Bill Tabulations'!G35 -> 0 | W35: =SUM(V$17:V35) -> 0 | X35: ='Step 2 Enter Bill Tabulations'!H35 -> 0 | Z35: 0 | AA35: 0 | AB35: 0 | AD35: 0 | AF35: 0 | AG35: 0 | AH35: 0 | AI35: 0 | AJ35: 0 | AL35: 0 | AM35: 0
A36: 19 | B36: 19 | D36: ='Step 2 Enter Bill Tabulations'!E36 -> 0 | E36: ='Step 2 Enter Bill Tabulations'!F36 -> 0 | G36: 0 | H36: 0 | I36: 0 | K36: 0 | M36: 0 | N36: 0 | O36: 0 | P36: 0 | Q36: 0 | S36: 0 | T36: 0 | V36: ='Step 2 Enter Bill Tabulations'!G36 -> 0 | W36: =SUM(V$17:V36) -> 0 | X36: ='Step 2 Enter Bill Tabulations'!H36 -> 0 | Z36: 0 | AA36: 0 | AB36: 0 | AD36: 0 | AF36: 0 | AG36: 0 | AH36: 0 | AI36: 0 | AJ36: 0 | AL36: 0 | AM36: 0
A37: 20 | B37: 20 | D37: ='Step 2 Enter Bill Tabulations'!E37 -> 0 | E37: ='Step 2 Enter Bill Tabulations'!F37 -> 0 | G37: 0 | H37: 0 | I37: 0 | K37: 0 | M37: 0 | N37: 0 | O37: 0 | P37: 0 | Q37: 0 | S37: 0 | T37: 0 | V37: ='Step 2 Enter Bill Tabulations'!G37 -> 0 | W37: =SUM(V$17:V37) -> 0 | X37: ='Step 2 Enter Bill Tabulations'!H37 -> 0 | Z37: 0 | AA37: 0 | AB37: 0 | AD37: 0 | AF37: 0 | AG37: 0 | AH37: 0 | AI37: 0 | AJ37: 0 | AL37: 0 | AM37: 0
A38: 21 | B38: 21 | D38: ='Step 2 Enter Bill Tabulations'!E38 -> 0 | E38: ='Step 2 Enter Bill Tabulations'!F38 -> 0 | G38: 0 | H38: 0 | I38: 0 | K38: 0 | M38: 0 | N38: 0 | O38: 0 | P38: 0 | Q38: 0 | S38: 0 | T38: 0 | V38: ='Step 2 Enter Bill Tabulations'!G38 -> 0 | W38: =SUM(V$17:V38) -> 0 | X38: ='Step 2 Enter Bill Tabulations'!H38 -> 0 | Z38: 0 | AA38: 0 | AB38: 0 | AD38: 0 | AF38: 0 | AG38: 0 | AH38: 0 | AI38: 0 | AJ38: 0 | AL38: 0 | AM38: 0
A39: 22 | B39: 22 | D39: ='Step 2 Enter Bill Tabulations'!E39 -> 0 | E39: ='Step 2 Enter Bill Tabulations'!F39 -> 0 | G39: 0 | H39: 0 | I39: 0 | K39: 0 | M39: 0 | N39: 0 | O39: 0 | P39: 0 | Q39: 0 | S39: 0 | T39: 0 | V39: ='Step 2 Enter Bill Tabulations'!G39 -> 0 | W39: =SUM(V$17:V39) -> 0 | X39: ='Step 2 Enter Bill Tabulations'!H39 -> 0 | Z39: 0 | AA39: 0 | AB39: 0 | AD39: 0 | AF39: 0 | AG39: 0 | AH39: 0 | AI39: 0 | AJ39: 0 | AL39: 0 | AM39: 0
A40: 23 | B40: 23 | D40: ='Step 2 Enter Bill Tabulations'!E40 -> 0 | E40: ='Step 2 Enter Bill Tabulations'!F40 -> 0 | G40: 0 | H40: 0 | I40: 0 | K40: 0 | M40: 0 | N40: 0 | O40: 0 | P40: 0 | Q40: 0 | S40: 0 | T40: 0 | V40: ='Step 2 Enter Bill Tabulations'!G40 -> 0 | W40: =SUM(V$17:V40) -> 0 | X40: ='Step 2 Enter Bill Tabulations'!H40 -> 0 | Z40: 0 | AA40: 0 | AB40: 0 | AD40: 0 | AF40: 0 | AG40: 0 | AH40: 0 | AI40: 0 | AJ40: 0 | AL40: 0 | AM40: 0
A41: 24 | B41: 24 | D41: ='Step 2 Enter Bill Tabulations'!E41 -> 0 | E41: ='Step 2 Enter Bill Tabulations'!F41 -> 0 | G41: 0 | H41: 0 | I41: 0 | K41: 0 | M41: 0 | N41: 0 | O41: 0 | P41: 0 | Q41: 0 | S41: 0 | T41: 0 | V41: ='Step 2 Enter Bill Tabulations'!G41 -> 0 | W41: =SUM(V$17:V41) -> 0 | X41: ='Step 2 Enter Bill Tabulations'!H41 -> 0 | Z41: 0 | AA41: 0 | AB41: 0 | AD41: 0 | AF41: 0 | AG41: 0 | AH41: 0 | AI41: 0 | AJ41: 0 | AL41: 0 | AM41: 0
A42: 25 | B42: 25 | D42: ='Step 2 Enter Bill Tabulations'!E42 -> 0 | E42: ='Step 2 Enter Bill Tabulations'!F42 -> 0 | G42: 0 | H42: 0 | I42: 0 | K42: 0 | M42: 0 | N42: 0 | O42: 0 | P42: 0 | Q42: 0 | S42: 0 | T42: 0 | V42: ='Step 2 Enter Bill Tabulations'!G42 -> 0 | W42: =SUM(V$17:V42) -> 0 | X42: ='Step 2 Enter Bill Tabulations'!H42 -> 0 | Z42: 0 | AA42: 0 | AB42: 0 | AD42: 0 | AF42: 0 | AG42: 0 | AH42: 0 | AI42: 0 | AJ42: 0 | AL42: 0 | AM42: 0
A43: 26 | B43: 26 | D43: ='Step 2 Enter Bill Tabulations'!E43 -> 0 | E43: ='Step 2 Enter Bill Tabulations'!F43 -> 0 | G43: 0 | H43: 0 | I43: 0 | K43: 0 | M43: 0 | N43: 0 | O43: 0 | P43: 0 | Q43: 0 | S43: 0 | T43: 0 | V43: ='Step 2 Enter Bill Tabulations'!G43 -> 0 | W43: =SUM(V$17:V43) -> 0 | X43: ='Step 2 Enter Bill Tabulations'!H43 -> 0 | Z43: 0 | AA43: 0 | AB43: 0 | AD43: 0 | AF43: 0 | AG43: 0 | AH43: 0 | AI43: 0 | AJ43: 0 | AL43: 0 | AM43: 0
A44: 27 | B44: 27 | D44: ='Step 2 Enter Bill Tabulations'!E44 -> 0 | E44: ='Step 2 Enter Bill Tabulations'!F44 -> 0 | G44: 0 | H44: 0 | I44: 0 | K44: 0 | M44: 0 | N44: 0 | O44: 0 | P44: 0 | Q44: 0 | S44: 0 | T44: 0 | V44: ='Step 2 Enter Bill Tabulations'!G44 -> 0 | W44: =SUM(V$17:V44) -> 0 | X44: ='Step 2 Enter Bill Tabulations'!H44 -> 0 | Z44: 0 | AA44: 0 | AB44: 0 | AD44: 0 | AF44: 0 | AG44: 0 | AH44: 0 | AI44: 0 | AJ44: 0 | AL44: 0 | AM44: 0
A45: 28 | B45: 28 | D45: ='Step 2 Enter Bill Tabulations'!E45 -> 0 | E45: ='Step 2 Enter Bill Tabulations'!F45 -> 0 | G45: 0 | H45: 0 | I45: 0 | K45: 0 | M45: 0 | N45: 0 | O45: 0 | P45: 0 | Q45: 0 | S45: 0 | T45: 0 | V45: ='Step 2 Enter Bill Tabulations'!G45 -> 0 | W45: =SUM(V$17:V45) -> 0 | X45: ='Step 2 Enter Bill Tabulations'!H45 -> 0 | Z45: 0 | AA45: 0 | AB45: 0 | AD45: 0 | AF45: 0 | AG45: 0 | AH45: 0 | AI45: 0 | AJ45: 0 | AL45: 0 | AM45: 0
A46: 29 | B46: 29 | D46: ='Step 2 Enter Bill Tabulations'!E46 -> 0 | E46: ='Step 2 Enter Bill Tabulations'!F46 -> 0 | G46: 0 | H46: 0 | I46: 0 | K46: 0 | M46: 0 | N46: 0 | O46: 0 | P46: 0 | Q46: 0 | S46: 0 | T46: 0 | V46: ='Step 2 Enter Bill Tabulations'!G46 -> 0 | W46: =SUM(V$17:V46) -> 0 | X46: ='Step 2 Enter Bill Tabulations'!H46 -> 0 | Z46: 0 | AA46: 0 | AB46: 0 | AD46: 0 | AF46: 0 | AG46: 0 | AH46: 0 | AI46: 0 | AJ46: 0 | AL46: 0 | AM46: 0
A47: 30 | B47: 30 | D47: ='Step 2 Enter Bill Tabulations'!E47 -> 0 | E47: ='Step 2 Enter Bill Tabulations'!F47 -> 0 | G47: 0 | H47: 0 | I47: 0 | K47: 0 | M47: 0 | N47: 0 | O47: 0 | P47: 0 | Q47: 0 | S47: 0 | T47: 0 | V47: ='Step 2 Enter Bill Tabulations'!G47 -> 0 | W47: =SUM(V$17:V47) -> 0 | X47: ='Step 2 Enter Bill Tabulations'!H47 -> 0 | Z47: 0 | AA47: 0 | AB47: 0 | AD47: 0 | AF47: 0 | AG47: 0 | AH47: 0 | AI47: 0 | AJ47: 0 | AL47: 0 | AM47: 0
A48: 31 | B48: 31 | D48: ='Step 2 Enter Bill Tabulations'!E48 -> 0 | E48: ='Step 2 Enter Bill Tabulations'!F48 -> 0 | G48: 0 | H48: 0 | I48: 0 | K48: 0 | M48: 0 | N48: 0 | O48: 0 | P48: 0 | Q48: 0 | S48: 0 | T48: 0 | V48: ='Step 2 Enter Bill Tabulations'!G48 -> 0 | W48: =SUM(V$17:V48) -> 0 | X48: ='Step 2 Enter Bill Tabulations'!H48 -> 0 | Z48: 0 | AA48: 0 | AB48: 0 | AD48: 0 | AF48: 0 | AG48: 0 | AH48: 0 | AI48: 0 | AJ48: 0 | AL48: 0 | AM48: 0
A49: 32 | B49: 32 | D49: ='Step 2 Enter Bill Tabulations'!E49 -> 0 | E49: ='Step 2 Enter Bill Tabulations'!F49 -> 0 | G49: 0 | H49: 0 | I49: 0 | K49: 0 | M49: 0 | N49: 0 | O49: 0 | P49: 0 | Q49: 0 | S49: 0 | T49: 0 | V49: ='Step 2 Enter Bill Tabulations'!G49 -> 0 | W49: =SUM(V$17:V49) -> 0 | X49: ='Step 2 Enter Bill Tabulations'!H49 -> 0 | Z49: 0 | AA49: 0 | AB49: 0 | AD49: 0 | AF49: 0 | AG49: 0 | AH49: 0 | AI49: 0 | AJ49: 0 | AL49: =$V49*AG49*AI49 -> 0 | AM49: 0
A50: 33 | B50: 33 | D50: ='Step 2 Enter Bill Tabulations'!E50 -> 0 | E50: ='Step 2 Enter Bill Tabulations'!F50 -> 0 | G50: 0 | H50: 0 | I50: 0 | K50: 0 | M50: 0 | N50: 0 | O50: 0 | P50: 0 | Q50: 0 | S50: 0 | T50: 0 | V50: ='Step 2 Enter Bill Tabulations'!G50 -> 0 | W50: =SUM(V$17:V50) -> 0 | X50: ='Step 2 Enter Bill Tabulations'!H50 -> 0 | Z50: 0 | AA50: 0 | AB50: 0 | AD50: 0 | AF50: 0 | AG50: 0 | AH50: 0 | AI50: 0 | AJ50: 0 | AL50: 0 | AM50: 0
A51: 34 | B51: 34 | D51: ='Step 2 Enter Bill Tabulations'!E51 -> 0 | E51: ='Step 2 Enter Bill Tabulations'!F51 -> 0 | G51: 0 | H51: 0 | I51: 0 | K51: 0 | M51: 0 | N51: 0 | O51: 0 | P51: 0 | Q51: 0 | S51: 0 | T51: 0 | V51: ='Step 2 Enter Bill Tabulations'!G51 -> 0 | W51: =SUM(V$17:V51) -> 0 | X51: ='Step 2 Enter Bill Tabulations'!H51 -> 0 | Z51: 0 | AA51: 0 | AB51: 0 | AD51: 0 | AF51: 0 | AG51: 0 | AH51: 0 | AI51: 0 | AJ51: 0 | AL51: 0 | AM51: 0
A52: 35 | B52: 35 | D52: ='Step 2 Enter Bill Tabulations'!E52 -> 0 | E52: ='Step 2 Enter Bill Tabulations'!F52 -> 0 | G52: 0 | H52: 0 | I52: 0 | K52: 0 | M52: 0 | N52: 0 | O52: 0 | P52: 0 | Q52: 0 | S52: 0 | T52: 0 | V52: ='Step 2 Enter Bill Tabulations'!G52 -> 0 | W52: =SUM(V$17:V52) -> 0 | X52: ='Step 2 Enter Bill Tabulations'!H52 -> 0 | Z52: 0 | AA52: 0 | AB52: 0 | AD52: 0 | AF52: 0 | AG52: 0 | AH52: 0 | AI52: 0 | AJ52: 0 | AL52: 0 | AM52: 0
A53: 36 | B53: 36 | D53: ='Step 2 Enter Bill Tabulations'!E53 -> 0 | E53: ='Step 2 Enter Bill Tabulations'!F53 -> 0 | G53: 0 | H53: 0 | I53: 0 | K53: 0 | M53: 0 | N53: 0 | O53: 0 | P53: 0 | Q53: 0 | S53: 0 | T53: 0 | V53: ='Step 2 Enter Bill Tabulations'!G53 -> 0 | W53: =SUM(V$17:V53) -> 0 | X53: ='Step 2 Enter Bill Tabulations'!H53 -> 0 | Z53: 0 | AA53: 0 | AB53: 0 | AD53: 0 | AF53: 0 | AG53: 0 | AH53: 0 | AI53: 0 | AJ53: 0 | AL53: 0 | AM53: 0
A54: 37 | B54: 37 | D54: ='Step 2 Enter Bill Tabulations'!E54 -> 0 | E54: ='Step 2 Enter Bill Tabulations'!F54 -> 0 | G54: 0 | H54: 0 | I54: 0 | K54: 0 | M54: 0 | N54: 0 | O54: 0 | P54: 0 | Q54: 0 | S54: 0 | T54: 0 | V54: ='Step 2 Enter Bill Tabulations'!G54 -> 0 | W54: =SUM(V$17:V54) -> 0 | X54: ='Step 2 Enter Bill Tabulations'!H54 -> 0 | Z54: 0 | AA54: 0 | AB54: 0 | AD54: 0 | AF54: 0 | AG54: 0 | AH54: 0 | AI54: 0 | AJ54: 0 | AL54: 0 | AM54: 0
A55: 38 | B55: 38 | D55: ='Step 2 Enter Bill Tabulations'!E55 -> 0 | E55: ='Step 2 Enter Bill Tabulations'!F55 -> 0 | G55: 0 | H55: 0 | I55: 0 | K55: 0 | M55: 0 | N55: 0 | O55: 0 | P55: 0 | Q55: 0 | S55: 0 | T55: 0 | V55: ='Step 2 Enter Bill Tabulations'!G55 -> 0 | W55: =SUM(V$17:V55) -> 0 | X55: ='Step 2 Enter Bill Tabulations'!H55 -> 0 | Z55: 0 | AA55: 0 | AB55: 0 | AD55: 0 | AF55: 0 | AG55: 0 | AH55: 0 | AI55: 0 | AJ55: 0 | AL55: 0 | AM55: 0
A56: 39 | B56: 39 | D56: ='Step 2 Enter Bill Tabulations'!E56 -> 0 | E56: ='Step 2 Enter Bill Tabulations'!F56 -> 0 | G56: 0 | H56: 0 | I56: 0 | K56: 0 | M56: 0 | N56: 0 | O56: 0 | P56: 0 | Q56: 0 | S56: 0 | T56: 0 | V56: ='Step 2 Enter Bill Tabulations'!G56 -> 0 | W56: =SUM(V$17:V56) -> 0 | X56: ='Step 2 Enter Bill Tabulations'!H56 -> 0 | Z56: 0 | AA56: 0 | AB56: 0 | AD56: 0 | AF56: 0 | AG56: 0 | AH56: 0 | AI56: 0 | AJ56: 0 | AL56: 0 | AM56: 0
A57: 40 | B57: 40 | D57: ='Step 2 Enter Bill Tabulations'!E57 -> 0 | E57: ='Step 2 Enter Bill Tabulations'!F57 -> 0 | G57: 0 | H57: 0 | I57: 0 | K57: 0 | M57: 0 | N57: 0 | O57: 0 | P57: 0 | Q57: 0 | S57: 0 | T57: 0 | V57: ='Step 2 Enter Bill Tabulations'!G57 -> 0 | W57: =SUM(V$17:V57) -> 0 | X57: ='Step 2 Enter Bill Tabulations'!H57 -> 0 | Z57: 0 | AA57: 0 | AB57: 0 | AD57: 0 | AF57: 0 | AG57: 0 | AH57: 0 | AI57: 0 | AJ57: 0 | AL57: 0 | AM57: 0
A58: 41 | B58: 41 | D58: ='Step 2 Enter Bill Tabulations'!E58 -> 0 | E58: ='Step 2 Enter Bill Tabulations'!F58 -> 0 | G58: 0 | H58: 0 | I58: 0 | K58: 0 | M58: 0 | N58: 0 | O58: 0 | P58: 0 | Q58: 0 | S58: 0 | T58: 0 | V58: ='Step 2 Enter Bill Tabulations'!G58 -> 0 | W58: =SUM(V$17:V58) -> 0 | X58: ='Step 2 Enter Bill Tabulations'!H58 -> 0 | Z58: 0 | AA58: 0 | AB58: 0 | AD58: 0 | AF58: 0 | AG58: 0 | AH58: 0 | AI58: 0 | AJ58: 0 | AL58: 0 | AM58: 0
A59: 42 | B59: 42 | D59: ='Step 2 Enter Bill Tabulations'!E59 -> 0 | E59: ='Step 2 Enter Bill Tabulations'!F59 -> 0 | G59: 0 | H59: 0 | I59: 0 | K59: 0 | M59: 0 | N59: 0 | O59: 0 | P59: 0 | Q59: 0 | S59: 0 | T59: 0 | V59: ='Step 2 Enter Bill Tabulations'!G59 -> 0 | W59: =SUM(V$17:V59) -> 0 | X59: ='Step 2 Enter Bill Tabulations'!H59 -> 0 | Z59: 0 | AA59: 0 | AB59: 0 | AD59: 0 | AF59: 0 | AG59: 0 | AH59: 0 | AI59: 0 | AJ59: 0 | AL59: 0 | AM59: 0
A60: 43 | B60: 43 | D60: ='Step 2 Enter Bill Tabulations'!E60 -> 0 | E60: ='Step 2 Enter Bill Tabulations'!F60 -> 0 | G60: 0 | H60: 0 | I60: 0 | K60: 0 | M60: 0 | N60: 0 | O60: 0 | P60: 0 | Q60: 0 | S60: 0 | T60: 0 | V60: ='Step 2 Enter Bill Tabulations'!G60 -> 0 | W60: =SUM(V$17:V60) -> 0 | X60: ='Step 2 Enter Bill Tabulations'!H60 -> 0 | Z60: 0 | AA60: 0 | AB60: 0 | AD60: 0 | AF60: 0 | AG60: 0 | AH60: 0 | AI60: 0 | AJ60: 0 | AL60: 0 | AM60: 0
A61: 44 | B61: 44 | D61: ='Step 2 Enter Bill Tabulations'!E61 -> 0 | E61: ='Step 2 Enter Bill Tabulations'!F61 -> 0 | G61: 0 | H61: 0 | I61: 0 | K61: 0 | M61: 0 | N61: 0 | O61: 0 | P61: 0 | Q61: 0 | S61: 0 | T61: 0 | V61: ='Step 2 Enter Bill Tabulations'!G61 -> 0 | W61: =SUM(V$17:V61) -> 0 | X61: ='Step 2 Enter Bill Tabulations'!H61 -> 0 | Z61: 0 | AA61: 0 | AB61: 0 | AD61: 0 | AF61: 0 | AG61: 0 | AH61: 0 | AI61: 0 | AJ61: 0 | AL61: 0 | AM61: 0
A62: 45 | B62: 45 | D62: ='Step 2 Enter Bill Tabulations'!E62 -> 0 | E62: ='Step 2 Enter Bill Tabulations'!F62 -> 0 | G62: 0 | H62: 0 | I62: 0 | K62: 0 | M62: 0 | N62: 0 | O62: 0 | P62: 0 | Q62: 0 | S62: 0 | T62: 0 | V62: ='Step 2 Enter Bill Tabulations'!G62 -> 0 | W62: =SUM(V$17:V62) -> 0 | X62: ='Step 2 Enter Bill Tabulations'!H62 -> 0 | Z62: 0 | AA62: 0 | AB62: 0 | AD62: 0 | AF62: 0 | AG62: 0 | AH62: 0 | AI62: 0 | AJ62: 0 | AL62: 0 | AM62: 0
A63: 46 | B63: 46 | D63: ='Step 2 Enter Bill Tabulations'!E63 -> 0 | E63: ='Step 2 Enter Bill Tabulations'!F63 -> 0 | G63: 0 | H63: 0 | I63: 0 | K63: 0 | M63: 0 | N63: 0 | O63: 0 | P63: 0 | Q63: 0 | S63: 0 | T63: 0 | V63: ='Step 2 Enter Bill Tabulations'!G63 -> 0 | W63: =SUM(V$17:V63) -> 0 | X63: ='Step 2 Enter Bill Tabulations'!H63 -> 0 | Z63: 0 | AA63: 0 | AB63: 0 | AD63: 0 | AF63: 0 | AG63: 0 | AH63: 0 | AI63: 0 | AJ63: 0 | AL63: 0 | AM63: 0
A64: 47 | B64: 47 | D64: ='Step 2 Enter Bill Tabulations'!E64 -> 0 | E64: ='Step 2 Enter Bill Tabulations'!F64 -> 0 | G64: 0 | H64: 0 | I64: 0 | K64: 0 | M64: 0 | N64: 0 | O64: 0 | P64: 0 | Q64: 0 | S64: 0 | T64: 0 | V64: ='Step 2 Enter Bill Tabulations'!G64 -> 0 | W64: =SUM(V$17:V64) -> 0 | X64: ='Step 2 Enter Bill Tabulations'!H64 -> 0 | Z64: 0 | AA64: 0 | AB64: 0 | AD64: 0 | AF64: 0 | AG64: 0 | AH64: 0 | AI64: 0 | AJ64: 0 | AL64: 0 | AM64: 0
A65: 48 | B65: 48 | D65: ='Step 2 Enter Bill Tabulations'!E65 -> 0 | E65: ='Step 2 Enter Bill Tabulations'!F65 -> 0 | G65: 0 | H65: 0 | I65: 0 | K65: 0 | M65: 0 | N65: 0 | O65: 0 | P65: 0 | Q65: 0 | S65: 0 | T65: 0 | V65: ='Step 2 Enter Bill Tabulations'!G65 -> 0 | W65: =SUM(V$17:V65) -> 0 | X65: ='Step 2 Enter Bill Tabulations'!H65 -> 0 | Z65: 0 | AA65: 0 | AB65: 0 | AD65: 0 | AF65: 0 | AG65: 0 | AH65: 0 | AI65: 0 | AJ65: 0 | AL65: 0 | AM65: 0
A66: 49 | B66: 49 | D66: ='Step 2 Enter Bill Tabulations'!E66 -> 0 | E66: ='Step 2 Enter Bill Tabulations'!F66 -> 0 | G66: 0 | H66: 0 | I66: 0 | K66: 0 | M66: 0 | N66: 0 | O66: 0 | P66: 0 | Q66: 0 | S66: 0 | T66: 0 | V66: ='Step 2 Enter Bill Tabulations'!G66 -> 0 | W66: =SUM(V$17:V66) -> 0 | X66: ='Step 2 Enter Bill Tabulations'!H66 -> 0 | Z66: 0 | AA66: 0 | AB66: 0 | AD66: 0 | AF66: 0 | AG66: 0 | AH66: 0 | AI66: 0 | AJ66: 0 | AL66: 0 | AM66: 0
A67: 50 | B67: 50 | D67: ='Step 2 Enter Bill Tabulations'!E67 -> 0 | E67: ='Step 2 Enter Bill Tabulations'!F67 -> 0 | G67: 0 | H67: 0 | I67: 0 | K67: 0 | M67: 0 | N67: 0 | O67: 0 | P67: 0 | Q67: 0 | S67: 0 | T67: 0 | V67: ='Step 2 Enter Bill Tabulations'!G67 -> 0 | W67: =SUM(V$17:V67) -> 0 | X67: ='Step 2 Enter Bill Tabulations'!H67 -> 0 | Z67: 0 | AA67: 0 | AB67: 0 | AD67: 0 | AF67: 0 | AG67: 0 | AH67: 0 | AI67: 0 | AJ67: 0 | AL67: 0 | AM67: 0
A68: 51 | B68: 51 | D68: ='Step 2 Enter Bill Tabulations'!E68 -> 0 | E68: ='Step 2 Enter Bill Tabulations'!F68 -> 0 | G68: 0 | H68: 0 | I68: 0 | K68: 0 | M68: 0 | N68: 0 | O68: 0 | P68: 0 | Q68: 0 | S68: 0 | T68: 0 | V68: ='Step 2 Enter Bill Tabulations'!G68 -> 0 | W68: =SUM(V$17:V68) -> 0 | X68: ='Step 2 Enter Bill Tabulations'!H68 -> 0 | Z68: 0 | AA68: 0 | AB68: 0 | AD68: 0 | AF68: 0 | AG68: 0 | AH68: 0 | AI68: 0 | AJ68: 0 | AL68: 0 | AM68: 0
A69: 52 | B69: 52 | D69: ='Step 2 Enter Bill Tabulations'!E69 -> 0 | E69: ='Step 2 Enter Bill Tabulations'!F69 -> 0 | G69: 0 | H69: 0 | I69: 0 | K69: 0 | M69: 0 | N69: 0 | O69: 0 | P69: 0 | Q69: 0 | S69: 0 | T69: 0 | V69: ='Step 2 Enter Bill Tabulations'!G69 -> 0 | W69: =SUM(V$17:V69) -> 0 | X69: ='Step 2 Enter Bill Tabulations'!H69 -> 0 | Z69: 0 | AA69: 0 | AB69: 0 | AD69: 0 | AF69: 0 | AG69: 0 | AH69: 0 | AI69: 0 | AJ69: 0 | AL69: 0 | AM69: 0
A70: 53 | B70: 53 | D70: ='Step 2 Enter Bill Tabulations'!E70 -> 0 | E70: ='Step 2 Enter Bill Tabulations'!F70 -> 0 | G70: 0 | H70: 0 | I70: 0 | K70: 0 | M70: 0 | N70: 0 | O70: 0 | P70: 0 | Q70: 0 | S70: 0 | T70: 0 | V70: ='Step 2 Enter Bill Tabulations'!G70 -> 0 | W70: =SUM(V$17:V70) -> 0 | X70: ='Step 2 Enter Bill Tabulations'!H70 -> 0 | Z70: 0 | AA70: 0 | AB70: 0 | AD70: 0 | AF70: 0 | AG70: 0 | AH70: 0 | AI70: 0 | AJ70: 0 | AL70: 0 | AM70: 0
A71: 54 | B71: 54 | D71: ='Step 2 Enter Bill Tabulations'!E71 -> 0 | E71: ='Step 2 Enter Bill Tabulations'!F71 -> 0 | G71: 0 | H71: 0 | I71: 0 | K71: 0 | M71: 0 | N71: 0 | O71: 0 | P71: 0 | Q71: 0 | S71: 0 | T71: 0 | V71: ='Step 2 Enter Bill Tabulations'!G71 -> 0 | W71: =SUM(V$17:V71) -> 0 | X71: ='Step 2 Enter Bill Tabulations'!H71 -> 0 | Z71: 0 | AA71: 0 | AB71: 0 | AD71: 0 | AF71: 0 | AG71: 0 | AH71: 0 | AI71: 0 | AJ71: 0 | AL71: 0 | AM71: 0
A72: 55 | B72: 55 | D72: ='Step 2 Enter Bill Tabulations'!E72 -> 0 | E72: ='Step 2 Enter Bill Tabulations'!F72 -> 0 | G72: 0 | H72: 0 | I72: 0 | K72: 0 | M72: 0 | N72: 0 | O72: 0 | P72: 0 | Q72: 0 | S72: 0 | T72: 0 | V72: ='Step 2 Enter Bill Tabulations'!G72 -> 0 | W72: =SUM(V$17:V72) -> 0 | X72: ='Step 2 Enter Bill Tabulations'!H72 -> 0 | Z72: 0 | AA72: 0 | AB72: 0 | AD72: 0 | AF72: 0 | AG72: 0 | AH72: 0 | AI72: 0 | AJ72: 0 | AL72: 0 | AM72: 0
A73: 56 | B73: 56 | D73: ='Step 2 Enter Bill Tabulations'!E73 -> 0 | E73: ='Step 2 Enter Bill Tabulations'!F73 -> 0 | G73: 0 | H73: 0 | I73: 0 | K73: 0 | M73: 0 | N73: 0 | O73: 0 | P73: 0 | Q73: 0 | S73: 0 | T73: 0 | V73: ='Step 2 Enter Bill Tabulations'!G73 -> 0 | W73: =SUM(V$17:V73) -> 0 | X73: ='Step 2 Enter Bill Tabulations'!H73 -> 0 | Z73: 0 | AA73: 0 | AB73: 0 | AD73: 0 | AF73: 0 | AG73: 0 | AH73: 0 | AI73: 0 | AJ73: 0 | AL73: 0 | AM73: 0
A74: 57 | B74: 57 | D74: ='Step 2 Enter Bill Tabulations'!E74 -> 0 | E74: ='Step 2 Enter Bill Tabulations'!F74 -> 0 | G74: 0 | H74: 0 | I74: 0 | K74: 0 | M74: 0 | N74: 0 | O74: 0 | P74: 0 | Q74: 0 | S74: 0 | T74: 0 | V74: ='Step 2 Enter Bill Tabulations'!G74 -> 0 | W74: =SUM(V$17:V74) -> 0 | X74: ='Step 2 Enter Bill Tabulations'!H74 -> 0 | Z74: 0 | AA74: 0 | AB74: 0 | AD74: 0 | AF74: 0 | AG74: 0 | AH74: 0 | AI74: 0 | AJ74: 0 | AL74: 0 | AM74: 0
A75: 58 | B75: 58 | D75: ='Step 2 Enter Bill Tabulations'!E75 -> 0 | E75: ='Step 2 Enter Bill Tabulations'!F75 -> 0 | G75: 0 | H75: 0 | I75: 0 | K75: 0 | M75: 0 | N75: 0 | O75: 0 | P75: 0 | Q75: 0 | S75: 0 | T75: 0 | V75: ='Step 2 Enter Bill Tabulations'!G75 -> 0 | W75: =SUM(V$17:V75) -> 0 | X75: ='Step 2 Enter Bill Tabulations'!H75 -> 0 | Z75: 0 | AA75: 0 | AB75: 0 | AD75: 0 | AF75: 0 | AG75: 0 | AH75: 0 | AI75: 0 | AJ75: 0 | AL75: 0 | AM75: 0
A76: 59 | B76: 59 | D76: ='Step 2 Enter Bill Tabulations'!E76 -> 0 | E76: ='Step 2 Enter Bill Tabulations'!F76 -> 0 | G76: 0 | H76: 0 | I76: 0 | K76: 0 | M76: 0 | N76: 0 | O76: 0 | P76: 0 | Q76: 0 | S76: 0 | T76: 0 | V76: ='Step 2 Enter Bill Tabulations'!G76 -> 0 | W76: =SUM(V$17:V76) -> 0 | X76: ='Step 2 Enter Bill Tabulations'!H76 -> 0 | Z76: 0 | AA76: 0 | AB76: 0 | AD76: 0 | AF76: 0 | AG76: 0 | AH76: 0 | AI76: 0 | AJ76: 0 | AL76: 0 | AM76: 0
A77: 60 | B77: 60 | D77: ='Step 2 Enter Bill Tabulations'!E77 -> 0 | E77: ='Step 2 Enter Bill Tabulations'!F77 -> 0 | G77: 0 | H77: 0 | I77: 0 | K77: 0 | M77: 0 | N77: 0 | O77: 0 | P77: 0 | Q77: 0 | S77: 0 | T77: 0 | V77: ='Step 2 Enter Bill Tabulations'!G77 -> 0 | W77: =SUM(V$17:V77) -> 0 | X77: ='Step 2 Enter Bill Tabulations'!H77 -> 0 | Z77: 0 | AA77: 0 | AB77: 0 | AD77: 0 | AF77: 0 | AG77: 0 | AH77: 0 | AI77: 0 | AJ77: 0 | AL77: 0 | AM77: 0
A78: 61 | B78: 61 | D78: ='Step 2 Enter Bill Tabulations'!E78 -> 0 | E78: ='Step 2 Enter Bill Tabulations'!F78 -> 0 | G78: 0 | H78: 0 | I78: 0 | K78: 0 | M78: 0 | N78: 0 | O78: 0 | P78: 0 | Q78: 0 | S78: 0 | T78: 0 | V78: ='Step 2 Enter Bill Tabulations'!G78 -> 0 | W78: =SUM(V$17:V78) -> 0 | X78: ='Step 2 Enter Bill Tabulations'!H78 -> 0 | Z78: 0 | AA78: 0 | AB78: 0 | AD78: 0 | AF78: 0 | AG78: 0 | AH78: 0 | AI78: 0 | AJ78: 0 | AL78: 0 | AM78: 0
A79: 62 | B79: 62 | D79: ='Step 2 Enter Bill Tabulations'!E79 -> 0 | E79: ='Step 2 Enter Bill Tabulations'!F79 -> 0 | G79: 0 | H79: 0 | I79: 0 | K79: 0 | M79: 0 | N79: 0 | O79: 0 | P79: 0 | Q79: 0 | S79: 0 | T79: 0 | V79: ='Step 2 Enter Bill Tabulations'!G79 -> 0 | W79: =SUM(V$17:V79) -> 0 | X79: ='Step 2 Enter Bill Tabulations'!H79 -> 0 | Z79: 0 | AA79: 0 | AB79: 0 | AD79: 0 | AF79: 0 | AG79: 0 | AH79: 0 | AI79: 0 | AJ79: 0 | AL79: 0 | AM79: 0
A80: 63 | B80: 63 | D80: ='Step 2 Enter Bill Tabulations'!E80 -> 0 | E80: ='Step 2 Enter Bill Tabulations'!F80 -> 0 | G80: 0 | H80: 0 | I80: 0 | K80: 0 | M80: 0 | N80: 0 | O80: 0 | P80: 0 | Q80: 0 | S80: 0 | T80: 0 | V80: ='Step 2 Enter Bill Tabulations'!G80 -> 0 | W80: =SUM(V$17:V80) -> 0 | X80: ='Step 2 Enter Bill Tabulations'!H80 -> 0 | Z80: 0 | AA80: 0 | AB80: 0 | AD80: 0 | AF80: 0 | AG80: 0 | AH80: 0 | AI80: 0 | AJ80: 0 | AL80: 0 | AM80: 0
A81: 64 | B81: 64 | D81: ='Step 2 Enter Bill Tabulations'!E81 -> 0 | E81: ='Step 2 Enter Bill Tabulations'!F81 -> 0 | G81: =IF(D81>0,E81/D81,0) -> 0 | H81: =IFERROR(IF($G81<=Q$6,R$6*$G81,IF($G81<=Q$7,($G81-Q$6)*R$7+Q$6*R$6,IF($G81<=Q$8,($G81-Q$7)*R$8+(Q$7-Q$6)*R$7+Q$6*R$6,IF($G81<=Q$9,($G81-Q$8)*R$9+(Q$8-Q$7)*R$8+(Q$7-Q$6)*R$7+Q$6*R$6,($G81-Q$9)*R$10+(Q$9-Q$8)*R$9+(Q$8-Q$7)*R$8+(Q$7-Q$6)*R$7+Q$6*R$6))))/G81,0) -> 0 | I81: 0 | K81: =$D81*G81*H81 -> 0 | M81: =IFERROR(IF($G81<=$S$6,$T$6*$G81,IF($G81<=$S$7,($G81-$S$6)*$T$7+$S$6*$T$6,IF($G81<=$S$8,($G81-$S$7)*$T$8+($S$7-$S$6)*$T$7+$S$6*$T$6,IF($G81<=$S$9,($G81-$S$8)*$T$9+($S$8-$S$7)*$T$8+($S$7-$S$6)*$T$7+$S$6*$T$6,($G81-$S$9)*$T$10+($S$9-$S$8)*$T$9+($S$8-$S$7)*$T$8+($S$7-$S$6)*$T$7+$S$6*$T$6))))/$G81/H81-1,0) -> 0 | N81: =G81*$B$5*(1+M81*elast_season1_class1) -> 0 | O81: =N81*D81 -> 0 | P81: =IFERROR(IF($N81<=$S$6,$T$6*$N81,IF($N81<=$S$7,($N81-$S$6)*$T$7+$S$6*$T$6,IF($N81<=$S$8,($N81-$S$7)*$T$8+($S$7-$S$6)*$T$7+$S$6*$T$6,IF($N81<=$S$9,($N81-$S$8)*$T$9+($S$8-$S$7)*$T$8+($S$7-$S$6)*$T$7+$S$6*$T$6,($N81-$S$9)*$T$10+($S$9-$S$8)*$T$9+($S$8-$S$7)*$T$8+($S$7-$S$6)*$T$7+$S$6*$T$6))))/$N81,0) -> 0 | Q81: 0 | S81: 0 | T81: 0 | V81: ='Step 2 Enter Bill Tabulations'!G81 -> 0 | W81: =SUM(V$17:V81) -> 0 | X81: ='Step 2 Enter Bill Tabulations'!H81 -> 0 | Z81: =IF(V81>0,X81/V81,0) -> 0 | AA81: =IFERROR(IF($Z81<=AJ$6,AK$6*$Z81,IF($Z81<=AJ$7,($Z81-AJ$6)*AK$7+AJ$6*AK$6,IF($Z81<=AJ$8,($Z81-AJ$7)*AK$8+(AJ$7-AJ$6)*AK$7+AJ$6*AK$6,IF($Z81<=AJ$9,($Z81-AJ$8)*AK$9+(AJ$8-AJ$7)*AK$8+(AJ$7-AJ$6)*AK$7+AJ$6*AK$6,($Z81-AJ$9)*AK$10+(AJ$9-AJ$8)*AK$9+(AJ$8-AJ$7)*AK$8+(AJ$7-AJ$6)*AK$7+AJ$6*AK$6))))/Z81,0) -> 0 | AB81: =Z81*AA81 -> 0 | AD81: =$V81*Z81*AA81 -> 0 | AF81: =IFERROR(IF($Z81<=$AL$6,$AM$6*$Z81,IF($Z81<=$AL$7,($Z81-$AL$6)*$AM$7+$AL$6*$AM$6,IF($Z81<=$AL$8,($Z81-$AL$7)*$AM$8+($AL$7-$AL$6)*$AM$7+$AL$6*$AM$6,IF($Z81<=$AL$9,($Z81-$AL$8)*$AM$9+($AL$8-$AL$7)*$AM$8+($AL$7-$AL$6)*$AM$7+$AL$6*$AM$6,($Z81-$AL$9)*$AM$10+($AL$9-$AL$8)*$AM$9+($AL$8-$AL$7)*$AM$8+($AL$7-$AL$6)*$AM$7+$AL$6*$AM$6))))/$Z81/AA81-1,0) -> 0 | AG81: =Z81*$B$5*(1+AF81*elast_season2_class1) -> 0 | AH81: =AG81*V81 -> 0 | AI81: =IFERROR(IF($AG81<=$AL$6,$AM$6*$AG81,IF($AG81<=$AL$7,($AG81-$AL$6)*$AM$7+$AL$6*$AM$6,IF($AG81<=$AL$8,($AG81-$AL$7)*$AM$8+($AL$7-$AL$6)*$AM$7+$AL$6*$AM$6,IF($AG81<=$AL$9,($AG81-$AL$8)*$AM$9+($AL$8-$AL$7)*$AM$8+($AL$7-$AL$6)*$AM$7+$AL$6*$AM$6,($AG81-$AL$9)*$AM$10+($AL$9-$AL$8)*$AM$9+($AL$8-$AL$7)*$AM$8+($AL$7-$AL$6)*$AM$7+$AL$6*$AM$6))))/$AG81,0) -> 0 | AJ81: 0 | AL81: =$V81*AG81*AI81 -> 0 | AM81: 0
A82: 65 | B82: 65 | D82: ='Step 2 Enter Bill Tabulations'!E82 -> 0 | E82: ='Step 2 Enter Bill Tabulations'!F82 -> 0 | G82: 0 | H82: 0 | I82: =G82*H82 -> 0 | K82: 0 | M82: 0 | N82: 0 | O82: 0 | P82: 0 | Q82: =N82*P82 -> 0 | S82: =$D82*N82*P82 -> 0 | T82: 0 | V82: ='Step 2 Enter Bill Tabulations'!G82 -> 0 | W82: =SUM(V$17:V82) -> 0 | X82: ='Step 2 Enter Bill Tabulations'!H82 -> 0 | Z82: 0 | AA82: 0 | AB82: 0 | AC82: =J82 ->  | AD82: 0 | AF82: 0 | AG82: 0 | AH82: 0 | AI82: 0 | AJ82: =AG82*AI82 -> 0 | AK82: =R82 ->  | AL82: =$V82*AG82*AI82 -> 0 | AM82: 0
A83: 66 | B83: 66 | D83: ='Step 2 Enter Bill Tabulations'!E83 -> 0 | E83: ='Step 2 Enter Bill Tabulations'!F83 -> 0 | G83: 0 | H83: 0 | I83: 0 | J83: =J82 ->  | K83: 0 | M83: 0 | N83: 0 | O83: 0 | P83: 0 | Q83: 0 | R83: =R82 ->  | S83: 0 | T83: =IFERROR((Q83+R83)/(I83+J83)-1,0) -> 0 | V83: ='Step 2 Enter Bill Tabulations'!G83 -> 0 | W83: =SUM(V$17:V83) -> 0 | X83: ='Step 2 Enter Bill Tabulations'!H83 -> 0 | Z83: 0 | AA83: 0 | AB83: 0 | AD83: 0 | AF83: 0 | AG83: 0 | AH83: 0 | AI83: 0 | AJ83: 0 | AL83: 0 | AM83: =IFERROR((AJ83+AK83)/(AB83+AC83)-1,0) -> 0
A84: 67 | B84: 67 | D84: ='Step 2 Enter Bill Tabulations'!E84 -> 0 | E84: ='Step 2 Enter Bill Tabulations'!F84 -> 0 | G84: 0 | H84: 0 | I84: 0 | K84: 0 | M84: 0 | N84: 0 | O84: 0 | P84: 0 | Q84: 0 | S84: 0 | T84: 0 | V84: ='Step 2 Enter Bill Tabulations'!G84 -> 0 | W84: =SUM(V$17:V84) -> 0 | X84: ='Step 2 Enter Bill Tabulations'!H84 -> 0 | Z84: 0 | AA84: 0 | AB84: 0 | AD84: 0 | AF84: 0 | AG84: 0 | AH84: 0 | AI84: 0 | AJ84: 0 | AL84: 0 | AM84: 0
A85: 68 | B85: 68 | D85: ='Step 2 Enter Bill Tabulations'!E85 -> 0 | E85: ='Step 2 Enter Bill Tabulations'!F85 -> 0 | G85: 0 | H85: 0 | I85: 0 | K85: 0 | M85: 0 | N85: 0 | O85: 0 | P85: 0 | Q85: 0 | S85: 0 | T85: 0 | V85: ='Step 2 Enter Bill Tabulations'!G85 -> 0 | W85: =SUM(V$17:V85) -> 0 | X85: ='Step 2 Enter Bill Tabulations'!H85 -> 0 | Z85: 0 | AA85: 0 | AB85: 0 | AD85: 0 | AF85: 0 | AG85: 0 | AH85: 0 | AI85: 0 | AJ85: 0 | AL85: 0 | AM85: 0
A86: 69 | B86: 69 | D86: ='Step 2 Enter Bill Tabulations'!E86 -> 0 | E86: ='Step 2 Enter Bill Tabulations'!F86 -> 0 | G86: 0 | H86: 0 | I86: 0 | K86: 0 | M86: 0 | N86: 0 | O86: 0 | P86: 0 | Q86: 0 | S86: 0 | T86: 0 | V86: ='Step 2 Enter Bill Tabulations'!G86 -> 0 | W86: =SUM(V$17:V86) -> 0 | X86: ='Step 2 Enter Bill Tabulations'!H86 -> 0 | Z86: 0 | AA86: 0 | AB86: 0 | AD86: 0 | AF86: 0 | AG86: 0 | AH86: 0 | AI86: 0 | AJ86: 0 | AL86: 0 | AM86: 0
A87: 70 | B87: 70 | D87: ='Step 2 Enter Bill Tabulations'!E87 -> 0 | E87: ='Step 2 Enter Bill Tabulations'!F87 -> 0 | G87: 0 | H87: 0 | I87: 0 | K87: 0 | M87: 0 | N87: 0 | O87: 0 | P87: 0 | Q87: 0 | S87: 0 | T87: 0 | V87: ='Step 2 Enter Bill Tabulations'!G87 -> 0 | W87: =SUM(V$17:V87) -> 0 | X87: ='Step 2 Enter Bill Tabulations'!H87 -> 0 | Z87: 0 | AA87: 0 | AB87: 0 | AD87: 0 | AF87: 0 | AG87: 0 | AH87: 0 | AI87: 0 | AJ87: 0 | AL87: 0 | AM87: 0
A88: 71 | B88: 71 | D88: ='Step 2 Enter Bill Tabulations'!E88 -> 0 | E88: ='Step 2 Enter Bill Tabulations'!F88 -> 0 | G88: 0 | H88: 0 | I88: 0 | K88: 0 | M88: 0 | N88: 0 | O88: 0 | P88: 0 | Q88: 0 | S88: 0 | T88: 0 | V88: ='Step 2 Enter Bill Tabulations'!G88 -> 0 | W88: =SUM(V$17:V88) -> 0 | X88: ='Step 2 Enter Bill Tabulations'!H88 -> 0 | Z88: 0 | AA88: 0 | AB88: 0 | AD88: 0 | AF88: 0 | AG88: 0 | AH88: 0 | AI88: 0 | AJ88: 0 | AL88: 0 | AM88: 0
A89: 72 | B89: 72 | D89: ='Step 2 Enter Bill Tabulations'!E89 -> 0 | E89: ='Step 2 Enter Bill Tabulations'!F89 -> 0 | G89: 0 | H89: 0 | I89: 0 | K89: 0 | M89: 0 | N89: 0 | O89: 0 | P89: 0 | Q89: 0 | S89: 0 | T89: 0 | V89: ='Step 2 Enter Bill Tabulations'!G89 -> 0 | W89: =SUM(V$17:V89) -> 0 | X89: ='Step 2 Enter Bill Tabulations'!H89 -> 0 | Z89: 0 | AA89: 0 | AB89: 0 | AD89: 0 | AF89: 0 | AG89: 0 | AH89: 0 | AI89: 0 | AJ89: 0 | AL89: 0 | AM89: 0
A90: 73 | B90: 73 | D90: ='Step 2 Enter Bill Tabulations'!E90 -> 0 | E90: ='Step 2 Enter Bill Tabulations'!F90 -> 0 | G90: 0 | H90: 0 | I90: 0 | K90: 0 | M90: 0 | N90: 0 | O90: 0 | P90: 0 | Q90: 0 | S90: 0 | T90: 0 | V90: ='Step 2 Enter Bill Tabulations'!G90 -> 0 | W90: =SUM(V$17:V90) -> 0 | X90: ='Step 2 Enter Bill Tabulations'!H90 -> 0 | Z90: 0 | AA90: 0 | AB90: 0 | AD90: 0 | AF90: 0 | AG90: 0 | AH90: 0 | AI90: 0 | AJ90: 0 | AL90: 0 | AM90: 0
A91: 74 | B91: 74 | D91: ='Step 2 Enter Bill Tabulations'!E91 -> 0 | E91: ='Step 2 Enter Bill Tabulations'!F91 -> 0 | G91: 0 | H91: 0 | I91: 0 | K91: 0 | M91: 0 | N91: 0 | O91: 0 | P91: 0 | Q91: 0 | S91: 0 | T91: 0 | V91: ='Step 2 Enter Bill Tabulations'!G91 -> 0 | W91: =SUM(V$17:V91) -> 0 | X91: ='Step 2 Enter Bill Tabulations'!H91 -> 0 | Z91: 0 | AA91: 0 | AB91: 0 | AD91: 0 | AF91: 0 | AG91: 0 | AH91: 0 | AI91: 0 | AJ91: 0 | AL91: 0 | AM91: 0
A92: 75 | B92: 75 | D92: ='Step 2 Enter Bill Tabulations'!E92 -> 0 | E92: ='Step 2 Enter Bill Tabulations'!F92 -> 0 | G92: 0 | H92: 0 | I92: 0 | K92: 0 | M92: 0 | N92: 0 | O92: 0 | P92: 0 | Q92: 0 | S92: 0 | T92: 0 | V92: ='Step 2 Enter Bill Tabulations'!G92 -> 0 | W92: =SUM(V$17:V92) -> 0 | X92: ='Step 2 Enter Bill Tabulations'!H92 -> 0 | Z92: 0 | AA92: 0 | AB92: 0 | AD92: 0 | AF92: 0 | AG92: 0 | AH92: 0 | AI92: 0 | AJ92: 0 | AL92: 0 | AM92: 0
A93: 76 | B93: 76 | D93: ='Step 2 Enter Bill Tabulations'!E93 -> 0 | E93: ='Step 2 Enter Bill Tabulations'!F93 -> 0 | G93: 0 | H93: 0 | I93: 0 | K93: 0 | M93: 0 | N93: 0 | O93: 0 | P93: 0 | Q93: 0 | S93: 0 | T93: 0 | V93: ='Step 2 Enter Bill Tabulations'!G93 -> 0 | W93: =SUM(V$17:V93) -> 0 | X93: ='Step 2 Enter Bill Tabulations'!H93 -> 0 | Z93: 0 | AA93: 0 | AB93: 0 | AD93: 0 | AF93: 0 | AG93: 0 | AH93: 0 | AI93: 0 | AJ93: 0 | AL93: 0 | AM93: 0
A94: 77 | B94: 77 | D94: ='Step 2 Enter Bill Tabulations'!E94 -> 0 | E94: ='Step 2 Enter Bill Tabulations'!F94 -> 0 | G94: 0 | H94: 0 | I94: 0 | K94: 0 | M94: 0 | N94: 0 | O94: 0 | P94: 0 | Q94: 0 | S94: 0 | T94: 0 | V94: ='Step 2 Enter Bill Tabulations'!G94 -> 0 | W94: =SUM(V$17:V94) -> 0 | X94: ='Step 2 Enter Bill Tabulations'!H94 -> 0 | Z94: 0 | AA94: 0 | AB94: 0 | AD94: 0 | AF94: 0 | AG94: 0 | AH94: 0 | AI94: 0 | AJ94: 0 | AL94: 0 | AM94: 0
A95: 78 | B95: 78 | D95: ='Step 2 Enter Bill Tabulations'!E95 -> 0 | E95: ='Step 2 Enter Bill Tabulations'!F95 -> 0 | G95: 0 | H95: 0 | I95: 0 | K95: 0 | M95: 0 | N95: 0 | O95: 0 | P95: 0 | Q95: 0 | S95: 0 | T95: 0 | V95: ='Step 2 Enter Bill Tabulations'!G95 -> 0 | W95: =SUM(V$17:V95) -> 0 | X95: ='Step 2 Enter Bill Tabulations'!H95 -> 0 | Z95: 0 | AA95: 0 | AB95: 0 | AD95: 0 | AF95: 0 | AG95: 0 | AH95: 0 | AI95: 0 | AJ95: 0 | AL95: 0 | AM95: 0
A96: 79 | B96: 79 | D96: ='Step 2 Enter Bill Tabulations'!E96 -> 0 | E96: ='Step 2 Enter Bill Tabulations'!F96 -> 0 | G96: 0 | H96: 0 | I96: 0 | K96: 0 | M96: 0 | N96: 0 | O96: 0 | P96: 0 | Q96: 0 | S96: 0 | T96: 0 | V96: ='Step 2 Enter Bill Tabulations'!G96 -> 0 | W96: =SUM(V$17:V96) -> 0 | X96: ='Step 2 Enter Bill Tabulations'!H96 -> 0 | Z96: 0 | AA96: 0 | AB96: 0 | AD96: 0 | AF96: 0 | AG96: 0 | AH96: 0 | AI96: 0 | AJ96: 0 | AL96: 0 | AM96: 0
A97: 80 | B97: 80 | D97: ='Step 2 Enter Bill Tabulations'!E97 -> 0 | E97: ='Step 2 Enter Bill Tabulations'!F97 -> 0 | G97: 0 | H97: 0 | I97: 0 | K97: 0 | M97: 0 | N97: 0 | O97: 0 | P97: 0 | Q97: 0 | S97: 0 | T97: 0 | V97: ='Step 2 Enter Bill Tabulations'!G97 -> 0 | W97: =SUM(V$17:V97) -> 0 | X97: ='Step 2 Enter Bill Tabulations'!H97 -> 0 | Z97: 0 | AA97: 0 | AB97: 0 | AD97: 0 | AF97: 0 | AG97: 0 | AH97: 0 | AI97: 0 | AJ97: 0 | AL97: 0 | AM97: 0
A98: 81 | B98: 81 | D98: ='Step 2 Enter Bill Tabulations'!E98 -> 0 | E98: ='Step 2 Enter Bill Tabulations'!F98 -> 0 | G98: 0 | H98: 0 | I98: 0 | K98: 0 | M98: 0 | N98: 0 | O98: 0 | P98: 0 | Q98: 0 | S98: 0 | T98: 0 | V98: ='Step 2 Enter Bill Tabulations'!G98 -> 0 | W98: =SUM(V$17:V98) -> 0 | X98: ='Step 2 Enter Bill Tabulations'!H98 -> 0 | Z98: 0 | AA98: 0 | AB98: 0 | AD98: 0 | AF98: 0 | AG98: 0 | AH98: 0 | AI98: 0 | AJ98: 0 | AL98: 0 | AM98: 0
A99: 82 | B99: 82 | D99: ='Step 2 Enter Bill Tabulations'!E99 -> 0 | E99: ='Step 2 Enter Bill Tabulations'!F99 -> 0 | G99: 0 | H99: 0 | I99: 0 | K99: 0 | M99: 0 | N99: 0 | O99: 0 | P99: 0 | Q99: 0 | S99: 0 | T99: 0 | V99: ='Step 2 Enter Bill Tabulations'!G99 -> 0 | W99: =SUM(V$17:V99) -> 0 | X99: ='Step 2 Enter Bill Tabulations'!H99 -> 0 | Z99: 0 | AA99: 0 | AB99: 0 | AD99: 0 | AF99: 0 | AG99: 0 | AH99: 0 | AI99: 0 | AJ99: 0 | AL99: 0 | AM99: 0
A100: 83 | B100: 83 | D100: ='Step 2 Enter Bill Tabulations'!E100 -> 0 | E100: ='Step 2 Enter Bill Tabulations'!F100 -> 0 | G100: 0 | H100: 0 | I100: 0 | K100: 0 | M100: 0 | N100: 0 | O100: 0 | P100: 0 | Q100: 0 | S100: 0 | T100: 0 | V100: ='Step 2 Enter Bill Tabulations'!G100 -> 0 | W100: =SUM(V$17:V100) -> 0 | X100: ='Step 2 Enter Bill Tabulations'!H100 -> 0 | Z100: 0 | AA100: 0 | AB100: 0 | AD100: 0 | AF100: 0 | AG100: 0 | AH100: 0 | AI100: 0 | AJ100: 0 | AL100: 0 | AM100: 0
A101: 84 | B101: 84 | D101: ='Step 2 Enter Bill Tabulations'!E101 -> 0 | E101: ='Step 2 Enter Bill Tabulations'!F101 -> 0 | G101: 0 | H101: 0 | I101: 0 | K101: 0 | M101: 0 | N101: 0 | O101: 0 | P101: 0 | Q101: 0 | S101: 0 | T101: 0 | V101: ='Step 2 Enter Bill Tabulations'!G101 -> 0 | W101: =SUM(V$17:V101) -> 0 | X101: ='Step 2 Enter Bill Tabulations'!H101 -> 0 | Z101: 0 | AA101: 0 | AB101: 0 | AD101: 0 | AF101: 0 | AG101: 0 | AH101: 0 | AI101: 0 | AJ101: 0 | AL101: 0 | AM101: 0
A102: 85 | B102: 85 | D102: ='Step 2 Enter Bill Tabulations'!E102 -> 0 | E102: ='Step 2 Enter Bill Tabulations'!F102 -> 0 | G102: 0 | H102: 0 | I102: 0 | K102: 0 | M102: 0 | N102: 0 | O102: 0 | P102: 0 | Q102: 0 | S102: 0 | T102: 0 | V102: ='Step 2 Enter Bill Tabulations'!G102 -> 0 | W102: =SUM(V$17:V102) -> 0 | X102: ='Step 2 Enter Bill Tabulations'!H102 -> 0 | Z102: 0 | AA102: 0 | AB102: 0 | AD102: 0 | AF102: 0 | AG102: 0 | AH102: 0 | AI102: 0 | AJ102: 0 | AL102: 0 | AM102: 0
A103: 86 | B103: 86 | D103: ='Step 2 Enter Bill Tabulations'!E103 -> 0 | E103: ='Step 2 Enter Bill Tabulations'!F103 -> 0 | G103: 0 | H103: 0 | I103: 0 | K103: 0 | M103: 0 | N103: 0 | O103: 0 | P103: 0 | Q103: 0 | S103: 0 | T103: 0 | V103: ='Step 2 Enter Bill Tabulations'!G103 -> 0 | W103: =SUM(V$17:V103) -> 0 | X103: ='Step 2 Enter Bill Tabulations'!H103 -> 0 | Z103: 0 | AA103: 0 | AB103: 0 | AD103: 0 | AF103: 0 | AG103: 0 | AH103: 0 | AI103: 0 | AJ103: 0 | AL103: 0 | AM103: 0
A104: 87 | B104: 87 | D104: ='Step 2 Enter Bill Tabulations'!E104 -> 0 | E104: ='Step 2 Enter Bill Tabulations'!F104 -> 0 | G104: 0 | H104: 0 | I104: 0 | K104: 0 | M104: 0 | N104: 0 | O104: 0 | P104: 0 | Q104: 0 | S104: 0 | T104: 0 | V104: ='Step 2 Enter Bill Tabulations'!G104 -> 0 | W104: =SUM(V$17:V104) -> 0 | X104: ='Step 2 Enter Bill Tabulations'!H104 -> 0 | Z104: 0 | AA104: 0 | AB104: 0 | AD104: 0 | AF104: 0 | AG104: 0 | AH104: 0 | AI104: 0 | AJ104: 0 | AL104: 0 | AM104: 0
A105: 88 | B105: 88 | D105: ='Step 2 Enter Bill Tabulations'!E105 -> 0 | E105: ='Step 2 Enter Bill Tabulations'!F105 -> 0 | G105: 0 | H105: 0 | I105: 0 | K105: 0 | M105: 0 | N105: 0 | O105: 0 | P105: 0 | Q105: 0 | S105: 0 | T105: 0 | V105: ='Step 2 Enter Bill Tabulations'!G105 -> 0 | W105: =SUM(V$17:V105) -> 0 | X105: ='Step 2 Enter Bill Tabulations'!H105 -> 0 | Z105: 0 | AA105: 0 | AB105: 0 | AD105: 0 | AF105: 0 | AG105: 0 | AH105: 0 | AI105: 0 | AJ105: 0 | AL105: 0 | AM105: 0
A106: 89 | B106: 89 | D106: ='Step 2 Enter Bill Tabulations'!E106 -> 0 | E106: ='Step 2 Enter Bill Tabulations'!F106 -> 0 | G106: 0 | H106: 0 | I106: 0 | K106: 0 | M106: 0 | N106: 0 | O106: 0 | P106: 0 | Q106: 0 | S106: 0 | T106: 0 | V106: ='Step 2 Enter Bill Tabulations'!G106 -> 0 | W106: =SUM(V$17:V106) -> 0 | X106: ='Step 2 Enter Bill Tabulations'!H106 -> 0 | Z106: 0 | AA106: 0 | AB106: 0 | AD106: 0 | AF106: 0 | AG106: 0 | AH106: 0 | AI106: 0 | AJ106: 0 | AL106: 0 | AM106: 0
A107: 90 | B107: 90 | D107: ='Step 2 Enter Bill Tabulations'!E107 -> 0 | E107: ='Step 2 Enter Bill Tabulations'!F107 -> 0 | G107: 0 | H107: 0 | I107: 0 | K107: 0 | M107: 0 | N107: 0 | O107: 0 | P107: 0 | Q107: 0 | S107: 0 | T107: 0 | V107: ='Step 2 Enter Bill Tabulations'!G107 -> 0 | W107: =SUM(V$17:V107) -> 0 | X107: ='Step 2 Enter Bill Tabulations'!H107 -> 0 | Z107: 0 | AA107: 0 | AB107: 0 | AD107: 0 | AF107: 0 | AG107: 0 | AH107: 0 | AI107: 0 | AJ107: 0 | AL107: 0 | AM107: 0
A108: 91 | B108: 91 | D108: ='Step 2 Enter Bill Tabulations'!E108 -> 0 | E108: ='Step 2 Enter Bill Tabulations'!F108 -> 0 | G108: 0 | H108: 0 | I108: 0 | K108: 0 | M108: 0 | N108: 0 | O108: 0 | P108: 0 | Q108: 0 | S108: 0 | T108: 0 | V108: ='Step 2 Enter Bill Tabulations'!G108 -> 0 | W108: =SUM(V$17:V108) -> 0 | X108: ='Step 2 Enter Bill Tabulations'!H108 -> 0 | Z108: 0 | AA108: 0 | AB108: 0 | AD108: 0 | AF108: 0 | AG108: 0 | AH108: 0 | AI108: 0 | AJ108: 0 | AL108: 0 | AM108: 0
A109: 92 | B109: 92 | D109: ='Step 2 Enter Bill Tabulations'!E109 -> 0 | E109: ='Step 2 Enter Bill Tabulations'!F109 -> 0 | G109: 0 | H109: 0 | I109: 0 | K109: 0 | M109: 0 | N109: 0 | O109: 0 | P109: 0 | Q109: 0 | S109: 0 | T109: 0 | V109: ='Step 2 Enter Bill Tabulations'!G109 -> 0 | W109: =SUM(V$17:V109) -> 0 | X109: ='Step 2 Enter Bill Tabulations'!H109 -> 0 | Z109: 0 | AA109: 0 | AB109: 0 | AD109: 0 | AF109: 0 | AG109: 0 | AH109: 0 | AI109: 0 | AJ109: 0 | AL109: 0 | AM109: 0
A110: 93 | B110: 93 | D110: ='Step 2 Enter Bill Tabulations'!E110 -> 0 | E110: ='Step 2 Enter Bill Tabulations'!F110 -> 0 | G110: 0 | H110: 0 | I110: 0 | K110: 0 | M110: 0 | N110: 0 | O110: 0 | P110: 0 | Q110: 0 | S110: 0 | T110: 0 | V110: ='Step 2 Enter Bill Tabulations'!G110 -> 0 | W110: =SUM(V$17:V110) -> 0 | X110: ='Step 2 Enter Bill Tabulations'!H110 -> 0 | Z110: 0 | AA110: 0 | AB110: 0 | AD110: 0 | AF110: 0 | AG110: 0 | AH110: 0 | AI110: 0 | AJ110: 0 | AL110: 0 | AM110: 0
A111: 94 | B111: 94 | D111: ='Step 2 Enter Bill Tabulations'!E111 -> 0 | E111: ='Step 2 Enter Bill Tabulations'!F111 -> 0 | G111: 0 | H111: 0 | I111: 0 | K111: 0 | M111: 0 | N111: 0 | O111: 0 | P111: 0 | Q111: 0 | S111: 0 | T111: 0 | V111: ='Step 2 Enter Bill Tabulations'!G111 -> 0 | W111: =SUM(V$17:V111) -> 0 | X111: ='Step 2 Enter Bill Tabulations'!H111 -> 0 | Z111: 0 | AA111: 0 | AB111: 0 | AD111: 0 | AF111: 0 | AG111: 0 | AH111: 0 | AI111: 0 | AJ111: 0 | AL111: 0 | AM111: 0
A112: 95 | B112: 95 | D112: ='Step 2 Enter Bill Tabulations'!E112 -> 0 | E112: ='Step 2 Enter Bill Tabulations'!F112 -> 0 | G112: 0 | H112: 0 | I112: 0 | K112: 0 | M112: 0 | N112: 0 | O112: 0 | P112: 0 | Q112: 0 | S112: 0 | T112: 0 | V112: ='Step 2 Enter Bill Tabulations'!G112 -> 0 | W112: =SUM(V$17:V112) -> 0 | X112: ='Step 2 Enter Bill Tabulations'!H112 -> 0 | Z112: 0 | AA112: 0 | AB112: 0 | AD112: 0 | AF112: 0 | AG112: 0 | AH112: 0 | AI112: 0 | AJ112: 0 | AL112: 0 | AM112: 0
A113: 96 | B113: 96 | D113: ='Step 2 Enter Bill Tabulations'!E113 -> 0 | E113: ='Step 2 Enter Bill Tabulations'!F113 -> 0 | G113: 0 | H113: 0 | I113: 0 | K113: 0 | M113: 0 | N113: 0 | O113: 0 | P113: 0 | Q113: 0 | S113: 0 | T113: 0 | V113: ='Step 2 Enter Bill Tabulations'!G113 -> 0 | W113: =SUM(V$17:V113) -> 0 | X113: ='Step 2 Enter Bill Tabulations'!H113 -> 0 | Z113: 0 | AA113: 0 | AB113: 0 | AD113: 0 | AF113: 0 | AG113: 0 | AH113: 0 | AI113: 0 | AJ113: 0 | AL113: 0 | AM113: 0
A114: 97 | B114: 97 | D114: ='Step 2 Enter Bill Tabulations'!E114 -> 0 | E114: ='Step 2 Enter Bill Tabulations'!F114 -> 0 | G114: 0 | H114: 0 | I114: 0 | K114: 0 | M114: 0 | N114: 0 | O114: 0 | P114: 0 | Q114: 0 | S114: 0 | T114: 0 | V114: ='Step 2 Enter Bill Tabulations'!G114 -> 0 | W114: =SUM(V$17:V114) -> 0 | X114: ='Step 2 Enter Bill Tabulations'!H114 -> 0 | Z114: 0 | AA114: 0 | AB114: 0 | AD114: 0 | AF114: 0 | AG114: 0 | AH114: 0 | AI114: 0 | AJ114: 0 | AL114: 0 | AM114: 0
A115: 98 | B115: 98 | D115: ='Step 2 Enter Bill Tabulations'!E115 -> 0 | E115: ='Step 2 Enter Bill Tabulations'!F115 -> 0 | G115: 0 | H115: 0 | I115: 0 | K115: 0 | M115: 0 | N115: 0 | O115: 0 | P115: 0 | Q115: 0 | S115: 0 | T115: 0 | V115: ='Step 2 Enter Bill Tabulations'!G115 -> 0 | W115: =SUM(V$17:V115) -> 0 | X115: ='Step 2 Enter Bill Tabulations'!H115 -> 0 | Z115: 0 | AA115: 0 | AB115: 0 | AD115: 0 | AF115: 0 | AG115: 0 | AH115: 0 | AI115: 0 | AJ115: 0 | AL115: 0 | AM115: 0
A116: 99 | B116: 99 | D116: ='Step 2 Enter Bill Tabulations'!E116 -> 0 | E116: ='Step 2 Enter Bill Tabulations'!F116 -> 0 | G116: 0 | H116: 0 | I116: 0 | K116: 0 | M116: 0 | N116: 0 | O116: 0 | P116: 0 | Q116: 0 | S116: 0 | T116: 0 | V116: ='Step 2 Enter Bill Tabulations'!G116 -> 0 | W116: =SUM(V$17:V116) -> 0 | X116: ='Step 2 Enter Bill Tabulations'!H116 -> 0 | Z116: 0 | AA116: 0 | AB116: 0 | AD116: 0 | AF116: 0 | AG116: 0 | AH116: 0 | AI116: 0 | AJ116: 0 | AL116: 0 | AM116: 0
A117: 100 | B117: 100 | D117: ='Step 2 Enter Bill Tabulations'!E117 -> 0 | E117: ='Step 2 Enter Bill Tabulations'!F117 -> 0 | G117: 0 | H117: 0 | I117: 0 | K117: 0 | M117: 0 | N117: 0 | O117: 0 | P117: 0 | Q117: 0 | S117: 0 | T117: 0 | V117: ='Step 2 Enter Bill Tabulations'!G117 -> 0 | W117: =SUM(V$17:V117) -> 0 | X117: ='Step 2 Enter Bill Tabulations'!H117 -> 0 | Z117: 0 | AA117: 0 | AB117: 0 | AD117: 0 | AF117: 0 | AG117: 0 | AH117: 0 | AI117: 0 | AJ117: 0 | AL117: 0 | AM117: 0
A118: 101 | B118: 101 | D118: ='Step 2 Enter Bill Tabulations'!E118 -> 0 | E118: ='Step 2 Enter Bill Tabulations'!F118 -> 0 | G118: 0 | H118: 0 | I118: 0 | K118: 0 | M118: 0 | N118: 0 | O118: 0 | P118: 0 | Q118: 0 | S118: 0 | T118: 0 | V118: ='Step 2 Enter Bill Tabulations'!G118 -> 0 | W118: =SUM(V$17:V118) -> 0 | X118: ='Step 2 Enter Bill Tabulations'!H118 -> 0 | Z118: 0 | AA118: 0 | AB118: 0 | AD118: 0 | AF118: 0 | AG118: 0 | AH118: 0 | AI118: 0 | AJ118: 0 | AL118: 0 | AM118: 0
A119: 102 | B119: 102 | D119: ='Step 2 Enter Bill Tabulations'!E119 -> 0 | E119: ='Step 2 Enter Bill Tabulations'!F119 -> 0 | G119: 0 | H119: 0 | I119: 0 | K119: 0 | M119: 0 | N119: 0 | O119: 0 | P119: 0 | Q119: 0 | S119: 0 | T119: 0 | V119: ='Step 2 Enter Bill Tabulations'!G119 -> 0 | W119: =SUM(V$17:V119) -> 0 | X119: ='Step 2 Enter Bill Tabulations'!H119 -> 0 | Z119: 0 | AA119: 0 | AB119: 0 | AD119: 0 | AF119: 0 | AG119: 0 | AH119: 0 | AI119: 0 | AJ119: 0 | AL119: 0 | AM119: 0
A120: 103 | B120: 103 | D120: ='Step 2 Enter Bill Tabulations'!E120 -> 0 | E120: ='Step 2 Enter Bill Tabulations'!F120 -> 0 | G120: 0 | H120: 0 | I120: 0 | K120: 0 | M120: 0 | N120: 0 | O120: 0 | P120: 0 | Q120: 0 | S120: 0 | T120: 0 | V120: ='Step 2 Enter Bill Tabulations'!G120 -> 0 | W120: =SUM(V$17:V120) -> 0 | X120: ='Step 2 Enter Bill Tabulations'!H120 -> 0 | Z120: 0 | AA120: 0 | AB120: 0 | AD120: 0 | AF120: 0 | AG120: 0 | AH120: 0 | AI120: 0 | AJ120: 0 | AL120: 0 | AM120: 0
